Workbook

Sheet PANEL DE CONTROL
H3: =+(NOW()) -> 2019-10-21T21:57:52.960
H5: APLICATIVO PRESUPUESTO DE OBRA - RED VIAL TERCIARIA
H7: PANEL DE CONTROL
C11: Herramienta de estructuración de presupuesto de obra para proyectos de mejoramiento de vías regionales
C13: 1. VISOR | K13: 5. MODIFICACIONES C. INDIRECTOS Y OTROS
C21: 2. PRESUPUESTO EJEMPLO | K21: 6. GENERACIÓN PRESUPUESTO PROYECTO
G25: 3. DATOS DE ENTRADA
C29: 4. MODIFICACIONES COSTOS DIRECTOS | K29: 7. NUEVOS INGRESOS
C38: AVISO IMPORTANTE
C39: Este aplicativo permite a las entidades territoriales obtener presupuestos para: 1. Obras tipo contenidas en la “CARTILLA GUÍA PARA LA EVALUACIÓN DE CANTIDADES Y EJECUCIÓN DE PRESUPUESTOS PARA LA CONSTRUCCIÓN DE OBRAS MENORES Y DE CONTENCIÓN DE LA RED TERCIARIA Y FÉRREA DEL INVÍAS” adoptada mediante Resolución N°. 10133 de 2017 del Ministerio de Transporte. 2. Placa Huella contenida en la “GUÍA DE DISEÑO DE PAVIMENTOS CON PLACA HUELLA” adoptada mediante Resolución N°. 0004401 de 2017 del Ministerio de Transporte. Aplica para tramos rectos y sin sobre anchos. Para incluir tramos en curva y sobre anchos, se debe hacer el cálculo específico de las cantidades de obra. 3. Placa Huellas proyecto tipo DNP versión 1.0 de 2016 para mejoramiento de vías terciarias. 4. Las 8 alternativas planteadas en el Proyecto Tipo para el mejoramiento de una vía terciaria Genera los soportes técnicos requeridos para la presentación de proyectos de este tipo de obras como son: APU, Memoria de cantidades de obra, desglose de AUI, factor prestacional, lista de insumos (materiales, equipos, mano de obra y transporte), PMT y PAGA. Incluye el Presupuesto del proyecto tipo DNP versión 1.0 de febrero de 2018 para mejoramiento de vías terciarias – vías de tercer orden. La herramienta de estructuración de presupuesto de obra para proyectos de mejoramiento de vías regionales fue desarrollada por el Programa de Gobernabilidad Regional de USAID y el Departamento Nacional de Planeación -DNP. La herramienta de estructuración de presupuesto de obra para proyectos de mejoramiento de vías regionales permitirá a las entidades territoriales, dar los primeros pasos para estructurar el proyecto de mejoramiento vial, con el fin de buscar su financiación a través de diferente fuentes de recursos, optimizando los procesos de formulación de cantidades, mano de obra, equipos y materiales, generando ahorro en costos y tiempo para la entidad territorial en la generación del presupuesto de obra. Los resultados obtenidos con la aplicación de la herramienta de selección de alternativas para mejoramiento de vías terciarias son responsabilidad única del responsable de la estructuración del proyecto particular y de ninguna forma compromete al Programa de Gobernabilidad Regional de USAID ni al el Departamento Nacional de Planeación -DNP en su uso.
C41: Proyectó: Equipo Asesor de Proyectos - RGA -USAID Willian German Blanco - Coordinador Nacional Componente Vías terciaras Nubia Piedad Sevilla - Asesora Componente Vías terciaras José Sélimo Muñoz - Asesor Componente Vías terciaras Departamento Nacional de Planeación Jonatan David Bernal González- Director de Infraestructura y Energía Sostenible José Alejandro Borrego Naranjo - Profesional Universitario

Sheet PANEL_DNP
H3: =+(NOW()) -> 2019-10-21T21:57:52.960
H5: APLICATIVO PRESUPUESTO DE OBRA - RED VIAL TERCIARIA
H7: PANEL DE CONTROL
C11: Herramienta de estructuración de presupuesto de obra para proyectos de mejoramiento de vías regionales
C24: AVISO IMPORTANTE
C25: Proyectó: Equipo Asesor de Proyectos - RGA -USAID Willian German Blanco - Coordinador Nacional Componente Vías terciaras Nubia Piedad Sevilla - Asesora Componente Vías terciaras José Sélimo Muñoz - Asesor Componente Vías terciaras Departamento Nacional de Planeación Jonatan David Bernal González- Director de Infraestructura y Energía Sostenible José Alejandro Borrego Naranjo - Profesional Universitario

Sheet NOTAS
A1: NOTAS A TENER EN CUENTA
A3: La herramienta de estructuración de presupuesto de obra para proyectos de mejoramiento de vías regionales fue desarrollada por el Programa de Gobernabilidad Regional de USAID y el Departamento Nacional de Planeación -DNP. La herramienta de estructuración de presupuesto de obra para proyectos de mejoramiento de vías regionales permitirá a las entidades territoriales, dar los primeros pasos para estructurar el proyecto de mejoramiento vial, con el fin de buscar su financiación a través de diferente fuentes de recursos, optimizando los procesos de formulación de cantidades, mano de obra, equipos y materiales, generando ahorro en costos y tiempo para la entidad territorial en la generación del presupuesto de obra. Los resultados obtenidos con la aplicación de la herramienta de selección de alternativas para mejoramiento de vías terciarias son responsabilidad única del responsable de la estructuración del proyecto particular y de ninguna forma compromete al Programa de Gobernabilidad Regional de USAID ni al el Departamento Nacional de Planeación -DNP en su uso.
A5: Los valores consignados en el aplicativo tienen como precios base de los insumos, valores utilizados en el norte departamento del Cauca. En ningún caso son los valores reales o finales del proyecto específico de cada entidad territorial. Los precios deben ser revisados, actualizados y ajustados a los de la zona de ejecución del proyecto.
A7: Los Ítems y cantidades de obra tales como excavaciones, rellenos, retiro de materiales, entre otros, se deben revisar y ajustar al estudio topográfico y demás condiciones específicas de cada proyecto a implementar.
A9: En el AIU, el porcentaje de la administración varía según el plazo de ejecución vs el costo directo de las obras a ejecutar. Por lo tanto, debe incluirse en la hoja de “DATOS” el plazo real de ejecución previo a la generación del presupuesto específico. En este cálculo, el plazo de ejecución es la variable más sensible, por lo cual un manejo inadecuado de ésta, puede generar porcentajes de administración desfasados.
A11: El presupuesto de implementación del PMT está calculado por metro lineal del tramo a intervenir, para totalizar su valor es necesario incluir previamente en la hoja de “DATOS” la longitud total del tramo a intervenir.

Sheet DATOS
C3: DATOS DE ENTRADA
C5: 1. DATOS GENERALES DEL PROYECTO
C7: Departamento: | E7: DEPARTAMENTO DEL CAUCA
C9: Municipio: | E9: MUNICIPIO LA ESTRELLA FLUVIAL
C11: Dependencia responsable: | E11: SECRETARÍA DE OBRAS PÚBLICAS
C13: Nombre del Proyecto: | E13: MEJORAMIENTO DEL TRAMO VIAL LA PAZ - EL PROGRESO ENTRE EL K5+000 Y EL K6+000 DEL MUNICIPIO LA ESTRELLA FLUVIAL
C15: Fecha: | E15: 2019-10-11 | G15: Corresponde a la fecha en la que se elabora el presupuesto y con la cual se rotularán todos lo documentos que lo soportan
C17: CODIGO BPIN: | G17: Ingresar si ya se cuenta con el código BPIN del proyecto
C19: Datos del responsable del presupuesto de obra e interventoría
C21: Datos del Responsable: | E21: JULIANA MARÍA VELEZ
C22: Cargo del Responsable: | E22: SECRETARIA DE OBRAS PÚBLICAS
C23: Matricula Profesional N°.: | E23: M.P. N°. 191919199 CAU
C25: Datos del responsable del presupuesto para la implementación del PMT
C27: Nombre del Responsable: | E27: MARIANA ARBOLEDA
C28: Cargo o Profesión del Responsable: | E28: INGENIERA CIVIL
C29: Matricula Profesional N°.: | E29: M.P. N°. 191818188 CAU
C31: Datos del responsable del presupuesto para la implemantación del PAGA
C33: Nombre del Responsable: | E33: ARTURO LAME
C34: Cargo o Profesión del Responsable: | E34: INGENIERO AMBIENTAL
C35: Matricula Profesional N°.: | E35: M.P. N°. 191717177 CAU
C37: 2. DATOS PARA EL CÁLCULO DE LOS COSTOS DIRECTOS
C39: 2.1 DATOS PARA EQUIPO
C41: HERRAMIENTA MENOR TIPO - HM1: | E41: 0.1 | G41: Este porcentaje se aplica al valor total de la mano de obra. Se manejan dos tipos de Herramienta Menor (HM1 y HM2), para dar al usuario la opción de aplicar dos porcentajes diferentes de H.M en un mismo presupuesto, según las condiciones específicas de cada APU.
C43: HERRAMIENTA MENOR TIPO -HM2: | E43: 0.02 | G43: Este porcentaje se aplica al valor total de la mano de obra. Se manejan dos tipos de Herramienta Menor (HM1 y HM2), para dar al usuario la opción de aplicar dos porcentajes diferentes de H.M en un mismo presupuesto, según las condiciones específicas de cada APU.
C45: 2.2 DATOS PARA MATERIALES
C47: DESPERDICIOS: | E47: 0.05
C49: FACTOR DE EXPANSIÓN: | E49: 1.25 | G49: Este factor se aplica al material proveniente de excavaciones que va a ser desalojado
C51: FACTOR DE COMPACTACIÓN: | E51: 1.3 | G51: Este factor se aplica al material con el que se realizarán rellenos
C53: 2.3 DATOS PARA TRANSPORTES
C55: DISTANCIA HASTA SITIOS PARA DISPOSICIÓN DE SOBRANTES: | E55: 8 | H55: Dist. desalojo sobrantes
H56: Dist. Cantera para relleno
C57: DISTANCIA HASTA CANTERA MATERIAL DE RELLENO 1 (km): | E57: 10 | H57: Dist. Cantera Triturado
H58: Dist. Cantera Roca Muerta
C59: DISTANCIA HASTA CANTERA TRITURADOS 2 (km): | E59: 15 | H59: Dist. Cantera Agregados rio
H60: Dist. Transporte Maquinaria
C61: DISTANCIA HASTA FUENTE MATERIAL COMUN O ROCA MUERTA (km): | E61: 9.5
C63: DISTANCIA HASTA CANTERA AGREGADOS RIO 2 (km): | E63: 8
C65: DISTANCIA TRANSPORTE MAQUINARIA (km): | E65: 50
C67: 2.4 DATOS PARA MANO DE OBRA
C69: SMMLV AÑO 2019: | E69: =+SMLMV_2019 -> 828116
C71: AUXILIO DE TRANSPORTE AÑO 2019: | E71: =AT_2019 -> 97032
C73: 3. DATOS PARA EL CÁLCULO DE COSTOS INDIRECTOS Y OTROS
C75: DURACION DE LA OBRA (meses): | E75: 3
C77: LONGITUD PMT (m): | E77: 1000
C79: IMPREVISTOS (%): | E79: 0.02
C81: UTILIDAD (%): | E81: 0.05
C83: IVA (%): | E83: 0.19
C85: PÓLIZAS
C87: Cumplimiento: | E87: 0.0015
C88: Manejo y buena inversión del anticipo: | E88: 0.002
C89: Estabilidad de la Obra: | E89: 0.0041
C90: Pago de salarios y prestaciones Sociales: | E90: 0.0008
C91: Responsabilidad Civil Extracontractual: | E91: 0.0014
C93: % TOTAL PÓLIZAS | E93: =SUM(E87:E91) -> 0.0098

Sheet PPTO_DNP
E3: PROYECTO TIPO MEJORAMIENTO DE VÍAS TERCIARIAS Tramo 1 km | H3: AVAL
E4: PRESUPUESTO
C5: Capítulo/Ítem | D5: Descripción | E5: Unidad | F5: Cantidad | G5: Precio Unitario | H5: Valor parcial
C6: 1 | D6: Realizar obras preliminares | H6: =SUM(H7:H7) -> 9570000
A7: APU-DNP1 | C7: 1.1 | D7: Localización y replanteo | E7: m² | F7: =Memorias_Cap1_2_3!X78 -> 6000 | G7: =+IFERROR(VLOOKUP(A7,APUS_RANGO_DNP,11,FALSE),"") -> 1595 | H7: =ROUND(F7*G7,0) -> 9570000
C8: 2 | D8: Implementar el mejoramiento de vías terciarias para la estructura de pavimento | H8: =SUM(H9:H22) -> 286506561
A9: APU-DNP2 | C9: 2.1 | D9: Excavación mecánica en material común a nivel de subrasante (incluye retiro de sobrantes, transporte hasta escombrera y derecho de botadero) | E9: m³ | F9: =+Memorias_Cap1_2_3!X101 -> 2772 | G9: =+IFERROR(VLOOKUP(A9,APUS_RANGO_DNP,11,FALSE),"") -> 13064 | H9: =ROUND(F9*G9,0) -> 36213408
A10: APU-DNP3 | C10: 2.2 | D10: Conformación de la subrasante | E10: m² | F10: =+Memorias_Cap1_2_3!X125 -> 6000 | G10: 3038 | H10: =ROUND(F10*G10,0) -> 18228000
A11: APU-DNP4 | C11: 2.3 | D11: Subbase granular (incluye suministro, extendido, nivelación, humedecido y compactación) | E11: m³ | F11: =Memorias_Cap1_2_3!X148 -> 1440 | G11: 46055 | H11: =ROUND(F11*G11,0) -> 66319200
A12: APU-DNP5 | C12: 2.4 | D12: Excavación manual H= 0,15 m y a= 0,20 m para riostras de placa huella (incluye retiro de sobrantes, transporte hasta escombrera y derecho de botadero) | E12: m³ | F12: =Memorias_Cap1_2_3!X170 -> 4.83 | G12: 7819 | H12: 37766
A13: APU-DNP6 | C13: 2.5 | D13: Concreto de 210 kg/cm² (3.000 psi) huellas | E13: m³ | F13: =Memorias_Cap1_2_3!X192 -> 26.46 | G13: 314509 | H13: 8321908
A14: APU-DNP7 | C14: 2.6 | D14: Concreto ciclópeo para placa huella (piedra pegada) | E14: m³ | F14: =Memorias_Cap1_2_3!X215 -> 41.16 | G14: 211173 | H14: 8691881
A15: APU-DNP8 | C15: 2.7 | D15: Concreto de 210 kg/cm² (3.000 psi) para riostras de placa huella | E15: m³ | F15: =Memorias_Cap1_2_3!X239 -> 9.66 | G15: 298365 | H15: 2882206
A16: APU-DNP9 | C16: 2.8 | D16: Acero de refuerzo 4.200 kg/cm² (60.000 psi) para huellas y riostras | E16: kg | F16: =Memorias_Cap1_2_3!X264 -> 1634.178 | G16: 3250 | H16: 5311079
A17: APU-DNP10 | C17: 2.9 | D17: Mejoramiento de la subrasante con adición de materiales | E17: m³ | F17: =Memorias_Cap1_2_3!X286 -> 270 | G17: 31339 | H17: 8461530
A18: APU-DNP11 | C18: 2.10 | D18: Base tratada con cemento resistencia R-3.5 (incluye suministro de cemento) | E18: m³ | F18: =Memorias_Cap1_2_3!X308 -> 0 | G18: 131054 | H18: 0
A19: APU-DNP12 | C19: 2.11 | D19: Base estabilizada con emulsión asfáltica tipo BEE-38 | E19: m³ | F19: =Memorias_Cap1_2_3!X332 -> 928.8 | G19: 85914 | H19: 79796923
A20: APU-DNP13 | C20: 2.12 | D20: Base granular estabilizada mecánicamente (Base Granular Clase C) | E20: m³ | F20: =Memorias_Cap1_2_3!X354 -> 0 | G20: 71776 | H20: 0
A21: APU-DNP14 | C21: 2.13 | D21: Lechada asfáltica con emulsión CRL-1HM, tipo LA-5 | E21: m² | F21: =Memorias_Cap1_2_3!X376 -> 0 | G21: 3775 | H21: 0
A22: APU-DNP15 | C22: 2.14 | D22: Tratamiento superficial doble con emulsión CRR-2 tipo 1 | E22: m² | F22: =Memorias_Cap1_2_3!X398 -> 4140 | G22: 12619 | H22: 52242660
C23: 3 | D23: Construir obras de drenaje | H23: =SUM(H24:H31) -> 267057609
A24: APU-DNP16 | C24: 3.1 | D24: Excavación manual | E24: m³ | F24: =Memorias_Cap1_2_3!X423 -> 364.032 | G24: =+IFERROR(VLOOKUP(A24,APUS_RANGO_DNP,11,FALSE),"") -> 17058 | H24: =ROUND(F24*G24,0) -> 6209658
A25: APU-DNP17 | C25: 3.2 | D25: Relleno con arena protección tuberia | E25: m³ | F25: =Memorias_Cap1_2_3!X446 -> 103.032084 | G25: 41554 | H25: 4281395
A26: APU-DNP9 | C26: 3.3 | D26: Acero figurado de refuerzo de 4.200 kg/cm² (60.000 psi) | E26: kg | F26: =Memorias_Cap1_2_3!X496 -> 25195.5052 | G26: 3250 | H26: 81885392
A27: APU-DNP18 | C27: 3.4 | D27: Concreto para estructuras resistencia de 210 kg/cm² (3.000 psi) | E27: m³ | F27: =+Memorias_Cap1_2_3!X530 -> 106.6173 | G27: 313227 | H27: 33395417
A28: APU-DNP19 | C28: 3.5 | D28: Tubería de diámetro 0,9 m (36") en concreto para cada alcantarilla | E28: m | F28: =Memorias_Cap1_2_3!X555 -> 54 | G28: 549685 | H28: 29682990
A29: APU-DNP20 | C29: 3.6 | D29: Concreto para cunetas resistencia de 210 kg/cm² (3.000 psi) | E29: m³ | F29: =Memorias_Cap1_2_3!X580 -> 358.92 | G29: 306063 | H29: 109852132
A30: APU-DNP21 | C30: 3.7 | D30: Disipadores de energía en concreto ciclópeo | E30: m³ | F30: =+Memorias_Cap1_2_3!X608 -> 0.81163 | G30: 182102 | H30: 147799
A31: APU-DNP22 | C31: 3.8 | D31: Concreto para solado de nivelación resistencia de 140 kg/cm² (2.000 psi) | E31: m³ | F31: =+Memorias_Cap1_2_3!X642 -> 8.331127686 | G31: 192390 | H31: 1602826
C32: 4 | D32: Construir obras de contención | H32: =SUM(H33:H43) -> 24366406.51
A33: APU-DNP23 | C33: 4.1 | D33: Paneles de concreto para muros de tierra estabilizada mecánicamente | E33: m² | F33: =+Memorias_Cap_4!$AA$29 -> 0 | G33: =+IFERROR(VLOOKUP(A33,APUS_RANGO_DNP,11,FALSE),"") -> 111633 | H33: =+F33*G33 -> 0
A34: APU-DNP24 | C34: 4.2 | D34: Excavación de material común para instalación de muros | E34: m³ | F34: =+Memorias_Cap_4!$AA$74 -> 120 | G34: 16267 | H34: =+F34*G34 -> 1952040
A35: APU-DNP25 | C35: 4.3 | D35: Relleno granular para instalación de muros de contención | E35: m³ | F35: =+Memorias_Cap_4!$AA$99 -> 63 | G35: 43725 | H35: =+F35*G35 -> 2754675
A36: APU-DNP26 | C36: 4.4 | D36: Solera de nivelación para muros de contención | E36: m³ | F36: =+Memorias_Cap_4!$AA$124 -> 1.5 | G36: 264842 | H36: =+F36*G36 -> 397263
A37: APU-DNP27 | C37: 4.5 | D37: Pletina en alternativa de muros de tierra estabilizada mecánicamente con paneles de concreto caso de un muro sin talud a borde de vía | E37: m | F37: =+Memorias_Cap_4!$AA$147 -> 0 | G37: 6390 | H37: =+F37*G37 -> 0
A38: APU-DNP3 | C38: 4.6 | D38: Conformación de subrasante para construccion muro de contención | E38: m³ | F38: =+Memorias_Cap_4!$AA$173 -> 30 | G38: 3038 | H38: 91140
A39: APU-DNP9 | C39: 4.7 | D39: Acero de refuerzo fy=420 Mpa para construccion muro de contencion | E39: kg | F39: =+Memorias_Cap_4!$AA$215 -> 2532.278125 | G39: 3250 | H39: 8229903.906
A40: APU-DNP28 | C40: 4.8 | D40: Concreto f'c=21 MPa para construccion muro de contención | E40: m³ | F40: =+Memorias_Cap_4!$AA$243 -> 31.7 | G40: 314548 | H40: 9971171.6
A41: APU-DNP29 | C41: 4.9 | D41: Geotextil NT 1600 para construccion muro de contención | E41: m2 | F41: =Memorias_Cap_4!$AA$270 -> 41 | G41: 6413 | H41: 262933
A42: APU-DNP30 | C42: 4.10 | D42: Relleno en material filtrante para construccion muro de contención | E42: m³ | F42: =+Memorias_Cap_4!$AA$295 -> 10.5 | G42: 67360 | H42: 707280
A43: APU-DNP31 | C43: 4.11 | D43: Suministro e instalación de gaviones prefabricados | E43: m³ | F43: =+Memorias_Cap_4!$AA$323 -> 0 | G43: 103205 | H43: 0
C44: Total costos directos | H44: =H6+H8+H23+H32 -> 587500576.5
C46: Los porcentajes presentados por concepto de AIU son indicativos, cada entidad territorial tiene la responsabilidad de ajustarlos y presentar el correspondiente análisis detallado, de acuerdo con sus condiciones particulares | F46: Administración | G46: 0.18 | H46: =ROUND(H44*G46,0) -> 105750104
F47: Imprevistos | G47: 0.06 | H47: =ROUND(H44*G47,0) -> 35250035
F48: Utilidad | G48: 0.06 | H48: =ROUND(H44*G48,0) -> 35250035
F49: SUBTOTAL AIU | G49: =G46+G47+G48 -> 0.3 | H49: =H46+H47+H48 -> 176250174
C51: Costo total obra | H51: =+H44+H49 -> 763750750.5
C52: Interventoría | H52: ='Interventoría DNP'!J61 -> 53100382.74
C53: Valor total del proyecto | H53: =+H51+H52 -> 816851133.2
C55: Notas aclaratorias:
C57: 1. En el caso de existir una estructura que no vaya a ser parte del proyecto, se deberán ejecutar las demoliciones indicadas en los planos o las que se consideren para la realización de la obra, para lo cual se ha realizado un ítem adicional correspondiente a esta actividad.

Sheet APUs_DNP
A3: 1 | B3: 2 | C3: 3 | D3: 4 | E3: 5 | F3: 6 | G3: 7 | H3: 8 | I3: 9 | J3: 10 | K3: 11
B4: REPÚBLICA DE COLOMBIA
B5: =+DPTO -> DEPARTAMENTO DEL CAUCA
B6: =+Nom_Mpio1 -> MUNICIPIO LA ESTRELLA FLUVIAL
B7: =Dependencia -> SECRETARÍA DE OBRAS PÚBLICAS
H8: Fecha: | I8: =+Fecha_Pres -> 2019-10-11
B9: =+Nom_proy1 -> MEJORAMIENTO DEL TRAMO VIAL LA PAZ - EL PROGRESO ENTRE EL K5+000 Y EL K6+000 DEL MUNICIPIO LA ESTRELLA FLUVIAL
B11: ANÁLISIS DE PRECIOS UNITARIOS
A12: APU-DNP1 | B12: =IFERROR(VLOOKUP($A12,LISTA_APU_DNP,2,FALSE),"") -> LOCALIZACIÓN Y REPLANTEO | I12: Unidad: | J12: =IFERROR(VLOOKUP($A12,LISTA_APU_DNP,3,FALSE),"") -> m² | K12: =K41 -> 1595
B13: I. EQUIPOS Y HERRAMIENTAS
B14: DESCRIPCIÓN | E14: UND | F14: TIPO | H14: TARIFA | I14: RENDIMIENTO | K14: VR/UNIT
A15: E31 | B15: =+IFERROR(VLOOKUP($A15,INSUMOS_BD2,3,FALSE),"") -> Herramienta Menor HM (% mano de obra) | E15: =+IFERROR(VLOOKUP($A15,INSUMOS_BD2,4,FALSE),"") -> glb | H15: =+IFERROR(ROUND(IF($B15="Herramienta Menor (% mano de obra)",HM,VLOOKUP($A15,INSUMOS_BD2,5,FALSE)),2),"") -> 0 | K15: =+IFERROR(ROUND(IF($B15="Herramienta Menor (% mano de obra)",$K$39*H15,H15*I15),0),"") -> 0
B16: =+IFERROR(VLOOKUP($A16,INSUMOS_BD2,3,FALSE),"") ->  | E16: =+IFERROR(VLOOKUP($A16,INSUMOS_BD2,4,FALSE),"") ->  | H16: =+IFERROR(ROUND(IF($B16="Herramienta Menor (% mano de obra)",HM,VLOOKUP($A16,INSUMOS_BD2,5,FALSE)),2),"") ->  | K16: =+IFERROR(ROUND(IF($B16="Herramienta Menor (% mano de obra)",$K$39*H16,H16*I16),0),"") -> 
B17: =+IFERROR(VLOOKUP($A17,INSUMOS_BD2,3,FALSE),"") ->  | E17: =+IFERROR(VLOOKUP($A17,INSUMOS_BD2,4,FALSE),"") ->  | H17: =+IFERROR(ROUND(IF($B17="Herramienta Menor (% mano de obra)",HM,VLOOKUP($A17,INSUMOS_BD2,5,FALSE)),2),"") ->  | K17: =+IFERROR(ROUND(IF($B17="Herramienta Menor (% mano de obra)",$K$39*H17,H17*I17),0),"") -> 
H18: SUB-TOTAL $ | K18: =SUM(K15:K17) -> 0
B20: II. MATERIALES
B21: DESCRIPCIÓN | G21: UNIDAD | H21: CANTIDAD | I21: PRECIO UNIT. | K21: VR/UNIT
A22: M25 | B22: =+IFERROR(VLOOKUP($A22,INSUMOS_BD2,3,FALSE),"") -> Alambre negro N°. 18 | G22: =+IFERROR(VLOOKUP($A22,INSUMOS_BD2,4,FALSE),"") -> kg | H22: 0.01 | I22: =+IFERROR(VLOOKUP($A22,INSUMOS_BD2,5,FALSE),"") -> 2504 | K22: =+IFERROR(ROUND(IF($B22="Herramienta Menor (% mano de obra)",$K$40*H22,H22/I22),0),"") -> 0
A23: m75 | B23: =+IFERROR(VLOOKUP($A23,INSUMOS_BD2,3,FALSE),"") -> Durmiente ordinario 4*4cm | G23: =+IFERROR(VLOOKUP($A23,INSUMOS_BD2,4,FALSE),"") -> m | H23: 0.5 | I23: =+IFERROR(VLOOKUP($A23,INSUMOS_BD2,5,FALSE),"") -> 2600 | K23: =IFERROR(ROUND(H23*I23,0),"") -> 1300
A24: m55 | B24: =+IFERROR(VLOOKUP($A24,INSUMOS_BD2,3,FALSE),"") -> Puntilla de 1" | G24: =+IFERROR(VLOOKUP($A24,INSUMOS_BD2,4,FALSE),"") -> lb | H24: 0.01 | I24: =+IFERROR(VLOOKUP($A24,INSUMOS_BD2,5,FALSE),"") -> 2350 | K24: =IFERROR(ROUND(H24*I24,0),"") -> 24
H25: SUB-TOTAL $ | K25: =SUM(K22:K24) -> 1324
B27: III. TRANSPORTES
B28: MATERIAL | F28: VOL. o PESO | G28: DISTANCIA | H28: M3 o Ton/Km | I28: TARIFA | K28: VR/UNIT
B29: =+IFERROR(VLOOKUP($A29,INSUMOS_BD2,3,FALSE),"") ->  | H29: =+IFERROR(VLOOKUP($A29,INSUMOS_BD2,3,FALSE),"") ->  | I29: =+IFERROR(VLOOKUP($A29,INSUMOS_BD2,5,FALSE),"") ->  | K29: =IFERROR(ROUND(F29*G29*I29,0),"") -> 
B30: =+IFERROR(VLOOKUP($A30,INSUMOS_BD2,3,FALSE),"") ->  | H30: =+IFERROR(VLOOKUP($A30,INSUMOS_BD2,3,FALSE),"") ->  | I30: =+IFERROR(VLOOKUP($A30,INSUMOS_BD2,5,FALSE),"") ->  | K30: =IFERROR(ROUND(F30*G30*I30,0),"") -> 
B31: =+IFERROR(VLOOKUP($A31,INSUMOS_BD2,3,FALSE),"") ->  | H31: =+IFERROR(VLOOKUP($A31,INSUMOS_BD2,3,FALSE),"") ->  | I31: =+IFERROR(VLOOKUP($A31,INSUMOS_BD2,5,FALSE),"") ->  | K31: =IFERROR(ROUND(F31*G31*I31,0),"") -> 
H32: SUB-TOTAL $ | K32: =SUM(K29:K31) -> 0
B34: IV. MANO DE OBRA
B35: TRABAJADOR | G35: UND | H35: VR/HORA | I35: RENDIMIENTO | K35: VR/UNIT
A36: cd1 | B36: =+IFERROR(VLOOKUP($A36,Cuadrillas_DNP[],2,FALSE),"") -> Cuadrilla AA (Albañilería) 1Of y 1Ay | F36: =+IFERROR(VLOOKUP($A36,INSUMOS_BD2,4,FALSE),"") ->  | G36: =+IFERROR(VLOOKUP($A36,Cuadrillas_DNP[],3,FALSE),"") -> hora | H36: =+IFERROR(VLOOKUP($A36,Cuadrillas_DNP[],6,FALSE),"") -> 16375 | I36: 0.016555 | K36: =IFERROR(ROUND(H36*I36,0),"") -> 271
B37: =+IFERROR(VLOOKUP($A37,Cuadrillas_DNP[],2,FALSE),"") ->  | F37: =+IFERROR(VLOOKUP($A37,INSUMOS_BD2,4,FALSE),"") ->  | G37: =+IFERROR(VLOOKUP($A37,Cuadrillas_DNP[],3,FALSE),"") ->  | H37: =+IFERROR(VLOOKUP($A37,Cuadrillas_DNP[],6,FALSE),"") ->  | K37: =IFERROR(ROUND(H37*I37,0),"") -> 
B38: =+IFERROR(VLOOKUP($A38,Cuadrillas_DNP[],2,FALSE),"") ->  | F38: =+IFERROR(VLOOKUP($A38,INSUMOS_BD2,4,FALSE),"") ->  | G38: =+IFERROR(VLOOKUP($A38,Cuadrillas_DNP[],3,FALSE),"") ->  | H38: =+IFERROR(VLOOKUP($A38,Cuadrillas_DNP[],6,FALSE),"") ->  | K38: =IFERROR(ROUND(H38*I38,0),"") -> 
H39: SUB-TOTAL $ | K39: =SUM(K36:K38) -> 271
B41: TOTAL COSTO DIRECTO $ | K41: =ROUND((+K39+K32+K25+K18),0) -> 1595
B43: V. COSTOS INDIRECTOS
B44: Descripción | H44: Porcentaje | I44: Valor Total
B45: ADMINISTRACION | H45: =+ADMON -> 0.01 | I45: =+K41*H45 -> 15.95
B46: IMPREVISTOS | H46: =+IMPREVISTOS -> 0.02 | I46: =+K41*H46 -> 31.9
B47: UTILIDAD | H47: =+UTILIDAD -> 0.05 | I47: =+K41*H47 -> 79.75
B48: TOTAL COSTO INDIRECTO $ | K48: =SUM(I45:J47) -> 127.6
B50: Precio Unitario Total $ | K50: =+ROUND(K48+K41,0) -> 1723
A52: APU-DNP2 | B52: =IFERROR(VLOOKUP($A52,LISTA_APU,2,FALSE),"") ->  | I52: Unidad: | J52: =IFERROR(VLOOKUP($A52,LISTA_APU_DNP,3,FALSE),"") -> m³ | K52: =K81 -> 13064
B53: I. EQUIPO
B54: DESCRIPCIÓN | E54: UND | F54: TIPO | H54: TARIFA | I54: RENDIMIENTO | K54: VR/UNIT
A55: E31 | B55: =+IFERROR(VLOOKUP($A55,INSUMOS_BD2,3,FALSE),"") -> Herramienta Menor HM (% mano de obra) | E55: =+IFERROR(VLOOKUP($A55,INSUMOS_BD2,4,FALSE),"") -> glb | H55: =+IFERROR(ROUND(IF($B55="Herramienta Menor (% mano de obra)",HM,VLOOKUP($A55,INSUMOS_BD2,5,FALSE)),2),"") -> 0 | K55: =+IFERROR(ROUND(IF($B55="Herramienta Menor (% mano de obra)",$K$79*H55,H55*I55),0),"") -> 0
A56: e42 | B56: =+IFERROR(VLOOKUP($A56,INSUMOS_BD2,3,FALSE),"") -> Retroexcavadora sobre oruga, potencia 138 HP, balde de 1,5 m3. | E56: =+IFERROR(VLOOKUP($A56,INSUMOS_BD2,4,FALSE),"") -> hora | H56: =+IFERROR(ROUND(IF($B56="Herramienta Menor (% mano de obra)",HM,VLOOKUP($A56,INSUMOS_BD2,5,FALSE)),2),"") -> 207266 | I56: 0.02857142857 | K56: =+IFERROR(ROUND(IF($B56="Herramienta Menor (% mano de obra)",$K$79*H56,H56*I56),0),"") -> 5922
A57: e43 | B57: =+IFERROR(VLOOKUP($A57,INSUMOS_BD2,3,FALSE),"") -> Bulldozer, Potencia al volante de 140 HP, motor de 2200 RPM, longitud de hoja 4,80 m. | E57: =+IFERROR(VLOOKUP($A57,INSUMOS_BD2,4,FALSE),"") -> hora | H57: =+IFERROR(ROUND(IF($B57="Herramienta Menor (% mano de obra)",HM,VLOOKUP($A57,INSUMOS_BD2,5,FALSE)),2),"") -> 140167 | I57: 0.01 | K57: =+IFERROR(ROUND(IF($B57="Herramienta Menor (% mano de obra)",$K$79*H57,H57*I57),0),"") -> 1402
H58: SUB-TOTAL $ | K58: =SUM(K55:K57) -> 7324
B60: II. MATERIALES
B61: DESCRIPCIÓN | G61: UNIDAD | H61: CANTIDAD | I61: PRECIO UNIT. | K61: VR/UNIT
A62: M71 | B62: =+IFERROR(VLOOKUP($A62,INSUMOS_BD2,3,FALSE),"") -> Derechos de explotación y/o disposición de materiales | G62: =+IFERROR(VLOOKUP($A62,INSUMOS_BD2,4,FALSE),"") -> m³ | H62: 1.3 | I62: =+IFERROR(VLOOKUP($A62,INSUMOS_BD2,5,FALSE),"") -> 2988 | K62: =IFERROR(ROUND(H62*I62,0),"") -> 3884
B63: =+IFERROR(VLOOKUP($A63,INSUMOS_BD2,3,FALSE),"") ->  | G63: =+IFERROR(VLOOKUP($A63,INSUMOS_BD2,4,FALSE),"") ->  | I63: =+IFERROR(VLOOKUP($A63,INSUMOS_BD2,5,FALSE),"") ->  | K63: =IFERROR(ROUND(H63*I63,0),"") -> 
B64: =+IFERROR(VLOOKUP($A64,INSUMOS_BD2,3,FALSE),"") ->  | G64: =+IFERROR(VLOOKUP($A64,INSUMOS_BD2,4,FALSE),"") ->  | I64: =+IFERROR(VLOOKUP($A64,INSUMOS_BD2,5,FALSE),"") ->  | K64: =IFERROR(ROUND(H64*I64,0),"") -> 
H65: SUB-TOTAL $ | K65: =SUM(K62:K64) -> 3884
B67: III. TRANSPORTES
B68: MATERIAL | F68: VOL. o PESO | G68: DISTANCIA | H68: FACT. EXPANSIÓN | I68: TARIFA (M3 o Ton/Km) | K68: VR/UNIT
A69: T16 | B69: =+IFERROR(VLOOKUP($A69,INSUMOS_BD2,3,FALSE),"") -> Volqueta 6 m³ (cargue mecánico) botadero | F69: =H62 -> 1.3 | G69: 1 | H69: - | I69: =+IFERROR(VLOOKUP($A69,INSUMOS_BD2,5,FALSE),"") -> 1250 | K69: =IFERROR(ROUND(F69*G69*I69,0),"") -> 1625
A70: T17 | B70: =+IFERROR(VLOOKUP($A70,INSUMOS_BD2,3,FALSE),"") -> Volqueta 6 m³ (cargue mecánico)botadero adicional mayor 20 km | I70: =+IFERROR(VLOOKUP($A70,INSUMOS_BD2,5,FALSE),"") -> 1323.25 | K70: =IFERROR(ROUND(F70*G70*I70,0),"") -> 0
B71: =+IFERROR(VLOOKUP($A71,INSUMOS_BD2,3,FALSE),"") ->  | H71: =+IFERROR(VLOOKUP($A71,INSUMOS_BD2,3,FALSE),"") ->  | I71: =+IFERROR(VLOOKUP($A71,INSUMOS_BD2,5,FALSE),"") ->  | K71: =IFERROR(ROUND(F71*G71*I71,0),"") -> 
H72: SUB-TOTAL $ | K72: =SUM(K69:K71) -> 1625
B74: IV. MANO DE OBRA
B75: TRABAJADOR | G75: UND | H75: VR/HORA | I75: RENDIMIENTO | K75: VR/UNIT
A76: cd2 | B76: =+IFERROR(VLOOKUP($A76,Cuadrillas_DNP[],2,FALSE),"") -> Cuadrilla AA 1Of+2Ay (Albañilería) | F76: =+IFERROR(VLOOKUP($A76,INSUMOS_BD2,4,FALSE),"") ->  | G76: =+IFERROR(VLOOKUP($A76,Cuadrillas_DNP[],3,FALSE),"") -> hora | H76: =+IFERROR(VLOOKUP($A76,Cuadrillas_DNP[],6,FALSE),"") -> 23097 | I76: 0.01 | K76: =IFERROR(ROUND(H76*I76,0),"") -> 231
B77: =+IFERROR(VLOOKUP($A77,Cuadrillas_DNP[],2,FALSE),"") ->  | F77: =+IFERROR(VLOOKUP($A77,INSUMOS_BD2,4,FALSE),"") ->  | G77: =+IFERROR(VLOOKUP($A77,Cuadrillas_DNP[],3,FALSE),"") ->  | H77: =+IFERROR(VLOOKUP($A77,Cuadrillas_DNP[],6,FALSE),"") ->  | K77: =IFERROR(ROUND(H77*I77,0),"") -> 
B78: =+IFERROR(VLOOKUP($A78,Cuadrillas_DNP[],2,FALSE),"") ->  | F78: =+IFERROR(VLOOKUP($A78,INSUMOS_BD2,4,FALSE),"") ->  | G78: =+IFERROR(VLOOKUP($A78,Cuadrillas_DNP[],3,FALSE),"") ->  | H78: =+IFERROR(VLOOKUP($A78,Cuadrillas_DNP[],6,FALSE),"") ->  | K78: =IFERROR(ROUND(H78*I78,0),"") -> 
H79: SUB-TOTAL $ | K79: =SUM(K76:K78) -> 231
B81: TOTAL COSTO DIRECTO $ | K81: =ROUND((+K79+K72+K65+K58),0) -> 13064
B83: V. COSTOS INDIRECTOS
B84: Descripción | H84: Porcentaje | I84: Valor Total
B85: ADMINISTRACION | H85: =+ADMON -> 0.01 | I85: =+K81*H85 -> 130.64
B86: IMPREVISTOS | H86: =+IMPREVISTOS -> 0.02 | I86: =+K81*H86 -> 261.28
B87: UTILIDAD | H87: =+UTILIDAD -> 0.05 | I87: =+K81*H87 -> 653.2
B88: TOTAL COSTO INDIRECTO $ | K88: =SUM(I85:J87) -> 1045.12
B90: Precio Unitario Total $ | K90: =+ROUND(K88+K81,0) -> 14109
A92: APU-DNP3 | B92: =IFERROR(VLOOKUP($A92,LISTA_APU_DNP,2,FALSE),"") -> CONFORMACIÓN DE LA SUBRASANTE | I92: Unidad: | J92: =IFERROR(VLOOKUP($A92,LISTA_APU_DNP,3,FALSE),"") -> m² | K92: =K121 -> 3038
B93: I. EQUIPO
B94: DESCRIPCIÓN | E94: UND | F94: TIPO | H94: TARIFA | I94: RENDIMIENTO | K94: VR/UNIT
A95: e31 | B95: =+IFERROR(VLOOKUP($A95,INSUMOS_BD2,3,FALSE),"") -> Herramienta Menor HM (% mano de obra) | E95: =+IFERROR(VLOOKUP($A95,INSUMOS_BD2,4,FALSE),"") -> glb | H95: =+IFERROR(ROUND(IF($B95="Herramienta Menor (% mano de obra)",HM,VLOOKUP($A95,INSUMOS_BD2,5,FALSE)),2),"") -> 0 | K95: =+IFERROR(ROUND(IF($B95="Herramienta Menor (% mano de obra)",$K$119*H95,H95*I95),0),"") -> 0
A96: e44 | B96: =+IFERROR(VLOOKUP($A96,INSUMOS_BD2,3,FALSE),"") -> Vibro compactador 8 Ton | E96: =+IFERROR(VLOOKUP($A96,INSUMOS_BD2,4,FALSE),"") -> hora | H96: =+IFERROR(ROUND(IF($B96="Herramienta Menor (% mano de obra)",HM,VLOOKUP($A96,INSUMOS_BD2,5,FALSE)),2),"") -> 116000 | I96: 0.008978675645 | K96: =+IFERROR(ROUND(IF($B96="Herramienta Menor (% mano de obra)",$K$119*H96,H96*I96),0),"") -> 1042
A97: e45 | B97: =+IFERROR(VLOOKUP($A97,INSUMOS_BD2,3,FALSE),"") -> Motoniveladora 120 Hp | E97: =+IFERROR(VLOOKUP($A97,INSUMOS_BD2,4,FALSE),"") -> hora | H97: =+IFERROR(ROUND(IF($B97="Herramienta Menor (% mano de obra)",HM,VLOOKUP($A97,INSUMOS_BD2,5,FALSE)),2),"") -> 120000 | I97: 0.008978675645 | K97: =+IFERROR(ROUND(IF($B97="Herramienta Menor (% mano de obra)",$K$119*H97,H97*I97),0),"") -> 1077
H98: SUB-TOTAL $ | K98: =SUM(K95:K97) -> 2119
B100: II. MATERIALES
B101: DESCRIPCIÓN | G101: UNIDAD | H101: CANTIDAD | I101: PRECIO UNIT. | K101: VR/UNIT
A102: m118 | B102: =+IFERROR(VLOOKUP($A102,INSUMOS_BD2,3,FALSE),"") -> Agua | G102: =+IFERROR(VLOOKUP($A102,INSUMOS_BD2,4,FALSE),"") -> l | H102: 10 | I102: =+IFERROR(VLOOKUP($A102,INSUMOS_BD2,5,FALSE),"") -> 10 | K102: =IFERROR(ROUND(H102*I102,0),"") -> 100
B103: =+IFERROR(VLOOKUP($A103,INSUMOS_BD2,3,FALSE),"") ->  | G103: =+IFERROR(VLOOKUP($A103,INSUMOS_BD2,4,FALSE),"") ->  | I103: =+IFERROR(VLOOKUP($A103,INSUMOS_BD2,5,FALSE),"") ->  | K103: =IFERROR(ROUND(H103*I103,0),"") -> 
B104: =+IFERROR(VLOOKUP($A104,INSUMOS_BD2,3,FALSE),"") ->  | G104: =+IFERROR(VLOOKUP($A104,INSUMOS_BD2,4,FALSE),"") ->  | I104: =+IFERROR(VLOOKUP($A104,INSUMOS_BD2,5,FALSE),"") ->  | K104: =IFERROR(ROUND(H104*I104,0),"") -> 
H105: SUB-TOTAL $ | K105: =SUM(K102:K104) -> 100
B107: III. TRANSPORTES
B108: MATERIAL | F108: VOL. o PESO | G108: DISTANCIA | H108: FACT. EXPANSIÓN | I108: TARIFA (M3 o Ton/Km) | K108: VR/UNIT
B109: =+IFERROR(VLOOKUP($A109,INSUMOS_BD2,3,FALSE),"") ->  | H109: =+IFERROR(VLOOKUP($A109,INSUMOS_BD2,3,FALSE),"") ->  | I109: =+IFERROR(VLOOKUP($A109,INSUMOS_BD2,5,FALSE),"") ->  | K109: =IFERROR(ROUND(F109*G109*I109,0),"") -> 
B110: =+IFERROR(VLOOKUP($A110,INSUMOS_BD2,3,FALSE),"") ->  | H110: =+IFERROR(VLOOKUP($A110,INSUMOS_BD2,3,FALSE),"") ->  | I110: =+IFERROR(VLOOKUP($A110,INSUMOS_BD2,5,FALSE),"") ->  | K110: =IFERROR(ROUND(F110*G110*I110,0),"") -> 
B111: =+IFERROR(VLOOKUP($A111,INSUMOS_BD2,3,FALSE),"") ->  | H111: =+IFERROR(VLOOKUP($A111,INSUMOS_BD2,3,FALSE),"") ->  | I111: =+IFERROR(VLOOKUP($A111,INSUMOS_BD2,5,FALSE),"") ->  | K111: =IFERROR(ROUND(F111*G111*I111,0),"") -> 
H112: SUB-TOTAL $ | K112: =SUM(K109:K111) -> 0
B114: IV. MANO DE OBRA
B115: TRABAJADOR | G115: UND | H115: VR/HORA | I115: RENDIMIENTO | K115: VR/UNIT
A116: cd1 | B116: =+IFERROR(VLOOKUP($A116,Cuadrillas_DNP[],2,FALSE),"") -> Cuadrilla AA (Albañilería) 1Of y 1Ay | F116: =+IFERROR(VLOOKUP($A116,INSUMOS_BD2,4,FALSE),"") ->  | G116: =+IFERROR(VLOOKUP($A116,Cuadrillas_DNP[],3,FALSE),"") -> hora | H116: =+IFERROR(VLOOKUP($A116,Cuadrillas_DNP[],6,FALSE),"") -> 16375 | I116: 0.05 | K116: =IFERROR(ROUND(H116*I116,0),"") -> 819
B117: =+IFERROR(VLOOKUP($A117,Cuadrillas_DNP[],2,FALSE),"") ->  | F117: =+IFERROR(VLOOKUP($A117,INSUMOS_BD2,4,FALSE),"") ->  | G117: =+IFERROR(VLOOKUP($A117,Cuadrillas_DNP[],3,FALSE),"") ->  | H117: =+IFERROR(VLOOKUP($A117,Cuadrillas_DNP[],6,FALSE),"") ->  | K117: =IFERROR(ROUND(H117*I117,0),"") -> 
B118: =+IFERROR(VLOOKUP($A118,Cuadrillas_DNP[],2,FALSE),"") ->  | F118: =+IFERROR(VLOOKUP($A118,INSUMOS_BD2,4,FALSE),"") ->  | G118: =+IFERROR(VLOOKUP($A118,Cuadrillas_DNP[],3,FALSE),"") ->  | H118: =+IFERROR(VLOOKUP($A118,Cuadrillas_DNP[],6,FALSE),"") ->  | K118: =IFERROR(ROUND(H118*I118,0),"") -> 
H119: SUB-TOTAL $ | K119: =SUM(K116:K118) -> 819
B121: TOTAL COSTO DIRECTO $ | K121: =ROUND((+K119+K112+K105+K98),0) -> 3038
B123: V. COSTOS INDIRECTOS
B124: Descripción | H124: Porcentaje | I124: Valor Total
B125: ADMINISTRACION | H125: =+ADMON -> 0.01 | I125: =+K121*H125 -> 30.38
B126: IMPREVISTOS | H126: =+IMPREVISTOS -> 0.02 | I126: =+K121*H126 -> 60.76
B127: UTILIDAD | H127: =+UTILIDAD -> 0.05 | I127: =+K121*H127 -> 151.9
B128: TOTAL COSTO INDIRECTO $ | K128: =SUM(I125:J127) -> 243.04
B130: Precio Unitario Total $ | K130: =+ROUND(K128+K121,0) -> 3281
A132: APU-DNP4 | B132: =IFERROR(VLOOKUP($A132,LISTA_APU,2,FALSE),"") ->  | I132: Unidad: | J132: =IFERROR(VLOOKUP($A132,LISTA_APU_DNP,3,FALSE),"") -> m³ | K132: =K162 -> 46055
B133: I. EQUIPO
B134: DESCRIPCIÓN | E134: UND | F134: TIPO | H134: TARIFA | I134: RENDIMIENTO | K134: VR/UNIT
A135: e31 | B135: =+IFERROR(VLOOKUP($A135,INSUMOS_BD2,3,FALSE),"") -> Herramienta Menor HM (% mano de obra) | E135: =+IFERROR(VLOOKUP($A135,INSUMOS_BD2,4,FALSE),"") -> glb | H135: =+IFERROR(ROUND(IF($B135="Herramienta Menor (% mano de obra)",HM,VLOOKUP($A135,INSUMOS_BD2,5,FALSE)),2),"") -> 0 | K135: =+IFERROR(ROUND(IF($B135="Herramienta Menor (% mano de obra)",$K$160*H135,H135/I135),0),"") ->  | M135: e46
A136: E46 | B136: =+IFERROR(VLOOKUP($A136,INSUMOS_BD2,3,FALSE),"") -> Carrotanque de agua(1000 Galones) | E136: =+IFERROR(VLOOKUP($A136,INSUMOS_BD2,4,FALSE),"") -> hora | H136: =+IFERROR(ROUND(IF($B136="Herramienta Menor (% mano de obra)",HM,VLOOKUP($A136,INSUMOS_BD2,5,FALSE)),2),"") -> 70000 | I136: 45 | K136: =+IFERROR(ROUND(IF($B136="Herramienta Menor (% mano de obra)",$K$160*H136,H136/I136),0),"") -> 1556 | M136: e19
A137: e19 | B137: =+IFERROR(VLOOKUP($A137,INSUMOS_BD2,3,FALSE),"") -> MOTONIVELADORA POTENCIA 215 HP, ANCHO DE CUCHILLA 4,27M, PESO 18 TN | E137: =+IFERROR(VLOOKUP($A137,INSUMOS_BD2,4,FALSE),"") -> hora | H137: =+IFERROR(ROUND(IF($B137="Herramienta Menor (% mano de obra)",HM,VLOOKUP($A137,INSUMOS_BD2,5,FALSE)),2),"") -> 164000 | I137: 45 | K137: =+IFERROR(ROUND(IF($B137="Herramienta Menor (% mano de obra)",$K$160*H137,H137/I137),0),"") -> 3644 | M137: e23
A138: e23 | B138: =+IFERROR(VLOOKUP($A138,INSUMOS_BD2,3,FALSE),"") -> VIBROCOMPACTADOR POTENCIA 153HP PESO 10 TON | E138: =+IFERROR(VLOOKUP($A138,INSUMOS_BD2,4,FALSE),"") -> hora | H138: =+IFERROR(ROUND(IF($B138="Herramienta Menor (% mano de obra)",HM,VLOOKUP($A138,INSUMOS_BD2,5,FALSE)),2),"") -> 142000 | I138: 45 | K138: =+IFERROR(ROUND(IF($B138="Herramienta Menor (% mano de obra)",$K$160*H138,H138/I138),0),"") -> 3156 | M138: e31
H139: SUB-TOTAL $ | K139: =SUM(K135:K138) -> 8356
B141: II. MATERIALES
B142: DESCRIPCIÓN | G142: UNIDAD | H142: CANTIDAD | I142: PRECIO UNIT. | K142: VR/UNIT
A143: M120 | B143: =+IFERROR(VLOOKUP($A143,INSUMOS_BD2,3,FALSE),"") -> Agua | G143: =+IFERROR(VLOOKUP($A143,INSUMOS_BD2,4,FALSE),"") -> l | H143: 24 | I143: =+IFERROR(VLOOKUP($A143,INSUMOS_BD2,5,FALSE),"") -> 46.26 | K143: =IFERROR(ROUND(H143*I143,0),"") -> 1110
A144: M11 | B144: =+IFERROR(VLOOKUP($A144,INSUMOS_BD2,3,FALSE),"") -> MATERIAL DE SUB- BASE CBR=40% | G144: =+IFERROR(VLOOKUP($A144,INSUMOS_BD2,4,FALSE),"") -> m³ | H144: 1.3 | I144: =+IFERROR(VLOOKUP($A144,INSUMOS_BD2,5,FALSE),"") -> 26861.10183 | K144: =IFERROR(ROUND(H144*I144,0),"") -> 34919
B145: =+IFERROR(VLOOKUP($A145,INSUMOS_BD2,3,FALSE),"") ->  | G145: =+IFERROR(VLOOKUP($A145,INSUMOS_BD2,4,FALSE),"") ->  | I145: =+IFERROR(VLOOKUP($A145,INSUMOS_BD2,5,FALSE),"") ->  | K145: =IFERROR(ROUND(H145*I145,0),"") -> 
H146: SUB-TOTAL $ | K146: =SUM(K143:K145) -> 36029
B148: III. TRANSPORTES
B149: MATERIAL | F149: VOL. o PESO | G149: DISTANCIA | H149: FACT. EXPANSIÓN | I149: TARIFA (M3 o Ton/Km) | K149: VR/UNIT
A150: T6 | B150: =+IFERROR(VLOOKUP($A150,INSUMOS_BD2,3,FALSE),"") -> TRANSPORTE MATERIAL DE BASE/SUB BASE | F150: =H144 -> 1.3 | G150: 1 | H150: - | I150: =+IFERROR(VLOOKUP($A150,INSUMOS_BD2,5,FALSE),"") -> 1250 | K150: =IFERROR(ROUND(F150*G150*I150,0),"") -> 1625
B151: =+IFERROR(VLOOKUP($A151,INSUMOS_BD2,3,FALSE),"") ->  | I151: =+IFERROR(VLOOKUP($A151,INSUMOS_BD2,5,FALSE),"") ->  | K151: =IFERROR(ROUND(F151*G151*I151,0),"") -> 
B152: =+IFERROR(VLOOKUP($A152,INSUMOS_BD2,3,FALSE),"") ->  | I152: =+IFERROR(VLOOKUP($A152,INSUMOS_BD2,5,FALSE),"") ->  | K152: =IFERROR(ROUND(F152*G152*I152,0),"") -> 
H153: SUB-TOTAL $ | K153: =SUM(K150:K152) -> 1625
B155: IV. MANO DE OBRA
B156: TRABAJADOR | G156: UND | H156: VR/HORA | I156: RENDIMIENTO | K156: VR/UNIT
A157: cd1 | B157: =+IFERROR(VLOOKUP($A157,Cuadrillas_DNP[],2,FALSE),"") -> Cuadrilla AA (Albañilería) 1Of y 1Ay | F157: =+IFERROR(VLOOKUP($A157,INSUMOS_BD2,4,FALSE),"") ->  | G157: =+IFERROR(VLOOKUP($A157,Cuadrillas_DNP[],3,FALSE),"") -> hora | H157: =+IFERROR(VLOOKUP($A157,Cuadrillas_DNP[],6,FALSE),"") -> 16375 | I157: 0.002777777778 | K157: =IFERROR(ROUND(H157*I157,0),"") -> 45
B158: =+IFERROR(VLOOKUP($A158,Cuadrillas_DNP[],2,FALSE),"") ->  | F158: =+IFERROR(VLOOKUP($A158,INSUMOS_BD2,4,FALSE),"") ->  | G158: =+IFERROR(VLOOKUP($A158,Cuadrillas_DNP[],3,FALSE),"") ->  | H158: =+IFERROR(VLOOKUP($A158,Cuadrillas_DNP[],6,FALSE),"") ->  | K158: =IFERROR(ROUND(H158*I158,0),"") -> 
B159: =+IFERROR(VLOOKUP($A159,Cuadrillas_DNP[],2,FALSE),"") ->  | F159: =+IFERROR(VLOOKUP($A159,INSUMOS_BD2,4,FALSE),"") ->  | G159: =+IFERROR(VLOOKUP($A159,Cuadrillas_DNP[],3,FALSE),"") ->  | H159: =+IFERROR(VLOOKUP($A159,Cuadrillas_DNP[],6,FALSE),"") ->  | K159: =IFERROR(ROUND(H159*I159,0),"") -> 
H160: SUB-TOTAL $ | K160: =SUM(K157:K159) -> 45
B162: TOTAL COSTO DIRECTO $ | K162: =ROUND((+K160+K153+K146+K139),0) -> 46055
B164: V. COSTOS INDIRECTOS
B165: Descripción | H165: Porcentaje | I165: Valor Total
B166: ADMINISTRACION | H166: =+ADMON -> 0.01 | I166: =+K162*H166 -> 460.55
B167: IMPREVISTOS | H167: =+IMPREVISTOS -> 0.02 | I167: =+K162*H167 -> 921.1
B168: UTILIDAD | H168: =+UTILIDAD -> 0.05 | I168: =+K162*H168 -> 2302.75
B169: TOTAL COSTO INDIRECTO $ | K169: =SUM(I166:J168) -> 3684.4
B171: Precio Unitario Total $ | K171: =+ROUND(K169+K162,0) -> 49739
A173: APU-DNP5 | B173: =IFERROR(VLOOKUP($A173,LISTA_APU,2,FALSE),"") ->  | I173: Unidad: | J173: =IFERROR(VLOOKUP($A173,LISTA_APU_DNP,3,FALSE),"") -> m³ | K173: =K202 -> 7819
B174: I. EQUIPO
B175: DESCRIPCIÓN | E175: UND | F175: TIPO | H175: TARIFA | I175: RENDIMIENTO | K175: VR/UNIT
A176: e31 | B176: =+IFERROR(VLOOKUP($A176,INSUMOS_BD2,3,FALSE),"") -> Herramienta Menor HM (% mano de obra) | E176: =+IFERROR(VLOOKUP($A176,INSUMOS_BD2,4,FALSE),"") -> glb | H176: =+IFERROR(ROUND(IF($B176="Herramienta Menor (% mano de obra)",HM,VLOOKUP($A176,INSUMOS_BD2,5,FALSE)),2),"") -> 0 | K176: =+IFERROR(ROUND(IF($B176="Herramienta Menor (% mano de obra)",$K$200*H176,H176*I176),0),"") -> 0
B177: =+IFERROR(VLOOKUP($A177,INSUMOS_BD2,3,FALSE),"") ->  | E177: =+IFERROR(VLOOKUP($A177,INSUMOS_BD2,4,FALSE),"") ->  | H177: =+IFERROR(ROUND(IF($B177="Herramienta Menor (% mano de obra)",HM,VLOOKUP($A177,INSUMOS_BD2,5,FALSE)),2),"") ->  | K177: =+IFERROR(ROUND(IF($B177="Herramienta Menor (% mano de obra)",$K$200*H177,H177*I177),0),"") -> 
B178: =+IFERROR(VLOOKUP($A178,INSUMOS_BD2,3,FALSE),"") ->  | E178: =+IFERROR(VLOOKUP($A178,INSUMOS_BD2,4,FALSE),"") ->  | H178: =+IFERROR(ROUND(IF($B178="Herramienta Menor (% mano de obra)",HM,VLOOKUP($A178,INSUMOS_BD2,5,FALSE)),2),"") ->  | K178: =+IFERROR(ROUND(IF($B178="Herramienta Menor (% mano de obra)",$K$200*H178,H178*I178),0),"") -> 
H179: SUB-TOTAL $ | K179: =SUM(K176:K178) -> 0
B181: II. MATERIALES
B182: DESCRIPCIÓN | G182: UNIDAD | H182: CANTIDAD | I182: PRECIO UNIT. | K182: VR/UNIT
A183: m71 | B183: =+IFERROR(VLOOKUP($A183,INSUMOS_BD2,3,FALSE),"") -> Derechos de explotación y/o disposición de materiales | G183: =+IFERROR(VLOOKUP($A183,INSUMOS_BD2,4,FALSE),"") -> m³ | H183: 1.3 | I183: =+IFERROR(VLOOKUP($A183,INSUMOS_BD2,5,FALSE),"") -> 2988 | K183: =IFERROR(ROUND(H183*I183,0),"") -> 3884
B184: =+IFERROR(VLOOKUP($A184,INSUMOS_BD2,3,FALSE),"") ->  | G184: =+IFERROR(VLOOKUP($A184,INSUMOS_BD2,4,FALSE),"") ->  | I184: =+IFERROR(VLOOKUP($A184,INSUMOS_BD2,5,FALSE),"") ->  | K184: =IFERROR(ROUND(H184*I184,0),"") -> 
B185: =+IFERROR(VLOOKUP($A185,INSUMOS_BD2,3,FALSE),"") ->  | G185: =+IFERROR(VLOOKUP($A185,INSUMOS_BD2,4,FALSE),"") ->  | I185: =+IFERROR(VLOOKUP($A185,INSUMOS_BD2,5,FALSE),"") ->  | K185: =IFERROR(ROUND(H185*I185,0),"") -> 
H186: SUB-TOTAL $ | K186: =SUM(K183:K185) -> 3884
B188: III. TRANSPORTES
B189: MATERIAL | F189: VOL. o PESO | G189: DISTANCIA | H189: FACT. EXPANSIÓN | I189: TARIFA (M3 o Ton/Km) | K189: VR/UNIT
A190: t16 | B190: =+IFERROR(VLOOKUP($A190,INSUMOS_BD2,3,FALSE),"") -> Volqueta 6 m³ (cargue mecánico) botadero | F190: =H183 -> 1.3 | G190: 1 | H190: - | I190: =+IFERROR(VLOOKUP($A190,INSUMOS_BD2,5,FALSE),"") -> 1250 | K190: =IFERROR(ROUND(F190*G190*I190,0),"") -> 1625
B191: =+IFERROR(VLOOKUP($A191,INSUMOS_BD2,3,FALSE),"") ->  | I191: =+IFERROR(VLOOKUP($A191,INSUMOS_BD2,5,FALSE),"") ->  | K191: =IFERROR(ROUND(F191*G191*I191,0),"") -> 
B192: =+IFERROR(VLOOKUP($A192,INSUMOS_BD2,3,FALSE),"") ->  | I192: =+IFERROR(VLOOKUP($A192,INSUMOS_BD2,5,FALSE),"") ->  | K192: =IFERROR(ROUND(F192*G192*I192,0),"") -> 
H193: SUB-TOTAL $ | K193: =SUM(K190:K192) -> 1625
B195: IV. MANO DE OBRA
B196: TRABAJADOR | G196: UND | H196: VR/HORA | I196: RENDIMIENTO | K196: VR/UNIT
A197: cd2 | B197: =+IFERROR(VLOOKUP($A197,Cuadrillas_DNP[],2,FALSE),"") -> Cuadrilla AA 1Of+2Ay (Albañilería) | F197: =+IFERROR(VLOOKUP($A197,INSUMOS_BD2,4,FALSE),"") ->  | G197: =+IFERROR(VLOOKUP($A197,Cuadrillas_DNP[],3,FALSE),"") -> hora | H197: =+IFERROR(VLOOKUP($A197,Cuadrillas_DNP[],6,FALSE),"") -> 23097 | I197: 0.1 | K197: =IFERROR(ROUND(H197*I197,0),"") -> 2310
B198: =+IFERROR(VLOOKUP($A198,Cuadrillas_DNP[],2,FALSE),"") ->  | F198: =+IFERROR(VLOOKUP($A198,INSUMOS_BD2,4,FALSE),"") ->  | G198: =+IFERROR(VLOOKUP($A198,Cuadrillas_DNP[],3,FALSE),"") ->  | H198: =+IFERROR(VLOOKUP($A198,Cuadrillas_DNP[],6,FALSE),"") ->  | K198: =IFERROR(ROUND(H198*I198,0),"") -> 
B199: =+IFERROR(VLOOKUP($A199,Cuadrillas_DNP[],2,FALSE),"") ->  | F199: =+IFERROR(VLOOKUP($A199,INSUMOS_BD2,4,FALSE),"") ->  | G199: =+IFERROR(VLOOKUP($A199,Cuadrillas_DNP[],3,FALSE),"") ->  | H199: =+IFERROR(VLOOKUP($A199,Cuadrillas_DNP[],6,FALSE),"") ->  | K199: =IFERROR(ROUND(H199*I199,0),"") -> 
H200: SUB-TOTAL $ | K200: =SUM(K197:K199) -> 2310
B202: TOTAL COSTO DIRECTO $ | K202: =ROUND((+K200+K193+K186+K179),0) -> 7819
B204: V. COSTOS INDIRECTOS
B205: Descripción | H205: Porcentaje | I205: Valor Total
B206: ADMINISTRACION | H206: =+ADMON -> 0.01 | I206: =+K202*H206 -> 78.19
B207: IMPREVISTOS | H207: =+IMPREVISTOS -> 0.02 | I207: =+K202*H207 -> 156.38
B208: UTILIDAD | H208: =+UTILIDAD -> 0.05 | I208: =+K202*H208 -> 390.95
B209: TOTAL COSTO INDIRECTO $ | K209: =SUM(I206:J208) -> 625.52
B211: Precio Unitario Total $ | K211: =+ROUND(K209+K202,0) -> 8445
A213: APU-DNP6 | B213: =IFERROR(VLOOKUP($A213,LISTA_APU_DNP,2,FALSE),"") -> CONCRETO DE 210 KG/CM² (3.000 PSI) HUELLAS | I213: Unidad: | J213: =IFERROR(VLOOKUP($A213,LISTA_APU_DNP,3,FALSE),"") -> m³ | K213: =K242 -> 314509
B214: I. EQUIPO
B215: DESCRIPCIÓN | E215: UND | F215: TIPO | H215: TARIFA | I215: RENDIMIENTO | K215: VR/UNIT
A216: e31 | B216: =+IFERROR(VLOOKUP($A216,INSUMOS_BD2,3,FALSE),"") -> Herramienta Menor HM (% mano de obra) | E216: =+IFERROR(VLOOKUP($A216,INSUMOS_BD2,4,FALSE),"") -> glb | H216: =+IFERROR(ROUND(IF($B216="Herramienta Menor (% mano de obra)",HM,VLOOKUP($A216,INSUMOS_BD2,5,FALSE)),2),"") -> 0 | K216: =+IFERROR(ROUND(IF($B216="Herramienta Menor (% mano de obra)",$K$240*H216,H216*I216),0),"") -> 0
A217: e47 | B217: =+IFERROR(VLOOKUP($A217,INSUMOS_BD2,3,FALSE),"") -> formaleta madera | E217: =+IFERROR(VLOOKUP($A217,INSUMOS_BD2,4,FALSE),"") -> m² | H217: =+IFERROR(ROUND(IF($B217="Herramienta Menor (% mano de obra)",HM,VLOOKUP($A217,INSUMOS_BD2,5,FALSE)),2),"") -> 2500 | I217: 4 | K217: =+IFERROR(ROUND(IF($B217="Herramienta Menor (% mano de obra)",$K$240*H217,H217*I217),0),"") -> 10000
A218: e48 | B218: =+IFERROR(VLOOKUP($A218,INSUMOS_BD2,3,FALSE),"") -> Vibrador a gasolina | E218: =+IFERROR(VLOOKUP($A218,INSUMOS_BD2,4,FALSE),"") -> hora | H218: =+IFERROR(ROUND(IF($B218="Herramienta Menor (% mano de obra)",HM,VLOOKUP($A218,INSUMOS_BD2,5,FALSE)),2),"") -> 3830 | I218: 1 | K218: =+IFERROR(ROUND(IF($B218="Herramienta Menor (% mano de obra)",$K$240*H218,H218*I218),0),"") -> 3830
H219: SUB-TOTAL $ | K219: =SUM(K216:K218) -> 13830
B221: II. MATERIALES
B222: DESCRIPCIÓN | G222: UNIDAD | H222: CANTIDAD | I222: PRECIO UNIT. | K222: VR/UNIT
A223: M77 | B223: =+IFERROR(VLOOKUP($A223,INSUMOS_BD2,3,FALSE),"") -> CONCRETO DE 210 kg/cm² (3.000 PSI) | G223: =+IFERROR(VLOOKUP($A223,INSUMOS_BD2,4,FALSE),"") -> m³ | H223: 1.05 | I223: =+IFERROR(VLOOKUP($A223,INSUMOS_BD2,5,FALSE),"") -> 269510 | K223: =IFERROR(ROUND(H223*I223,0),"") -> 282986
A224: M76 | B224: =+IFERROR(VLOOKUP($A224,INSUMOS_BD2,3,FALSE),"") -> MORTERO 1:3 PARA DILATACIONES | G224: =+IFERROR(VLOOKUP($A224,INSUMOS_BD2,4,FALSE),"") -> m | H224: 0.019875 | I224: =+IFERROR(VLOOKUP($A224,INSUMOS_BD2,5,FALSE),"") -> 309140 | K224: =IFERROR(ROUND(H224*I224,0),"") -> 6144
B225: =+IFERROR(VLOOKUP($A225,INSUMOS_BD2,3,FALSE),"") ->  | G225: =+IFERROR(VLOOKUP($A225,INSUMOS_BD2,4,FALSE),"") ->  | I225: =+IFERROR(VLOOKUP($A225,INSUMOS_BD2,5,FALSE),"") ->  | K225: =IFERROR(ROUND(H225*I225,0),"") -> 
H226: SUB-TOTAL $ | K226: =SUM(K223:K225) -> 289130
B228: III. TRANSPORTES
B229: MATERIAL | F229: VOL. o PESO | G229: DISTANCIA | H229: FACT. EXPANSIÓN | I229: TARIFA (M3 o Ton/Km) | K229: VR/UNIT
B230: =+IFERROR(VLOOKUP($A230,INSUMOS_BD2,3,FALSE),"") ->  | H230: =+IFERROR(VLOOKUP($A230,INSUMOS_BD2,3,FALSE),"") ->  | I230: =+IFERROR(VLOOKUP($A230,INSUMOS_BD2,5,FALSE),"") ->  | K230: =IFERROR(ROUND(F230*G230*I230,0),"") -> 
B231: =+IFERROR(VLOOKUP($A231,INSUMOS_BD2,3,FALSE),"") ->  | H231: =+IFERROR(VLOOKUP($A231,INSUMOS_BD2,3,FALSE),"") ->  | I231: =+IFERROR(VLOOKUP($A231,INSUMOS_BD2,5,FALSE),"") ->  | K231: =IFERROR(ROUND(F231*G231*I231,0),"") -> 
B232: =+IFERROR(VLOOKUP($A232,INSUMOS_BD2,3,FALSE),"") ->  | H232: =+IFERROR(VLOOKUP($A232,INSUMOS_BD2,3,FALSE),"") ->  | I232: =+IFERROR(VLOOKUP($A232,INSUMOS_BD2,5,FALSE),"") ->  | K232: =IFERROR(ROUND(F232*G232*I232,0),"") -> 
H233: SUB-TOTAL $ | K233: =SUM(K230:K232) -> 0
B235: IV. MANO DE OBRA
B236: TRABAJADOR | G236: UND | H236: VR/HORA | I236: RENDIMIENTO | K236: VR/UNIT
A237: cd2 | B237: =+IFERROR(VLOOKUP($A237,Cuadrillas_DNP[],2,FALSE),"") -> Cuadrilla AA 1Of+2Ay (Albañilería) | F237: =+IFERROR(VLOOKUP($A237,INSUMOS_BD2,4,FALSE),"") ->  | G237: =+IFERROR(VLOOKUP($A237,Cuadrillas_DNP[],3,FALSE),"") -> hora | H237: =+IFERROR(VLOOKUP($A237,Cuadrillas_DNP[],6,FALSE),"") -> 23097 | I237: 0.5 | K237: =IFERROR(ROUND(H237*I237,0),"") -> 11549
B238: =+IFERROR(VLOOKUP($A238,Cuadrillas_DNP[],2,FALSE),"") ->  | F238: =+IFERROR(VLOOKUP($A238,INSUMOS_BD2,4,FALSE),"") ->  | G238: =+IFERROR(VLOOKUP($A238,Cuadrillas_DNP[],3,FALSE),"") ->  | H238: =+IFERROR(VLOOKUP($A238,Cuadrillas_DNP[],6,FALSE),"") ->  | K238: =IFERROR(ROUND(H238*I238,0),"") -> 
B239: =+IFERROR(VLOOKUP($A239,Cuadrillas_DNP[],2,FALSE),"") ->  | F239: =+IFERROR(VLOOKUP($A239,INSUMOS_BD2,4,FALSE),"") ->  | G239: =+IFERROR(VLOOKUP($A239,Cuadrillas_DNP[],3,FALSE),"") ->  | H239: =+IFERROR(VLOOKUP($A239,Cuadrillas_DNP[],6,FALSE),"") ->  | K239: =IFERROR(ROUND(H239*I239,0),"") -> 
H240: SUB-TOTAL $ | K240: =SUM(K237:K239) -> 11549
B242: TOTAL COSTO DIRECTO $ | K242: =ROUND((+K240+K233+K226+K219),0) -> 314509
... 853 more rows

Sheet APU_BÁSICO_DNP
D1: 5
B3: REPÚBLICA DE COLOMBIA
B4: =+DPTO -> DEPARTAMENTO DEL CAUCA
B5: =+Nom_Mpio1 -> MUNICIPIO LA ESTRELLA FLUVIAL
B6: =Dependencia -> SECRETARÍA DE OBRAS PÚBLICAS
H7: Fecha: | I7: =+Fecha_Pres -> 2019-10-11
B8: =Nom_proy1 -> MEJORAMIENTO DEL TRAMO VIAL LA PAZ - EL PROGRESO ENTRE EL K5+000 Y EL K6+000 DEL MUNICIPIO LA ESTRELLA FLUVIAL
B10: ANÁLISIS DE PRECIOS UNITARIOS BÁSICOS
A11: APU-DNP32 | B11: =IFERROR(VLOOKUP($A11,LISTA_APU,2,FALSE),"") ->  | I11: Unidad: | J11: =IFERROR(VLOOKUP($A11,LISTA_APU,3,FALSE),"") ->  | K11: =K42 -> 269510
B12: I. EQUIPO
B13: DESCRIPCIÓN | E13: MARCA | F13: TIPO | H13: TARIFA/HORA | I13: RENDIMIENTO | K13: Vr. UNITARIO
B14: =+IFERROR(VLOOKUP($A14,INSUMOS_BD2,3,FALSE),"") ->  | H14: =+IFERROR(ROUND(IF($B14="Herramienta Menor (% mano de obra)",HM,VLOOKUP($A14,INSUMOS_BD2,5,FALSE)),2),"") ->  | K14: =+IFERROR(ROUND(IF($B14="Herramienta Menor (% mano de obra)",$K$40*H14,H14/I14),0),"") -> 
B15: =+IFERROR(VLOOKUP($A15,INSUMOS_BD2,3,FALSE),"") ->  | H15: =+IFERROR(ROUND(IF($B15="Herramienta Menor (% mano de obra)",HM,VLOOKUP($A15,INSUMOS_BD2,5,FALSE)),2),"") ->  | K15: =+IFERROR(ROUND(IF($B15="Herramienta Menor (% mano de obra)",$K$40*H15,H15/I15),0),"") -> 
B16: =+IFERROR(VLOOKUP($A16,INSUMOS_BD2,3,FALSE),"") ->  | H16: =+IFERROR(ROUND(IF($B16="Herramienta Menor (% mano de obra)",HM,VLOOKUP($A16,INSUMOS_BD2,5,FALSE)),2),"") ->  | K16: =+IFERROR(ROUND(IF($B16="Herramienta Menor (% mano de obra)",$K$40*H16,H16/I16),0),"") -> 
I17: SUBTOTAL $ | K17: =SUM(K14:K16) -> 0
B19: II. MATERIALES
B20: DESCRIPCIÓN | G20: UNIDAD | H20: CANTIDAD | I20: PRECIO UNIT. | K20: Vr. UNITARIO
A21: m96 | B21: =+IFERROR(VLOOKUP($A21,INSUMOS_BD2,3,FALSE),"") -> Cemento | G21: =+IFERROR(VLOOKUP($A21,INSUMOS_BD2,4,FALSE),"") -> kg | H21: 350 | I21: =+IFERROR(VLOOKUP($A21,INSUMOS_BD2,5,FALSE),"") -> 570 | K21: =IFERROR(ROUND(H21*I21,0),"") -> 199500
A22: m97 | B22: =+IFERROR(VLOOKUP($A22,INSUMOS_BD2,3,FALSE),"") -> Arena de rio | G22: =+IFERROR(VLOOKUP($A22,INSUMOS_BD2,4,FALSE),"") -> m³ | H22: 0.56 | I22: =+IFERROR(VLOOKUP($A22,INSUMOS_BD2,5,FALSE),"") -> 44000 | K22: =IFERROR(ROUND(H22*I22,0),"") -> 24640
A23: m98 | B23: =+IFERROR(VLOOKUP($A23,INSUMOS_BD2,3,FALSE),"") -> Grava | G23: =+IFERROR(VLOOKUP($A23,INSUMOS_BD2,4,FALSE),"") -> m³ | H23: 0.84 | I23: =+IFERROR(VLOOKUP($A23,INSUMOS_BD2,5,FALSE),"") -> 48000 | K23: =IFERROR(ROUND(H23*I23,0),"") -> 40320
A24: e54 | B24: =+IFERROR(VLOOKUP($A24,INSUMOS_BD2,3,FALSE),"") -> Mezcladora de trompo | G24: =+IFERROR(VLOOKUP($A24,INSUMOS_BD2,4,FALSE),"") -> día | H24: 0.13 | I24: =+IFERROR(VLOOKUP($A24,INSUMOS_BD2,5,FALSE),"") -> 25000 | K24: =IFERROR(ROUND(H24*I24,0),"") -> 3250
A25: m118 | B25: =+IFERROR(VLOOKUP($A25,INSUMOS_BD2,3,FALSE),"") -> Agua | G25: =+IFERROR(VLOOKUP($A25,INSUMOS_BD2,4,FALSE),"") -> l | H25: 180 | I25: =+IFERROR(VLOOKUP($A25,INSUMOS_BD2,5,FALSE),"") -> 10 | K25: =IFERROR(ROUND(H25*I25,0),"") -> 1800
I26: SUBTOTAL $ | K26: =SUM(K21:K25) -> 269510
B28: III. TRANSPORTES
B29: MATERIAL | F29: FACT. EXPANSIÓN | G29: DISTANCIA | H29: VOL. o PESO | I29: TARIFA (M3 o Ton/Km) | K29: Vr. UNITARIO
B30: =+IFERROR(VLOOKUP($A30,INSUMOS_BD2,3,FALSE),"") ->  | H30: =+IFERROR(VLOOKUP($A30,INSUMOS_BD2,3,FALSE),"") ->  | I30: =+IFERROR(VLOOKUP($A30,INSUMOS_BD2,5,FALSE),"") ->  | K30: =IFERROR(ROUND(F30*G30*I30,0),"") -> 
B31: =+IFERROR(VLOOKUP($A31,INSUMOS_BD2,3,FALSE),"") ->  | H31: =+IFERROR(VLOOKUP($A31,INSUMOS_BD2,3,FALSE),"") ->  | I31: =+IFERROR(VLOOKUP($A31,INSUMOS_BD2,5,FALSE),"") ->  | K31: =IFERROR(ROUND(F31*G31*I31,0),"") -> 
B32: =+IFERROR(VLOOKUP($A32,INSUMOS_BD2,3,FALSE),"") ->  | H32: =+IFERROR(VLOOKUP($A32,INSUMOS_BD2,3,FALSE),"") ->  | I32: =+IFERROR(VLOOKUP($A32,INSUMOS_BD2,5,FALSE),"") ->  | K32: =IFERROR(ROUND(F32*G32*I32,0),"") -> 
B33: SUBTOTAL $ | K33: =SUM(K30:K32) -> 0
B35: IV. MANO DE OBRA
B36: TRABAJADOR | F36: JORNAL | G36: PRESTACIÓN | H36: JORNAL TOTAL | I36: RENDIMIENTO | K36: Vr. UNITARIO
B37: =+IFERROR(VLOOKUP($A37,INSUMOS_BD2,3,FALSE),"") ->  | F37: =+IFERROR(VLOOKUP($A37,INSUMOS_BD2,5,FALSE),"") ->  | H37: =IFERROR(F37*(1+G37),"") ->  | K37: =IFERROR(ROUND(H37/I37,0),"") -> 
B38: =+IFERROR(VLOOKUP($A38,INSUMOS_BD2,3,FALSE),"") ->  | F38: =+IFERROR(VLOOKUP($A38,INSUMOS_BD2,5,FALSE),"") ->  | H38: =IFERROR(F38*(1+G38),"") ->  | K38: =IFERROR(ROUND(H38/I38,0),"") -> 
B39: =+IFERROR(VLOOKUP($A39,INSUMOS_BD2,3,FALSE),"") ->  | F39: =+IFERROR(VLOOKUP($A39,INSUMOS_BD2,5,FALSE),"") ->  | H39: =IFERROR(F39*(1+G39),"") ->  | K39: =IFERROR(ROUND(H39/I39,0),"") -> 
I40: SUBTOTAL $ | K40: =SUM(K37:K39) -> 0
B42: TOTAL COSTO DIRECTO $ | K42: =ROUND((+K40+K33+K26+K17),0) -> 269510
A44: APU-DNP33 | B44: =IFERROR(VLOOKUP($A44,LISTA_APU,2,FALSE),"") ->  | I44: Unidad: | J44: =IFERROR(VLOOKUP($A44,LISTA_APU,3,FALSE),"") ->  | K44: =K74 -> 309140
B45: I. EQUIPO
B46: DESCRIPCIÓN | E46: MARCA | F46: TIPO | H46: TARIFA/HORA | I46: RENDIMIENTO | K46: Vr. UNITARIO
B47: =+IFERROR(VLOOKUP($A47,INSUMOS_BD2,3,FALSE),"") ->  | H47: =+IFERROR(ROUND(IF($B47="Herramienta Menor (% mano de obra)",HM,VLOOKUP($A47,INSUMOS_BD2,5,FALSE)),2),"") ->  | K47: =+IFERROR(ROUND(IF($B47="Herramienta Menor (% mano de obra)",$K$72*H47,H47/I47),0),"") -> 
B48: =+IFERROR(VLOOKUP($A48,INSUMOS_BD2,3,FALSE),"") ->  | H48: =+IFERROR(ROUND(IF($B48="Herramienta Menor (% mano de obra)",HM,VLOOKUP($A48,INSUMOS_BD2,5,FALSE)),2),"") ->  | K48: =+IFERROR(ROUND(IF($B48="Herramienta Menor (% mano de obra)",$K$72*H48,H48/I48),0),"") -> 
B49: =+IFERROR(VLOOKUP($A49,INSUMOS_BD2,3,FALSE),"") ->  | H49: =+IFERROR(ROUND(IF($B49="Herramienta Menor (% mano de obra)",HM,VLOOKUP($A49,INSUMOS_BD2,5,FALSE)),2),"") ->  | K49: =+IFERROR(ROUND(IF($B49="Herramienta Menor (% mano de obra)",$K$72*H49,H49/I49),0),"") -> 
I50: SUBTOTAL $ | K50: =SUM(K47:K49) -> 0
B52: II. MATERIALES
B53: DESCRIPCIÓN | G53: UNIDAD | H53: CANTIDAD | I53: PRECIO UNIT. | K53: Vr. UNITARIO
A54: m96 | B54: =+IFERROR(VLOOKUP($A54,INSUMOS_BD2,3,FALSE),"") -> Cemento | G54: =+IFERROR(VLOOKUP($A54,INSUMOS_BD2,4,FALSE),"") -> kg | H54: 454 | I54: =+IFERROR(VLOOKUP($A54,INSUMOS_BD2,5,FALSE),"") -> 570 | K54: =IFERROR(ROUND(H54*I54,0),"") -> 258780
A55: m97 | B55: =+IFERROR(VLOOKUP($A55,INSUMOS_BD2,3,FALSE),"") -> Arena de rio | G55: =+IFERROR(VLOOKUP($A55,INSUMOS_BD2,4,FALSE),"") -> m³ | H55: 1.09 | I55: =+IFERROR(VLOOKUP($A55,INSUMOS_BD2,5,FALSE),"") -> 44000 | K55: =IFERROR(ROUND(H55*I55,0),"") -> 47960
A56: m118 | B56: =+IFERROR(VLOOKUP($A56,INSUMOS_BD2,3,FALSE),"") -> Agua | G56: =+IFERROR(VLOOKUP($A56,INSUMOS_BD2,4,FALSE),"") -> l | H56: 240 | I56: =+IFERROR(VLOOKUP($A56,INSUMOS_BD2,5,FALSE),"") -> 10 | K56: =IFERROR(ROUND(H56*I56,0),"") -> 2400
B57: =+IFERROR(VLOOKUP($A57,INSUMOS_BD2,3,FALSE),"") ->  | G57: =+IFERROR(VLOOKUP($A57,INSUMOS_BD2,4,FALSE),"") ->  | I57: =+IFERROR(VLOOKUP($A57,INSUMOS_BD2,5,FALSE),"") ->  | K57: =IFERROR(ROUND(H57*I57,0),"") -> 
I58: SUBTOTAL $ | K58: =SUM(K54:K57) -> 309140
B60: III. TRANSPORTES
B61: MATERIAL | F61: FACT. EXPANSIÓN | G61: DISTANCIA | H61: VOL. o PESO | I61: TARIFA (M3 o Ton/Km) | K61: Vr. UNITARIO
B62: =+IFERROR(VLOOKUP($A62,INSUMOS_BD2,3,FALSE),"") ->  | H62: =+IFERROR(VLOOKUP($A62,INSUMOS_BD2,3,FALSE),"") ->  | I62: =+IFERROR(VLOOKUP($A62,INSUMOS_BD2,5,FALSE),"") ->  | K62: =IFERROR(ROUND(F62*G62*I62,0),"") -> 
B63: =+IFERROR(VLOOKUP($A63,INSUMOS_BD2,3,FALSE),"") ->  | H63: =+IFERROR(VLOOKUP($A63,INSUMOS_BD2,3,FALSE),"") ->  | I63: =+IFERROR(VLOOKUP($A63,INSUMOS_BD2,5,FALSE),"") ->  | K63: =IFERROR(ROUND(F63*G63*I63,0),"") -> 
B64: =+IFERROR(VLOOKUP($A64,INSUMOS_BD2,3,FALSE),"") ->  | H64: =+IFERROR(VLOOKUP($A64,INSUMOS_BD2,3,FALSE),"") ->  | I64: =+IFERROR(VLOOKUP($A64,INSUMOS_BD2,5,FALSE),"") ->  | K64: =IFERROR(ROUND(F64*G64*I64,0),"") -> 
B65: SUBTOTAL $ | K65: =SUM(K62:K64) -> 0
B67: IV. MANO DE OBRA
B68: TRABAJADOR | F68: JORNAL | G68: PRESTACIÓN | H68: JORNAL TOTAL | I68: RENDIMIENTO | K68: Vr. UNITARIO
B69: =+IFERROR(VLOOKUP($A69,INSUMOS_BD2,3,FALSE),"") ->  | F69: =+IFERROR(VLOOKUP($A69,INSUMOS_BD2,5,FALSE),"") ->  | H69: =IFERROR(F69*(1+G69),"") ->  | K69: =IFERROR(ROUND(H69/I69,0),"") -> 
B70: =+IFERROR(VLOOKUP($A70,INSUMOS_BD2,3,FALSE),"") ->  | F70: =+IFERROR(VLOOKUP($A70,INSUMOS_BD2,5,FALSE),"") ->  | H70: =IFERROR(F70*(1+G70),"") ->  | K70: =IFERROR(ROUND(H70/I70,0),"") -> 
B71: =+IFERROR(VLOOKUP($A71,INSUMOS_BD2,3,FALSE),"") ->  | F71: =+IFERROR(VLOOKUP($A71,INSUMOS_BD2,5,FALSE),"") ->  | H71: =IFERROR(F71*(1+G71),"") ->  | K71: =IFERROR(ROUND(H71/I71,0),"") -> 
I72: SUBTOTAL $ | K72: =SUM(K69:K71) -> 0
B74: TOTAL COSTO DIRECTO $ | K74: =ROUND((+K72+K65+K58+K50),0) -> 309140
A76: APU-DNP34 | B76: =IFERROR(VLOOKUP($A76,LISTA_APU,2,FALSE),"") ->  | I76: Unidad: | J76: =IFERROR(VLOOKUP($A76,LISTA_APU,3,FALSE),"") ->  | K76: =K107 -> 204410
B77: I. EQUIPO
B78: DESCRIPCIÓN | E78: MARCA | F78: TIPO | H78: TARIFA/HORA | I78: RENDIMIENTO | K78: Vr. UNITARIO
B79: =+IFERROR(VLOOKUP($A79,INSUMOS_BD2,3,FALSE),"") ->  | H79: =+IFERROR(ROUND(IF($B79="Herramienta Menor (% mano de obra)",HM,VLOOKUP($A79,INSUMOS_BD2,5,FALSE)),2),"") ->  | K79: =+IFERROR(ROUND(IF($B79="Herramienta Menor (% mano de obra)",$K$40*H79,H79/I79),0),"") -> 
B80: =+IFERROR(VLOOKUP($A80,INSUMOS_BD2,3,FALSE),"") ->  | H80: =+IFERROR(ROUND(IF($B80="Herramienta Menor (% mano de obra)",HM,VLOOKUP($A80,INSUMOS_BD2,5,FALSE)),2),"") ->  | K80: =+IFERROR(ROUND(IF($B80="Herramienta Menor (% mano de obra)",$K$40*H80,H80/I80),0),"") -> 
B81: =+IFERROR(VLOOKUP($A81,INSUMOS_BD2,3,FALSE),"") ->  | H81: =+IFERROR(ROUND(IF($B81="Herramienta Menor (% mano de obra)",HM,VLOOKUP($A81,INSUMOS_BD2,5,FALSE)),2),"") ->  | K81: =+IFERROR(ROUND(IF($B81="Herramienta Menor (% mano de obra)",$K$40*H81,H81/I81),0),"") -> 
I82: SUBTOTAL $ | K82: =SUM(K79:K81) -> 0
B84: II. MATERIALES
B85: DESCRIPCIÓN | G85: UNIDAD | H85: CANTIDAD | I85: PRECIO UNIT. | K85: Vr. UNITARIO
A86: m96 | B86: =+IFERROR(VLOOKUP($A86,INSUMOS_BD2,3,FALSE),"") -> Cemento | G86: =+IFERROR(VLOOKUP($A86,INSUMOS_BD2,4,FALSE),"") -> kg | H86: 230 | I86: =+IFERROR(VLOOKUP($A86,INSUMOS_BD2,5,FALSE),"") -> 570 | K86: =IFERROR(ROUND(H86*I86,0),"") -> 131100
A87: m97 | B87: =+IFERROR(VLOOKUP($A87,INSUMOS_BD2,3,FALSE),"") -> Arena de rio | G87: =+IFERROR(VLOOKUP($A87,INSUMOS_BD2,4,FALSE),"") -> m³ | H87: 0.55 | I87: =+IFERROR(VLOOKUP($A87,INSUMOS_BD2,5,FALSE),"") -> 44000 | K87: =IFERROR(ROUND(H87*I87,0),"") -> 24200
A88: m98 | B88: =+IFERROR(VLOOKUP($A88,INSUMOS_BD2,3,FALSE),"") -> Grava | G88: =+IFERROR(VLOOKUP($A88,INSUMOS_BD2,4,FALSE),"") -> m³ | H88: 0.92 | I88: =+IFERROR(VLOOKUP($A88,INSUMOS_BD2,5,FALSE),"") -> 48000 | K88: =IFERROR(ROUND(H88*I88,0),"") -> 44160
A89: e54 | B89: =+IFERROR(VLOOKUP($A89,INSUMOS_BD2,3,FALSE),"") -> Mezcladora de trompo | G89: =+IFERROR(VLOOKUP($A89,INSUMOS_BD2,4,FALSE),"") -> día | H89: 0.13 | I89: =+IFERROR(VLOOKUP($A89,INSUMOS_BD2,5,FALSE),"") -> 25000 | K89: =IFERROR(ROUND(H89*I89,0),"") -> 3250
A90: m118 | B90: =+IFERROR(VLOOKUP($A90,INSUMOS_BD2,3,FALSE),"") -> Agua | G90: =+IFERROR(VLOOKUP($A90,INSUMOS_BD2,4,FALSE),"") -> l | H90: 170 | I90: =+IFERROR(VLOOKUP($A90,INSUMOS_BD2,5,FALSE),"") -> 10 | K90: =IFERROR(ROUND(H90*I90,0),"") -> 1700
I91: SUBTOTAL $ | K91: =SUM(K86:K90) -> 204410
B93: III. TRANSPORTES
B94: MATERIAL | F94: FACT. EXPANSIÓN | G94: DISTANCIA | H94: VOL. o PESO | I94: TARIFA (M3 o Ton/Km) | K94: Vr. UNITARIO
B95: =+IFERROR(VLOOKUP($A95,INSUMOS_BD2,3,FALSE),"") ->  | H95: =+IFERROR(VLOOKUP($A95,INSUMOS_BD2,3,FALSE),"") ->  | I95: =+IFERROR(VLOOKUP($A95,INSUMOS_BD2,5,FALSE),"") ->  | K95: =IFERROR(ROUND(F95*G95*I95,0),"") -> 
B96: =+IFERROR(VLOOKUP($A96,INSUMOS_BD2,3,FALSE),"") ->  | H96: =+IFERROR(VLOOKUP($A96,INSUMOS_BD2,3,FALSE),"") ->  | I96: =+IFERROR(VLOOKUP($A96,INSUMOS_BD2,5,FALSE),"") ->  | K96: =IFERROR(ROUND(F96*G96*I96,0),"") -> 
B97: =+IFERROR(VLOOKUP($A97,INSUMOS_BD2,3,FALSE),"") ->  | H97: =+IFERROR(VLOOKUP($A97,INSUMOS_BD2,3,FALSE),"") ->  | I97: =+IFERROR(VLOOKUP($A97,INSUMOS_BD2,5,FALSE),"") ->  | K97: =IFERROR(ROUND(F97*G97*I97,0),"") -> 
B98: SUBTOTAL $ | K98: =SUM(K95:K97) -> 0
B100: IV. MANO DE OBRA
B101: TRABAJADOR | F101: JORNAL | G101: PRESTACIÓN | H101: JORNAL TOTAL | I101: RENDIMIENTO | K101: Vr. UNITARIO
B102: =+IFERROR(VLOOKUP($A102,INSUMOS_BD2,3,FALSE),"") ->  | F102: =+IFERROR(VLOOKUP($A102,INSUMOS_BD2,5,FALSE),"") ->  | H102: =IFERROR(F102*(1+G102),"") ->  | K102: =IFERROR(ROUND(H102/I102,0),"") -> 
B103: =+IFERROR(VLOOKUP($A103,INSUMOS_BD2,3,FALSE),"") ->  | F103: =+IFERROR(VLOOKUP($A103,INSUMOS_BD2,5,FALSE),"") ->  | H103: =IFERROR(F103*(1+G103),"") ->  | K103: =IFERROR(ROUND(H103/I103,0),"") -> 
B104: =+IFERROR(VLOOKUP($A104,INSUMOS_BD2,3,FALSE),"") ->  | F104: =+IFERROR(VLOOKUP($A104,INSUMOS_BD2,5,FALSE),"") ->  | H104: =IFERROR(F104*(1+G104),"") ->  | K104: =IFERROR(ROUND(H104/I104,0),"") -> 
I105: SUBTOTAL $ | K105: =SUM(K102:K104) -> 0
B107: TOTAL COSTO DIRECTO $ | K107: =ROUND((+K105+K98+K91+K82),0) -> 204410
A109: APU-DNP35 | B109: =IFERROR(VLOOKUP($A109,LISTA_APU,2,FALSE),"") ->  | I109: Unidad: | J109: =IFERROR(VLOOKUP($A109,LISTA_APU,3,FALSE),"") ->  | K109: =K139 -> 309140
B110: I. EQUIPO
B111: DESCRIPCIÓN | E111: MARCA | F111: TIPO | H111: TARIFA/HORA | I111: RENDIMIENTO | K111: Vr. UNITARIO
B112: =+IFERROR(VLOOKUP($A112,INSUMOS_BD2,3,FALSE),"") ->  | H112: =+IFERROR(ROUND(IF($B112="Herramienta Menor (% mano de obra)",HM,VLOOKUP($A112,INSUMOS_BD2,5,FALSE)),2),"") ->  | K112: =+IFERROR(ROUND(IF($B112="Herramienta Menor (% mano de obra)",$K$137*H112,H112/I112),0),"") -> 
B113: =+IFERROR(VLOOKUP($A113,INSUMOS_BD2,3,FALSE),"") ->  | H113: =+IFERROR(ROUND(IF($B113="Herramienta Menor (% mano de obra)",HM,VLOOKUP($A113,INSUMOS_BD2,5,FALSE)),2),"") ->  | K113: =+IFERROR(ROUND(IF($B113="Herramienta Menor (% mano de obra)",$K$137*H113,H113/I113),0),"") -> 
B114: =+IFERROR(VLOOKUP($A114,INSUMOS_BD2,3,FALSE),"") ->  | H114: =+IFERROR(ROUND(IF($B114="Herramienta Menor (% mano de obra)",HM,VLOOKUP($A114,INSUMOS_BD2,5,FALSE)),2),"") ->  | K114: =+IFERROR(ROUND(IF($B114="Herramienta Menor (% mano de obra)",$K$137*H114,H114/I114),0),"") -> 
I115: SUBTOTAL $ | K115: =SUM(K112:K114) -> 0
B117: II. MATERIALES
B118: DESCRIPCIÓN | G118: UNIDAD | H118: CANTIDAD | I118: PRECIO UNIT. | K118: Vr. UNITARIO
A119: m96 | B119: =+IFERROR(VLOOKUP($A119,INSUMOS_BD2,3,FALSE),"") -> Cemento | G119: =+IFERROR(VLOOKUP($A119,INSUMOS_BD2,4,FALSE),"") -> kg | H119: 454 | I119: =+IFERROR(VLOOKUP($A119,INSUMOS_BD2,5,FALSE),"") -> 570 | K119: =IFERROR(ROUND(H119*I119,0),"") -> 258780
A120: m97 | B120: =+IFERROR(VLOOKUP($A120,INSUMOS_BD2,3,FALSE),"") -> Arena de rio | G120: =+IFERROR(VLOOKUP($A120,INSUMOS_BD2,4,FALSE),"") -> m³ | H120: 1.09 | I120: =+IFERROR(VLOOKUP($A120,INSUMOS_BD2,5,FALSE),"") -> 44000 | K120: =IFERROR(ROUND(H120*I120,0),"") -> 47960
A121: m118 | B121: =+IFERROR(VLOOKUP($A121,INSUMOS_BD2,3,FALSE),"") -> Agua | G121: =+IFERROR(VLOOKUP($A121,INSUMOS_BD2,4,FALSE),"") -> l | H121: 240 | I121: =+IFERROR(VLOOKUP($A121,INSUMOS_BD2,5,FALSE),"") -> 10 | K121: =IFERROR(ROUND(H121*I121,0),"") -> 2400
B122: =+IFERROR(VLOOKUP($A122,INSUMOS_BD2,3,FALSE),"") ->  | G122: =+IFERROR(VLOOKUP($A122,INSUMOS_BD2,4,FALSE),"") ->  | I122: =+IFERROR(VLOOKUP($A122,INSUMOS_BD2,5,FALSE),"") ->  | K122: =IFERROR(ROUND(H122*I122,0),"") -> 
I123: SUBTOTAL $ | K123: =SUM(K119:K122) -> 309140
B125: III. TRANSPORTES
B126: MATERIAL | F126: FACT. EXPANSIÓN | G126: DISTANCIA | H126: VOL. o PESO | I126: TARIFA (M3 o Ton/Km) | K126: Vr. UNITARIO
B127: =+IFERROR(VLOOKUP($A127,INSUMOS_BD2,3,FALSE),"") ->  | H127: =+IFERROR(VLOOKUP($A127,INSUMOS_BD2,3,FALSE),"") ->  | I127: =+IFERROR(VLOOKUP($A127,INSUMOS_BD2,5,FALSE),"") ->  | K127: =IFERROR(ROUND(F127*G127*I127,0),"") -> 
B128: =+IFERROR(VLOOKUP($A128,INSUMOS_BD2,3,FALSE),"") ->  | H128: =+IFERROR(VLOOKUP($A128,INSUMOS_BD2,3,FALSE),"") ->  | I128: =+IFERROR(VLOOKUP($A128,INSUMOS_BD2,5,FALSE),"") ->  | K128: =IFERROR(ROUND(F128*G128*I128,0),"") -> 
B129: =+IFERROR(VLOOKUP($A129,INSUMOS_BD2,3,FALSE),"") ->  | H129: =+IFERROR(VLOOKUP($A129,INSUMOS_BD2,3,FALSE),"") ->  | I129: =+IFERROR(VLOOKUP($A129,INSUMOS_BD2,5,FALSE),"") ->  | K129: =IFERROR(ROUND(F129*G129*I129,0),"") -> 
B130: SUBTOTAL $ | K130: =SUM(K127:K129) -> 0
B132: IV. MANO DE OBRA
B133: TRABAJADOR | F133: JORNAL | G133: PRESTACIÓN | H133: JORNAL TOTAL | I133: RENDIMIENTO | K133: Vr. UNITARIO
B134: =+IFERROR(VLOOKUP($A134,INSUMOS_BD2,3,FALSE),"") ->  | F134: =+IFERROR(VLOOKUP($A134,INSUMOS_BD2,5,FALSE),"") ->  | H134: =IFERROR(F134*(1+G134),"") ->  | K134: =IFERROR(ROUND(H134/I134,0),"") -> 
B135: =+IFERROR(VLOOKUP($A135,INSUMOS_BD2,3,FALSE),"") ->  | F135: =+IFERROR(VLOOKUP($A135,INSUMOS_BD2,5,FALSE),"") ->  | H135: =IFERROR(F135*(1+G135),"") ->  | K135: =IFERROR(ROUND(H135/I135,0),"") -> 
B136: =+IFERROR(VLOOKUP($A136,INSUMOS_BD2,3,FALSE),"") ->  | F136: =+IFERROR(VLOOKUP($A136,INSUMOS_BD2,5,FALSE),"") ->  | H136: =IFERROR(F136*(1+G136),"") ->  | K136: =IFERROR(ROUND(H136/I136,0),"") -> 
I137: SUBTOTAL $ | K137: =SUM(K134:K136) -> 0
B139: TOTAL COSTO DIRECTO $ | K139: =ROUND((+K137+K130+K123+K115),0) -> 309140
A141: APU-DNP36 | B141: =IFERROR(VLOOKUP($A141,LISTA_APU,2,FALSE),"") ->  | I141: Unidad: | J141: =IFERROR(VLOOKUP($A141,LISTA_APU,3,FALSE),"") ->  | K141: =K172 -> 411018
B142: I. EQUIPO
B143: DESCRIPCIÓN | E143: MARCA | F143: TIPO | H143: TARIFA/HORA | I143: RENDIMIENTO | K143: Vr. UNITARIO
B144: =+IFERROR(VLOOKUP($A144,INSUMOS_BD2,3,FALSE),"") ->  | H144: =+IFERROR(ROUND(IF($B144="Herramienta Menor (% mano de obra)",HM,VLOOKUP($A144,INSUMOS_BD2,5,FALSE)),2),"") ->  | K144: =+IFERROR(ROUND(IF($B144="Herramienta Menor (% mano de obra)",$K$170*H144,H144/I144),0),"") -> 
B145: =+IFERROR(VLOOKUP($A145,INSUMOS_BD2,3,FALSE),"") ->  | H145: =+IFERROR(ROUND(IF($B145="Herramienta Menor (% mano de obra)",HM,VLOOKUP($A145,INSUMOS_BD2,5,FALSE)),2),"") ->  | K145: =+IFERROR(ROUND(IF($B145="Herramienta Menor (% mano de obra)",$K$170*H145,H145/I145),0),"") -> 
B146: =+IFERROR(VLOOKUP($A146,INSUMOS_BD2,3,FALSE),"") ->  | H146: =+IFERROR(ROUND(IF($B146="Herramienta Menor (% mano de obra)",HM,VLOOKUP($A146,INSUMOS_BD2,5,FALSE)),2),"") ->  | K146: =+IFERROR(ROUND(IF($B146="Herramienta Menor (% mano de obra)",$K$170*H146,H146/I146),0),"") -> 
I147: SUBTOTAL $ | K147: =SUM(K144:K146) -> 0
B149: II. MATERIALES
B150: DESCRIPCIÓN | G150: UNIDAD | H150: CANTIDAD | I150: PRECIO UNIT. | K150: Vr. UNITARIO
A151: m96 | B151: =+IFERROR(VLOOKUP($A151,INSUMOS_BD2,3,FALSE),"") -> Cemento | G151: =+IFERROR(VLOOKUP($A151,INSUMOS_BD2,4,FALSE),"") -> kg | H151: 350 | I151: =+IFERROR(VLOOKUP($A151,INSUMOS_BD2,5,FALSE),"") -> 570 | K151: =IFERROR(ROUND(H151*I151,0),"") -> 199500
A152: m97 | B152: =+IFERROR(VLOOKUP($A152,INSUMOS_BD2,3,FALSE),"") -> Arena de rio | G152: =+IFERROR(VLOOKUP($A152,INSUMOS_BD2,4,FALSE),"") -> m³ | H152: 0.56 | I152: =+IFERROR(VLOOKUP($A152,INSUMOS_BD2,5,FALSE),"") -> 44000 | K152: =IFERROR(ROUND(H152*I152,0),"") -> 24640
A153: m98 | B153: =+IFERROR(VLOOKUP($A153,INSUMOS_BD2,3,FALSE),"") -> Grava | G153: =+IFERROR(VLOOKUP($A153,INSUMOS_BD2,4,FALSE),"") -> m³ | H153: 0.84 | I153: =+IFERROR(VLOOKUP($A153,INSUMOS_BD2,5,FALSE),"") -> 48000 | K153: =IFERROR(ROUND(H153*I153,0),"") -> 40320
A154: e54 | B154: =+IFERROR(VLOOKUP($A154,INSUMOS_BD2,3,FALSE),"") -> Mezcladora de trompo | G154: =+IFERROR(VLOOKUP($A154,INSUMOS_BD2,4,FALSE),"") -> día | H154: 0.6 | I154: =+IFERROR(VLOOKUP($A154,INSUMOS_BD2,5,FALSE),"") -> 25000 | K154: =IFERROR(ROUND(H154*I154,0),"") -> 15000
A155: m118 | B155: =+IFERROR(VLOOKUP($A155,INSUMOS_BD2,3,FALSE),"") -> Agua | G155: =+IFERROR(VLOOKUP($A155,INSUMOS_BD2,4,FALSE),"") -> l | H155: 180 | I155: =+IFERROR(VLOOKUP($A155,INSUMOS_BD2,5,FALSE),"") -> 10 | K155: =IFERROR(ROUND(H155*I155,0),"") -> 1800
I156: SUBTOTAL $ | K156: =SUM(K151:K155) -> 281260
B158: III. TRANSPORTES
B159: MATERIAL | F159: FACT. EXPANSIÓN | G159: DISTANCIA | H159: VOL. o PESO | I159: TARIFA (M3 o Ton/Km) | K159: Vr. UNITARIO
B160: =+IFERROR(VLOOKUP($A160,INSUMOS_BD2,3,FALSE),"") ->  | H160: =+IFERROR(VLOOKUP($A160,INSUMOS_BD2,3,FALSE),"") ->  | I160: =+IFERROR(VLOOKUP($A160,INSUMOS_BD2,5,FALSE),"") ->  | K160: =IFERROR(ROUND(F160*G160*I160,0),"") -> 
B161: =+IFERROR(VLOOKUP($A161,INSUMOS_BD2,3,FALSE),"") ->  | H161: =+IFERROR(VLOOKUP($A161,INSUMOS_BD2,3,FALSE),"") ->  | I161: =+IFERROR(VLOOKUP($A161,INSUMOS_BD2,5,FALSE),"") ->  | K161: =IFERROR(ROUND(F161*G161*I161,0),"") -> 
B162: =+IFERROR(VLOOKUP($A162,INSUMOS_BD2,3,FALSE),"") ->  | H162: =+IFERROR(VLOOKUP($A162,INSUMOS_BD2,3,FALSE),"") ->  | I162: =+IFERROR(VLOOKUP($A162,INSUMOS_BD2,5,FALSE),"") ->  | K162: =IFERROR(ROUND(F162*G162*I162,0),"") -> 
B163: SUBTOTAL $ | K163: =SUM(K160:K162) -> 0
B165: IV. MANO DE OBRA
B166: TRABAJADOR | F166: - | G166: UND | H166: VR/HORA | I166: RENDIMIENTO | K166: Vr. UNITARIO
A167: cd2 | B167: =+IFERROR(VLOOKUP($A167,Cuadrillas_DNP[],2,FALSE),"") -> Cuadrilla AA 1Of+2Ay (Albañilería) | G167: =IFERROR(VLOOKUP($A167,Cuadrillas_DNP[],3,FALSE),"") -> hora | H167: =IFERROR(VLOOKUP($A167,Cuadrillas_DNP[],6,FALSE),"") -> 23097 | I167: 0.178 | K167: =IFERROR(ROUND(H167/I167,0),"") -> 129758
B168: =+IFERROR(VLOOKUP($A168,Cuadrillas_DNP[],2,FALSE),"") ->  | G168: =IFERROR(VLOOKUP($A168,Cuadrillas_DNP[],3,FALSE),"") ->  | H168: =IFERROR(VLOOKUP($A168,Cuadrillas_DNP[],6,FALSE),"") ->  | K168: =IFERROR(ROUND(H168/I168,0),"") -> 
B169: =+IFERROR(VLOOKUP($A169,Cuadrillas_DNP[],2,FALSE),"") ->  | G169: =IFERROR(VLOOKUP($A169,Cuadrillas_DNP[],3,FALSE),"") ->  | H169: =IFERROR(VLOOKUP($A169,Cuadrillas_DNP[],6,FALSE),"") ->  | K169: =IFERROR(ROUND(H169/I169,0),"") -> 
I170: SUBTOTAL $ | K170: =SUM(K167:K169) -> 129758
B172: TOTAL COSTO DIRECTO $ | K172: =ROUND((+K170+K163+K156+K147),0) -> 411018 | L172: 410988

Sheet Memorias_Cap1_2_3
L3: PROYECTO TIPO MEJORAMIENTO DE VÍAS TERCIARIAS Tramo 1 km | AA3: AVAL
L6: MEMORIAS DE CANTIDADES
B8: Nota: Se recomienda modificar las casillas de color amarillo por parte de la entidad territorial según las características propias
D10: Cantidades de placa huella tramo recto (tangente 1) Sección final de 6,0 m incluyendo cunetas en ambos costados | E10: Cantidad | F10: Unidad | I10: Diámetro | L10: Área | N10: Masa
D11: Longitud del subtramo | E11: 100 | F11: m | H11: Nº | I11: Pulgadas | J11: cm | K11: mm | L11: mm2 | M11: cm2 | N11: kg/m
D12: Espesor placa huella y de piedra pegada | E12: 0.15 | F12: m | H12: 1 | I12: =H12/8 -> 0.125 | J12: =I12*2.54 -> 0.3175 | K12: =J12*10 -> 3.175 | L12: =3.1416*0.25*K12*K12 -> 7.917322875 | M12: =3.1416*0.25*J12*J12 -> 0.07917322875 | N12: - | P12: Longitud aceros de refuerzo alcantarilla | Q12: 7.4
D13: Espesor subbase granular | E13: 0.15 | F13: m | H13: 2 | I13: 0.25 | J13: 0.635 | K13: 6.35 | L13: 31.6692915 | M13: 0.316692915 | N13: 0.25 | P13: Longitud a7 | Q13: 0.89
D14: Longitud de huella | E14: 2.8 | F14: m | H14: 3 | I14: 0.375 | J14: 0.9525 | K14: 9.525 | L14: 71.25590588 | M14: 0.7125590588 | N14: 0.56 | P14: Espacimiento aceros refuerzo | Q14: 0.15
D15: Cantidad de huellas en el tramo (igual a la cantidad de riostras) | E15: =ROUNDUP(E11/(E14+(E16/2)),0) -> 35 | F15: un | H15: 4 | I15: 0.5 | J15: 1.27 | K15: 12.7 | L15: 126.677166 | M15: 1.26677166 | N15: 0.994 | P15: Cantidad de varillas | Q15: 4
D16: Ancho de riostra | E16: 0.2 | F16: m | H16: 5 | I16: 0.625 | J16: 1.5875 | K16: 15.875 | L16: 197.9330719 | M16: 1.979330719 | N16: 1.552
D17: Alto de riostras | E17: 0.3 | F17: m | H17: 6 | I17: 0.75 | J17: 1.905 | K17: 19.05 | L17: 285.0236235 | M17: 2.850236235 | N17: 2.235 | P17: Longitud guardarueda | S17: 1.4 | T17: Espaciamiento guardarueda | W17: 0.25
D18: Ancho placa huella de e=0,15 m | E18: 0.9 | F18: m | H18: 7 | I18: 0.875 | J18: 2.2225 | K18: 22.225 | L18: 387.9488209 | M18: 3.879488209 | N18: 3.042 | P18: Cantidad de aletas | S18: 2
D19: Cantidad de huellas por sección | E19: 2 | F19: un | H19: 8 | I19: 1 | J19: 2.54 | K19: 25.4 | L19: 506.708664 | M19: 5.06708664 | N19: 3.973
D20: Longitud libre de sección transversal (igual a longitud de riostra) | E20: =(E18*E19)+(E25*E26)+(E27*E28) -> 4.6 | F20: m | H20: 9 | I20: 1.125 | J20: 2.8575 | K20: 28.575 | L20: 641.3031529 | M20: 6.413031529 | N20: 5.06 | P20: No. Muros Box Culvert | S20: 2
D21: Área de cuneta: cuneta, por metro | E21: 0.0757 | F21: m2 | H21: 10 | I21: 1.25 | J21: 3.175 | K21: 31.75 | L21: 791.7322875 | M21: 7.917322875 | N21: 6.404 | P21: No. Guardarruedas Box Culvert | S21: 2
D22: Área de cuneta: sardinel + pata, por metro | E22: 0.1043 | F22: m2 | P22: No. Aletas Box Culvert | S22: 4
D23: Ancho de cuneta (en la sección transversal) | E23: 0.7 | F23: m
D24: Cantidad de cunetas | E24: 2 | F24: un
D25: Ancho piedra pegada externa | E25: 0.95 | F25: m
D26: Cantidad de secciones de piedra pegada externa | E26: 2 | F26: un
D27: Ancho piedra pegada interna | E27: 0.9 | F27: m
D28: Cantidad de secciones de piedra pegada interna | E28: 1 | F28: un
D29: Sobreancho | E29: 0 | F29: m
D30: Cantidad de secciones de sobreancho | E30: 0 | F30: un
D31: Separación acero longitudinal de huellas | E31: 0.15 | F31: m
D32: Recubrimiento acero de huellas | E32: 0.075 | F32: m
D33: Separación acero transversal de huellas | E33: 0.3 | F33: m
D34: Total concreto huellas | E34: =(E19*E18*E14*E15) -> 176.4 | F34: m3
D35: Total concreto cunetas | E35: =(E21+E22)*E11*E24 -> 36 | F35: m3
D36: Total concreto riostras | E36: =E20*E16*E17*E15 -> 9.66 | F36: m3
D37: Total concreto ciclópeo (piedra pegada) | E37: =((E25*E26)+(E27*E28)*E12*E14*E15) -> 15.13 | F37: m3
D38: Acero longitudinal en una huella - N°4 C/15 | E38: =+(E18/E31)*(E14+E16)*E15*E19*N15 -> 1252.44 | F38: kg
D39: Longitud de traslapo longitudinal en huella (y longitud de "s" de refuerzo del bordillo) | E39: 0.6 | F39: m
D40: Acero traslapo en huellas longitudinal N°4 C/15 - Son 9 traslapos por sección de 2,80 m | E40: =+E39*(E18/E31)*E15*E19*N15 -> 250.488 | F40: kg
D41: Acero huellas transversal N°2 C/30 | E41: =+(E18-E32-E32)*ROUNDUP((E14/E33),0)*E19*E15*N13 -> 131.25 | F41: kg
D42: Total acero huellas | E42: =+E38+E40+E41 -> 1634.178
D43: Cantidad de varillas longitudinales en berma-cuneta No. 4, 3 en cuneta, 2 en bordillo | E43: 5 | F43: un
D44: Acero cunetas longitudinal No. 4, 3 en cuneta, 2 en bordillo | E44: =E11*E43*E24*N15 -> 994 | F44: kg
D45: Acero cunetas transversal No. 2, 1 recto de 0,37 m | E45: 0.37 | F45: m
D46: Acero cunetas transversal No. 2, 1 de 0,37 cm en cuneta y 1 en "S" de L= 60 cm | E46: =((E11/E33)*(E45)*N13*E24)+((E11/E31)*(E39)*N14*E24) -> 509.6666667 | F46: kg
D47: Total acero cunetas | E47: =+E44+E46 -> 1503.666667 | F47: kg
D48: Acero longitudinal riostra figura 1. Son 2 No. 4 de 5.20 m | E48: =5.2*2 -> 10.4 | F48: kg
D49: Acero longitudinal riostra figura 2. Son 2 No. 4 de 1,40 m | E49: =1.4*2 -> 2.8 | F49: kg
D50: Acero longitudinal riostra figura 3. Son 2 No. 4 de 4,60 m | E50: =4.6*2 -> 9.2 | F50: kg
D51: Total acero longitudinal riostras | E51: =(E48+E49+E50)*N15*E15 -> 779.296 | F51: kg
D52: Total acero transversal riostras | E52: =((E20+E24*E23-E16-E16)/E31)*N13*E15 -> 326.6666667 | F52: kg
D53: Total acero riostras | E53: =+E51+E52 -> 1105.962667 | F53: kg
D55: Cantidades de mejoramientos diferentes a placa huella. Tramo recto (tangente 1) Sección final de 6,0 m incluyendo cunetas en ambos costados | E55: Cantidad | F55: Unidad
D56: Ancho total sección transversal | E56: 6 | F56: m
D57: Longitud unitaria | E57: 900 | F57: m
D58: Espesor estándar tratamiento superficial | E58: 0.03 | F58: m
D59: Espesor estándar base tratada | E59: 0.2 | F59: m
D60: Espesor estándar subbase | E60: 0.25 | F60: m
D61: Espesor estándar mejoramiento rasante | E61: 0.05 | F61: m
L64: PROYECTO TIPO MEJORAMIENTO DE VÍAS TERCIARIAS Tramo 1 km | AA64: AVAL
L67: MEMORIAS DE CANTIDADES
B70: Capítulo | E70: =+'[3] PPTO DNP'!$B$5 -> 1 | F70: =+'[3] PPTO DNP'!$C$5 -> Realizar obras preliminares
B71: Ítem | E71: 1.1 | F71: =+'[3] PPTO DNP'!C6 -> Localización y replanteo | Y71: UNIDAD | AE71: =+'[3] PPTO DNP'!D6 -> m²
B72: Área/lugar/elemento | E72: Longitud (m) | H72: Ancho (m) | K72: Alto (m) | N72: Peso (kg) | Q72: V. PARCIAL | T72: N° DE ELEMENTOS | U72: UNIDAD | X72: TOTAL
B73: Área de intervención de placa huella | E73: =+E11 -> 100 | H73: =+E20+E23+E23 -> 6 | Q73: =E73*H73 -> 600 | T73: 1 | U73: =+$AE$71 -> m² | X73: =Q73*T73 -> 600
B74: Área de intervención de placa huella | E74: =+E57 -> 900 | H74: =+E56 -> 6 | Q74: =E74*H74 -> 5400 | T74: 1 | U74: =+$AE$71 -> m² | X74: =Q74*T74 -> 5400
B75: Muro | Q75: =E75*H75 -> 0 | T75: 1 | U75: =+$AE$71 -> m² | X75: =Q75*T75 -> 0
B76: Box culvert | Q76: =E76*H76 -> 0 | T76: 1 | U76: =+$AE$71 -> m² | X76: =Q76*T76 -> 0
B77: Alcantarillas | Q77: =E77*H77 -> 0 | T77: 9 | U77: =+$AE$71 -> m² | X77: =Q77*T77 -> 0
U78: TOTAL | X78: =SUM(X73:Z77) -> 6000
B80: Observaciones
AV83: Pag. _1___ de __1__
C86: CONTRATISTA | AF86: Vo.Bo. INTERVENTOR
L89: PROYECTO TIPO MEJORAMIENTO DE VÍAS TERCIARIAS Tramo 1 km | AA89: AVAL
L92: MEMORIAS DE CANTIDADES
B96: Capítulo | E96: =+'[3] PPTO DNP'!$B$7 -> 2 | F96: =+'[3] PPTO DNP'!$C$7 -> Implementar el mejoramiento de vías terciarias para la estructura de pavimento
B97: Ítem | E97: =+'[3] PPTO DNP'!B8 -> 2.1 | F97: =+'[3] PPTO DNP'!C8 -> Excavación mecánica en material común a nivel de subrasante (incluye retiro de sobrantes, transporte hasta escombrera y derecho de botadero) | Y97: UNIDAD | AE97: =+'[3] PPTO DNP'!D8 -> m³
B98: Área/lugar/elemento | E98: Longitud (m) | H98: Ancho (m) | K98: Alto (m) | N98: Peso (kg) | Q98: V. PARCIAL | T98: N° DE ELEMENTOS | U98: UNIDAD | X98: TOTAL
B99: Mejoramiento con placa huella | E99: =+E73 -> 100 | H99: =+H73 -> 6 | K99: =+E12+E13 -> 0.3 | Q99: =E99*H99*K99 -> 180 | U99: =+$AE$71 -> m² | X99: =+Q99 -> 180
B100: Mejoramiento con alternativa seleccionada | E100: =+E74 -> 900 | H100: =+H74 -> 6 | K100: =+E58+E59+E60 -> 0.48 | Q100: =E100*H100*K100 -> 2592 | U100: =+$AE$71 -> m² | X100: =+Q100 -> 2592
U101: TOTAL | X101: =SUM(X99:Z100) -> 2772
B103: Observaciones
AV107: Pag. _1___ de __1__
C110: CONTRATISTA | AF110: Vo.Bo. INTERVENTOR
L113: PROYECTO TIPO MEJORAMIENTO DE VÍAS TERCIARIAS Tramo 1 km | AA113: AVAL
L116: MEMORIAS DE CANTIDADES
B120: Capítulo | E120: =+'[3] PPTO DNP'!$B$7 -> 2 | F120: =+'[3] PPTO DNP'!$C$7 -> Implementar el mejoramiento de vías terciarias para la estructura de pavimento
B121: Ítem | E121: ='[3] PPTO DNP'!B9 -> 2.2 | F121: =+'[3] PPTO DNP'!C9 -> Conformación de la subrasante | Y121: UNIDAD | AE121: =+'[3] PPTO DNP'!D9 -> m²
B122: Área/lugar/elemento | E122: Longitud (m) | H122: Ancho (m) | K122: Alto (m) | N122: Peso (kg) | Q122: V. PARCIAL | T122: N° DE ELEMENTOS | U122: UNIDAD | X122: TOTAL
B123: Conformación de la subrasante bajo el área de placa huella | E123: =+E99 -> 100 | H123: =+H99 -> 6 | Q123: =E123*H123 -> 600 | U123: =+$AE$121 -> m² | X123: =+Q123 -> 600
B124: Conformación de la subrasante bajo el área con mejoramiento diferente a placa huella | E124: =+E100 -> 900 | H124: =+H100 -> 6 | Q124: =E124*H124 -> 5400 | U124: =+$AE$121 -> m² | X124: =+Q124 -> 5400
U125: TOTAL | X125: =SUM(X123:Z124) -> 6000
B127: Observaciones
AV131: Pag. _1___ de __1__
C134: CONTRATISTA | AF134: Vo.Bo. INTERVENTOR
L137: PROYECTO TIPO MEJORAMIENTO DE VÍAS TERCIARIAS Tramo 1 km | AA137: AVAL
L140: MEMORIAS DE CANTIDADES
B143: Capítulo | E143: =+'[3] PPTO DNP'!$B$7 -> 2 | F143: =+'[3] PPTO DNP'!$C$7 -> Implementar el mejoramiento de vías terciarias para la estructura de pavimento
B144: Ítem | E144: ='[3] PPTO DNP'!B10 -> 2.3 | F144: =+'[3] PPTO DNP'!C10 -> Subbase granular (incluye suministro, extendido, nivelación, humedecido y compactación) | Y144: UNIDAD | AE144: =+'[3] PPTO DNP'!D10 -> m³
B145: Área/lugar/elemento | E145: Longitud (m) | H145: Ancho (m) | K145: Alto (m) | N145: Peso (kg) | Q145: V. PARCIAL | T145: N° DE ELEMENTOS | U145: UNIDAD | X145: TOTAL
B146: Conformación de la subbase bajo el área de placa huella | E146: =+E99 -> 100 | H146: =+H99 -> 6 | K146: 0.15 | Q146: =E146*H146*K146 -> 90 | U146: =+$AE$144 -> m³ | X146: =+E146*H146*K146 -> 90
B147: Conformación de la subbase bajo el área de mejoramiento diferente a placa huella | E147: =+E100 -> 900 | H147: =+H100 -> 6 | K147: =+E60 -> 0.25 | Q147: =E147*H147*K147 -> 1350 | U147: =+$AE$144 -> m³ | X147: =+E147*H147*K147 -> 1350
U148: TOTAL | X148: =SUM(X146:Z147) -> 1440
B150: Observaciones
AV154: Pag. _1___ de __1__
C157: CONTRATISTA | AF157: Vo.Bo. INTERVENTOR
L160: PROYECTO TIPO MEJORAMIENTO DE VÍAS TERCIARIAS Tramo 1 km | AA160: AVAL
L163: MEMORIAS DE CANTIDADES
B166: Capítulo | E166: =+'[3] PPTO DNP'!$B$7 -> 2 | F166: =+'[3] PPTO DNP'!$C$7 -> Implementar el mejoramiento de vías terciarias para la estructura de pavimento
B167: Ítem | E167: ='[3] PPTO DNP'!B11 -> 2.4 | F167: =+'[3] PPTO DNP'!C11 -> Excavación manual H= 0,15 m y a= 0,20 m para riostras de placa huella (incluye retiro de sobrantes, transporte hasta escombrera y derecho de botadero) | Y167: UNIDAD | AE167: =+'[3] PPTO DNP'!D11 -> m³
B168: Área/lugar/elemento | E168: Longitud (m) | H168: Ancho (m) | K168: Alto (m) | N168: Peso (kg) | Q168: V. PARCIAL | T168: N° DE ELEMENTOS | U168: UNIDAD | X168: TOTAL
B169: Riostras después de terminar la subbase en el área de placa huella | E169: =+E20 -> 4.6 | H169: =+E16 -> 0.2 | K169: =+E13 -> 0.15 | Q169: =E169*H169*K169 -> 0.138 | T169: =+E15 -> 35 | U169: =+$AE$167 -> m³ | X169: =Q169*T169 -> 4.83
U170: TOTAL | X170: =SUM(X169:Z169) -> 4.83
B172: Observaciones
AV176: Pag. _1___ de __1__
C179: CONTRATISTA | AF179: Vo.Bo. INTERVENTOR
L182: PROYECTO TIPO MEJORAMIENTO DE VÍAS TERCIARIAS Tramo 1 km | AA182: AVAL
L185: MEMORIAS DE CANTIDADES
B188: Capítulo | E188: =+'[3] PPTO DNP'!$B$7 -> 2 | F188: =+'[3] PPTO DNP'!$C$7 -> Implementar el mejoramiento de vías terciarias para la estructura de pavimento
B189: Ítem | E189: ='[3] PPTO DNP'!B12 -> 2.5 | F189: =+'[3] PPTO DNP'!C12 -> Concreto de 210 kg/cm² (3.000 psi) huellas | Y189: UNIDAD | AE189: =+'[3] PPTO DNP'!D12 -> m³
B190: Área/lugar/elemento | E190: Longitud (m) | H190: Ancho (m) | K190: Alto (m) | N190: Área (m2) | Q190: V. PARCIAL | T190: N° DE ELEMENTOS | U190: UNIDAD | X190: TOTAL
B191: Huellas | E191: =+E14 -> 2.8 | H191: =+E18 -> 0.9 | K191: =+E12 -> 0.15 | Q191: =E191*H191*K191 -> 0.378 | T191: =+E19*E15 -> 70 | U191: =+$AE$189 -> m³ | X191: =Q191*T191 -> 26.46
U192: TOTAL | X192: =SUM(X191:Z191) -> 26.46
B194: Observaciones
AV198: Pag. _1___ de __1__
C201: CONTRATISTA | AF201: Vo.Bo. INTERVENTOR
L204: PROYECTO TIPO MEJORAMIENTO DE VÍAS TERCIARIAS Tramo 1 km | AA204: AVAL
L207: MEMORIAS DE CANTIDADES
B210: Capítulo | E210: =+'[3] PPTO DNP'!$B$7 -> 2 | F210: =+'[3] PPTO DNP'!$C$7 -> Implementar el mejoramiento de vías terciarias para la estructura de pavimento
B211: Ítem | E211: ='[3] PPTO DNP'!B13 -> 2.6 | F211: =+'[3] PPTO DNP'!C13 -> Concreto ciclópeo para placa huella (piedra pegada) | Y211: UNIDAD | AE211: =+'[3] PPTO DNP'!D27 -> m
B212: Área/lugar/elemento | E212: Longitud (m) | H212: Ancho (m) | K212: Alto (m) | N212: Peso (kg) | Q212: V. PARCIAL | T212: N° DE ELEMENTOS | U212: UNIDAD | X212: TOTAL
B213: Franja de piedra pegada interna | E213: =+E14 -> 2.8 | H213: =+E27 -> 0.9 | K213: =+E12 -> 0.15 | Q213: =+E213*H213*K213 -> 0.378 | T213: =+E15 -> 35 | U213: =+$AE$211 -> m | X213: =+Q213*T213 -> 13.23
B214: Franja de piedra pegada externa | E214: =+E213 -> 2.8 | H214: =+E25 -> 0.95 | K214: =+K213 -> 0.15 | Q214: =+E214*H214*K214 -> 0.399 | T214: =+T213*E26 -> 70 | U214: =+$AE$211 -> m | X214: =+Q214*T214 -> 27.93
U215: TOTAL | X215: =SUM(X213:Z214) -> 41.16
B217: Observaciones
AV221: Pag. _1___ de __1__
C224: CONTRATISTA | AF224: Vo.Bo. INTERVENTOR
L227: PROYECTO TIPO MEJORAMIENTO DE VÍAS TERCIARIAS Tramo 1 km | AA227: AVAL
L230: MEMORIAS DE CANTIDADES
B233: Capítulo | E233: =+'[3] PPTO DNP'!$B$7 -> 2 | F233: =+'[3] PPTO DNP'!$C$7 -> Implementar el mejoramiento de vías terciarias para la estructura de pavimento
B235: Ítem | E235: ='[3] PPTO DNP'!B14 -> 2.7 | F235: =+'[3] PPTO DNP'!C14 -> Concreto de 210 kg/cm² (3.000 psi) para riostras de placa huella | Y235: UNIDAD | AE235: =+'[3] PPTO DNP'!D14 -> m³
B237: Área/lugar/elemento | E237: Longitud (m) | H237: Ancho (m) | K237: Alto (m) | N237: Peso (kg) | Q237: V. PARCIAL | T237: N° DE ELEMENTOS | U237: UNIDAD | X237: TOTAL
B238: Riostras en el tramo | E238: =+E20 -> 4.6 | H238: =+E16 -> 0.2 | K238: =+E17 -> 0.3 | Q238: =E238*H238*K238 -> 0.276 | T238: =+E15 -> 35 | U238: =+$AE$235 -> m³ | X238: =+Q238*T238 -> 9.66
U239: TOTAL | X239: =SUM(X238:Z238) -> 9.66
B241: Observaciones
AV245: Pag. _1___ de __1__
C248: CONTRATISTA | AF248: Vo.Bo. INTERVENTOR
L251: PROYECTO TIPO MEJORAMIENTO DE VÍAS TERCIARIAS Tramo 1 km | AA251: AVAL
L254: MEMORIAS DE CANTIDADES
B257: Capítulo | E257: =+'[3] PPTO DNP'!$B$7 -> 2 | F257: =+'[3] PPTO DNP'!$C$7 -> Implementar el mejoramiento de vías terciarias para la estructura de pavimento
B258: Ítem | E258: ='[3] PPTO DNP'!B15 -> 2.8 | F258: =+'[3] PPTO DNP'!C15 -> Acero de refuerzo 4.200 kg/cm² (60.000 psi) para huellas y riostras | Y258: UNIDAD | AE258: =+'[3] PPTO DNP'!D15 -> kg
B260: Área/lugar/elemento | E260: Longitud (m) | N260: Peso (kg/m) | Q260: V. PARCIAL | T260: N° DE ELEMENTOS | U260: UNIDAD | X260: TOTAL
B261: =+D38 -> Acero longitudinal en una huella - N°4 C/15 | E261: =+(E18/E31)*(E14+E16) -> 18 | N261: =+N15 -> 0.994 | Q261: =E261*K261*N261 -> 0 | T261: =E15*E19 -> 70 | U261: =+AE258 -> kg | X261: =+E261*N261*T261 -> 1252.44
B262: =+D40 -> Acero traslapo en huellas longitudinal N°4 C/15 - Son 9 traslapos por sección de 2,80 m | E262: =+E39*(E18/E31) -> 3.6 | N262: =+N261 -> 0.994 | Q262: =E262*K262*N262 -> 0 | T262: =E15*E19 -> 70 | U262: =+AE258 -> kg | X262: =+E262*N262*T262 -> 250.488
B263: =+D41 -> Acero huellas transversal N°2 C/30 | E263: =+(E18-E32-E32)*ROUNDUP((E14/E33),0) -> 7.5 | N263: =+N13 -> 0.25 | Q263: =E263*K263*N263 -> 0 | T263: =+E19*E15 -> 70 | U263: =+AE258 -> kg | X263: =+E263*N263*T263 -> 131.25
U264: TOTAL | X264: =SUM(X261:Z263) -> 1634.178
B266: Observaciones
AV270: Pag. _1___ de __1__
C273: CONTRATISTA | AF273: Vo.Bo. INTERVENTOR
L276: PROYECTO TIPO MEJORAMIENTO DE VÍAS TERCIARIAS Tramo 1 km | AA276: AVAL
L279: MEMORIAS DE CANTIDADES
B282: Capítulo | E282: =+'[3] PPTO DNP'!$B$7 -> 2 | F282: =+'[3] PPTO DNP'!$C$7 -> Implementar el mejoramiento de vías terciarias para la estructura de pavimento
B283: Ítem | E283: ='[3] PPTO DNP'!B16 -> 2.9 | F283: ='[3] PPTO DNP'!C16 -> Mejoramiento de la subrasante con adición de materiales | Y283: UNIDAD | AE283: =+'[3] PPTO DNP'!D16 -> m³
B284: Área/lugar/elemento | E284: Longitud (m) | H284: Ancho (m) | K284: Alto (m) | N284: Peso (kg) | Q284: V. PARCIAL | T284: N° DE ELEMENTOS | U284: UNIDAD | X284: TOTAL
B285: Subbbase granular | E285: =+E57 -> 900 | H285: =+E56 -> 6 | K285: =+E61 -> 0.05 | Q285: =E285*H285*K285 -> 270 | T285: 1 | U285: m³ | X285: =Q285*T285 -> 270
U286: TOTAL | X286: =SUM(X285:Z285) -> 270
B288: Observaciones
AV292: Pag. _1___ de __1__
C295: CONTRATISTA | AF295: Vo.Bo. INTERVENTOR
L298: PROYECTO TIPO MEJORAMIENTO DE VÍAS TERCIARIAS Tramo 1 km | AA298: AVAL
L301: MEMORIAS DE CANTIDADES
B304: Capítulo | E304: =+'[3] PPTO DNP'!$B$7 -> 2 | F304: =+'[3] PPTO DNP'!$C$7 -> Implementar el mejoramiento de vías terciarias para la estructura de pavimento
B305: Ítem | E305: ='[3] PPTO DNP'!B17 -> 2.10 | F305: ='[3] PPTO DNP'!C17 -> Base tratada con cemento resistencia R-3.5 (incluye suministro de cemento) | Y305: UNIDAD | AE305: =+'[3] PPTO DNP'!D17 -> m³
B306: Área/lugar/elemento | E306: Longitud (m) | H306: Ancho (m) | K306: Alto (m) | N306: Peso (kg) | Q306: V. PARCIAL | T306: N° DE ELEMENTOS | U306: UNIDAD | X306: TOTAL
B307: Mejoramiento de la subrasante con adición de materiales | E307: =+E57 -> 900 | H307: =+E56 -> 6 | K307: =+E59 -> 0.2 | Q307: =E307*H307*K307 -> 1080 | T307: 0 | U307: m³ | X307: =+E307*H307*K307*T307 -> 0
U308: TOTAL | X308: =SUM(X307:Z307) -> 0
B310: Observaciones
AV314: Pag. _1___ de __1__
C317: CONTRATISTA | AF317: Vo.Bo. INTERVENTOR
L320: PROYECTO TIPO MEJORAMIENTO DE VÍAS TERCIARIAS Tramo 1 km | AA320: AVAL
L323: MEMORIAS DE CANTIDADES
B327: Capítulo | E327: =+'[3] PPTO DNP'!$B$7 -> 2 | F327: =+'[3] PPTO DNP'!$C$7 -> Implementar el mejoramiento de vías terciarias para la estructura de pavimento
B328: Ítem | E328: ='[3] PPTO DNP'!B18 -> 2.11 | F328: ='[3] PPTO DNP'!C18 -> Base estabilizada con emulsión asfáltica tipo BEE-38 | Y328: UNIDAD | AE328: =+'[3] PPTO DNP'!D18 -> m³
B329: Área/lugar/elemento | E329: Longitud (m) | H329: Ancho (m) | K329: Alto (m) | N329: Peso (kg) | Q329: V. PARCIAL | T329: N° DE ELEMENTOS | U329: UNIDAD | X329: TOTAL
B330: Base estabilizada con emulsión asfáltica tipo BEE-38 (primera capa constructiva) | E330: =+E57 -> 900 | H330: =+E56 -> 6 | K330: =0.08 -> 0.08 | Q330: =E330*H330*K330 -> 432 | T330: 1 | U330: m³ | X330: =+E330*H330*K330*T330 -> 432
B331: Base estabilizada con emulsión asfáltica tipo BEE-38 (segunda capa constructiva) | E331: =+E57 -> 900 | H331: =+E20 -> 4.6 | K331: 0.12 | Q331: =E331*H331*K331 -> 496.8 | T331: 1 | U331: m³ | X331: =+E331*H331*K331*T331 -> 496.8
U332: TOTAL | X332: =SUM(X330:Z331) -> 928.8
B334: Observaciones
AV338: Pag. _1___ de __1__
C341: CONTRATISTA | AF341: Vo.Bo. INTERVENTOR
L344: PROYECTO TIPO MEJORAMIENTO DE VÍAS TERCIARIAS Tramo 1 km | AA344: AVAL
L347: MEMORIAS DE CANTIDADES
B350: Capítulo | E350: =+'[3] PPTO DNP'!$B$7 -> 2 | F350: =+'[3] PPTO DNP'!$C$7 -> Implementar el mejoramiento de vías terciarias para la estructura de pavimento
B351: Ítem | E351: ='[3] PPTO DNP'!B19 -> 2.12 | F351: ='[3] PPTO DNP'!C19 -> Base granular estabilizada mecánicamente (Base Granular Clase C) | Y351: UNIDAD | AE351: =+'[3] PPTO DNP'!D19 -> m³
B352: Área/lugar/elemento | E352: Longitud (m) | H352: Ancho (m) | K352: Alto (m) | N352: Peso (kg) | Q352: V. PARCIAL | T352: N° DE ELEMENTOS | U352: UNIDAD | X352: TOTAL
B353: Base granular estabilizada mecánicamente (Base Granular Clase C) | E353: =+E57 -> 900 | H353: =+E56 -> 6 | K353: =+E59 -> 0.2 | Q353: =E353*H353*K353 -> 1080 | T353: 0 | U353: m³ | X353: =+E353*H353*K353*T353 -> 0
U354: TOTAL | X354: =SUM(X353:Z353) -> 0
B356: Observaciones
AV360: Pag. _1___ de __1__
C363: CONTRATISTA | AF363: Vo.Bo. INTERVENTOR
L366: PROYECTO TIPO MEJORAMIENTO DE VÍAS TERCIARIAS Tramo 1 km | AA366: AVAL
L369: MEMORIAS DE CANTIDADES
B372: Capítulo | E372: =+'[3] PPTO DNP'!$B$7 -> 2 | F372: =+'[3] PPTO DNP'!$C$7 -> Implementar el mejoramiento de vías terciarias para la estructura de pavimento
B373: Ítem | E373: ='[3] PPTO DNP'!B20 -> 2.13 | F373: ='[3] PPTO DNP'!C20 -> Lechada asfáltica con emulsión CRL-1HM, tipo LA-5 | Y373: UNIDAD | AE373: =+'[3] PPTO DNP'!D20 -> m²
B374: Área/lugar/elemento | E374: Longitud (m) | H374: Ancho (m) | K374: Alto (m) | N374: Peso (kg) | Q374: V. PARCIAL | T374: N° DE ELEMENTOS | U374: UNIDAD | X374: TOTAL
... 156 more rows

Sheet Memorias_Cap_4
BP1: tipo | BQ1: ancho | BR1: alto
BP2: Escamas tipo A | BQ2: 1.5 | BR2: 1.5
BP3: Escamas tipo H | BQ3: 1.5 | BR3: 1.48
L4: PROYECTO TIPO MEJORAMIENTO DE VÍAS TERCIARIAS Tramo 1 km | AA4: AVAL
L7: MEMORIAS DE CANTIDADES
BP9: Escamas tipo AR | BQ9: 1.5 | BR9: 1.5 | BT9: h | BU9: A | BV9: B | BW9: D | BX9: H | BY9: AR | BZ9: BR | CA9: ARRANQUES | CB9: profundidad | CC9: 0 | CF9: 1 | CG9: 2 | CH9: 3 | CI9: 4 | CJ9: 5 | CK9: 6 | CL9: 7 | CM9: 8 | CN9: 9 | CR9: 1 | CS9: =+CR9+1 -> 2 | CT9: =+CS9+1 -> 3 | CU9: 4 | CV9: 5 | CW9: 6 | CX9: 7 | CY9: 8 | CZ9: 9 | DA9: 10 | DB9: 11 | DC9: 12 | DD9: 13 | DE9: 14 | DF9: 15 | DG9: 16 | DH9: 17 | DI9: 18 | DJ9: 19 | DK9: 20 | DL9: 21 | DM9: 22 | DN9: 23 | DO9: 24 | DP9: 25 | DQ9: 26 | DR9: 27 | DS9: 28 | DV9: 1 | DW9: 2 | DX9: 3 | DY9: 4 | DZ9: 5 | EA9: 6 | EB9: 7 | EC9: 8 | ED9: 9 | EE9: 10 | EF9: 11 | EG9: 12 | EH9: 13 | EI9: 14 | EJ9: 15 | EK9: 16 | EL9: 17 | EM9: 18 | EN9: 19 | EO9: 20 | EP9: 21 | EQ9: 22 | ER9: 23 | ES9: 24 | ET9: 25 | EU9: 26 | EV9: 27 | EW9: 28 | EX9: 29 | EY9: 30 | EZ9: 31 | FA9: 32 | FC9: Muro No. | FD9: Altura | FE9: Base | FF9: Vol/m | FG9: A | FH9: B | FI9: Long
B10: El implantador debe definir una longitud de muro y una altura para el cálculo de las cantidades | BP10: Escamas tipo HR | BQ10: 1.5 | BR10: 1.48 | BT10: 0 | BU10: 0 | BV10: 0 | BW10: 0 | BX10: 0 | BY10: 0 | BZ10: 0 | CA10: 0 | CB10: 0 | CC10: 3 | CF10: h | CG10: A | CH10: B | CI10: D | CJ10: H | CK10: AR | CL10: BR | CM10: ARRANQUES | CN10: profundidad | CO10: 0 | CZ10: Varilla A | DC10: Varilla B | DF10: Varilla C | DI10: Varilla D | DL10: Varilla E | DO10: Varilla F | DR10: REF | ED10: Varilla A | EG10: Varilla B | EK10: Varilla C | EN10: Varilla D | EQ10: Varilla E | ET10: Varilla F | EW10: Varilla G | EZ10: REF | FC10: I | FD10: 3 | FE10: 4 | FF10: 8.5 | FG10: 8 | FH10: 1 | FI10: 2
BP11: Escamas tipo GR | BQ11: 1.5 | BR11: 1.29 | BT11: 2.23 - 2.795 | BU11: 1 | BV11: 1 | BW11: 1 | BX11: 1 | CA11: 12 | CB11: 3 | CC11: =+CC10+3 -> 6 | CF11: 2.23 - 2.795 | CG11: 1 | CH11: 1 | CI11: 1 | CJ11: 1 | CM11: 12 | CN11: 4 | CO11: =CO10+3 -> 3 | CR11: H | CS11: a | CT11: b | CU11: c | CV11: d | CW11: T | CX11: h | CY11: B | CZ11: Fi | DA11: S | DB11: LT | DC11: Fi | DD11: S | DE11: LT | DF11: Fi | DG11: S | DH11: LT | DI11: Fi | DJ11: S | DK11: LT | DL11: Fi | DM11: S | DN11: LT | DO11: Fi | DP11: S | DQ11: LT | DR11: Fi | DS11: S | DV11: H | DW11: a | DX11: b | DY11: c | DZ11: d | EA11: T | EB11: h | EC11: B | ED11: Fi | EE11: S | EF11: LT | EG11: Fi | EH11: S | EJ11: LT | EK11: Fi | EL11: S | EM11: LT | EN11: Fi | EO11: S | EP11: LT | EQ11: Fi | ER11: S | ES11: LT | ET11: Fi | EU11: S | EV11: LT | EW11: Fi | EX11: S | EY11: LT | EZ11: Fi | FA11: S | FC11: II | FD11: 4 | FE11: 5 | FF11: 14 | FG11: 14 | FI11: =+FI10+2 -> 4
BP12: Escamas tipo KR | BQ12: 1.5 | BR12: 1.67 | BT12: 3.73 - 4.295 | BU12: 3 | BV12: 1 | BW12: 1 | BX12: 1 | CA12: 20 | CB12: 4 | CC12: =+CC11+3 -> 9 | CF12: 2.98 - 3.545 | CG12: 1 | CI12: 1 | CJ12: 1 | CK12: 1 | CL12: 1 | CM12: 16 | CN12: 5 | CO12: =+CO11+3 -> 6 | CR12: 3 | CS12: 0.5 | CT12: 0.3 | CU12: 0.1 | CV12: 1.5 | CW12: 0.4 | CX12: 2.6 | CY12: 2.4 | CZ12: 1/2" | DA12: 0.35 | DB12: 2.7 | DC12: 1/2" | DD12: 0.2 | DE12: 2.7 | DF12: 1/2" | DG12: 0.15 | DH12: 3.05 | DO12: 1/2" | DP12: 0.35 | DQ12: 3.1 | DR12: 1/2" | DS12: 0.35 | DV12: 3 | DW12: 0.5 | DX12: 0.3 | DY12: 0.1 | DZ12: 1.5 | EA12: 0.4 | EB12: 2.6 | EC12: 2.4 | ED12: 1/2" | EE12: 0.3 | EF12: 2.5 | EG12: 5/8" | EH12: 0.25 | EJ12: 2.6 | EK12: 1/2" | EL12: 0.15 | EM12: 3.05 | ET12: 1/2" | EU12: 0.35 | EV12: 3.1 | EW12: 5/8" | EX12: 0.2 | EY12: 2.3 | EZ12: 1/2" | FA12: 0.3 | FI12: =+FI11+2 -> 6
B13: Capítulo | H13: =+'[3] PPTO DNP'!$B$31 -> 4 | I13: =+'[3] PPTO DNP'!$C$31 -> Construir obras de contención | BP13: Escamas tipo LR | BQ13: 1.5 | BR13: 1.85 | BT13: 4.48 - 5.045 | BU13: 4 | BV13: 1 | BW13: 1 | BX13: 1 | CA13: 24 | CB13: 4 | CC13: =+CC12+3 -> 12 | CF13: 3.73 - 4.295 | CG13: 2 | CI13: 1 | CJ13: 1 | CK13: 1 | CL13: 1 | CM13: 21 | CN13: 5 | CO13: 9 | CR13: 4 | CS13: 0.7 | CT13: 0.3 | CU13: 0.2 | CV13: 1.8 | CW13: 0.5 | CX13: 3.5 | CY13: 3 | CZ13: 1/2" | DA13: 0.25 | DB13: 3.1 | DC13: 1/2" | DD13: 0.1 | DE13: 3.1 | DF13: 1/2" | DG13: 0.2 | DH13: 4.05 | DI13: 1/2" | DJ13: 0.2 | DK13: 3 | DO13: 1/2" | DP13: 0.25 | DQ13: 4.1 | DR13: 1/2" | DS13: 0.25 | DV13: 4 | DW13: 0.7 | DX13: 0.3 | DY13: 0.2 | DZ13: 1.8 | EA13: 0.5 | EB13: 3.5 | EC13: 3 | ED13: 1/2" | EE13: 0.25 | EF13: 3.1 | EG13: 5/8" | EH13: 0.15 | EJ13: 3.2 | EK13: 5/8" | EL13: 0.25 | EM13: 4.1 | EN13: 5/8" | EO13: 0.25 | EP13: 3.05 | ET13: 1/2" | EU13: 0.25 | EV13: 4.1 | EW13: 5/8" | EX13: 0.2 | EY13: 2.3 | EZ13: 1/2" | FA13: 0.25 | FI13: =+FI12+2 -> 8
B14: Ítem | H14: =+'[3] PPTO DNP'!B32 -> 4.1 | I14: =+'[3] PPTO DNP'!C32 -> Paneles de concreto para muros de tierra estabilizada mecánicamente | AB14: UNIDAD | AH14: m2 | BP14: Escamas tipo BR | BQ14: 1.5 | BR14: 0.75 | BT14: 5.23 - 5.795 | BU14: 5 | BV14: 1 | BW14: 1 | BX14: 1 | CA14: 28 | CB14: 5 | CC14: =+CC13+3 -> 15 | CF14: 4.48 - 5.045 | CG14: 2 | CI14: 1 | CJ14: 1 | CK14: 2 | CL14: 1 | CM14: 25 | CN14: 6 | CO14: 12 | CR14: 5 | CS14: 1.05 | CT14: 0.3 | CU14: 0.25 | CV14: 2.2 | CW14: 0.55 | CX14: 4.45 | CY14: 3.8 | CZ14: 5/8" | DA14: 0.2 | DB14: 4.2 | DC14: 5/8" | DD14: 0.15 | DE14: 4.2 | DF14: 5/8" | DG14: 0.3 | DH14: 5.1 | DI14: 5/8" | DJ14: 0.3 | DK14: 3.5 | DL14: 5/8" | DM14: 0.3 | DN14: 2.5 | DO14: 1/2" | DP14: 0.25 | DQ14: 5.1 | DR14: 1/2" | DS14: 0.25 | DV14: 5 | DW14: 1.05 | DX14: 0.3 | DY14: 0.25 | DZ14: 2.2 | EA14: 0.55 | EB14: 4.45 | EC14: 3.8 | ED14: 5/8" | EE14: 0.2 | EF14: 4.2 | EG14: 3/4" | EH14: 0.1 | EJ14: 4.3 | EK14: 3/4" | EL14: 0.3 | EM14: 5.15 | EN14: 3/4" | EO14: 0.3 | EP14: 3.6 | EQ14: 3/4" | ER14: 0.3 | ES14: 2.6 | ET14: 1/2" | EU14: 0.25 | EV14: 5.1 | EW14: 5/8" | EX14: 0.2 | EY14: 2.3 | EZ14: 1/2" | FA14: 0.25 | FI14: 10
AB15: Long muro (m) | AD15: 3 | AH15: m | AP15: h | AZ15: 7.295 - 8.045 | BG15: m | BP15: Escamas tipo DR | BQ15: 1.5 | BR15: 0.73 | BT15: 5.98 - 6.545 | BU15: 6 | BV15: 1 | BW15: 1 | BX15: 1 | CA15: 32 | CB15: 5 | CC15: =+CC14+3 -> 18 | CF15: 5.23 - 5.795 | CG15: 2 | CI15: 1 | CJ15: 1 | CK15: 3 | CL15: 1 | CM15: 29 | CN15: 6 | CO15: 15 | CR15: 6 | CS15: 1.4 | CT15: 0.3 | CU15: 0.3 | CV15: 2.6 | CW15: 0.6 | CX15: 5.4 | CY15: 4.6 | CZ15: 5/8" | DA15: 0.15 | DB15: 5 | DC15: 5/8" | DD15: 0.1 | DE15: 5 | DF15: 3/4" | DG15: 0.36 | DH15: 6.15 | DI15: 3/4" | DJ15: 0.36 | DK15: 4.65 | DL15: 3/4" | DM15: 0.36 | DN15: 4 | DO15: 1/2" | DP15: 0.2 | DQ15: 6.1 | DR15: 1/2" | DS15: 0.2 | DV15: 6 | DW15: 1.4 | DX15: 0.3 | DY15: 0.3 | DZ15: 2.6 | EA15: 0.6 | EB15: 5.4 | EC15: 4.6 | ED15: 5/8" | EE15: 0.1 | EF15: 5 | EG15: 7/8" | EH15: 0.1 | EJ15: 5.2 | EK15: 7/8" | EL15: 0.3 | EM15: 6.2 | EN15: 7/8" | EO15: 0.3 | EP15: 4.7 | EQ15: 7/8" | ER15: 0.3 | ES15: 4.05 | ET15: 1/2" | EU15: 0.2 | EV15: 6.1 | EW15: 5/8" | EX15: 0.2 | EY15: 2.3 | EZ15: 1/2" | FA15: 0.2 | FI15: 12
B16: Área/lugar/elemento | H16: Tipo de muro | K16: Ancho (m) | N16: Alto (m) | Q16: Cantidad de paneles | T16: V. PARCIAL | W16: N° DE ELEMENTOS | X16: UNIDAD | AA16: TOTAL | BP16: Escamas tipo CR | BQ16: 1.5 | BR16: 0.545 | BT16: 7.295 - 8.045 | BU16: 5 | BW16: 1 | BX16: 1 | BY16: 3 | BZ16: 1 | CA16: 40 | CB16: 6 | CC16: =CC15+3 -> 21 | CF16: 5.98 - 6.545 | CG16: 3 | CI16: 1 | CJ16: 1 | CK16: 3 | CL16: 1 | CM16: 33 | CN16: 7 | CO16: 18 | CR16: 7 | CS16: 1.4 | CT16: 0.3 | CU16: 0.4 | CV16: 3 | CW16: 0.7 | CX16: 6.3 | CY16: 5.1 | CZ16: 3/4" | DA16: 0.1 | DB16: 5.5 | DC16: 3/4" | DD16: 0.1 | DE16: 5.6 | DF16: 3/4" | DG16: 0.3 | DH16: 7.15 | DI16: 3/4" | DJ16: 0.3 | DK16: 5.65 | DL16: 3/4" | DM16: 0.3 | DN16: 5 | DO16: 1/2" | DP16: 0.2 | DQ16: 7.1 | DR16: 1/2" | DS16: 0.2 | DV16: 7 | DW16: 1.4 | DX16: 0.3 | DY16: 0.4 | DZ16: 3 | EA16: 0.7 | EB16: 6.3 | EC16: 5.1 | ED16: 3/4" | EE16: 0.15 | EF16: 5.9 | EG16: 1" | EH16: 0.1 | EJ16: 6.1 | EK16: 1" | EL16: 0.25 | EM16: 7.25 | EN16: 1" | EO16: 0.25 | EP16: 5.65 | EQ16: 1" | ER16: 0.25 | ES16: 5.1 | ET16: 1/2" | EU16: 0.2 | EV16: 7.1 | EW16: 5/8" | EX16: 0.2 | EY16: 2.3 | EZ16: 1/2" | FA16: 0.2 | FI16: 14
B17: Escamas tipo A | H17: Muros de tierra estabilizada mecánicamente con paneles de concreto caso de un muro sin talud a borde de vía | K17: =+VLOOKUP($B17,$BP$2:$BR$30,2,0) -> 1.5 | N17: =+VLOOKUP($B17,$BP$2:$BR$30,3,0) -> 1.5 | Q17: =+VLOOKUP($AZ$15,$BT$10:$CA$28,2,0) -> 5 | T17: =+N17*K17 -> 2.25 | W17: 0 | X17: =+$AH$14 -> m2 | AA17: =+Q17*T17*W17 -> 0 | BP17: Escamas tipo ER | BQ17: 1.5 | BR17: 0.92 | BT17: 8.23 - 8.605 | BU17: 5 | BW17: 1 | BX17: 1 | BY17: 4 | BZ17: 1 | CA17: =23+22 -> 45 | CB17: 6 | CC17: =+CC16+3 -> 24 | CF17: 6.73 - 7.105 | CG17: 3 | CI17: 1 | CJ17: 1 | CK17: 4 | CL17: 1 | CM17: 38 | CN17: 7 | CO17: 21 | FI17: 16
B18: Escamas tipo B | H18: Muros de tierra estabilizada mecánicamente con paneles de concreto caso de un muro sin talud a borde de vía | K18: 1.5 | N18: 0.75 | Q18: =+VLOOKUP($AZ$15,$BT$10:$CA$28,3,0) -> 0 | T18: 1.125 | W18: 0 | X18: m2 | AA18: 0 | BP18: Escamas tipo FR | BQ18: 1.5 | BR18: 1.1 | BT18: 8.795 - 9.545 | BU18: 6 | BW18: 1 | BX18: 1 | BY18: 4 | BZ18: 2 | CA18: 50 | CB18: 7 | CC18: =+CC17+3 -> 27 | CF18: 7.295 - 8.045 | CG18: 3 | CI18: 1 | CJ18: 1 | CK18: 5 | CL18: 1 | CM18: 44 | CN18: 7 | CO18: 24 | FI18: 18
B19: Escamas tipo D | H19: Muros de tierra estabilizada mecánicamente con paneles de concreto caso de un muro sin talud a borde de vía | K19: 1.5 | N19: 0.73 | Q19: =+VLOOKUP($AZ$15,$BT$10:$CA$28,4,0) -> 1 | T19: 1.095 | W19: 0 | X19: m2 | AA19: 0 | BP19: Escamas tipo B | BQ19: 1.5 | BR19: 0.75 | BT19: 9.73 - 9.92 | BU19: 6 | BW19: 1 | BX19: 1 | BY19: 5 | BZ19: 1 | CA19: =28*2 -> 56 | CB19: 7 | CF19: 8.23 - 8.605 | CG19: 3 | CI19: 1 | CJ19: 1 | CK19: 6 | CL19: 1 | CM19: 49 | CN19: 8 | CW19: FI | CX19: PESO | EA19: FI | EB19: PESO | FI19: 20
B20: Escamas tipo H | H20: Muros de tierra estabilizada mecánicamente con paneles de concreto caso de un muro sin talud a borde de vía | K20: 1.5 | N20: 1.48 | Q20: =+VLOOKUP($AZ$15,$BT$10:$CA$28,5,0) -> 1 | T20: 2.22 | W20: 0 | X20: m2 | AA20: 0 | BP20: Escamas tipo D | BQ20: 1.5 | BR20: 0.73 | BT20: 10.105 - 11.045 | BU20: 6 | BW20: 1 | BX20: 1 | BY20: 6 | BZ20: 1 | CA20: 60 | CB20: 8 | CF20: 8.795 - 9.545 | CG20: 3 | CI20: 1 | CJ20: 1 | CK20: 7 | CL20: 1 | CM20: 55 | CN20: 9 | CW20: 0 | CX20: 0 | EA20: 0 | EB20: 0 | FI20: 22
B21: Escamas tipo AR | H21: Muros de tierra estabilizada mecánicamente con paneles de concreto caso de un muro sin talud a borde de vía | K21: 1.5 | N21: 1.5 | Q21: =+VLOOKUP($AZ$15,$BT$10:$CA$28,6,0) -> 3 | T21: 2.25 | W21: 0 | X21: m2 | AA21: 0 | BP21: Escamas tipo C | BQ21: 1.5 | BR21: 0.545 | BT21: 11.23 - 11.42 | BU21: 6 | BW21: 1 | BX21: 1 | BY21: 7 | BZ21: 1 | CA21: =33+34 -> 67 | CB21: 8 | CF21: 9.73 - 9.92 | CG21: 4 | CI21: 1 | CJ21: 1 | CK21: 7 | CL21: 1 | CM21: 63 | CN21: 9 | CV21: 1 | CW21: 1/8" | CX21: =+(CV21*CV21)/16 -> 0.0625 | DZ21: 1 | EA21: 1/8" | EB21: =+(DZ21*DZ21)/16 -> 0.0625 | FI21: 24
B22: Escamas tipo BR | H22: Muros de tierra estabilizada mecánicamente con paneles de concreto caso de un muro sin talud a borde de vía | K22: 1.5 | N22: 0.75 | Q22: =+VLOOKUP($AZ$15,$BT$10:$CA$28,7,0) -> 1 | T22: 1.125 | W22: 0 | X22: m2 | AA22: 0 | BT22: 11.605 - 12.545 | BU22: 6 | BW22: 1 | BX22: 1 | BY22: 8 | BZ22: 1 | CA22: =37+36 -> 73 | CB22: 9 | CF22: 10.105 - 11.045 | CG22: 3 | CI22: 1 | CJ22: 1 | CK22: 9 | CL22: 1 | CM22: 69 | CN22: 10 | CV22: 2 | CW22: 1/4" | CX22: 0.25 | DZ22: 2 | EA22: 1/4" | EB22: 0.25 | FI22: 26
B23: Escamas tipo A | H23: Paneles de concreto en alternativa de muros de tierra estabilizada mecánicamente con paneles de concreto caso de un muro sin talud a borde de vía -- concreto - caso de un muros con talud inclinado a 30º | K23: =+VLOOKUP($B17,$BP$2:$BR$30,2,0) -> 1.5 | N23: =+VLOOKUP($B17,$BP$2:$BR$30,3,0) -> 1.5 | Q23: =+VLOOKUP($AZ$348,$CF$11:$CM$28,2,0) -> 3 | T23: 2.25 | X23: =+$AH$347 -> m2 | AA23: 0 | BT23: 12.73 - 12.92 | BU23: 7 | BW23: 1 | BX23: 1 | BY23: 8 | BZ23: 1 | CA23: 80 | CB23: 9 | CF23: 11.23 - 11.42 | CG23: 3 | CI23: 1 | CJ23: 1 | CK23: 10 | CL23: 1 | CM23: 77 | CN23: 10 | CV23: 3 | CW23: 3/8" | CX23: 0.5625 | DZ23: 3 | EA23: 3/8" | EB23: 0.5625
B24: Escamas tipo B | H24: Paneles de concreto en alternativa de muros de tierra estabilizada mecánicamente con paneles de concreto caso de un muro sin talud a borde de vía -- concreto - caso de un muros con talud inclinado a 30º | K24: 1.5 | N24: 0.75 | Q24: =+VLOOKUP($AZ$348,$CF$11:$CM$28,3,0) -> 0 | T24: 1.125 | W24: 0 | X24: m2 | AA24: 0 | CF24: 11.605 - 12.545 | CG24: 3 | CI24: 1 | CJ24: 1 | CK24: 11 | CL24: 1 | CM24: 84 | CN24: 11 | CV24: 4 | CW24: 1/2" | CX24: 1 | DZ24: 4 | EA24: 1/2" | EB24: 1
B25: Escamas tipo D | H25: Paneles de concreto en alternativa de muros de tierra estabilizada mecánicamente con paneles de concreto caso de un muro sin talud a borde de vía -- concreto - caso de un muros con talud inclinado a 30º | K25: 1.5 | N25: 0.73 | Q25: =+VLOOKUP($AZ$348,$CF$11:$CM$28,4,0) -> 1 | T25: 1.095 | W25: 0 | X25: m2 | AA25: 0 | CF25: 12.73 - 12.92 | CG25: 3 | CI25: 1 | CJ25: 1 | CK25: 12 | CL25: 1 | CM25: 93 | CN25: 11 | CV25: 5 | CW25: 5/8" | CX25: 1.5625 | DZ25: 5 | EA25: 5/8" | EB25: 1.5625
B26: Escamas tipo H | H26: Paneles de concreto en alternativa de muros de tierra estabilizada mecánicamente con paneles de concreto caso de un muro sin talud a borde de vía -- concreto - caso de un muros con talud inclinado a 30º | K26: 1.5 | N26: 1.48 | Q26: =+VLOOKUP($AZ$348,$CF$11:$CM$28,5,0) -> 1 | T26: 2.22 | W26: 0 | X26: m2 | AA26: 0 | CV26: 6 | CW26: 3/4" | CX26: 2.25 | DZ26: 6 | EA26: 3/4" | EB26: 2.25
B27: Escamas tipo AR | H27: Paneles de concreto en alternativa de muros de tierra estabilizada mecánicamente con paneles de concreto caso de un muro sin talud a borde de vía -- concreto - caso de un muros con talud inclinado a 30º | K27: 1.5 | N27: 1.5 | Q27: =+VLOOKUP($AZ$348,$CF$11:$CM$28,6,0) -> 5 | T27: 2.25 | W27: 0 | X27: m2 | AA27: 0 | CV27: 7 | CW27: 7/8" | CX27: 3.0625 | DZ27: 7 | EA27: 7/8" | EB27: 3.0625
B28: Escamas tipo BR | H28: Paneles de concreto en alternativa de muros de tierra estabilizada mecánicamente con paneles de concreto caso de un muro sin talud a borde de vía -- concreto - caso de un muros con talud inclinado a 30º | K28: 1.5 | N28: 0.75 | Q28: =+VLOOKUP($AZ$348,$CF$11:$CM$28,7,0) -> 1 | T28: 1.125 | W28: 0 | X28: m2 | AA28: 0 | CV28: 8 | CW28: 1" | CX28: 4 | DZ28: 8 | EA28: 1" | EB28: 4
Q29: 0 | W29: =SUM(W17:W28) -> 0 | X29: TOTAL | AA29: =SUM(AA17:AC28) -> 0 | FI29: =+FI22+2 -> 28
B31: Observaciones | H31: Indicar en las celdas amarillas la cantidad de muros de cada tipo a implementar especificado en la descripción del Ítem
AY35: Pag. ____ de ____
B37: MEMORIAS DE CANTIDADES DE OBRA
B38: MUROS DE CONTENCIÓN
B41: Capítulo | H41: 5 | I41: Construir muros de tierra estabilidaza mecánicamente con paneles de concreto - caso de un muros sin talud a borde de vía
B42: Ítem | H42: 5.7 | J42: Arranque, incluye arranque, armadura, tuerca y tornillo | AB42: UNIDAD | AH42: und
B45: Área/lugar/elemento | H45: Longitud (m) | K45: Ancho (m) | N45: Alto (m) | Q45: Peso (kg) | T45: V. PARCIAL | W45: N° DE ELEMENTOS | X45: UNIDAD | AA45: TOTAL
B46: Arranque | W46: =+VLOOKUP($AZ$15,$BT$10:$CA$28,8,0) -> 40 | X46: =+AH42 -> und | AA46: =+W46*($AD$15/3) -> 40
B47: TOTAL | AA47: =+AA46 -> 40
B49: Observaciones
AY53: Pag. ____ de ____
D56: CONTRATISTA | AI56: Vo.Bo. INTERVENTOR
L59: PROYECTO TIPO MEJORAMIENTO DE VÍAS TERCIARIAS Tramo 1 km | AA59: AVAL
L62: MEMORIAS DE CANTIDADES
B65: Capítulo | H65: =+'[3] PPTO DNP'!$B$31 -> 4 | I65: =+'[3] PPTO DNP'!$C$31 -> Construir obras de contención
B66: Ítem | H66: =+'[3] PPTO DNP'!B33 -> 4.2 | I66: =+'[3] PPTO DNP'!C33 -> Excavación de material común para instalación de muros | AB66: UNIDAD | AH66: m3
B67: Área/lugar/elemento | H67: Longitud (m) | K67: Ancho (m) | N67: Alto (m) | Q67: Peso (kg) | T67: V. PARCIAL | W67: N° DE ELEMENTOS | X67: UNIDAD | AA67: TOTAL
B68: Excavación en alternativa de muros de tierra estabilizada mecánicamente con paneles de concreto caso de un muro sin talud a borde de vía | H68: =+$AD$15 -> 3 | K68: =+VLOOKUP($AZ$15,$BT$10:$CB$28,9,0) -> 6 | N68: =+MID($AZ$15,1,5)+0.15 -> 7295.15 | T68: =+N68*K68*H68 -> 131312.7 | W68: 0 | X68: =+AH66 -> m3 | AA68: =+T68*W68 -> 0
B69: Excavación en alternativa de muros de tierra estabilizada mecánicamente con paneles de concreto caso de un muro sin talud a borde de vía -- concreto - caso de un muros con talud inclinado a 30º | H69: =+$AD$348 -> 6 | K69: =+VLOOKUP($AZ$348,$CF$11:$CN$28,9,0) -> 7 | N69: =+MID($AZ$348,1,5)+0.15 -> 7295.15 | T69: 306396.3 | W69: 0 | X69: =+AH375 -> m3 | AA69: 0
B70: Excavación para construccion muro de contención de corona - Relleno Horizontal y sobre carga viva | H70: =+$AH$464 -> 1 | K70: =+VLOOKUP($AR$464,$CR$12:$DS$16,8,0) -> 5.1 | N70: =+$AR$464 -> 7 | T70: 35.7 | W70: 0 | X70: =+AH66 -> m3 | AA70: 0
B71: Excavación para muro de contención de pata | H71: =+$AH$677 -> 10 | K71: =+VLOOKUP($AR$677,$DV$12:$EC$16,8,0) -> 3 | N71: =+$AR$677 -> 4 | T71: 120 | W71: 1 | X71: =+AH676 -> m3 | AA71: 120
B72: Excavación para muro en gavión con sobrecarga | H72: =+$AP$893 -> 2 | K72: =+VLOOKUP($AD$893,$FC$9:$FH$11,3,0) -> 5 | N72: =+VLOOKUP($AD$893,$FC$9:$FH$11,2,0) -> 4 | T72: 40 | W72: 0 | X72: =+AH892 -> m3 | AA72: 0
B73: Excavación Excavación para muro en gavión sin sobrecarga | H73: =+$AP$979 -> 2 | K73: =+VLOOKUP($AD$893,$BT$1183:$BY$1184,3,0) -> 4 | N73: =+VLOOKUP($AD$979,$BT$1183:$BY$1184,2,0) -> 4 | T73: 32 | W73: 0 | X73: =+AH978 -> m3 | AA73: 0
X74: TOTAL | AA74: =SUM(AA68:AC73) -> 120
B76: Observaciones | H76: Indicar en las celdas amarillas la cantidad de muros de cada tipo a implementar especificado en la descripción del Ítem
AY80: Pag. ____ de ____
D83: CONTRATISTA | AI83: Vo.Bo. INTERVENTOR
L86: PROYECTO TIPO MEJORAMIENTO DE VÍAS TERCIARIAS Tramo 1 km | AA86: AVAL
L89: MEMORIAS DE CANTIDADES
B92: Capítulo | H92: =+'[3] PPTO DNP'!$B$31 -> 4 | I92: =+'[3] PPTO DNP'!$C$31 -> Construir obras de contención
B93: Ítem | H93: =+'[3] PPTO DNP'!B34 -> 4.3 | I93: =+'[3] PPTO DNP'!C34 -> Relleno granular para instalación de muros de contención | AB93: UNIDAD | AH93: m3
B94: Área/lugar/elemento | H94: Longitud (m) | K94: Ancho (m) | N94: Alto (m) | Q94: Peso (kg) | T94: V. PARCIAL | W94: N° DE ELEMENTOS | X94: UNIDAD | AA94: TOTAL
B95: Relleno granular en alternativa de muros de tierra estabilizada mecánicamente con paneles de concreto caso de un muro sin talud a borde de vía (Según especificación 680P) | H95: =+$AD$15 -> 3 | K95: =+VLOOKUP($AZ$15,$BT$10:$CB$28,9,0) -> 6 | N95: =+MID($AZ$15,1,5) -> 7.295 | T95: =+N95*K95*H95 -> 131310 | W95: 0 | X95: m3 | AA95: =+T95*W95 -> 0
B96: Relleno en alternativa de muros de tierra estabilizada mecánicamente con paneles de concreto caso de un muro sin talud a borde de vía -- concreto - caso de un muros con talud inclinado a 30º (Según especificación 680P | H96: =+$AD$348 -> 6 | K96: =+VLOOKUP($AZ$348,$CF$11:$CN$28,9,0) -> 7 | N96: =+MID($AZ$348,1,5) -> 7.295 | T96: =+N96*K96*H96 -> 306390 | W96: 0 | X96: m3 | AA96: =+W96*T96 -> 0
B97: Relleno granular según especificaciones invias 610 para construccion muro de contencion de corona - Relleno Horizontal y sobre carga viva | H97: =+$AH$464 -> 1 | K97: =+VLOOKUP($AR$464,$CR$12:$DS$16,5,0) -> 3 | N97: =+VLOOKUP($AR$464,$CR$11:$DT$16,7,0) -> 6.3 | T97: =+N97*K97*H97 -> 18.9 | W97: 0 | X97: m3 | AA97: =+T97*W97 -> 0
B98: Relleno granular según especificaciones invias 610 para muro de contención de pata | H98: =+$AH$677 -> 10 | K98: =+VLOOKUP($AR$677,$DV$12:$EC$16,5,0) -> 1.8 | N98: =+VLOOKUP($AR$677,$DV$12:$FA$16,7,0) -> 3.5 | T98: =+N98*K98*H98 -> 63 | W98: 1 | X98: =+AH94 -> 0 | AA98: =+T98*W98 -> 63
X99: TOTAL | AA99: =SUM(AA95:AC98) -> 63
B101: Observaciones | H101: Indicar en las celdas amarillas la cantidad de muros de cada tipo a implementar especificado en la descripción del Ítem
AY105: Pag. ____ de ____
D108: CONTRATISTA | AI108: Vo.Bo. INTERVENTOR
L111: PROYECTO TIPO MEJORAMIENTO DE VÍAS TERCIARIAS Tramo 1 km | AA111: AVAL
L114: MEMORIAS DE CANTIDADES
B117: Capítulo | H117: =+'[3] PPTO DNP'!$B$31 -> 4 | I117: =+'[3] PPTO DNP'!$C$31 -> Construir obras de contención
B118: Ítem | H118: =+'[3] PPTO DNP'!B35 -> 4.4 | I118: =+'[3] PPTO DNP'!C35 -> Solera de nivelación para muros de contención | AB118: UNIDAD | AH118: m3
B119: Área/lugar/elemento | H119: Longitud (m) | K119: Ancho (m) | N119: Alto (m) | Q119: Peso (kg) | T119: V. PARCIAL | W119: N° DE ELEMENTOS | X119: UNIDAD | AA119: TOTAL
B120: Solera de nivelación en alternativa de muros de tierra estabilizada mecánicamente con paneles de concreto caso de un muro sin talud a borde de vía concreto fc=14MPa | H120: =+$AD$15 -> 3 | K120: 0.35 | N120: 0.15 | T120: =IF(OR(AD15=0,AZ15=0),0,N120*K120*H120) -> 0.1575 | W120: 0 | X120: =+AH118 -> m3 | AA120: =+T120*W120 -> 0
B121: Solera de nivelación en alternativa de muros de tierra estabilizada mecánicamente con paneles de concreto caso de un muro sin talud a borde de vía -- concreto - caso de un muros con talud inclinado a 30º concreto fc=14MPa | H121: =+$AD$348 -> 6 | K121: 0.35 | N121: 0.15 | T121: =IF(OR(AD39=0,AZ39=0),0,N121*K121*H121) -> 0 | W121: 0 | X121: m3 | AA121: =+W121*T121 -> 0
B122: Solera de nivelación concreto fc=14MPa para construccion muro de contencion de corona - Relleno Horizontal y sobre carga viva | H122: =+$AH$677 -> 10 | K122: =+VLOOKUP($AR$464,$CR$12:$DS$16,8,0) -> 5.1 | N122: 0.05 | T122: =+N122*K122*H122 -> 2.55 | W122: 0 | X122: m3 | AA122: =+W122*T122 -> 0
B123: Solera de Nivelación concreto fc=14MPa Solera de Nivelación concreto fc=14 MPa para muro de contención de pata | H123: =+$AH$677 -> 10 | K123: =+VLOOKUP($AR$677,$DV$12:$EC$16,8,0) -> 3 | N123: 0.05 | T123: =+N123*K123*H123 -> 1.5 | W123: 1 | X123: m3 | AA123: =+T123*W123 -> 1.5
X124: TOTAL | AA124: =SUM(AA120:AC123) -> 1.5
B126: Observaciones | H126: Indicar en las celdas amarillas la cantidad de muros de cada tipo a implementar especificado en la descripción del Ítem
AY130: Pag. ____ de ____
D133: CONTRATISTA | AI133: Vo.Bo. INTERVENTOR
L136: PROYECTO TIPO MEJORAMIENTO DE VÍAS TERCIARIAS Tramo 1 km | AA136: AVAL
L139: MEMORIAS DE CANTIDADES
B142: Capítulo | H142: =+'[3] PPTO DNP'!$B$31 -> 4 | I142: =+'[3] PPTO DNP'!$C$31 -> Construir obras de contención
B143: Ítem | H143: =+'[3] PPTO DNP'!B36 -> 4.5 | I143: =+'[3] PPTO DNP'!C36 -> Pletina en alternativa de muros de tierra estabilizada mecánicamente con paneles de concreto caso de un muro sin talud a borde de vía | AB143: UNIDAD | AH143: m
B144: Área/lugar/elemento | H144: Longitud (m) | K144: Ancho (m) | N144: Alto (m) | Q144: Cantidad de paneles | T144: V. PARCIAL | W144: N° DE ELEMENTOS | X144: UNIDAD | AA144: TOTAL
B145: Pletina en alternativa de muros de tierra estabilizada mecánicamente con paneles de concreto caso de un muro sin talud a borde de vía | H145: =+VLOOKUP($AZ$15,$BT$10:$CB$28,9,0) -> 6 | Q145: =+Q17+Q18+Q19+Q20+Q21+Q22 -> 11 | T145: =+H145*Q145 -> 66 | W145: 0 | X145: =+AH143 -> m | AA145: =+T145*W145 -> 0
B146: Pletinas para muros de tierra estabilizada mecánicamente con paneles de concreto caso de un muro sin talud a borde de vía -- concreto - caso de un muros con talud inclinado a 30º | H146: =+VLOOKUP($AZ$348,$CF$11:$CN$28,9,0) -> 7 | Q146: =+Q23+Q24+Q25+Q26+Q27+Q28 -> 11 | T146: =+H146*Q146 -> 77 | W146: 0 | X146: m | AA146: =+T146*W146 -> 0
X147: TOTAL | AA147: =SUM(AA145:AC146) -> 0
B148: Observaciones | H148: Indicar en las celdas amarillas la cantidad de muros de cada tipo a implementar especificado en la descripción del Ítem
AY152: Pag. ____ de ____
D155: CONTRATISTA | AI155: Vo.Bo. INTERVENTOR
L158: PROYECTO TIPO MEJORAMIENTO DE VÍAS TERCIARIAS Tramo 1 km | AA158: AVAL
L161: MEMORIAS DE CANTIDADES
B164: Capítulo | H164: =+'[3] PPTO DNP'!$B$31 -> 4 | I164: =+'[3] PPTO DNP'!$C$31 -> Construir obras de contención
B165: Ítem | J165: =+'[3] PPTO DNP'!$C$37 -> Conformación de subrasante para construccion muro de contención | AB165: UNIDAD | AH165: m2
J166: =+'[3] PPTO DNP'!B37 -> 4.6
B168: Área/lugar/elemento | H168: Longitud (m) | K168: Ancho (m) | N168: Alto (m) | Q168: Peso (kg) | T168: V. PARCIAL | W168: N° DE ELEMENTOS | X168: UNIDAD | AA168: TOTAL
B169: Conformacion de sub rasante para construccion muro de contencion de corona - Relleno Horizontal y sobre carga viva | H169: =+$AH$464 -> 1 | K169: =+VLOOKUP($AR$464,$CR$12:$DS$16,8,0) -> 5.1 | T169: =K169*H169 -> 5.1 | W169: 0 | X169: =+$AH$165 -> m2 | AA169: =+T169*W169 -> 0
B170: Conformación de subrasante para muro de contención de pata | H170: =+$AH$677 -> 10 | K170: =+VLOOKUP($AR$677,$DV$12:$EC$16,8,0) -> 3 | T170: =K170*H170 -> 30 | W170: 1 | X170: =+$AH$165 -> m2 | AA170: =+T170*W170 -> 30
B171: Conformación de subrasante para muro en gavión con sobrecarga | H171: =+$AP$893 -> 2 | K171: =+VLOOKUP($AD$893,$FC$9:$FH$11,3,0) -> 5 | T171: =+H171*K171 -> 10 | W171: 0 | X171: =+$AH$165 -> m2 | AA171: =+T171*W171 -> 0
B172: Conformación de subrasante para muro en gavión sin sobrecarga | H172: =+$AP$979 -> 2 | K172: =+VLOOKUP($AD$893,$BT$1183:$BY$1184,3,0) -> 4 | T172: =+H172*K172 -> 8 | W172: 0 | X172: =+$AH$165 -> m2 | AA172: =+T172*W172 -> 0
X173: TOTAL | AA173: =SUM(AA169:AC172) -> 30
B175: Observaciones | H175: Indicar en las celdas amarillas la cantidad de muros de cada tipo a implementar especificado en la descripción del Ítem
AY179: Pag. ____ de ____
D182: CONTRATISTA | AI182: Vo.Bo. INTERVENTOR
L185: PROYECTO TIPO MEJORAMIENTO DE VÍAS TERCIARIAS Tramo 1 km | AA185: AVAL
L188: MEMORIAS DE CANTIDADES
B191: Capítulo | H191: =+'[3] PPTO DNP'!$B$31 -> 4 | I191: =+'[3] PPTO DNP'!$C$31 -> Construir obras de contención
B192: Ítem | J192: =+'[3] PPTO DNP'!$C$38 -> Acero de refuerzo fy=420 Mpa para construccion muro de contencion | AB192: UNIDAD | AH192: kg
B193: =+'[3] PPTO DNP'!$B$38 -> 4.7
B195: Área/lugar/elemento | H195: Longitud (m) | K195: Diametro (") | N195: Separación (m) | Q195: Peso (kg) | T195: V. PARCIAL | W195: N° DE ELEMENTOS | X195: UNIDAD | AA195: TOTAL | AD195: No Muros
B196: Varilla A Acero de refuerzo fy=420 Mpa para construccion muro de contencion de corona - Relleno Horizontal y sobre carga viva | H196: =+VLOOKUP($AR$464,$CR$12:$DS$16,11,0) -> 5.5 | K196: =+VLOOKUP($AR$464,$CR$12:$DS$16,9,0) -> 3/4" | N196: =+VLOOKUP($AR$464,$CR$12:$DS$16,10,0) -> 0.1 | Q196: =+VLOOKUP(K196,$EA$20:$EB$34,2,0) -> 2.25 | T196: =+Q196*H196 -> 12.375 | W196: =IF(H196>0,+ROUNDUP(($AH$464-0.075*2)/N196,0)+1,0) -> 10 | X196: =+$AH$745 -> kg | AA196: =+W196*T196*AD196 -> 0 | AD196: 0
B197: Varilla B Acero de refuerzo fy=420 Mpa para construccion muro de contencion de corona - Relleno Horizontal y sobre carga viva | H197: =+VLOOKUP($AR$464,$CR$12:$DS$16,14,0) -> 5.6 | K197: =+VLOOKUP($AR$464,$CR$12:$DS$16,12,0) -> 3/4" | N197: =+VLOOKUP($AR$464,$CR$12:$DS$16,13,0) -> 0.1 | Q197: 2.25 | T197: 12.6 | W197: 10 | X197: kg | AA197: 0 | AD197: 0
B198: Varilla C Acero de refuerzo fy=420 Mpa para construccion muro de contencion de corona - Relleno Horizontal y sobre carga viva | H198: =+VLOOKUP($AR$464,$CR$12:$DS$16,17,0) -> 7.15 | K198: =+VLOOKUP($AR$464,$CR$12:$DS$16,15,0) -> 3/4" | N198: =+VLOOKUP($AR$464,$CR$12:$DS$16,16,0) -> 0.3 | Q198: 2.25 | T198: 16.0875 | W198: 4 | X198: kg | AA198: 0 | AD198: 0
B199: Varilla D Acero de refuerzo fy=420 Mpa para construccion muro de contencion de corona - Relleno Horizontal y sobre carga viva | H199: =+VLOOKUP($AR$464,$CR$12:$DS$16,20,0) -> 5.65 | K199: =+VLOOKUP($AR$464,$CR$12:$DS$16,18,0) -> 3/4" | N199: =+VLOOKUP($AR$464,$CR$12:$DS$16,19,0) -> 0.3 | Q199: 2.25 | T199: 12.7125 | W199: 4 | X199: kg | AA199: 0 | AD199: 0
B200: Varilla E Acero de refuerzo fy=420 Mpa para construccion muro de contencion de corona - Relleno Horizontal y sobre carga viva | H200: =+VLOOKUP($AR$464,$CR$12:$DS$16,23,0) -> 5 | K200: =+VLOOKUP($AR$464,$CR$12:$DS$16,21,0) -> 3/4" | N200: =+VLOOKUP($AR$464,$CR$12:$DS$16,22,0) -> 0.3 | Q200: 2.25 | T200: 11.25 | W200: 4 | X200: kg | AA200: 0 | AD200: 0
B201: Varilla F Acero de refuerzo fy=420 Mpa para construccion muro de contencion de corona - Relleno Horizontal y sobre carga viva | H201: =+VLOOKUP($AR$464,$CR$12:$DS$16,26,0) -> 7.1 | K201: =+VLOOKUP($AR$464,$CR$12:$DS$16,24,0) -> 1/2" | N201: =+VLOOKUP($AR$464,$CR$12:$DS$16,25,0) -> 0.2 | Q201: 1 | T201: 7.1 | W201: 6 | X201: kg | AA201: 0 | AD201: 0
B202: Zapata Acero de refuerzo fy=420 Mpa para construccion muro de contencion de corona - Relleno Horizontal y sobre carga viva | H202: =+$AH$464-(0.075*2) -> 0.85 | K202: =+VLOOKUP($AR$464,$CR$12:$DS$16,27,0) -> 1/2" | N202: =+VLOOKUP($AR$464,$CR$12:$DS$16,28,0) -> 0.2 | Q202: 1 | T202: =+Q202*H202+0.4 -> 1.25 | W202: =+(ROUND((((VLOOKUP($AR$464,$CR$12:$DS$16,8,0)))-(0.075*2))/N202,0)+1)*2 -> 52 | X202: kg | AA202: 0 | AD202: 0
B203: Muro Acero de refuerzo fy=420 Mpa para construccion muro de contencion de corona - Relleno Horizontal y sobre carga viva | H203: =+$AH$464-(0.075*2) -> 0.85 | K203: =+VLOOKUP($AR$464,$CR$12:$DS$16,27,0) -> 1/2" | N203: =+VLOOKUP($AR$464,$CR$12:$DS$16,28,0) -> 0.2 | Q203: 1 | T203: =+Q203*H203+0.4 -> 1.25 | W203: =+(ROUND((((VLOOKUP($AR$464,$CR$12:$DS$16,8,0)))-(0.075*2))/N203,0)+1)*2 -> 52 | X203: kg | AA203: 0 | AD203: 0
B204: Varilla A Acero de refuerzo fy=420 Mpa para muro de contención de pata | H204: =+VLOOKUP($AR$677,$DV$12:$FA$16,11,0) -> 3.1 | K204: 1/2" | N204: =+VLOOKUP($AR$677,$DV$12:$FA$16,10,0) -> 0.25 | Q204: 1 | T204: =+Q204*H204 -> 3.1 | W204: =IF(H204>0,+ROUNDUP(($AH$677-0.075*2)/N204,0)+1,0) -> 41 | X204: kg | AA204: =+W204*T204*AD204 -> 127.1 | AD204: 1
B205: Varilla B Acero de refuerzo fy=420 Mpa para muro de contención de pata | H205: =+VLOOKUP($AR$677,$DV$12:$FA$16,15,0) -> 3.2 | K205: 5/8" | N205: =+VLOOKUP($AR$677,$DV$12:$FA$16,13,0) -> 0.15 | Q205: 1.5625 | T205: 5 | W205: 67 | X205: kg | AA205: 335 | AD205: 1
B206: Varilla C Acero de refuerzo fy=420 Mpa para muro de contención de pata | H206: =+VLOOKUP($AR$677,$DV$12:$FA$16,18,0) -> 4.1 | K206: 5/8" | N206: =+VLOOKUP($AR$677,$DV$12:$FA$16,17,0) -> 0.25 | Q206: 1.5625 | T206: 6.40625 | W206: 41 | X206: kg | AA206: 262.65625 | AD206: 1
B207: Varilla D Acero de refuerzo fy=420 Mpa para muro de contención de pata | H207: =+VLOOKUP($AR$677,$DV$12:$FA$16,21,0) -> 3.05 | K207: 5/8" | N207: =+VLOOKUP($AR$677,$DV$12:$FA$16,20,0) -> 0.25 | Q207: 1.5625 | T207: 4.765625 | W207: 41 | X207: kg | AA207: 195.390625 | AD207: 1
B208: Varilla E Acero de refuerzo fy=420 Mpa para muro de contención de pata | H208: =+VLOOKUP($AR$677,$DV$12:$FA$16,24,0) -> 0 | K208: 0 | N208: =+VLOOKUP($AR$677,$DV$12:$FA$16,23,0) -> 0 | Q208: 0 | T208: 0 | W208: 0 | X208: kg | AA208: 0 | AD208: 1
B209: Varilla F Acero de refuerzo fy=420 Mpa para muro de contención de pata | H209: =+VLOOKUP($AR$677,$DV$12:$FA$16,27,0) -> 4.1 | K209: 1/2" | N209: =+VLOOKUP($AR$677,$DV$12:$FA$16,26,0) -> 0.25 | Q209: 1 | T209: 4.1 | W209: 41 | X209: kg | AA209: 168.1 | AD209: 1
B210: Varilla G Acero de refuerzo fy=420 Mpa para muro de contención de pata | H210: =+VLOOKUP($AR$677,$DV$12:$FA$16,30,0) -> 2.3 | K210: 5/8" | N210: =+VLOOKUP($AR$677,$DV$12:$FA$16,29,0) -> 0.2 | Q210: 1.5625 | T210: 3.59375 | W210: 51 | X210: kg | AA210: 183.28125 | AD210: 1
B211: Zapata Acero de refuerzo fy=420 Mpa para muro de contención de pata | H211: =$AH$677-(0.075*2) -> 9.85 | K211: 1/2" | N211: =+VLOOKUP($AR$677,$DV$12:$FA$16,32,0) -> 0.25 | Q211: 1 | T211: =+Q211*H211+0.4 -> 10.25 | W211: 41 | X211: kg | AA211: 420.25 | AD211: 1
B212: Dentellon Acero de refuerzo fy=420 Mpa para muro de contención de pata | H212: =$AH$677-(0.075*2) -> 9.85 | K212: 1/2" | N212: =+VLOOKUP($AR$677,$DV$12:$FA$16,32,0) -> 0.25 | Q212: 1 | T212: =+Q212*H212+0.4 -> 10.25 | W212: 41 | X212: kg | AA212: 420.25 | AD212: 1
B213: Muro Acero de refuerzo fy=420 Mpa para muro de contención de pata | H213: =$AH$677-(0.075*2) -> 9.85 | K213: 1/2" | N213: =+VLOOKUP($AR$677,$DV$12:$FA$16,32,0) -> 0.25 | Q213: 1 | T213: =+Q213*H213+0.4 -> 10.25 | W213: 41 | X213: kg | AA213: 420.25 | AD213: 1
X215: TOTAL | AA215: =SUM(AA196:AC213) -> 2532.278125
B217: Observaciones | H217: Indicar en las celdas amarillas la cantidad de muros de cada tipo a implementar especificado en la descripción del Ítem
AY221: Pag. ____ de ____
D224: CONTRATISTA | AI224: Vo.Bo. INTERVENTOR
L227: PROYECTO TIPO MEJORAMIENTO DE VÍAS TERCIARIAS Tramo 1 km | AA227: AVAL
L230: MEMORIAS DE CANTIDADES
B233: Capítulo | H233: =+'[3] PPTO DNP'!$B$31 -> 4 | I233: =+'[3] PPTO DNP'!$C$31 -> Construir obras de contención
B234: Ítem | J234: =+'[3] PPTO DNP'!$C$39 -> Concreto f'c=21 MPa para construccion muro de contención | AB234: UNIDAD | AH234: m3
J235: =+'[3] PPTO DNP'!$B$39 -> 4.8
B237: Área/lugar/elemento | H237: Base 1(m) | K237: Ancho (m) | N237: Alto (m) | Q237: Base 2 (m) | T237: V. PARCIAL | W237: N° DE ELEMENTOS | X237: UNIDAD | AA237: TOTAL
B238: Zapata Concreto f'c=21MPa para construccion muro de contencion de corona - Relleno Horizontal y sobre carga viva | H238: =+VLOOKUP($AR$464,$CR$12:$DS$16,8,0) -> 5.1 | K238: =+$AH$464 -> 1 | N238: =+VLOOKUP($AR$464,$CR$12:$DS$16,6,0) -> 0.7 | T238: =+H238*K238*N238 -> 3.57 | W238: 0 | X238: =$AH$565 -> m3 | AA238: =+T238*W238 -> 0
B239: Muro Concreto f'c=21MPa para construccion muro de contencion de corona - Relleno Horizontal y sobre carga viva | H239: =+VLOOKUP($AR$464,$CR$12:$DS$16,8,0)-VLOOKUP($AR$464,$CR$12:$DS$16,5,0)-VLOOKUP($AR$464,$CR$12:$DS$16,2,0) -> 0.7 | K239: =+$AH$464 -> 1 | N239: =+VLOOKUP($AR$464,$CR$12:$DS$16,7,0) -> 6.3 | Q239: =+VLOOKUP($AR$464,$CR$12:$DS$16,3,0) -> 0.3 | T239: =+((H239+Q239)/2)*N239*K239 -> 3.15 | W239: 0 | X239: =$AH$565 -> m3 | AA239: =+T239*W239 -> 0
B240: Zapata Concreto f'c=21MPa para muro de contención de pata | H240: =+VLOOKUP($AR$677,$DV$12:$FA$16,8,0) -> 3 | K240: =+$AH$677 -> 10 | N240: =+VLOOKUP($AR$677,$DV$12:$FA$16,6,0) -> 0.5 | T240: =+H240*K240*N240 -> 15 | W240: 1 | X240: =+$AH$778 -> m3 | AA240: =+T240*W240 -> 15
B241: Dentellon Concreto f'c=21MPa para muro de contención de pata | H241: 0.4 | K241: =+$AH$677 -> 10 | N241: 0.6 | Q241: =+VLOOKUP($AR$677,$DV$12:$FA$16,8,0)-VLOOKUP($AR$677,$DV$12:$FA$16,5,0)-VLOOKUP($AR$677,$DV$12:$FA$16,2,0) -> 0.5 | T241: =+((H241+Q241)/2)*N241*K241 -> 2.7 | W241: 1 | X241: =+$AH$778 -> m3 | AA241: =+T241*W241 -> 2.7
B242: Muro Concreto f'c=21MPa para muro de contención de pata | H242: =+VLOOKUP($AR$677,$DV$12:$FA$16,8,0)-VLOOKUP($AR$677,$DV$12:$FA$16,5,0)-VLOOKUP($AR$677,$DV$12:$FA$16,2,0) -> 0.5 | K242: =+$AH$677 -> 10 | N242: =+VLOOKUP($AR$677,$DV$12:$FA$16,7,0) -> 3.5 | Q242: =+VLOOKUP($AR$677,$DV$12:$FA$16,3,0) -> 0.3 | T242: =+((H242+Q242)/2)*N242*K242 -> 14 | W242: 1 | X242: =+$AH$778 -> m3 | AA242: =+T242*W242 -> 14
X243: TOTAL | AA243: =+SUM(AA238:AC242) -> 31.7
B245: Observaciones | H245: Indicar en las celdas amarillas la cantidad de muros de cada tipo a implementar especificado en la descripción del Ítem
AY249: Pag. ____ de ____
D252: CONTRATISTA | AI252: Vo.Bo. INTERVENTOR
L255: PROYECTO TIPO MEJORAMIENTO DE VÍAS TERCIARIAS Tramo 1 km | AA255: AVAL
L258: MEMORIAS DE CANTIDADES
B261: Capítulo | H261: =+'[3] PPTO DNP'!$B$31 -> 4 | I261: =+'[3] PPTO DNP'!$C$31 -> Construir obras de contención
B262: Ítem | J262: =+'[3] PPTO DNP'!$C$40 -> Geotextil NT 1600 para construccion muro de contención | AB262: UNIDAD | AH262: m2
J263: =+'[3] PPTO DNP'!$B$40 -> 4.9
B265: Área/lugar/elemento | H265: Longitud (m) | K265: Ancho (m) | N265: Alto (m) | Q265: Peso (kg) | T265: V. PARCIAL | W265: N° DE MUROS | X265: UNIDAD | AA265: TOTAL
B266: Geotextil NT 1600 para construccion muro de contencion de corona - Relleno Horizontal y sobre carga viva | H266: =+VLOOKUP($AR$464,$CR$11:$DT$16,7,0)+0.6 -> 6.9 | K266: =+$AH$464 -> 1 | T266: =+K266*H266 -> 6.9 | W266: 0 | X266: =+$AH$262 -> m2 | AA266: =+T266*W266 -> 0
B267: Geotextil NT 1600 Geotextil NT 1600 para muro de contención de pata | H267: =+VLOOKUP($AR$677,$DV$12:$FA$16,7,0)+0.6 -> 4.1 | K267: =+$AH$677 -> 10 | T267: =+K267*H267 -> 41 | W267: 1 | X267: =+$AH$262 -> m2 | AA267: =+T267*W267 -> 41
B268: Geotextil NT 1600 Geotextil NT 1600 para muro en gavion con sobrecarga | H268: =+$AP$893 -> 2 | K268: =+VLOOKUP($AD$893,$FC$9:$FH$11,3,0) -> 5 | N268: =+VLOOKUP($AD$893,$FC$9:$FH$11,2,0) -> 4 | T268: =+H268*K268+N268*H268 -> 18 | W268: 0 | X268: =+$AH$262 -> m2 | AA268: =+T268*W268 -> 0
B269: Geotextil NT 1600 para muro en gavión sin sobrecarga | H269: =+$AP$893 -> 2 | K269: =+VLOOKUP($AD$893,$FC$9:$FH$11,3,0) -> 5 | N269: =+VLOOKUP($AD$893,$FC$9:$FH$11,2,0) -> 4 | T269: =+H269*K269+N269*H269 -> 18 | W269: 0 | X269: =+$AH$262 -> m2 | AA269: =+T269*W269 -> 0
X270: TOTAL | AA270: =+SUM(AA266:AC269) -> 41
B272: Observaciones | H272: Indicar en las celdas amarillas la cantidad de muros de cada tipo a implementar especificado en la descripción del Ítem
AY276: Pag. ____ de ____
D279: CONTRATISTA | AI279: Vo.Bo. INTERVENTOR
L282: PROYECTO TIPO MEJORAMIENTO DE VÍAS TERCIARIAS Tramo 1 km | AA282: AVAL
L285: MEMORIAS DE CANTIDADES
B288: Capítulo | H288: =+'[3] PPTO DNP'!$B$31 -> 4 | I288: =+'[3] PPTO DNP'!$C$31 -> Construir obras de contención
B289: Ítem | J289: =+'[3] PPTO DNP'!C41 -> Relleno en material filtrante para construccion muro de contención | AB289: UNIDAD | AH289: m3
J290: =+'[3] PPTO DNP'!B41 -> 4.10
B292: Área/lugar/elemento | H292: Longitud (m) | K292: Ancho (m) | N292: Alto (m) | Q292: Peso (kg) | T292: V. PARCIAL | W292: N° DE ELEMENTOS | X292: UNIDAD | AA292: TOTAL
B293: Relleno en material filtrante para construccion muro de contencion de corona - Relleno Horizontal y sobre carga viva | H293: =+$AH$464 -> 1 | K293: 0.3 | N293: =+VLOOKUP($AR$464,$CR$12:$DS$16,7,0) -> 6.3 | T293: =+N293*K293*H293 -> 1.89 | W293: 0 | X293: =+$AH$289 -> m3 | AA293: =+T293*W293 -> 0
B294: Relleno en material filtrante para muro de contención de pata | H294: =+$AH$677 -> 10 | K294: 0.3 | N294: =+VLOOKUP($AR$677,$DV$12:$FA$16,7,0) -> 3.5 | T294: =+N294*K294*H294 -> 10.5 | W294: 1 | X294: =+$AH$289 -> m3 | AA294: =+T294*W294 -> 10.5
X295: TOTAL | AA295: =+SUM(AA293:AC294) -> 10.5
B297: Observaciones | H297: Indicar en las celdas amarillas la cantidad de muros de cada tipo a implementar especificado en la descripción del Ítem
AY301: Pag. ____ de ____
D304: CONTRATISTA | AI304: Vo.Bo. INTERVENTOR
L307: PROYECTO TIPO MEJORAMIENTO DE VÍAS TERCIARIAS Tramo 1 km | AA307: AVAL
L310: MEMORIAS DE CANTIDADES
B313: Capítulo | H313: =+'[3] PPTO DNP'!$B$31 -> 4 | I313: =+'[3] PPTO DNP'!$C$31 -> Construir obras de contención
B314: Ítem | J314: =+'[3] PPTO DNP'!$C$42 -> Suministro e instalación de gaviones prefabricados | AB314: UNIDAD | AH314: m3
J315: =+'[3] PPTO DNP'!$B$42 -> 4.11
B317: Área/lugar/elemento | H317: Longitud (m) | K317: Ancho (m) | N317: Alto (m) | Q317: N° DE ELEMENTOS | T317: V. PARCIAL | W317: No. De Elementos | X317: UNIDAD | AA317: TOTAL | AD317: No. Muros
B318: Elemento A Suministro e instalación de gaviones prefabricados (incluye, malla, piedra, tirantes y formaleta) para muro modulares prefabricados en gavion con sobrecarga | H318: =+$AP$893 -> 2 | K318: 1 | N318: 1 | Q318: =+VLOOKUP($AD$893,$FC$10:$FH$11,5,0)*($AP$893/2) -> 14 | T318: =+N318*K318*H318 -> 2 | W318: 0 | X318: =+$AH$314 -> m3 | AA318: =+Q318*T318*AD318 -> 0 | AD318: 0
B319: Elemento B Suministro e instalación de gaviones prefabricados (incluye, malla, piedra, tirantes y formaleta) para muro modulares prefabricados en gavion con sobrecarga | H319: =+$AP$893 -> 2 | K319: 1 | N319: 0.5 | Q319: =+VLOOKUP($AD$893,$FC$10:$FH$11,6,0)*($AP$893/2) -> 0 | T319: =+N319*K319*H319 -> 1 | W319: 0 | X319: =+$AH$314 -> m3 | AA319: =+Q319*T319*AD319 -> 0 | AD319: 0
B320: Elemento A Suministro e instalación de gaviones prefabricados (incluye, malla, piedra, tirantes y formaleta) para muro modulares prefabricados en gavión sin sobrecarga | H320: =+$AP$979 -> 2 | K320: 1 | N320: 1 | T320: =+N320*K320*H320 -> 2 | W320: =+VLOOKUP($AD$979,$BT$1183:$BY$1184,5,0)*($AP$979/2) -> 10 | X320: =+$AH$314 -> m3 | AA320: =+W320*T320*AD320 -> 0 | AD320: 0
B321: Elemento B Suministro e instalación de gaviones prefabricados (incluye, malla, piedra, tirantes y formaleta) para muro modulares prefabricados en gavión sin sobrecarga | H321: =+$AP$979 -> 2 | K321: 1 | N321: 0.5 | T321: =+N321*K321*H321 -> 1 | W321: =+VLOOKUP($AD$979,$BT$1183:$BY$1184,6,0)*($AP$979/2) -> 1 | X321: =+$AH$314 -> m3 | AA321: =+W321*T321*AD321 -> 0 | AD321: 0
X323: TOTAL | AA323: =SUM(AA318:AC321) -> 0
B325: Observaciones | H325: Indicar en las celdas amarillas la cantidad de muros de cada tipo a implementar especificado en la descripción del Ítem
AY329: Pag. ____ de ____
D332: CONTRATISTA | AI332: Vo.Bo. INTERVENTOR
B342: MEMORIAS DE CANTIDADES DE OBRA
B343: MUROS DE CONTENCIÓN
B346: Capítulo | H346: =+'[3] PPTO DNP'!$B$31 -> 4 | I346: =+'[3] PPTO DNP'!$C$31 -> Construir obras de contención
B347: Ítem | H347: =+'[3] PPTO DNP'!B37 -> 4.6 | I347: =+'[3] PPTO DNP'!C37 -> Conformación de subrasante para construccion muro de contención | AB347: UNIDAD | AH347: m2
AB348: Long muro (m) | AD348: 6 | AH348: m | AP348: h | AZ348: 7.295 - 8.045 | BG348: m
B349: Área/lugar/elemento | H349: Longitud (m) | K349: Ancho (m) | N349: Alto (m) | Q349: Peso (kg) | T349: V. PARCIAL | W349: N° DE MUROS | X349: UNIDAD | AA349: TOTAL
B357: TOTAL | AA357: =SUM(AA23:AC28) -> 0
B359: Observaciones
AY363: Pag. ____ de ____
D366: CONTRATISTA | AI366: Vo.Bo. INTERVENTOR
B370: MEMORIAS DE CANTIDADES DE OBRA
B371: MUROS DE CONTENCIÓN
B374: Capítulo | H374: =+'[3] PPTO DNP'!$B$31 -> 4 | I374: =+'[3] PPTO DNP'!$C$31 -> Construir obras de contención
... 342 more rows

Sheet CUADRILLAS_DNP
B4: SMMLV 2017 | C4: Factor sobre el SMMLV de la región | D4: AUXILIO DE TRANSPORTE | E4: (SMMLV FINAL+1 AT) | F4: día
A5: 1 AYUDANTE A | B5: =SMLMV_2017 -> 737717 | C5: 1 | D5: =AT_2017 -> 83140 | E5: =IF(C5<=2,B5*C5+D5,B5*C5) -> 820857 | F5: =+ROUND(E5/30,0) -> 27362
A6: 1 OFICIAL A | B6: =SMLMV_2017 -> 737717 | C6: 1.5 | D6: =AT_2017 -> 83140 | E6: =IF(C6<=2,B6*C6+D6,B6*C6) -> 1189715.5 | F6: =+ROUND(E6/30,0) -> 39657
A9: Código | B9: Descripción | C9: unidad | D9: Cantidad | E9: Precio con prestaciones | F9: Total
A10: cd1 | B10: Cuadrilla AA (Albañilería) 1Of y 1Ay | C10: hora | F10: =F16 -> 16375
B11: Ayudante A | C11: jor | D11: 0.125 | E11: =+$F$5 -> 27362 | F11: =+D11*E11 -> 3420.25
B12: Oficial A | C12: jor | D12: 0.125 | E12: =+$F$6 -> 39657 | F12: =+D12*E12 -> 4957.125
B13: Subtotal | F13: =SUM(F11:F12) -> 8377.375
B14: Factor prestacional de ingreso por hora efectiva / base hora laboral | C14: % | D14: =+HLOOKUP($C$5,'[4]PRESTACIONES DNP'!$C$44:$K$46,3)-100% -> 0.9655303985 | F14: =F11*D14 -> 3302.355345
D15: =+HLOOKUP($C$6,'[4]PRESTACIONES DNP'!$C$44:$K$46,3)-100% -> 0.9470892626 | F15: =F12*D15 -> 4694.839861
B16: Total hora | F16: =+ROUND(F13+F14+F15,0) -> 16375
A18: cd2 | B18: Cuadrilla AA 1Of+2Ay (Albañilería) | C18: hora | F18: =F24 -> 23097
B19: Ayudante A | C19: jor | D19: 0.25 | E19: =+$F$5 -> 27362 | F19: =+D19*E19 -> 6840.5
B20: Oficial A | C20: jor | D20: 0.125 | E20: =+$F$6 -> 39657 | F20: =+D20*E20 -> 4957.125
B21: Subtotal | F21: =SUM(F19:F20) -> 11797.625
B22: Factor prestacional de ingreso por hora efectiva / base hora laboral | C22: % | D22: =+HLOOKUP($C$5,'[4]PRESTACIONES DNP'!$C$44:$K$46,3)-100% -> 0.9655303985 | F22: =+F19*D22 -> 6604.710691
D23: =+HLOOKUP($C$6,'[4]PRESTACIONES DNP'!$C$44:$K$46,3)-100% -> 0.9470892626 | F23: =+F20*D23 -> 4694.839861
B24: Total hora | F24: =+ROUND(F21+F22+F23,0) -> 23097
A26: cd3 | B26: Cuadrilla AA (Albañilería) 1 Ay | C26: hora | F26: =F32 -> 6723
B27: Ayudante A | C27: jor | D27: 0.125 | E27: =+$F$5 -> 27362 | F27: =+D27*E27 -> 3420.25
B28: Oficial A | C28: jor | D28: 0 | E28: =+$F$6 -> 39657 | F28: =+D28*E28 -> 0
B29: Subtotal | F29: =SUM(F27:F28) -> 3420.25
B30: Factor prestacional de ingreso por hora efectiva / base hora laboral | C30: % | D30: =+HLOOKUP($C$5,'[4]PRESTACIONES DNP'!$C$44:$K$46,3)-100% -> 0.9655303985 | F30: =+F27*D30 -> 3302.355345
D31: =+HLOOKUP($C$6,'[4]PRESTACIONES DNP'!$C$44:$K$46,3)-100% -> 0.9470892626 | F31: =+F28*D31 -> 0
B32: Total hora | F32: =+ROUND(F29+F30+F31,0) -> 6723

Sheet PRESTACIONES DNP
B4: PROYECTO TIPO MEJORAMIENTO DE VÍAS TERCIARIAS Tramo 1 km
B5: Sueldos y parafiscales personal por salario mínimo
B7: 2017-06-01 | C7: 737717
B9: SALARIO ANUAL SMMLV | C9: 1 | D9: 1.2 | E9: 1.5 | F9: 1.8 | G9: 2 | H9: 2.5 | I9: 3 | J9: 3.5 | K9: 4
B10: AUX. TRANS ANUAL SIN DESC (B*12) | C10: =+C11*12 -> 997680 | D10: =+D11*12 -> 997680 | E10: 997680 | F10: 997680 | G10: 997680 | H10: 0 | I10: 0 | J10: 0 | K10: 0
B11: (B) AUX. TRANS MES | C11: 83140 | D11: 83140 | E11: 83140 | F11: 83140 | G11: 83140
B12: (A) SALARIO MES | C12: =ROUND($C$7*C9,0) -> 737717 | D12: =ROUND($C$7*D9,0) -> 885260 | E12: 1106576 | F12: 1327891 | G12: 1475434 | H12: 1844293 | I12: 2213151 | J12: 2582010 | K12: 2950868
B13: SUELDO ANUAL (Ax 12) | C13: =+ROUND(C12*12,0) -> 8852604 | D13: =+ROUND(D12*12,0) -> 10623120 | E13: 13278912 | F13: 15934692 | G13: 17705208 | H13: 22131516 | I13: 26557812 | J13: =+ROUND(J12*12,0) -> 30984120 | K13: =+ROUND(K12*12,0) -> 35410416
B14: (C ) CESANTÍAS (A+B)*10% | C14: =+ROUND((C13+C10)*0.1,0) -> 985028 | D14: =+ROUND((D13+D10)*0.1,0) -> 1162080 | E14: 1427659 | F14: 1693237 | G14: 1870289 | H14: 2213152 | I14: 2655781 | J14: =+ROUND((J13+J10)*0.1,0) -> 3098412 | K14: =+ROUND((K13+K10)*0.1,0) -> 3541042
B15: VACACIONES (A+B) | C15: =+ROUND(C12/2,0) -> 368859 | D15: =+ROUND(D12/2,0) -> 442630 | E15: 553288 | F15: 663946 | G15: 737717 | H15: 922147 | I15: 1106576 | J15: =+ROUND(J12/2,0) -> 1291005 | K15: =+ROUND(K12/2,0) -> 1475434
B16: PRIMA (A+B) | C16: =+C12+C11 -> 820857 | D16: =+D12+D11 -> 968400 | E16: 1189716 | F16: 1411031 | G16: 1558574 | H16: 1844293 | I16: 2213151 | J16: =+J12+J11 -> 2582010 | K16: =+K12+K11 -> 2950868
B17: INTERES DE CESANTIA (CX12%) | C17: =+ROUND(C14*(1%*12),0) -> 118203 | D17: =+ROUND(D14*(1%*12),0) -> 139450 | E17: 171319 | F17: 203188 | G17: 224435 | H17: 265578 | I17: 318694 | J17: =+ROUND(J14*(1%*12),0) -> 371809 | K17: =+ROUND(K14*(1%*12),0) -> 424925
B18: FIC (Fondo (A+12/40) | C18: =+ROUND((C12*12)/40,0) -> 221315 | D18: =+ROUND((C12*12)/40,0) -> 221315 | E18: =+ROUND((C12*12)/40,0) -> 221315 | F18: =+ROUND((C12*12)/40,0) -> 221315 | G18: =+ROUND((C12*12)/40,0) -> 221315 | H18: =+ROUND((C12*12)/40,0) -> 221315 | I18: =+ROUND(($C$12*12)/40,0) -> 221315 | J18: =+ROUND(($C$12*12)/40,0) -> 221315 | K18: =+ROUND(($C$12*12)/40,0) -> 221315
B19: AUX. TRANSP CON DESC (B/30)-(360-18) | C19: =(C11/30)*(360-18) -> 947796 | D19: =(D11/30)*(360-18) -> 947796 | E19: 947796 | F19: 947796 | G19: 947796 | H19: 0 | I19: 0 | J19: =(J11/30)*(360-18) -> 0 | K19: =(K11/30)*(360-18) -> 0
B20: SALUD, ENFERMEDAD GENERAL Y MUERTE SEGÚN CREE | C20: 0 | D20: 0 | E20: 0 | F20: 0 | G20: 0 | H20: 0 | I20: 0 | J20: 0 | K20: 0
B21: PENSIÓN ((A*12)*12%) | C21: =+ROUND(C13*12%,0) -> 1062312 | D21: =+ROUND(D13*12%,0) -> 1274774 | E21: 1593469 | F21: 1912163 | G21: 2124625 | H21: 2655782 | I21: 3186937 | J21: =+ROUND(J13*12%,0) -> 3718094 | K21: =+ROUND(K13*12%,0) -> 4249250
B22: RIESGOS PROFESIONALES ((A*12)*6,96) | C22: =+ROUND((C12*12)*6.96%,0) -> 616141 | D22: =+ROUND((D12*12)*6.96%,0) -> 739369 | E22: 924212 | F22: 1109055 | G22: 1232282 | H22: 1540354 | I22: 1848424 | J22: =+ROUND((J12*12)*6.96%,0) -> 2156495 | K22: =+ROUND((K12*12)*6.96%,0) -> 2464565
B23: CAJA DE COMPENSACIÓN (A*12)*4%) | C23: =+ROUND((C12*12)*4%,0) -> 354104 | D23: =+ROUND((D12*12)*4%,0) -> 424925 | E23: 531156 | F23: 637388 | G23: 708208 | H23: 885261 | I23: 1062312 | J23: =+ROUND((J12*12)*4%,0) -> 1239365 | K23: =+ROUND((K12*12)*4%,0) -> 1416417
B24: SENA SEGÚN CREE | C24: 0 | D24: 0 | E24: 0 | F24: 0 | G24: 0 | H24: 0 | I24: 0 | J24: 0 | K24: 0
B25: ICBF SEGUN CREE | C25: 0 | D25: 0 | E25: 0 | F25: 0 | G25: 0 | H25: 0 | I25: 0 | J25: 0 | K25: 0
B26: DOTACIÓN | C26: 377400 | D26: 377400 | E26: 377400 | F26: 377400 | G26: 377400 | H26: 0 | I26: 0 | J26: 0 | K26: 0
B27: Implementos de seguridad industrial | C27: 172620 | D27: 172620 | E27: 172620 | F27: 172620 | G27: 172620 | H27: 172620 | I27: 172620 | J27: 172620 | K27: 172620
B28: TOTAL (X) | C28: =SUM(C13:C27) -> 14897239 | D28: 17493879 | E28: 21388862 | F28: 25283831 | G28: 27880469 | H28: 32852018 | I28: 39343622 | J28: 45835245 | K28: 52326852
B30: SALARIO NOMINAL
B31: ANUAL | C31: =+C10+C13 -> 9850284 | D31: 11620800 | E31: 14276592 | F31: 16932372 | G31: 18702888 | H31: 22131516 | I31: 26557812 | J31: 30984120 | K31: 35410416
B32: MENSUAL | C32: =+C11+C12 -> 820857 | D32: =+D11+D12 -> 968400 | E32: 1189716 | F32: 1411031 | G32: 1558574 | H32: 1844293 | I32: 2213151 | J32: =+J11+J12 -> 2582010 | K32: =+K11+K12 -> 2950868
B33: DÍA | C33: =+C32/30 -> 27361.9 | D33: =+D32/30 -> 32280 | E33: 39657.2 | F33: 47034.36667 | G33: 51952.46667 | H33: 61476.43333 | I33: 73771.7 | J33: =+J32/30 -> 86067 | K33: =+K32/30 -> 98362.26667
B34: HORA | C34: =+ROUND(C33/8,0) -> 3420 | D34: =+ROUND(D33/8,0) -> 4035 | E34: 4957 | F34: 5879 | G34: 6494 | H34: 7685 | I34: 9221 | J34: =+ROUND(J33/8,0) -> 10758 | K34: =+ROUND(K33/8,0) -> 12295
B37: CÁLCULO DEL SOBRECOSTO PARA HORAS EFECTIVAS TRABAJADAS
B38: (F) SALARIO MÍNIMO ANUAL CON PRESTACIONES | D38: =+C28 -> 14897239
B39: (G) HORAS CALENDARIO ANUALES | C39: 360x8 HORAS | D39: =360*8 -> 2880
B40: (H) HORAS LABORALESANUALES | C40: 52 SEMANAS X48 HORAS | D40: =48*52 -> 2496
B41: (I) HORAS EFECTIVAS ANUALES | C41: 2920-((52DOMINGOS+15 FESTIVOS+3PERMISOS+15DIAS VACACIONES)X8 HORAS) | D41: =+(365-53-17-3-15)*8 -> 2216
B42: (J) VALOR HORA CALENDARIO (F/G) | D42: =+D38/D39 -> 5172.652431 | E42: 1
B43: (K) VALOR HORA LABORAL (F/H) | D43: =+D38/D40 -> 5968.445112 | E43: =+(D43*E42)/D42 -> 1.153846154
B44: (L) VALOR HORA EFECTIVA (F/I) | D44: =+D38/D41 -> 6722.580776 | E44: =+(D44*E43)/D43 -> 1.299638989
B46: SALARIO ANUAL SMMLV | C46: 1 | D46: 1.2 | E46: 1.5 | F46: 1.8 | G46: 2 | H46: 2.5 | I46: 3 | J46: 3.5 | K46: 4
B47: PORCENTAJE SALARIO VS SALARIO MÁS ADICIONES ((TOTAL ANUALX100%)/(SUELDO ANUAL+AUXILIO TRANSPORTE ANUAL) | C47: =+(C28*100%)/(C10+C13) -> 1.512366445 | D47: 1.505393691 | E47: 1.498177016 | F47: 1.493224399 | G47: 1.490703949 | H47: 1.484399803 | I47: 1.481433109 | J47: 1.479314081 | K47: 1.477724859
B48: PORCENTAJE HORA EFECTIVA BASE HORA CALENDARIO | C48: =+C47*$E$44 -> 1.965530398 | D48: 1.956468334 | E48: 1.947089263 | F48: 1.940652648 | G48: 1.937376973 | H48: 1.92918386 | I48: 1.925328228 | J48: 1.922574257 | K48: 1.920508842
B50: SUELDOS Y PARAFISCALES PERSONAL DE OBRA POR ADMINISTRACIÓN
C52: DIRECTOR DE OBRA | D52: RESIDENTE DE OBRA | E52: ALMACENISTA | F52: VIGILANTE | G52: COMISION TOPOGRÁFICA
G53: TOPÓGRAFO | H53: EJERO O CADENERO | I53: ALQUILER EQUIPO
C54: 10 | D54: 5.5 | E54: 1.8 | F54: 1.2 | G54: 3 | H54: 1.8 | I54: 250000
B55: SALARIO ANUAL SMMLV | C55: 3.5 | D55: 2.5 | E55: 1.5 | F55: 1.2 | G55: 1 | H55: 1
B56: AUX. TRANS ANUAL SIN DESC (B*12) | C56: 1 | D56: =+D57*12 -> 0 | E56: =+E57*12 -> 932400 | F56: =+F57*12 -> 932400 | G56: =+G57*12 -> 932400 | H56: =+H57*12 -> 932400
B57: (B) AUX. TRANS MES | C57: 0 | D57: 0 | E57: 77700 | F57: 77700 | G57: 77700 | H57: 77700
B58: (A) SALARIO MES | C58: =ROUND(689455*C55,0) -> 2413093 | D58: 1723638 | E58: 1034183 | F58: 827346 | G58: 689455 | H58: 689455
B59: SUELDO ANUAL (Ax 12) | C59: =+ROUND(C58*12,0) -> 28957116 | D59: 20683656 | E59: 12410196 | F59: 9928152 | G59: 8273460 | H59: 8273460
B60: (C ) CESANTÍAS (A+B)*10% | C60: =+ROUND((C59+C56)*0.1,0) -> 2895712 | D60: 2068366 | E60: 1334260 | F60: 1086055 | G60: 920586 | H60: 920586
B61: VACACIONES (A+B) | C61: =+ROUND(C58/2,0) -> 1206547 | D61: 861819 | E61: 517092 | F61: 413673 | G61: 344728 | H61: 344728
B62: PRIMA (A+B) | C62: =+C58+C57 -> 2413093 | D62: 1723638 | E62: 1111883 | F62: 905046 | G62: 767155 | H62: 767155
B63: INTERÉS DE CESANTIA (CX12%) | C63: =+ROUND(C60*(1%*12),0) -> 347485 | D63: 248204 | E63: 160111 | F63: 130327 | G63: 110470 | H63: 110470
B64: FONDO FORMACIÓN PROFESIONAL DEL SENA (A+12/40) | C64: =+ROUND((689455*12)/40,0) -> 206837 | D64: 206837 | E64: 206837 | F64: 206837 | G64: 206837 | H64: 206837
B65: AUX. TRANSP CON DESC (B/30)-(360-18) | C65: =(C57/30)*(360-18) -> 0 | D65: 0 | E65: 885780 | F65: 885780 | G65: 885780 | H65: 885780
B66: SALUD, ENFERMEDAD GENERAL Y MUERTE SEGÚN CREE | C66: 0 | D66: 0 | E66: 0 | F66: 0 | G66: 0 | H66: 0
B67: PENSIÓN ((A*12)*12%) | C67: =+ROUND(C59*12%,0) -> 3474854 | D67: 2482039 | E67: 1489224 | F67: 1191378 | G67: 992815 | H67: 992815
B68: RIESGOS PROFESIONALES ((A*12)*6,96) | C68: =+ROUND((C58*12)*6.96%,0) -> 2015415 | D68: 1439582 | E68: 863750 | F68: 690999 | G68: 575833 | H68: 575833
B69: CAJA DE COMPENSACIÓN (A*12)*4%) | C69: =+ROUND((C58*12)*4%,0) -> 1158285 | D69: 827346 | E69: 496408 | F69: 397126 | G69: 330938 | H69: 330938
B70: SENA SEGÚN CREE | C70: 0 | D70: 0 | E70: 0 | F70: 0 | G70: 0 | H70: 0
B71: ICBF SEGÚN CREE | C71: 0 | D71: 0 | E71: 0 | F71: 0 | G71: 0 | H71: 0
B72: DOTACIÓN | C72: 0 | D72: 0 | E72: 405900 | F72: 405900 | G72: 405900 | H72: 405900
B73: EXAMEN MÉDICO | C73: 336280 | D73: 336280 | E73: 336280 | F73: 336280 | G73: 336280 | H73: 336280
B74: TOTAL (X) | C74: =SUM(C59:C73)-6 -> 43011618 | D74: =SUM(D59:D73)+3 -> 30877770 | E74: =SUM(E59:E73) -> 20217721 | F74: =SUM(F59:F73) -> 16577553 | G74: =SUM(G59:G73) -> 14150782 | H74: =SUM(H59:H73) -> 14150782 | I74: =+I54*12 -> 3000000
B75: TOTAL MES | C75: =ROUND(C74/12,0) -> 3584302 | D75: =D74/12 -> 2573147.5 | E75: 1684810.083 | F75: 1381462.75 | G75: 1179231.833 | H75: 1179231.833 | I75: 250000
G76: =+G75+H75+I75 -> 2608463.667
C78: RECURSOS HUMANOS | D78: MAESTRO AUXILIAR | E78: CONTRAMAESTRO | F78: EJERO | G78: OFICIALES | H78: AYUDANTES | I78: TECNICO EN SEGURIDAD INDUSTRIAL | J78: AUXILIAR ADMINISTRATIVO | K78: MAESTRO GENERAL
C80: 3.5 | D80: 2 | E80: 1.8 | F80: 1.5 | G80: 2 | H80: 1.2 | I80: 3.5 | J80: 3.5 | K80: 3
B81: SALARIO ANUAL SMMLV | C81: 2.3 | D81: 2 | E81: 1.8 | F81: 1.5 | G81: 2 | H81: 1.2 | I81: 2.3 | J81: 1 | K81: 2.3
B82: AUX TRANS ANUAL SIN DESC (B*12) | C82: =+C83*12 -> 0 | D82: 932400 | E82: 932400 | F82: 932400 | G82: 932400 | H82: 932400 | I82: =+I83*12 -> 0 | J82: =+J83*12 -> 0 | K82: =+K83*12 -> 0
B83: (B) AUX TRANS MES | C83: 0 | D83: 77700 | E83: 77700 | F83: 77700 | G83: 77700 | H83: 77700 | I83: 0 | J83: 0 | K83: 0
B84: (A) SALARIO MES | C84: =ROUND(689455*C81,0) -> 1585747 | D84: 1378910 | E84: 1241019 | F84: 1034183 | G84: 1378910 | H84: 827346 | I84: =ROUND(689455*I81,0) -> 1585747 | J84: =ROUND(689455*J81,0) -> 689455 | K84: =ROUND(689455*K81,0) -> 1585747
B85: SUELDO ANUAL (Ax 12) | C85: =+ROUND(C84*12,0) -> 19028964 | D85: 16546920 | E85: 14892228 | F85: 12410196 | G85: 16546920 | H85: 9928152 | I85: =+ROUND(I84*12,0) -> 19028964 | J85: =+ROUND(J84*12,0) -> 8273460 | K85: =+ROUND(K84*12,0) -> 19028964
B86: (C ) CESANTÍAS (A+B)*10% | C86: =+ROUND((C85+C82)*0.1,0) -> 1902896 | D86: 1747932 | E86: 1582463 | F86: 1334260 | G86: 1747932 | H86: 1086055 | I86: =+ROUND((I85+I82)*0.1,0) -> 1902896 | J86: =+ROUND((J85+J82)*0.1,0) -> 827346 | K86: =+ROUND((K85+K82)*0.1,0) -> 1902896
B87: VACACIONES (A+B) | C87: =+ROUND(C84/2,0) -> 792874 | D87: 689455 | E87: 620510 | F87: 517092 | G87: 689455 | H87: 413673 | I87: =+ROUND(I84/2,0) -> 792874 | J87: =+ROUND(J84/2,0) -> 344728 | K87: =+ROUND(K84/2,0) -> 792874
B88: PRIMA (A+B) | C88: =+C84+C83 -> 1585747 | D88: 1456610 | E88: 1318719 | F88: 1111883 | G88: 1456610 | H88: 905046 | I88: =+I84+I83 -> 1585747 | J88: =+J84+J83 -> 689455 | K88: =+K84+K83 -> 1585747
B89: INTERÉS DE CESANTIA (CX12%) | C89: =+ROUND(C86*(1%*12),0) -> 228348 | D89: 209752 | E89: 189896 | F89: 160111 | G89: 209752 | H89: 130327 | I89: =+ROUND(I86*(1%*12),0) -> 228348 | J89: =+ROUND(J86*(1%*12),0) -> 99282 | K89: =+ROUND(K86*(1%*12),0) -> 228348
B90: FONDO FORMACIÓN PROFESIONAL DEL SENA (A+12/40) | C90: =+ROUND((C84*12)/40,0) -> 475724 | D90: =+ROUND((D84*12)/40,0) -> 413673 | E90: =+ROUND((E84*12)/40,0) -> 372306 | F90: =+ROUND((F84*12)/40,0) -> 310255 | G90: =+ROUND((689455*12)/40,0) -> 206837 | H90: =+ROUND((689455*12)/40,0) -> 206837 | I90: =+ROUND((I84*12)/40,0) -> 475724 | J90: =+ROUND((J84*12)/40,0) -> 206837 | K90: =+ROUND((K84*12)/40,0) -> 475724
B91: AUX. TRANSP CON DESC (B/30)-(360-18) | C91: =(C83/30)*(360-18) -> 0 | D91: 885780 | E91: 885780 | F91: 885780 | G91: 885780 | H91: 885780 | I91: =(I83/30)*(360-18) -> 0 | J91: =(J83/30)*(360-18) -> 0 | K91: =(K83/30)*(360-18) -> 0
B92: SALUD, ENFERMEDAD GENERAL Y MUERTE SEGÚN CREE | C92: 0 | D92: 0 | E92: 0 | F92: 0 | G92: 0 | H92: 0 | I92: 0 | J92: 0 | K92: 0
B93: PENSIÓN ((A*12)*12%) | C93: =+ROUND(C85*12%,0) -> 2283476 | D93: 1985630 | E93: 1787067 | F93: 1489224 | G93: 1985630 | H93: 1191378 | I93: =+ROUND(I85*12%,0) -> 2283476 | J93: =+ROUND(J85*12%,0) -> 992815 | K93: =+ROUND(K85*12%,0) -> 2283476
B94: RIESGOS PROFESIONALES ((A*12)*6,96) | C94: =+ROUND((C84*12)*6.96%,0) -> 1324416 | D94: 1151666 | E94: 1036499 | F94: 863750 | G94: 1151666 | H94: 690999 | I94: =+ROUND((I84*12)*6.96%,0) -> 1324416 | J94: =+ROUND((J84*12)*6.96%,0) -> 575833 | K94: =+ROUND((K84*12)*6.96%,0) -> 1324416
B95: CAJA DE COMPENSACIÓN (A*12)*4%) | C95: =+ROUND((C84*12)*4%,0) -> 761159 | D95: 661877 | E95: 595689 | F95: 496408 | G95: 661877 | H95: 397126 | I95: =+ROUND((I84*12)*4%,0) -> 761159 | J95: =+ROUND((J84*12)*4%,0) -> 330938 | K95: =+ROUND((K84*12)*4%,0) -> 761159
B96: SENA SEGÚN CREE | C96: 0 | D96: 0 | E96: 0 | F96: 0 | G96: 0 | H96: 0 | I96: 0 | J96: 0 | K96: 0
B97: ICBF SEGÚN CREE | C97: 0 | D97: 0 | E97: 0 | F97: 0 | G97: 0 | H97: 0 | I97: 0 | J97: 0 | K97: 0
B98: DOTACIóN | C98: 0 | D98: 405900 | E98: 405900 | F98: 405900 | G98: 405900 | H98: 405900 | I98: 0 | J98: 0 | K98: 405900
B99: EXAMEN MÉDICO | C99: 336280 | D99: 336280 | E99: 336280 | F99: 336280 | G99: 336280 | H99: 336280 | I99: 336280 | J99: 336280 | K99: 336280
B100: TOTAL ANUAL (X) | C100: =SUM(C85:C99) -> 28719884 | D100: 26491475 | E100: 24023337 | F100: 20321139 | G100: 26284639 | H100: 16577553 | I100: =SUM(I85:I99) -> 28719884 | J100: =SUM(J85:J99) -> 12676974 | K100: =SUM(K85:K99) -> 29125784
B101: TOTAL MES | C101: =C100/12 -> 2393323.667 | D101: 2207622.917 | E101: 2001944.75 | F101: 1693428.25 | G101: 2190386.583 | H101: 1381462.75 | I101: 2393323.667 | J101: 1056414.5 | K101: 2427148.667
B104: COMISIÓN TOPOGRÁFICA
B105: TOPÓGRAFO | C105: EJERO O CADENERO | D105: AYUDANTE | E105: ALQUILER EQUIPO
B106: 3 | C106: 1.8 | D106: 1.2 | E106: 166766.33
B107: 1 | C107: 0.8 | D107: 0.8
B108: =+B109*12 -> 932400 | C108: =+C109*12 -> 932400 | D108: =+D109*12 -> 932400
B109: 77700 | C109: 77700 | D109: 77700
B110: =ROUND(689455*B107,0) -> 689455 | C110: =ROUND(689455*C107,0) -> 551564 | D110: =ROUND(689455*D107,0) -> 551564
B111: =+ROUND(B110*12,0) -> 8273460 | C111: =+ROUND(C110*12,0) -> 6618768 | D111: =+ROUND(D110*12,0) -> 6618768
B112: =+ROUND((B111+B108)*0.1,0) -> 920586 | C112: =+ROUND((C111+C108)*0.1,0) -> 755117 | D112: =+ROUND((D111+D108)*0.1,0) -> 755117
B113: =+ROUND(B110/2,0) -> 344728 | C113: =+ROUND(C110/2,0) -> 275782 | D113: =+ROUND(D110/2,0) -> 275782
B114: =+B110+B109 -> 767155 | C114: =+C110+C109 -> 629264 | D114: =+D110+D109 -> 629264
B115: =+ROUND(B112*(1%*12),0) -> 110470 | C115: =+ROUND(C112*(1%*12),0) -> 90614 | D115: =+ROUND(D112*(1%*12),0) -> 90614
B116: =+ROUND((689455*12)/40,0) -> 206837 | C116: =+ROUND((689455*12)/40,0) -> 206837 | D116: =+ROUND((689455*12)/40,0) -> 206837
B117: =(B109/30)*(360-18) -> 885780 | C117: =(C109/30)*(360-18) -> 885780 | D117: =(D109/30)*(360-18) -> 885780
B118: 0 | C118: 0 | D118: 0
B119: =+ROUND(B111*12%,0) -> 992815 | C119: =+ROUND(C111*12%,0) -> 794252 | D119: =+ROUND(D111*12%,0) -> 794252
B120: =+ROUND((B110*12)*6.96%,0) -> 575833 | C120: =+ROUND((C110*12)*6.96%,0) -> 460666 | D120: =+ROUND((D110*12)*6.96%,0) -> 460666
B121: =+ROUND((B110*12)*4%,0) -> 330938 | C121: =+ROUND((C110*12)*4%,0) -> 264751 | D121: =+ROUND((D110*12)*4%,0) -> 264751
B122: 0 | C122: 0 | D122: 0
B123: 0 | C123: 0 | D123: 0
B124: 405900 | C124: 405900 | D124: 405900
B125: 336280 | C125: 336280 | D125: 336280
B126: =SUM(B111:B125) -> 14150782 | C126: =SUM(C111:C125) -> 11724011 | D126: =SUM(D111:D125) -> 11724011 | E126: =+E106*12 -> 2001195.96
B127: =B126/12 -> 1179231.833 | C127: =C126/12 -> 977000.9167 | D127: =D126/12 -> 977000.9167 | E127: =E126/12 -> 166766.33
B128: =+B127+C127+D127+E127 -> 3299999.997

Sheet Interventoría DNP
E3: PROYECTO TIPO MEJORAMIENTO DE VÍAS TERCIARIAS Tramo 1 km | H3: AVAL
B7: CÁLCULO DETALLADO DEL VALOR DE LA INTERVENTORÍA
B8: INTERVENTORÍA TÉCNICA, ADMINISTRATIVA Y FINANCIERA PARA LA CONSTRUCCIÓN DEL PROYECTO TIPO DE MEJORAMIENTO DE VÍA TERCIARIA
B9: N° | C9: CONCEPTO | D9: A | E9: B | F9: C | G9: D | H9: E | I9: F
D10: SUELDO MES BÁSICO | E10: CANTIDAD | F10: % DE DEDICACIÓN | G10: VALOR MES (A * B * C) | H10: N° DE MESES | I10: TOTAL PARCIAL (D * E)
B11: 1 | C11: PERSONAL
B12: 1.1 | C12: PERSONAL DE SUPERVISIÓN
B13: 1.1.1 | C13: Director de Interventoría (Cat. 2) | D13: 5088054 | E13: 1 | F13: 0.2 | G13: =ROUND(D13*E13*F13,0) -> 1017611 | H13: 5 | I13: =ROUND(G13*H13,0) -> 5088055
B14: 1.1.2 | C14: Ingenieros/Arquitecto Residentes de de Interventoría (Cat. 5) | D14: 3000800 | E14: 1 | F14: 0.8008471502 | G14: =ROUND(D14*E14*F14,0) -> 2403182 | H14: 5 | I14: =ROUND(G14*H14,0) -> 12015910
B15: 1.3 | C15: PERSONAL DE APOYO
B16: 1.3.1 | C16: Contador | D16: 4355000 | E16: 1 | F16: 0.05 | G16: 217750 | H16: 4 | I16: 871000
B17: 1.3.2 | C17: Auxiliar de oficina | D17: 878090 | E17: 1 | F17: 0.4 | G17: 351236 | H17: 4 | I17: 1404944
B18: 1.3.3 | C18: Comisión de topografía | D18: 4500000 | E18: 1 | F18: 0.05 | G18: 225000 | H18: 4 | I18: 900000
B19: 1.3.4 | C19: Otros | D19: 600000 | E19: 1 | F19: 0.05000088496 | G19: 30001 | H19: 2 | I19: 60002
H20: SUBTOTAL COSTOS DE PERSONAL | I20: =+SUM(I13:I19) -> 20339911
B22: CALCULO DEL FACTOR MULTIPLICADOR
B24: OTROS COSTOS DIRECTOS
I25: %
B26: A | C26: NÓMINA BASE DE CÁLCULO | J26: 1
B28: B | C28: PRESTACIONES SOCIALES | J28: =+SUM(I29:I35) -> 0.4079333333
C29: Seguridad social SALUD | I29: 0
C30: Seguridad social PENSIÓN | I30: 0.12
C31: Seguridad social ARL | I31: 0.0696
C32: Cesantías | I32: =1/12 -> 0.08333333333
C33: Intereses sobre cesantías | I33: =+I32*0.12 -> 0.01
C34: Prima anual | I34: =1/12 -> 0.08333333333
C35: Vacaciones | I35: =+I34/2 -> 0.04166666667
B36: C | C36: GASTOS DIRECTOS | H36: subtotal | J36: =+SUM(I37:I42) -> 0.4334540599
C37: Alquiler de oficina | D37: 250000 | E37: 4 | H37: =+D37*E37 -> 1000000 | I37: =+H37/$I$20 -> 0.04916442358
C38: Alquiler Equipos de oficina (2PC + 1 impresora) | D38: 360000 | E38: 4 | H38: 1440000 | I38: 0.07079676996
C39: Alquiler mobiliario basico | D39: 120000 | E39: 4 | H39: 480000 | I39: 0.02359892332
C40: Dotacion personal (cada 6 meses) | D40: 1416417 | E40: 1 | H40: 1416417 | I40: 0.06963732536
C41: Servicios Públicos (energia - acueducto) | D41: 120000 | E41: 4 | H41: 480000 | I41: 0.02359892332
C42: Gastos de viaje - viaticos | D42: 1000000 | E42: 4 | H42: 4000000 | I42: 0.1966576943
B43: D | C43: GASTOS GENERALES | H43: subtotal | J43: =+SUM(I44:I50) -> 0.2216540311
C44: Personal administrativo no facturado | D44: 2803324.6 | E44: 4 | F44: 0.25 | H44: =+D44*E44*F44 -> 2803324.6 | I44: =+H44/$I$20 -> 0.1378238381
C45: Utiles oficina | D45: 50000 | E45: 1 | H45: =+D45*E45 -> 50000 | I45: =+H45/$I$20 -> 0.002458221179
C46: Fotocopias e impresiones | D46: 50000 | E46: 4 | H46: =+D46*E46 -> 200000 | I46: =+H46/$I$20 -> 0.009832884716
C47: Comunicaciones (telefonía móvil e internet) | D47: 200000 | E47: 4 | H47: =+D47*E47 -> 800000 | I47: =+H47/$I$20 -> 0.03933153886
C48: Inducción de personal | D48: 350000 | E48: 1 | H48: =+D48*E48 -> 350000 | I48: =+H48/$I$20 -> 0.01720754825
C49: Asesoría legal | I49: 0.01
C50: Depreciación de mobiliario | I50: 0.005
C51: Seguros oficina del consultor | I51: 0.0227
B52: D | C52: GASTOS DE PERFECCIONAMIENTO | J52: 0.1125
B54: E | C54: HONORARIOS | J54: =0.2*(J52+J43+J36+J28+J26) -> 0.4351082849
C55: Honorarios estimados sobre el FM - según consultor | I55: 0.2
C56: SUBTOTAL OTROS COSTOS DIRECTOS | J56: =+SUM(J26:J55) -> 2.610649709
B57: RESUMEN GENERAL
C58: SUBTOTAL COSTOS DE PRESONAL | J58: =+I20 -> 20339911
C59: FACTOR MULTIPLICADOR | H59: IVA | I59: 0.19 | J59: =+J56 -> 2.610649709
I61: TOTAL OFERTA | J61: =+J59*J58 -> 53100382.74
B63: El analisis de costo presentado es indicativo, cada entidad territorial tiene la responsabilidad de ajustralos y presentar el correspondiente analisis detallado, de acuerdo a sus condiciones locales particulares.

Sheet LISTA_APUS_DNP
A4: CONSEC. | B4: COD. APU | C4: DESCRIPCIÓN | D4: UND | E4: Fecha | F4: ESTADO | G4: V/UNIT
B5: APU-DNP1 | C5: LOCALIZACIÓN Y REPLANTEO | D5: m²
A6: 27 | B6: APU-DNP2 | C6: EXCAVACIÓN MECÁNICA EN MATERIAL COMÚN A NIVEL DE SUBRASANTE (INCLUYE RETIRO DE SOBRANTES, TRANSPORTE HASTA ESCOMBRERA Y DERECHO DE BOTADERO) | D6: m³ | E6: 2019-01-11 | F6: Activo
A7: 28 | B7: APU-DNP3 | C7: CONFORMACIÓN DE LA SUBRASANTE | D7: m² | E7: 2019-01-11 | F7: Activo
A8: 29 | B8: APU-DNP4 | C8: SUBBASE GRANULAR (INCLUYE SUMINISTRO, EXTENDIDO, NIVELACIÓN, HUMEDECIDO Y COMPACTACIÓN) | D8: m³ | E8: 2019-01-11 | F8: Activo
A9: 30 | B9: APU-DNP5 | C9: EXCAVACIÓN MANUAL H= 0,15 M Y A= 0,20 M PARA RIOSTRAS DE PLACA HUELLA (INCLUYE RETIRO DE SOBRANTES, TRANSPORTE HASTA ESCOMBRERA Y DERECHO DE BOTADERO) | D9: m³ | E9: 2019-01-11 | F9: Activo
A10: 31 | B10: APU-DNP6 | C10: CONCRETO DE 210 KG/CM² (3.000 PSI) HUELLAS | D10: m³ | E10: 2019-01-11 | F10: Activo
A11: 32 | B11: APU-DNP7 | C11: CONCRETO CICLÓPEO PARA PLACA HUELLA (PIEDRA PEGADA) | D11: m³ | E11: 2019-01-11 | F11: Activo
A12: 33 | B12: APU-DNP8 | C12: CONCRETO DE 210 KG/CM² (3.000 PSI) PARA RIOSTRAS DE PLACA HUELLA | D12: m³ | E12: 2019-01-11 | F12: Activo
A13: 34 | B13: APU-DNP9 | C13: ACERO DE REFUERZO 4.200 KG/CM² (60.000 PSI) PARA HUELLAS Y RIOSTRAS | D13: kg | E13: 2019-01-11 | F13: Activo
A14: 35 | B14: APU-DNP10 | C14: MEJORAMIENTO DE LA SUBRASANTE CON ADICIÓN DE MATERIALES | D14: m³ | E14: 2019-01-11 | F14: Activo
A15: 36 | B15: APU-DNP11 | C15: BASE TRATADA CON CEMENTO RESISTENCIA R-3.5 (INCLUYE SUMINISTRO DE CEMENTO) | D15: m³ | E15: 2019-01-11 | F15: Activo
A16: 37 | B16: APU-DNP12 | C16: BASE ESTABILIZADA CON EMULSIÓN ASFÁLTICA TIPO BEE-38 | D16: m³ | E16: 2019-01-12 | F16: Activo
A17: 38 | B17: APU-DNP13 | C17: BASE GRANULAR ESTABILIZADA MECÁNICAMENTE (BASE GRANULAR CLASE C) | D17: m³ | E17: 2019-01-12 | F17: Activo
A18: 39 | B18: APU-DNP14 | C18: LECHADA ASFÁLTICA CON EMULSIÓN CRL-1HM, TIPO LA-5 | D18: m² | E18: 2019-01-12 | F18: Activo
A19: 40 | B19: APU-DNP15 | C19: TRATAMIENTO SUPERFICIAL DOBLE CON EMULSIÓN CRR-2 TIPO 1 | D19: m² | E19: 2019-01-12 | F19: Activo
A20: 41 | B20: APU-DNP16 | C20: EXCAVACIÓN MANUAL | D20: m³ | E20: 2019-01-12 | F20: Activo
A21: 42 | B21: APU-DNP17 | C21: RELLENO CON ARENA PROTECCIÓN TUBERIA | D21: m³ | E21: 2019-01-12 | F21: Activo
A22: 43 | B22: APU-DNP18 | C22: CONCRETO PARA ESTRUCTURAS RESISTENCIA DE 210 kg/cm² (3.000 PSI) | D22: m³ | E22: 2019-01-12 | F22: Activo
B23: APU-DNP19 | C23: TUBERÍA DE DIÁMETRO 0,9 M (36") EN CONCRETO PARA CADA ALCANTARILLA | D23: m
A24: 44 | B24: APU-DNP20 | C24: CONCRETO PARA CUNETAS RESISTENCIA DE 210 KG/CM² (3.000 PSI) | D24: m³ | E24: 2019-01-12 | F24: Activo
A25: 26 | B25: APU-DNP21 | C25: DISIPADORES DE ENERGIA EN CONCRETO CICLOPEO | D25: m³ | E25: 2019-01-11 | F25: Activo
B26: APU-DNP22 | C26: CONCRETO PARA SOLADO DE NIVELACIÓN RESISTENCIA DE 140 KG/CM² (2.000 PSI) | D26: m³
A27: 45 | B27: APU-DNP23 | C27: PANELES DE CONCRETO PARA MUROS DE TIERRA ESTABILIZADA MECÁNICAMENTE | D27: m² | E27: 2019-01-14 | F27: Activo
A28: 46 | B28: APU-DNP24 | C28: EXCAVACIÓN DE MATERIAL COMÚN PARA INSTALACIÓN DE MUROS | D28: m³ | E28: 2019-01-14 | F28: Activo
A29: 47 | B29: APU-DNP25 | C29: RELLENO GRANULAR PARA INSTALACIÓN DE MUROS DE CONTENCIÓN | D29: m³ | E29: 2019-01-14 | F29: Activo
A30: 48 | B30: APU-DNP26 | C30: SOLERA DE NIVELACIÓN PARA MUROS DE CONTENCIÓN | D30: m³ | E30: 2019-01-14 | F30: Activo
A31: 49 | B31: APU-DNP27 | C31: PLETINA EN ALTERNATIVA DE MUROS DE TIERRA ESTABILIZADA MECÁNICAMENTE CON PANELES DE CONCRETO CASO DE UN MURO SIN TALUD A BORDE DE VÍA | D31: m | E31: 2019-01-14 | F31: Activo
B32: APU-DNP28 | C32: CONCRETO F'C=21 MPA PARA CONSTRUCCIÓN MURO DE CONTENCIÓN | D32: m³
B33: APU-DNP29 | C33: GEOTEXTIL NT 1600 PARA CONSTRUCCIÓN MURO DE CONTENCIÓN | D33: m²
A34: 50 | B34: APU-DNP30 | C34: RELLENO EN MATERIAL FILTRANTE PARA CONSTRUCCION MURO DE CONTENCIÓN | D34: m³ | E34: 2019-01-15 | F34: Activo
B35: APU-DNP31 | C35: SUMINISTRO E INSTALACIÓN DE GAVIONES PREFABRICADOS | D35: m³
B36: APU-DNP32 | C36: CONCRETO DE 210 kg/cm² (3.000 PSI) | D36: m³ | G36: =+IFERROR(VLOOKUP($B36,APUS_RANGO,11,FALSE),"") -> 
B37: APU-DNP33 | C37: MORTERO 1:3 PARA DILATACIONES | D37: m³ | G37: =+IFERROR(VLOOKUP($B37,APUS_RANGO,11,FALSE),"") -> 
B38: APU-DNP34 | C38: CONCRETO DE 140 kg/cm² | D38: m³ | G38: =+IFERROR(VLOOKUP($B38,APUS_RANGO,11,FALSE),"") -> 
B39: APU-DNP35 | C39: MORTERO 1:3 PARA ANILLOS | D39: m³ | G39: =+IFERROR(VLOOKUP($B39,APUS_RANGO,11,FALSE),"") -> 
B40: APU-DNP36 | C40: CONCRETO RESISTENCIA 21 (MPa) | D40: m³ | G40: =+IFERROR(VLOOKUP($B40,APUS_RANGO,11,FALSE),"") -> 

Sheet LISTA_APUS
A4: CONSEC. | B4: COD. APU | C4: DESCRIPCIÓN | D4: UND | E4: Fecha | F4: ESTADO | G4: V/UNIT | H4: Columna1
A5: 1 | B5: APU1 | C5: =+IFERROR(VLOOKUP($B5,Nombre_APU,3,FALSE),"") -> LOCALIZACIÓN Y REPLANTEO | D5: =+IFERROR(VLOOKUP($B5,Nombre_APU,4,FALSE),"") -> m | G5: =+IFERROR(VLOOKUP($B5,APUS_RANGO,11,FALSE),"") ->  | H5: APU1
A6: 2 | B6: APU2 | C6: EXCAVACION SIN CLASIFICAR DE LA EXPLANACION Y CANALES | D6: m³ | G6: 6661 | H6: APU2
A7: 3 | B7: APU3 | C7: RELLENO PARA ESTRUCTURAS CON MATERIAL IMPORTADO | D7: m³ | G7: 2420 | H7: APU3
A8: 4 | B8: APU4 | C8: RETIRO MATERIAL DE EXCAVACIÓN (Incluye transporte) | D8: m³ | G8: 20935 | H8: APU4
A9: 5 | B9: APU5 | C9: CONFORMACION DE CALZADA EXISTENTE | D9: m² | G9: 959 | H9: APU5
A10: 6 | B10: APU6 | C10: SUB-BASE GRANULAR (incluye suministro, extendido, nivelación, humedecido y compactación) | D10: m³ | G10: 93516 | H10: APU6
A11: 7 | B11: APU7 | C11: CONCRETO 21 MPA (CLASE D) | D11: m³ | E11: 00:00:00 | G11: 550989 | H11: APU7
A12: 8 | B12: APU8 | C12: =+IFERROR(VLOOKUP($B12,Nombre_APU,3,FALSE),"") -> PIEDRA PEGADA | D12: =+IFERROR(VLOOKUP($B12,Nombre_APU,4,FALSE),"") -> m³ | G12: 370997 | H12: APU8
A13: 9 | B13: APU9 | C13: =+IFERROR(VLOOKUP($B13,Nombre_APU,3,FALSE),"") -> ACERO REFUERZO FLEJADO 60000 PSI - 420 Mpa | D13: kg | G13: 4302 | H13: APU9
A14: 10 | B14: APU10 | C14: =+IFERROR(VLOOKUP($B14,Nombre_APU,3,FALSE),"") -> SEÑAL VERTICAL DE TRANSITO TIPO 1 CON LAMINA RETRORREFLECTIVA TIPO III 75X75 cm | D14: Und | G14: 502123 | H14: APU10
A15: 11 | B15: APU11 | C15: TRANPORTE DE MAQUINARIA | D15: km | G15: 30769 | H15: APU11
A16: 12 | B16: APU12 | C16: =+IFERROR(VLOOKUP($B16,Nombre_APU,3,FALSE),"") -> BORDILLO PREFABRICADO A15 (15x35x80cm) | D16: m | G16: 50812 | H16: APU12
A17: 13 | B17: APU13 | C17: =+IFERROR(VLOOKUP($B17,Nombre_APU,3,FALSE),"") -> LOCALIZACIÓN Y REPLANTEO | D17: m² | G17: 3222 | H17: APU13
A18: 14 | B18: APU14 | C18: =+IFERROR(VLOOKUP($B18,Nombre_APU,3,FALSE),"") -> EXCAVACIONES VARIAS EN MATERIAL COMUN EN SECO (Incluye retiro) | D18: m³ | G18: 23078 | H18: APU14
A19: 15 | B19: APU15 | C19: MORTERO 1:3 | D19: m³ | G19: =+'APU BÁSICO'!K91 -> 404847 | H19: APU15
A20: 16 | B20: APU16 | C20: =+IFERROR(VLOOKUP($B20,Nombre_APU,3,FALSE),"") -> LOCALIZACIÓN Y REPLANTEO | D20: =+IFERROR(VLOOKUP($B20,Nombre_APU,4,FALSE),"") -> und | G20: =+IFERROR(VLOOKUP($B20,APUS_RANGO,11,FALSE),"") -> 213819 | H20: APU16
A21: 17 | B21: APU17 | C21: DEMOLICION DE ESTRUCTURAS | D21: m³ | G21: 106842 | H21: APU17
A22: 18 | B22: APU18 | C22: CONCRETO SIMPLE 14 MPa (CLASE F) PARA ATRAQUE | D22: m³ | G22: 286353 | H22: APU18
A23: 19 | B23: APU19 | C23: GAVIÓNES MALLA ALAMBRE DE ACERO ENTRELAZADO CLASE 1; RECUBRIMIENTO ZINC (GALV) | D23: m³ | G23: 172053 | H23: APU19
A24: 20 | B24: APU20 | C24: GEOTEXTIL TIPO NT-2500 O SIMILAR NO TEJIDO | D24: m² | G24: 8361 | H24: APU20
A25: 21 | B25: APU21 | C25: GEOTEXTIL NO TEJIDO 1600 | D25: m² | G25: 5611 | H25: APU21
A26: 22 | B26: APU22 | C26: FILTRO EN GRAVA FINA | D26: m³ | G26: 175313 | H26: APU22
A27: 23 | B27: APU23 | C27: TUBERÍA DE DRENAJE DE Ø = 4" | D27: m | G27: 31338 | H27: APU23
A28: 24 | B28: APU24 | C28: CONCRETO 14 MPA (CLASE F) PARA SOLADO | D28: m³ | G28: 286353 | H28: APU24
A29: 25 | B29: APU25 | C29: TUBERIA EN CONCRETO REFORZADO 21 MPa - D=900 mm | D29: m | G29: 559377 | H29: APU25
A30: 26 | B30: APU26 | C30: CARACTERIZACIÓN VIAL | D30: km | G30: 696696 | H30: APU26
A31: 27 | B31: APU27 | C31: CONCRETO BÁSICO 21 Mpa | D31: m³ | E31: 2019-02-15 | G31: =+APU20_BASICO -> 345238 | H31: APU27
A32: 28 | B32: APU28 | C32: CONCRETO BÁSICO 14 Mpa | D32: m³ | E32: 2019-02-15 | G32: =+APU21_BASICO -> 280338 | H32: APU28
A33: 29 | B33: APU29 | C33: =+IFERROR(VLOOKUP($B33,Nombre_APU,3,FALSE),"") -> MEJORAMIENTO DE LA SUBRASANTE CON ADICIÓN DE MATERIALES | D33: =+IFERROR(VLOOKUP($B33,Nombre_APU,4,FALSE),"") -> m³ | E33: 2019-06-17 | F33: Activo | G33: =+IFERROR(VLOOKUP($B33,APUS_RANGO,11,FALSE),"") -> 45080
A34: 30 | B34: APU30 | C34: BASE TRATADA CON CEMENTO RESISTENCIA R-3.5 (incluye suministro de cemento) | D34: m³ | E34: 2019-06-17 | F34: Activo | G34: 154264
A35: 31 | B35: APU31 | C35: LECHADA ASFÁLTICA CON EMULSIÓN CRL-1HM, TIPO LA-5 | D35: m² | G35: 3905
A36: 32 | B36: APU32 | C36: TRATAMIENTO SUPERFICIAL DOBLE CON EMULSIÓN CRR-2, TIPO 1 | D36: m² | G36: 13419
A37: 33 | B37: APU33 | C37: BASE ESTABILIZADA CON EMULSIÓN ASFÁLTICA TIPO BEE - 38 | D37: m³ | G37: 300861
A38: 34 | B38: APU34 | C38: BASE GRANULAR ESTABILIZADA MECÁNICAMENTE (Base Granular Clase C) | D38: m³ | G38: 86769

Sheet CANT_ALCANT_AA
A5: DEMOLICIÓN ALETA
A6: ELEMENTO | B6: LONG | C6: ALTURA/ANCHO 1 | D6: ALTURA/ANCHO 2 | E6: ALTURA/ANCHO PROM | F6: ESPESOR | G6: CANT | H6: VOLUMEN
B7: m | C7: m | D7: m | E7: m | F7: m | G7: und | H7: m3
A8: MURO FRONTAL | B8: 1.8 | E8: 2.25 | F8: 0.25 | G8: 1 | H8: =ROUND(B8*E8*F8*G8,2) -> 1.01
A9: ALETAS | B9: 1.8 | C9: 2.25 | D9: 1.5 | E9: =(C9+D9)/2 -> 1.875 | F9: 0.25 | G9: 2 | H9: =ROUND(B9*E9*F9*G9,2) -> 1.69
A10: ZAPATA MURO | B10: 1.8 | E10: 1.2 | F10: 0.3 | G10: 1 | H10: 0.65
A11: ZAPATA ALETAS | B11: 1.8 | E11: 1.2 | F11: 0.3 | G11: 2 | H11: 1.3
A12: LOSA | B12: 1.27 | C12: 4.35 | D12: 1.8 | E12: =(C12+D12)/2 -> 3.075 | F12: 0.2 | G12: 1 | H12: 0.78
A13: DENTELLÓN LOSA | B13: 4.35 | E13: 0.3 | F13: 0.25 | G13: 1 | H13: 0.33
A14: GUARDA RUEDA | B14: 1.8 | E14: 0.2 | F14: 0.25 | G14: 1 | H14: 0.09
G15: TOTAL | H15: =SUM(H8:H14) -> 5.85
A18: DEMOLICIÓN TUBERÍA
A19: ELEMENTO | B19: LONG. | C19: DIÁMETRO | D19: AREA/TUBO | E19: VOL/TUBO | F19: LONG ALC | G19: VOL/ALC
B20: m | C20: m | D20: m2 | E20: m3 | F20: m | G20: m3
A21: TUBO DE 24" | B21: 1 | C21: =ROUND((24*2.54/100),2) -> 0.61 | D21: =ROUND((3.1416*(C21/2)*(C21/2)),2) -> 0.29 | E21: =D21*B21 -> 0.29 | F21: =5+1.5+1.5 -> 8 | G21: =E21*F21 -> 2.32
F22: TOTAL | G22: =SUM(G21) -> 2.32
A24: RELLENOS
A26: RELLENO CON MATERIAL IMPORTADO
A27: ELEMENTO | B27: LONG | C27: ANCHO | D27: ALTURA | E27: ESPESOR | F27: CANT | G27: VOLUMEN
B28: m | C28: m | E28: m | F28: und | G28: m3
A29: Relleno con material importado | B29: 7 | C29: 1.6 | D29: =1+1.1 -> 2.1 | G29: =ROUND(B29*C29*D29,2) -> 23.52
A30: Descuento tubería | G30: =-G38 -> -6.65
F31: TOTAL | G31: =SUM(G29:G30) -> 16.87
A34: VOLUMEN TUBO 36"
A35: ELEMENTO | B35: LONG. | C35: DIÁMETRO | D35: AREA/TUBO | E35: VOL/TUBO | F35: LONG ALC | G35: VOL/ALC
B36: m | C36: m | D36: m2 | E36: m3 | F36: m | G36: m3
A37: TUBO DE 36" | B37: 1 | C37: 1.1 | D37: =ROUND((3.1416*(C37/2)*(C37/2)),2) -> 0.95 | E37: =D37*B37 -> 0.95 | F37: 7 | G37: =E37*F37 -> 6.65
F38: TOTAL | G38: =SUM(G37) -> 6.65
A42: CONCRETOS
A44: CONCRETO 21 MPA PARA ALETAS (Encole)
A45: ELEMENTO | B45: LONG | C45: ALTURA/ANCHO 1 | D45: ALTURA/ANCHO 2 | E45: ALTURA/ANCHO PROM | F45: ESPESOR | G45: CANT | H45: VOLUMEN
B46: m | C46: m | D46: m | E46: m | F46: m | G46: und | H46: m3
A47: MURO FRONTAL | B47: 1.8 | E47: 2.25 | F47: 0.25 | G47: 1 | H47: =ROUND(B47*E47*F47*G47,2) -> 1.01
A48: ALETAS | B48: 1.8 | C48: 2.25 | D48: 1.5 | E48: =(C48+D48)/2 -> 1.875 | F48: 0.25 | G48: 2 | H48: =ROUND(B48*E48*F48*G48,2) -> 1.69
A49: ZAPATA MURO | B49: 1.8 | E49: 1.2 | F49: 0.3 | G49: 1 | H49: 0.65
A50: ZAPATA ALETAS | B50: 1.8 | E50: 1.2 | F50: 0.3 | G50: 2 | H50: 1.3
A51: LOSA | B51: 1.27 | C51: 4.35 | D51: 1.8 | E51: =(C51+D51)/2 -> 3.075 | F51: 0.2 | G51: 1 | H51: 0.78
A52: DENTELLÓN LOSA | B52: 4.35 | E52: 0.3 | F52: 0.25 | G52: 1 | H52: 0.33
A53: GUARDA RUEDA | B53: 1.8 | E53: 0.2 | F53: 0.25 | G53: 1 | H53: 0.09
G54: SUB-TOTAL | H54: =SUM(H47:H53) -> 5.85
A56: CONCRETO 21 MPA PARA ALETAS (Descole)
A57: ELEMENTO | B57: LONG | E57: ALTURA | F57: ESPESOR | G57: CANT | H57: VOLUMEN
B58: m | E58: m | F58: m | G58: und | H58: m3
A59: MURO FRONTAL | B59: 1.8 | E59: 2.25 | F59: 0.25 | G59: 1 | H59: =ROUND(B59*E59*F59*G59,2) -> 1.01
A60: ALETAS | B60: 1.8 | C60: 2.25 | D60: 1.5 | E60: =(C60+D60)/2 -> 1.875 | F60: 0.25 | G60: 2 | H60: =ROUND(B60*E60*F60*G60,2) -> 1.69
A61: ZAPATA MURO | B61: 1.8 | E61: 1.2 | F61: 0.3 | G61: 1 | H61: 0.65
A62: ZAPATA ALETAS | B62: 1.8 | E62: 1.2 | F62: 0.3 | G62: 2 | H62: 1.3
A63: LOSA | B63: 1.27 | C63: 4.35 | D63: 1.8 | E63: =(C63+D63)/2 -> 3.075 | F63: 0.2 | G63: 1 | H63: 0.78
A64: DENTELLÓN LOSA | B64: 4.35 | E64: 0.3 | F64: 0.25 | G64: 1 | H64: 0.33
A65: GUARDA RUEDA | B65: 1.8 | E65: 0.2 | F65: 0.25 | G65: 1 | H65: 0.09
G66: SUB-TOTAL | H66: =SUM(H59:H65) -> 5.85
A68: TOTAL CONCRETO PARA POCETA Y ALETAS | H68: =H54+H66 -> 11.7
A71: CONCRETO SIMPLE 14 MPA (CLASE F) PARA ATRAQUE
A72: ELEMENTO | B72: LONG | E72: ALTURA/ANCHO | F72: ESPESOR | G72: CANT | H72: VOLUMEN
B73: m | E73: m | F73: m | G73: und | H73: m3
A74: ATRAQUE TUBERÍA | B74: 7 | E74: 1.6 | F74: 0.15 | G74: 1 | H74: =ROUND(B74*E74*F74*G74,2) -> 1.68
G75: TOTAL | H75: =SUM(H74:H74) -> 1.68
A77: ACERO DE REFUERZO

Sheet CANT_ALCANT_P_A
A2: DEMOLICIONES
A4: DEMOLICIÓN POCETA
A5: ELEMENTO | B5: LONG | C5: ALTURA | D5: ESPESOR | E5: CANT | F5: VOLUMEN
B6: m | C6: m | D6: m | E6: und | F6: m3
A7: MURO 1 | B7: 1.4 | C7: 2.12 | D7: 0.25 | E7: 2 | F7: =ROUND(B7*C7*D7*E7,2) -> 1.48
A8: MURO 2 | B8: 1.5 | C8: 2.12 | D8: 0.25 | E8: 2 | F8: =ROUND(B8*C8*D8*E8,2) -> 1.59
A9: LOSA | B9: 1.9 | C9: 1.5 | D9: 0.2 | E9: 1 | F9: =ROUND((B9*C9*D9*E9),2) -> 0.57
E10: TOTAL | F10: =SUM(F7:F9) -> 3.64
A12: DEMOLICIÓN ALETA
A13: ELEMENTO | B13: LONG | C13: ALTURA/ANCHO 1 | D13: ALTURA/ANCHO 2 | E13: ALTURA/ANCHO PROM | F13: ESPESOR | G13: CANT | H13: VOLUMEN
B14: m | C14: m | D14: m | E14: m | F14: m | G14: und | H14: m3
A15: MURO FRONTAL | B15: 1.8 | E15: 2.25 | F15: 0.25 | G15: 1 | H15: =ROUND(B15*E15*F15*G15,2) -> 1.01
A16: ALETAS | B16: 1.8 | C16: 2.25 | D16: 1.5 | E16: =(C16+D16)/2 -> 1.875 | F16: 0.25 | G16: 2 | H16: =ROUND(B16*E16*F16*G16,2) -> 1.69
A17: ZAPATA MURO | B17: 1.8 | E17: 1.2 | F17: 0.3 | G17: 1 | H17: 0.65
A18: ZAPATA ALETAS | B18: 1.8 | E18: 1.2 | F18: 0.3 | G18: 2 | H18: 1.3
A19: LOSA | B19: 1.27 | C19: 4.35 | D19: 1.8 | E19: =(C19+D19)/2 -> 3.075 | F19: 0.2 | G19: 1 | H19: 0.78
A20: DENTELLÓN LOSA | B20: 4.35 | E20: 0.3 | F20: 0.25 | G20: 1 | H20: 0.33
A21: GUARDA RUEDA | B21: 1.8 | E21: 0.2 | F21: 0.25 | G21: 1 | H21: 0.09
G22: TOTAL | H22: =SUM(H15:H21) -> 5.85
A25: DEMOLICIÓN TUBERÍA
A26: ELEMENTO | B26: LONG. | C26: DIÁMETRO | D26: AREA/TUBO | E26: VOL/TUBO | F26: LONG ALC | G26: VOL/ALC
B27: m | C27: m | D27: m2 | E27: m3 | F27: m | G27: m3
A28: TUBO DE 24" | B28: 1 | C28: =ROUND((24*2.54/100),2) -> 0.61 | D28: =ROUND((3.1416*(C28/2)*(C28/2)),2) -> 0.29 | E28: =D28*B28 -> 0.29 | F28: =5+1.5+1.5 -> 8 | G28: =E28*F28 -> 2.32
F29: TOTAL | G29: =SUM(G28) -> 2.32
A32: EXCAVACIONES
A34: ELEMENTO | B34: LONG | C34: ANCHO | D34: ALTURA | E34: ESPESOR | F34: CANT | G34: VOLUMEN
B35: m | C35: m | E35: m | F35: und | G35: m3
A36: Para instalación de tubería | B36: 7 | C36: 1.6 | D36: =1+1.1+0.15 -> 2.25 | G36: =ROUND(B36*C36*D36,2) -> 25.2
A37: Para Poceta (Encole) | B37: 1.9 | C37: 1.5 | D37: 2.32 | G37: =ROUND(B37*C37*D37,2) -> 6.61
A38: Para Aletas (Descole) | B38: =(4.35+1.8)/2 -> 3.075 | C38: =0.25+1.27 -> 1.52 | D38: 2.22 | G38: =ROUND(B38*C38*D38,2) -> 10.38
A39: Para Dentellón losa | B39: 4.35 | C39: 0.25 | D39: 0.3 | G39: =ROUND(B39*C39*D39,2) -> 0.33
A40: Para zapata muro frontal (Descole) | B40: 1.8 | C40: 1.2 | D40: 0.3 | G40: =ROUND(B40*C40*D40,2) -> 0.65
A41: Para zapata muro lateral (Descole) | B41: 1.8 | C41: 1.2 | D41: 0.3 | F41: 2 | G41: =ROUND(B41*C41*D41*F41,2) -> 1.3
F42: TOTAL | G42: =SUM(G36:G41) -> 44.47
A44: RELLENOS
A46: RELLENO CON MATERIAL IMPORTADO
A47: ELEMENTO | B47: LONG | C47: ANCHO | D47: ALTURA | E47: ESPESOR | F47: CANT | G47: VOLUMEN
B48: m | C48: m | E48: m | F48: und | G48: m3
A49: Relleno con material importado | B49: 7 | C49: 1.6 | D49: =1+1.1 -> 2.1 | G49: =ROUND(B49*C49*D49,2) -> 23.52
A50: Descuento tubería | G50: =-G58 -> -6.65
F51: TOTAL | G51: =SUM(G49:G50) -> 16.87
A54: VOLUMEN TUBO 36"
A55: ELEMENTO | B55: LONG. | C55: DIÁMETRO | D55: AREA/TUBO | E55: VOL/TUBO | F55: LONG ALC | G55: VOL/ALC
B56: m | C56: m | D56: m2 | E56: m3 | F56: m | G56: m3
A57: TUBO DE 36" | B57: 1 | C57: 1.1 | D57: =ROUND((3.1416*(C57/2)*(C57/2)),2) -> 0.95 | E57: =D57*B57 -> 0.95 | F57: 7 | G57: =E57*F57 -> 6.65
F58: TOTAL | G58: =SUM(G57) -> 6.65
A62: CONCRETOS
A64: CONCRETO 21 MPA PARA ALETAS (Descole)
A65: ELEMENTO | B65: LONG | C65: ALTURA/ANCHO 1 | D65: ALTURA/ANCHO 2 | E65: ALTURA/ANCHO PROM | F65: ESPESOR | G65: CANT | H65: VOLUMEN
B66: m | C66: m | D66: m | E66: m | F66: m | G66: und | H66: m3
A67: MURO FRONTAL | B67: 1.8 | E67: 2.25 | F67: 0.25 | G67: 1 | H67: =ROUND(B67*E67*F67*G67,2) -> 1.01
A68: ALETAS | B68: 1.8 | C68: 2.25 | D68: 1.5 | E68: =(C68+D68)/2 -> 1.875 | F68: 0.25 | G68: 2 | H68: =ROUND(B68*E68*F68*G68,2) -> 1.69
A69: ZAPATA MURO | B69: 1.8 | E69: 1.2 | F69: 0.3 | G69: 1 | H69: 0.65
A70: ZAPATA ALETAS | B70: 1.8 | E70: 1.2 | F70: 0.3 | G70: 2 | H70: 1.3
A71: LOSA | B71: 1.27 | C71: 4.35 | D71: 1.8 | E71: =(C71+D71)/2 -> 3.075 | F71: 0.2 | G71: 1 | H71: 0.78
A72: DENTELLÓN LOSA | B72: 4.35 | E72: 0.3 | F72: 0.25 | G72: 1 | H72: 0.33
A73: GUARDA RUEDA | B73: 1.8 | E73: 0.2 | F73: 0.25 | G73: 1 | H73: 0.09
G74: SUB-TOTAL | H74: =SUM(H67:H73) -> 5.85
A76: CONCRETO 21 MPA PARA POCETA (Encole)
A77: ELEMENTO | B77: LONG | E77: ALTURA | F77: ESPESOR | G77: CANT | H77: VOLUMEN
B78: m | E78: m | F78: m | G78: und | H78: m3
A79: MURO FRONTAL | B79: 1.4 | E79: =2.32-0.25 -> 2.07 | F79: 0.25 | G79: 2 | H79: =ROUND(B79*E79*F79*G79,2) -> 1.45
A80: MURO LATERAL | B80: 1.5 | E80: =2.32-0.25 -> 2.07 | F80: 0.25 | G80: 2 | H80: =ROUND(B80*E80*F80*G80,2) -> 1.55
A81: LOSA | B81: 1.9 | E81: 1.5 | F81: 0.25 | G81: 1 | H81: =ROUND((B81*E81*F81*G81),2) -> 0.71
G82: SUB-TOTAL | H82: =SUM(H79:H81) -> 3.71
A84: TOTAL CONCRETO PARA POCETA Y ALETAS | H84: =H74+H82 -> 9.56
A87: CONCRETO SIMPLE 14 MPA (CLASE F) PARA ATRAQUE
A88: ELEMENTO | B88: LONG | E88: ALTURA/ANCHO | F88: ESPESOR | G88: CANT | H88: VOLUMEN
B89: m | E89: m | F89: m | G89: und | H89: m3
A90: ATRAQUE TUBERÍA | B90: 7 | E90: 1.6 | F90: 0.15 | G90: 1 | H90: =ROUND(B90*E90*F90*G90,2) -> 1.68
G91: TOTAL | H91: =SUM(H90:H90) -> 1.68
A93: ACERO DE REFUERZO

Sheet CANT_MURO_C_H
A5: H (m) | B5: B (m) | C5: h (m) | D5: Peso | E5: ф (Pulg) | F5: Varilla A | N5: Varilla B | V5: Varilla C | AD5: Varilla D | AL5: Varilla E | AT5: Varilla F | AZ5: Varilla R Muro | BC5: Varilla R Zapata | BF5: Peso total | BG5: Peso Cartilla | BH5: Diferencia
D6: Kg/ml | F6: s | G6: ф | H6: Kg/ml | I6: I1 | J6: g1 | K6: LT | L6: # Var/ ml | M6: Kg | N6: s | O6: ф | P6: Kg/ml | Q6: I2 | R6: g2 | S6: LT | T6: # Var/ ml | U6: Kg | V6: s | W6: ф | X6: Kg/ml | Y6: I3 | Z6: g3 | AA6: LT | AB6: # Var/ ml | AC6: Kg | AD6: s | AE6: ф | AF6: Kg/ml | AG6: I4 | AH6: g4 | AI6: LT | AJ6: # Var/ ml | AK6: Kg/ml | AL6: s | AM6: ф | AN6: Kg/ml | AO6: I5 | AP6: g5 | AQ6: LT | AR6: # Var/ ml | AS6: Kg/ml | AT6: s | AU6: I6 | AV6: g6 | AW6: LT | AX6: # Var/ ml | AY6: Kg/ml | AZ6: s | BA6: # Var | BB6: Kg/ml | BC6: s | BD6: # Var | BE6: Kg/ml | BF6: Kg | BG6: Kg | BH6: Kg
A7: 2 | B7: 1.7 | C7: 1.7 | D7: 0.994 | E7: 1/2" | F7: 0.35 | I7: 1.6 | J7: 0.2 | K7: =I7+2*J7 -> 2 | L7: =ROUND(1/F7,0) -> 3 | M7: =$D$7*L7*K7 -> 5.964 | N7: 0.35 | Q7: 1.6 | R7: 0.2 | S7: =Q7+2*R7 -> 2 | T7: =ROUND(1/N7,0) -> 3 | U7: =$D$7*T7*S7 -> 5.964 | V7: 0.35 | Y7: 1.9 | Z7: 0.2 | AA7: =Y7+Z7 -> 2.1 | AB7: =ROUND(1/V7,0) -> 3 | AC7: =$D$7*AB7*AA7 -> 6.2622 | AT7: 0.35 | AU7: 1.9 | AV7: 0.2 | AW7: =AU7+AV7 -> 2.1 | AX7: =ROUND(1/AT7,0) -> 3 | AY7: =$D$7*AX7*AW7 -> 6.2622 | AZ7: 0.35 | BA7: =ROUND(((C7-0.05-0.0127)/AZ7)+1,0)*2 -> 12 | BB7: =$D$7*BA7*1 -> 11.928 | BC7: 0.35 | BD7: =ROUND(((B7-0.05*2-0.0127)/BC7)+1,0)*2 -> 12 | BE7: =$D$7*BD7*1 -> 11.928 | BF7: =SUM(BE7,BB7,AY7,AC7,M7,U7) -> 48.3084 | BG7: 43.7 | BH7: =BF7-BG7 -> 4.6084
A8: 2.5 | B8: 2 | C8: 2.15 | D8: 0.994 | E8: 1/2" | F8: 0.3 | I8: 1.9 | J8: 0.2 | K8: =I8+2*J8 -> 2.3 | L8: =ROUND(1/F8,0)+1 -> 4 | M8: =$D$7*L8*K8 -> 9.1448 | N8: 0.3 | Q8: 1.9 | R8: 0.2 | S8: =Q8+2*R8 -> 2.3 | T8: =ROUND(1/N8,0)+1 -> 4 | U8: =$D$7*T8*S8 -> 9.1448 | V8: 0.25 | Y8: 2.4 | Z8: 0.2 | AA8: =Y8+Z8 -> 2.6 | AB8: =ROUND(1/V8,0)+1 -> 5 | AC8: =$D$7*AB8*AA8 -> 12.922 | AT8: 0.3 | AU8: 2.4 | AV8: 0.2 | AW8: =AU8+AV8 -> 2.6 | AX8: =ROUND(1/AT8,0)+1 -> 4 | AY8: =$D$7*AX8*AW8 -> 10.3376 | AZ8: 0.3 | BA8: 16 | BB8: =$D$7*BA8*1 -> 15.904 | BC8: 0.3 | BD8: 14 | BE8: =$D$7*BD8*1 -> 13.916 | BF8: =SUM(BE8,BB8,AY8,AC8,M8,U8) -> 71.3692 | BG8: 62.7 | BH8: =BF8-BG8 -> 8.6692
A9: 3 | B9: 2.2 | C9: 2.6 | D9: 0.994 | E9: 1/2" | F9: 0.3 | I9: 2.1 | J9: 0.2 | K9: =I9+2*J9 -> 2.5 | L9: =ROUND(1/F9,0)+1 -> 4 | M9: 9.94 | N9: 0.2 | Q9: 2.1 | R9: 0.2 | S9: =Q9+2*R9 -> 2.5 | T9: =ROUND(1/N9,0)+1 -> 6 | U9: =$D$7*T9*S9 -> 14.91 | V9: 0.15 | Y9: 2.9 | Z9: 0.2 | AA9: 3.1 | AB9: =ROUND(1/V9,0) -> 7 | AC9: =$D$7*AB9*AA9 -> 21.5698 | AT9: 0.3 | AU9: 2.9 | AV9: 0.2 | AW9: 3.1 | AX9: 4 | AY9: =$D$7*AX9*AW9 -> 12.3256 | AZ9: 0.3 | BA9: 18 | BB9: 17.892 | BC9: 0.3 | BD9: 16 | BE9: 15.904 | BF9: =SUM(BE9,BB9,AY9,AC9,M9,U9) -> 92.5414 | BG9: 84.5 | BH9: 8.0414
A10: 3.5 | B10: 2.45 | C10: 3.05 | D10: 0.994 | E10: 1/2" | F10: 0.25 | I10: 2.35 | J10: 0.2 | K10: =I10+2*J10 -> 2.75 | L10: =ROUND(1/F10,0)+1 -> 5 | M10: 13.6675 | N10: 0.1 | Q10: 2.35 | R10: 0.2 | S10: =Q10+2*R10 -> 2.75 | T10: =ROUND(1/N10,0)+1 -> 11 | U10: =$D$7*T10*S10 -> 30.0685 | V10: 0.2 | Y10: 3.4 | Z10: 0.2 | AA10: 3.6 | AB10: =ROUND(1/V10,0)+1 -> 6 | AC10: =$D$7*AB10*AA10 -> 21.4704 | AD10: 0.2 | AG10: 2.8 | AH10: 0.2 | AI10: =AG10+AH10 -> 3 | AJ10: =ROUND(1/AD10,0)+1 -> 6 | AK10: =$D$7*AJ10*AI10 -> 17.892 | AT10: 0.3 | AU10: 3.4 | AV10: 0.2 | AW10: 3.6 | AX10: 4 | AY10: =$D$7*AX10*AW10 -> 14.3136 | AZ10: 0.3 | BA10: 22 | BB10: 21.868 | BC10: 0.3 | BD10: 18 | BE10: 17.892 | BF10: =SUM(BE10,BB10,AY10,AC10,M10,U10,AK10) -> 137.172 | BG10: 120.8 | BH10: 16.372
A11: 4 | B11: 3 | C11: 3.5 | D11: 0.994 | E11: 1/2" | F11: 0.25 | I11: 2.9 | J11: 0.2 | K11: 3.3 | L11: =ROUND(1/F11,0)+1 -> 5 | M11: 16.401 | N11: 0.1 | Q11: 2.9 | R11: 0.2 | S11: 3.3 | T11: =ROUND(1/N11,0)+1 -> 11 | U11: =$D$7*T11*S11 -> 36.0822 | V11: 0.2 | Y11: 3.9 | Z11: 0.2 | AA11: 4.1 | AB11: 6 | AC11: =$D$7*AB11*AA11 -> 24.4524 | AD11: 0.2 | AG11: 3 | AH11: 0.2 | AI11: =AG11+AH11 -> 3.2 | AJ11: 6 | AK11: =$D$7*AJ11*AI11 -> 19.0848 | AT11: 0.3 | AU11: 3.9 | AV11: 0.2 | AW11: 4.1 | AX11: 4 | AY11: 16.3016 | AZ11: 0.3 | BA11: 24 | BB11: 23.856 | BC11: 0.3 | BD11: 22 | BE11: 21.868 | BF11: =SUM(BE11,BB11,AY11,AC11,M11,U11,AK11) -> 158.046 | BG11: 140.4 | BH11: 17.646
A12: 4.5 | B12: 3.5 | C12: 3.95 | D12: 0.994 | E12: 1/2" | F12: 0.15 | I12: 3.4 | J12: 0.2 | K12: 3.8 | L12: =ROUND(1/F12,0) -> 7 | M12: 26.4404 | N12: 0.15 | O12: 5/8 | P12: 1.56 | Q12: 3.4 | R12: 0.25 | S12: 3.9 | T12: =ROUND(1/N12,0) -> 7 | U12: =P12*T12*S12 -> 42.588 | V12: 0.2 | W12: 1/2 | X12: 0.994 | Y12: 4.4 | Z12: 0.2 | AA12: 4.6 | AB12: 6 | AC12: =X12*AB12*AA12 -> 27.4344 | AD12: 0.2 | AE12: 1/2 | AF12: 0.994 | AG12: 3.8 | AH12: 0.2 | AI12: =AG12+AH12 -> 4 | AJ12: 6 | AK12: =AF12*AJ12*AI12 -> 23.856 | AT12: 0.3 | AU12: 4.4 | AV12: 0.2 | AW12: 4.6 | AX12: 4 | AY12: 18.2896 | AZ12: 0.3 | BA12: 28 | BB12: 27.832 | BC12: 0.3 | BD12: 24 | BE12: 23.856 | BF12: =SUM(BE12,BB12,AY12,AC12,M12,U12,AK12) -> 190.2964 | BG12: 174.4 | BH12: 15.8964
A13: 5 | B13: 3.8 | C13: 4.45 | D13: 0.994 | E13: - | F13: 0.1 | G13: 1/2 | H13: 0.994 | I13: 3.7 | J13: 0.2 | K13: 4.1 | L13: =ROUND(1/F13,0)+1 -> 11 | M13: 44.8294 | N13: 0.1 | O13: 5/8 | P13: 1.56 | Q13: 3.7 | R13: 0.25 | S13: 4.2 | T13: =ROUND(1/N13,0)+1 -> 11 | U13: 72.072 | V13: 0.3 | W13: 5/8 | X13: 1.56 | Y13: 4.85 | Z13: 0.25 | AA13: 5.1 | AB13: 4 | AC13: 31.824 | AD13: 0.3 | AE13: 5/8 | AF13: 1.56 | AG13: 4 | AH13: 0.25 | AI13: 4.25 | AJ13: 4 | AK13: 26.52 | AL13: 0.3 | AM13: 5/8 | AN13: 1.56 | AO13: 3 | AP13: 0.25 | AQ13: =AP13+AO13 -> 3.25 | AR13: =ROUND(1/AL13,0)+1 -> 4 | AS13: =AN13*AR13*AQ13 -> 20.28 | AT13: 0.3 | AU13: 4.9 | AV13: 0.2 | AW13: 5.1 | AX13: 4 | AY13: 20.2776 | AZ13: 0.25 | BA13: 38 | BB13: 37.772 | BC13: 0.25 | BD13: 32 | BE13: 31.808 | BF13: =SUM(BE13,BB13,AY13,AC13,M13,U13,AS13,AK13) -> 285.383 | BG13: 254.8 | BH13: 30.583
A14: 5.5 | B14: 4.2 | C14: 4.9 | D14: 0.994 | E14: - | F14: 0.15 | G14: 5/8 | H14: 1.56 | I14: 4.1 | J14: 0.25 | K14: 4.6 | L14: 7 | M14: =H14*L14*K14 -> 50.232 | N14: 0.15 | O14: 3/4 | P14: 2.25 | Q14: 4.1 | R14: 0.3 | S14: 4.7 | T14: =ROUND(1/N14,0) -> 7 | U14: 74.025 | V14: 0.45 | W14: 3/4 | X14: 2.25 | Y14: 5.35 | Z14: 0.3 | AA14: 5.65 | AB14: 3 | AC14: 38.1375 | AD14: 0.45 | AE14: 3/4 | AF14: 2.25 | AG14: 4 | AH14: 0.3 | AI14: 4.3 | AJ14: 3 | AK14: 29.025 | AL14: 0.45 | AM14: 3/4 | AN14: 2.25 | AO14: 3.6 | AP14: 0.3 | AQ14: =AP14+AO14 -> 3.9 | AR14: =ROUND(1/AL14,0)+1 -> 3 | AS14: 26.325 | AT14: 0.25 | AU14: 5.4 | AV14: 0.2 | AW14: =AU14+AV14 -> 5.6 | AX14: 5 | AY14: 27.832 | AZ14: 0.25 | BA14: 40 | BB14: 39.76 | BC14: 0.25 | BD14: 34 | BE14: 33.796 | BF14: =SUM(BE14,BB14,AY14,AC14,M14,U14,AS14,AK14) -> 319.1325 | BG14: 282.3 | BH14: 36.8325
A15: 6 | B15: 4.6 | C15: 5.4 | D15: 0.994 | E15: - | F15: 0.125 | G15: 5/8 | H15: 1.56 | I15: 4.5 | J15: 0.25 | K15: 5 | L15: =ROUND(1/F15,0)+1 -> 9 | M15: =H15*L15*K15 -> 70.2 | N15: 0.125 | O15: 3/4 | P15: 2.25 | Q15: 4.5 | R15: 0.3 | S15: 5.1 | T15: =ROUND(1/N15,0)+1 -> 9 | U15: 103.275 | V15: 0.36 | W15: 3/4 | X15: 2.25 | Y15: 5.9 | Z15: 0.3 | AA15: 6.2 | AB15: 4 | AC15: 55.8 | AD15: 0.36 | AE15: 3/4 | AF15: 2.25 | AG15: 4.4 | AH15: 0.3 | AI15: 4.7 | AJ15: 4 | AK15: 42.3 | AL15: 0.36 | AM15: 3/4 | AN15: 2.25 | AO15: 3.7 | AP15: 0.3 | AQ15: =AP15+AO15 -> 4 | AR15: =ROUND(1/AL15,0)+1 -> 4 | AS15: 36 | AT15: 0.25 | AU15: 5.9 | AV15: 0.2 | AW15: 6.1 | AX15: 5 | AY15: 30.317 | AZ15: 0.25 | BA15: 44 | BB15: 43.736 | BC15: 0.25 | BD15: 38 | BE15: 37.772 | BF15: =SUM(BE15,BB15,AY15,AC15,M15,U15,AS15,AK15) -> 419.4 | BG15: 351 | BH15: 68.4
A16: 6.5 | B16: 4.8 | C16: 5.85 | D16: 0.994 | E16: - | F16: 0.125 | G16: 5/8 | H16: 1.56 | I16: 4.7 | J16: 0.25 | K16: 5.2 | L16: =ROUND(1/F16,0)+1 -> 9 | M16: =H16*L16*K16 -> 73.008 | N16: 0.125 | O16: 7/8 | P16: 3.042 | Q16: 4.7 | R16: 0.35 | S16: 5.4 | T16: =ROUND(1/N16,0)+1 -> 9 | U16: 147.8412 | V16: 0.3 | W16: 3/4 | X16: 2.25 | Y16: 6.35 | Z16: 0.3 | AA16: 6.65 | AB16: 4 | AC16: 59.85 | AD16: 0.3 | AE16: 3/4 | AF16: 2.25 | AG16: 5 | AH16: 0.3 | AI16: 5.3 | AJ16: 4 | AK16: 47.7 | AL16: 0.3 | AM16: 3/4 | AN16: 2.25 | AO16: 4.5 | AP16: 0.3 | AQ16: =AP16+AO16 -> 4.8 | AR16: =ROUND(1/AL16,0)+1 -> 4 | AS16: 43.2 | AT16: 0.25 | AU16: 6.4 | AV16: 0.2 | AW16: 6.6 | AX16: 5 | AY16: 32.802 | AZ16: 0.25 | BA16: 48 | BB16: 47.712 | BC16: 0.25 | BD16: 40 | BE16: 39.76 | BF16: =SUM(BE16,BB16,AY16,AC16,M16,U16,AS16,AK16) -> 491.8732 | BG16: 433 | BH16: 58.8732
A17: 7 | B17: 5.1 | C17: 6.3 | D17: 0.994 | E17: - | F17: 0.15 | G17: 3/4 | H17: 2.25 | I17: 5 | J17: 0.3 | K17: 5.6 | L17: 7 | M17: =H17*L17*K17 -> 88.2 | N17: 0.1 | O17: 7/8 | P17: 3.042 | Q17: 5 | R17: 0.35 | S17: 5.7 | T17: =ROUND(1/N17,0)+1 -> 11 | U17: 190.7334 | V17: 0.3 | W17: 7/8 | X17: 3.042 | Y17: 6.85 | Z17: 0.35 | AA17: 7.2 | AB17: 4 | AC17: 87.6096 | AD17: 0.3 | AE17: 7/8 | AF17: 3.042 | AG17: 5.65 | AH17: 0.35 | AI17: 6 | AJ17: 4 | AK17: 73.008 | AL17: 0.3 | AM17: 7/8 | AN17: 3.042 | AO17: 4.65 | AP17: 0.35 | AQ17: =AP17+AO17 -> 5 | AR17: =ROUND(1/AL17,0)+1 -> 4 | AS17: 60.84 | AT17: 0.25 | AU17: 6.9 | AV17: 0.2 | AW17: =AU17+AV17 -> 7.1 | AX17: 5 | AY17: 35.287 | AZ17: 0.25 | BA17: 52 | BB17: 51.688 | BC17: 0.25 | BD17: 42 | BE17: 41.748 | BF17: =SUM(BE17,BB17,AY17,AC17,M17,U17,AS17,AK17) -> 629.114 | BG17: 561.6 | BH17: 67.514

Sheet CANT_MURO_C_I
A6: H (m) | B6: B (m) | C6: h (m) | D6: Peso | E6: ф (Pulg) | F6: Varilla A | N6: Varilla B | V6: Varilla C | AD6: Varilla D | AL6: Varilla E | AT6: Varilla F | AZ6: Varilla R Muro | BC6: Varilla R Zapata | BF6: Varilla R Pata | BH6: Varilla G Pata | BN6: Peso total | BO6: Peso cartilla | BP6: Diferencia
D7: Kg/ml | F7: s | G7: ф | H7: Kg/ml | I7: I1 | J7: g1 | K7: LT | L7: # Var/ ml | M7: Kg | N7: s | O7: ф | P7: Kg/ml | Q7: I2 | R7: g2 | S7: LT | T7: # Var/ ml | U7: Kg | V7: s | W7: ф | X7: Kg/ml | Y7: I3 | Z7: g3 | AA7: LT | AB7: # Var/ ml | AC7: Kg | AD7: s | AE7: ф | AF7: Kg/ml | AG7: I4 | AH7: g4 | AI7: LT | AJ7: # Var/ ml | AK7: Kg/ml | AL7: s | AM7: ф | AN7: Kg/ml | AO7: I5 | AP7: g5 | AQ7: LT | AR7: # Var/ ml | AS7: Kg/ml | AT7: s | AU7: I6 | AV7: g6 | AW7: LT | AX7: # Var/ ml | AY7: Kg/ml | AZ7: s | BA7: # Var | BB7: Kg/ml | BC7: s | BD7: # Var | BE7: Kg/ml | BF7: # Var | BG7: Kg/ml | BH7: s | BI7: ф | BJ7: Kg/ml | BK7: LT | BL7: # Var/ ml | BM7: Kg | BN7: Kg | BO7: Kg | BP7: Kg
A8: 2 | B8: 1.45 | C8: 1.65 | D8: 0.994 | E8: 1/2" | F8: 0.3 | I8: 1.35 | J8: 0.2 | K8: =I8+2*J8 -> 1.75 | L8: =ROUND(IF(OR(F8=0.35,F8=0.15),1/F8,1/F8+1),0) -> 4 | M8: =$D$8*L8*K8 -> 6.958 | N8: 0.3 | Q8: =B8-0.1 -> 1.35 | R8: 0.2 | S8: =Q8+2*R8 -> 1.75 | T8: =ROUND(IF(OR(N8=0.35,N8=0.15),1/N8,1/N8+1),0) -> 4 | U8: =$D$8*T8*S8 -> 6.958 | V8: 0.3 | Y8: =A8-0.1 -> 1.9 | Z8: 0.2 | AA8: =Y8+Z8 -> 2.1 | AB8: =ROUND(IF(OR(V8=0.35,V8=0.15),1/V8,1/V8+1),0) -> 4 | AC8: =$D$8*AB8*AA8 -> 8.3496 | AT8: 0.3 | AU8: 1.9 | AV8: 0.2 | AW8: =AU8+AV8 -> 2.1 | AX8: =ROUND(IF(OR(AT8=0.35,AT8=0.15),1/AT8,1/AT8+1),0) -> 4 | AY8: =$D$8*AX8*AW8 -> 8.3496 | AZ8: 0.3 | BA8: =ROUND(((C8-0.05-0.0127)/AZ8)+1,0)*2 -> 12 | BB8: =$D$8*BA8*1 -> 11.928 | BC8: 0.3 | BD8: =ROUND(((B8-0.05*2-0.0127)/BC8)+1,0)*2 -> 10 | BE8: =$D$8*BD8*1 -> 9.94 | BF8: 2 | BG8: =$D$8*BF8*1 -> 1.988 | BH8: 0.2 | BI8: 5/8 | BJ8: 1.56 | BK8: 2.3 | BL8: =ROUND(IF(OR(BH8=0.35,BH8=0.15),1/BH8,1/BH8+1),0) -> 6 | BM8: =BJ8*BK8*BL8 -> 21.528 | BN8: =SUM(BE8,BB8,AY8,AC8,M8,U8,AS8,AK8,BM8,BG8) -> 75.9992 | BO8: 54 | BP8: =BN8-BO8 -> 21.9992
A9: 2.5 | B9: 1.9 | C9: 2.1 | D9: 0.994 | E9: 1/2" | F9: 0.3 | I9: 1.8 | J9: 0.2 | K9: =I9+2*J9 -> 2.2 | L9: =ROUND(IF(OR(F9=0.35,F9=0.15),1/F9,1/F9+1),0) -> 4 | M9: =$D$8*L9*K9 -> 8.7472 | N9: 0.25 | Q9: =B9-0.1 -> 1.8 | R9: 0.2 | S9: =Q9+2*R9 -> 2.2 | T9: =ROUND(IF(OR(N9=0.35,N9=0.15),1/N9,1/N9+1),0) -> 5 | U9: =$D$8*T9*S9 -> 10.934 | V9: 0.3 | Y9: =A9-0.1 -> 2.4 | Z9: 0.2 | AA9: =Y9+Z9 -> 2.6 | AB9: =ROUND(IF(OR(V9=0.35,V9=0.15),1/V9,1/V9+1),0) -> 4 | AC9: =$D$8*AB9*AA9 -> 10.3376 | AT9: 0.3 | AU9: 2.4 | AV9: 0.2 | AW9: =AU9+AV9 -> 2.6 | AX9: =ROUND(IF(OR(AT9=0.35,AT9=0.15),1/AT9,1/AT9+1),0) -> 4 | AY9: =$D$8*AX9*AW9 -> 10.3376 | AZ9: 0.3 | BA9: 16 | BB9: =$D$8*BA9*1 -> 15.904 | BC9: 0.3 | BD9: 14 | BE9: =$D$8*BD9*1 -> 13.916 | BF9: 2 | BG9: =$D$8*BF9*1 -> 1.988 | BH9: 0.2 | BI9: 5/8 | BJ9: 1.56 | BK9: 2.3 | BL9: =ROUND(IF(OR(BH9=0.35,BH9=0.15),1/BH9,1/BH9+1),0) -> 6 | BM9: =BJ9*BK9*BL9 -> 21.528 | BN9: 93.6924 | BO9: 67.8 | BP9: 25.8924
A10: 3 | B10: 2.1 | C10: 2.6 | D10: 0.994 | E10: 1/2" | F10: 0.3 | I10: 2 | J10: 0.2 | K10: =I10+2*J10 -> 2.4 | L10: 4 | M10: =$D$8*L10*K10 -> 9.5424 | N10: 0.15 | Q10: 2 | R10: 0.2 | S10: =Q10+2*R10 -> 2.4 | T10: 7 | U10: =$D$8*T10*S10 -> 16.6992 | V10: 0.25 | Y10: 2.9 | Z10: 0.2 | AA10: 3.1 | AB10: 5 | AC10: =$D$8*AB10*AA10 -> 15.407 | AT10: 0.3 | AU10: 2.9 | AV10: 0.2 | AW10: 3.1 | AX10: 4 | AY10: =$D$8*AX10*AW10 -> 12.3256 | AZ10: 0.3 | BA10: 18 | BB10: 17.892 | BC10: 0.3 | BD10: 16 | BE10: 15.904 | BF10: 2 | BG10: 1.988 | BH10: 0.2 | BI10: 5/8 | BJ10: 1.56 | BK10: 2.3 | BL10: 6 | BM10: 21.528 | BN10: 111.2862 | BO10: 85.7 | BP10: 25.5862
A11: 3.5 | B11: 2.4 | C11: 3.1 | D11: 0.994 | E11: 1/2" | F11: 0.3 | I11: 2.3 | J11: 0.2 | K11: =I11+2*J11 -> 2.7 | L11: 4 | M11: =$D$8*L11*K11 -> 10.7352 | N11: 0.25 | O11: 3/4 | P11: 2.25 | Q11: 2.3 | R11: 0.3 | S11: =Q11+2*R11 -> 2.9 | T11: 5 | U11: =P11*T11*S11 -> 32.625 | V11: 0.15 | W11: 5/8 | X11: 1.56 | Y11: =A11-0.15 -> 3.35 | Z11: 0.25 | AA11: 3.6 | AB11: 7 | AC11: =X11*AB11*AA11 -> 39.312 | AT11: 0.3 | AU11: 3.4 | AV11: 0.2 | AW11: 3.6 | AX11: 4 | AY11: =$D$8*AX11*AW11 -> 14.3136 | AZ11: 0.3 | BA11: 22 | BB11: 21.868 | BC11: 0.3 | BD11: 18 | BE11: 17.892 | BF11: 2 | BG11: 1.988 | BH11: 0.2 | BI11: 5/8 | BJ11: 1.56 | BK11: 2.3 | BL11: 6 | BM11: 21.528 | BN11: 160.2618 | BO11: 128.6 | BP11: 31.6618
A12: 4 | B12: 2.9 | C12: 3.5 | D12: 0.994 | E12: 1/2" | F12: 0.25 | I12: 2.8 | J12: 0.2 | K12: 3.2 | L12: 5 | M12: =$D$8*L12*K12 -> 15.904 | N12: 0.2 | O12: 3/4 | P12: 2.25 | Q12: 2.8 | R12: 0.3 | S12: 3.4 | T12: 6 | U12: =P12*T12*S12 -> 45.9 | V12: 0.35 | W12: 3/4 | X12: 2.25 | Y12: 3.9 | Z12: 0.3 | AA12: 4.2 | AB12: 3 | AC12: =X12*AB12*AA12 -> 28.35 | AD12: 0.35 | AE12: 3/4 | AF12: 2.25 | AG12: 3.4 | AH12: 0.3 | AI12: =AG12+AH12 -> 3.7 | AJ12: =ROUND(IF(OR(AD12=0.35,AD12=0.15),1/AD12,1/AD12+1),0) -> 3 | AK12: =AF12*AJ12*AI12 -> 24.975 | AT12: 0.3 | AU12: 3.9 | AV12: 0.2 | AW12: 4.1 | AX12: 4 | AY12: 16.3016 | AZ12: 0.3 | BA12: 24 | BB12: 23.856 | BC12: 0.3 | BD12: 20 | BE12: 19.88 | BF12: 2 | BG12: 1.988 | BH12: 0.2 | BI12: 5/8 | BJ12: 1.56 | BK12: 2.3 | BL12: 6 | BM12: 21.528 | BN12: =SUM(BE12,BB12,AY12,AC12,M12,U12,AS12,AK12,BM12,BG12) -> 198.6826 | BO12: 165.4 | BP12: 33.2826
A13: 4.5 | B13: 3.3 | C13: 4 | D13: 0.994 | E13: - | F13: 0.25 | G13: 5/8 | H13: 1.56 | I13: 3.2 | J13: 0.25 | K13: 3.7 | L13: 5 | M13: =H13*L13*K13 -> 28.86 | N13: 0.15 | O13: 3/4 | P13: 2.25 | Q13: 3.2 | R13: 0.3 | S13: 3.8 | T13: 7 | U13: 59.85 | V13: 0.25 | W13: 3/4 | X13: 2.25 | Y13: 4.4 | Z13: 0.3 | AA13: 4.7 | AB13: 5 | AC13: 52.875 | AD13: 0.25 | AE13: 3/4 | AF13: 2.25 | AG13: 3.7 | AH13: 0.3 | AI13: =AG13+AH13 -> 4 | AJ13: =ROUND(IF(OR(AD13=0.35,AD13=0.15),1/AD13,1/AD13+1),0) -> 5 | AK13: 45 | AT13: 0.3 | AU13: 4.4 | AV13: 0.2 | AW13: 4.6 | AX13: 4 | AY13: 18.2896 | AZ13: 0.3 | BA13: 28 | BB13: 27.832 | BC13: 0.3 | BD13: 24 | BE13: 23.856 | BF13: 2 | BG13: 1.988 | BH13: 0.2 | BI13: 5/8 | BJ13: 1.56 | BK13: 2.3 | BL13: 6 | BM13: 21.528 | BN13: 280.0786 | BO13: 231 | BP13: 49.0786
A14: 5 | B14: 3.8 | C14: 4.45 | D14: 0.994 | E14: - | F14: 0.15 | G14: 5/8 | H14: 1.56 | I14: 3.7 | J14: 0.25 | K14: 4.2 | L14: 7 | M14: 45.864 | N14: 0.1 | O14: 3/4 | P14: 2.25 | Q14: 3.7 | R14: 0.3 | S14: 4.3 | T14: 11 | U14: 106.425 | V14: 0.35 | W14: 7/8 | X14: 3.042 | Y14: =A14-0.15 -> 4.85 | Z14: 0.35 | AA14: 5.2 | AB14: 3 | AC14: 47.4552 | AD14: 0.35 | AE14: 7/8 | AF14: 3.042 | AG14: 4.05 | AH14: 0.35 | AI14: 4.4 | AJ14: 3 | AK14: 40.1544 | AL14: 0.35 | AM14: 7/8 | AN14: 3.042 | AO14: 3.55 | AP14: 0.35 | AQ14: =AP14+AO14 -> 3.9 | AR14: =ROUND(IF(OR(AL14=0.35,AL14=0.15),1/AL14,1/AL14+1),0) -> 3 | AS14: =AN14*AR14*AQ14 -> 35.5914 | AT14: 0.3 | AU14: 4.9 | AV14: 0.2 | AW14: 5.1 | AX14: 4 | AY14: 20.2776 | AZ14: 0.3 | BA14: 32 | BB14: 31.808 | BC14: 0.3 | BD14: 26 | BE14: 25.844 | BF14: 2 | BG14: 1.988 | BH14: 0.2 | BI14: 5/8 | BJ14: 1.56 | BK14: 2.3 | BL14: 6 | BM14: 21.528 | BN14: 376.9356 | BO14: 340.7 | BP14: 36.2356
A15: 5.5 | B15: 4.3 | C15: 4.9 | D15: 0.994 | E15: - | F15: 0.15 | G15: 5/8 | H15: 1.56 | I15: 4.2 | J15: 0.25 | K15: 4.7 | L15: 7 | M15: 51.324 | N15: 0.15 | O15: 7/8 | P15: 3.042 | Q15: 4.2 | R15: 0.35 | S15: 4.9 | T15: 7 | U15: 104.3406 | V15: 0.3 | W15: 7/8 | X15: 3.042 | Y15: =A15-0.15 -> 5.35 | Z15: 0.35 | AA15: 5.7 | AB15: 4 | AC15: 69.3576 | AD15: 0.3 | AE15: 7/8 | AF15: 3.042 | AG15: 4.55 | AH15: 0.35 | AI15: 4.9 | AJ15: 4 | AK15: 59.6232 | AL15: 0.3 | AM15: 7/8 | AN15: 3.042 | AO15: 3.95 | AP15: 0.35 | AQ15: =AP15+AO15 -> 4.3 | AR15: =ROUND(IF(OR(AL15=0.35,AL15=0.15),1/AL15,1/AL15+1),0) -> 4 | AS15: =AN15*AR15*AQ15 -> 52.3224 | AT15: 0.25 | AU15: 5.4 | AV15: 0.2 | AW15: =AU15+AV15 -> 5.6 | AX15: 5 | AY15: 27.832 | AZ15: 0.25 | BA15: 40 | BB15: 39.76 | BC15: 0.25 | BD15: 36 | BE15: 35.784 | BF15: 2 | BG15: 1.988 | BH15: 0.2 | BI15: 5/8 | BJ15: 1.56 | BK15: 2.3 | BL15: 6 | BM15: 21.528 | BN15: 463.8598 | BO15: 399.3 | BP15: 64.5598
A16: 6 | B16: 4.6 | C16: 5.4 | D16: 0.994 | E16: - | F16: 0.1 | G16: 5/8 | H16: 1.56 | I16: 4.5 | J16: 0.25 | K16: 5 | L16: 11 | M16: 85.8 | N16: 0.1 | O16: 7/8 | P16: 3.042 | Q16: 4.5 | R16: 0.35 | S16: 5.2 | T16: 11 | U16: 174.0024 | V16: 0.3 | W16: 1 | X16: 3.975 | Y16: 5.9 | Z16: 0.4 | AA16: 6.3 | AB16: 4 | AC16: 100.17 | AD16: 0.3 | AE16: 1 | AF16: 3.975 | AG16: 5.1 | AH16: 0.4 | AI16: 5.5 | AJ16: 4 | AK16: 87.45 | AL16: 0.3 | AM16: 1 | AN16: 3.975 | AO16: 4.6 | AP16: 0.4 | AQ16: =AP16+AO16 -> 5 | AR16: =ROUND(IF(OR(AL16=0.35,AL16=0.15),1/AL16,1/AL16+1),0) -> 4 | AS16: =AN16*AR16*AQ16 -> 79.5 | AT16: 0.25 | AU16: 5.8 | AV16: 0.2 | AW16: 6 | AX16: 5 | AY16: 29.82 | AZ16: 0.25 | BA16: 44 | BB16: 43.736 | BC16: 0.25 | BD16: 38 | BE16: 37.772 | BF16: 2 | BG16: 1.988 | BH16: 0.2 | BI16: 5/8 | BJ16: 1.56 | BK16: 2.3 | BL16: 6 | BM16: 21.528 | BN16: 661.7664 | BO16: 572.9 | BP16: 88.8664
A17: 6.5 | B17: 5 | C17: 5.8 | D17: 0.994 | E17: - | F17: 0.15 | G17: 3/4 | H17: 2.25 | I17: 4.9 | J17: 0.3 | K17: 5.5 | L17: 7 | M17: 86.625 | N17: 0.1 | O17: 1 | P17: 3.975 | Q17: 4.9 | R17: 0.4 | S17: 5.7 | T17: 11 | U17: 249.2325 | V17: 0.3 | W17: 1 | X17: 3.975 | Y17: 6.4 | Z17: 0.4 | AA17: 6.8 | AB17: 4 | AC17: 108.12 | AD17: 0.3 | AE17: 1 | AF17: 3.975 | AG17: 5.6 | AH17: 0.4 | AI17: 6 | AJ17: 4 | AK17: 95.4 | AL17: 0.3 | AM17: 1 | AN17: 3.975 | AO17: 5 | AP17: 0.4 | AQ17: =AP17+AO17 -> 5.4 | AR17: =ROUND(IF(OR(AL17=0.35,AL17=0.15),1/AL17,1/AL17+1),0) -> 4 | AS17: =AN17*AR17*AQ17 -> 85.86 | AT17: 0.25 | AU17: 6.4 | AV17: 0.2 | AW17: 6.6 | AX17: 5 | AY17: 32.802 | AZ17: 0.25 | BA17: 48 | BB17: 47.712 | BC17: 0.25 | BD17: 42 | BE17: 41.748 | BF17: 2 | BG17: 1.988 | BH17: 0.2 | BI17: 5/8 | BJ17: 1.56 | BK17: 2.3 | BL17: 6 | BM17: 21.528 | BN17: 771.0155 | BO17: 673 | BP17: 98.0155
A18: 7 | B18: 5.5 | C18: 6.2 | D18: 0.994 | E18: - | F18: 0.15 | G18: 3/4 | H18: 2.25 | I18: 5.4 | J18: 0.3 | K18: 6 | L18: 7 | M18: 94.5 | N18: 0.1 | O18: 1 | P18: 3.975 | Q18: 5.4 | R18: 0.4 | S18: =Q18+2*R18 -> 6.2 | T18: 11 | U18: 271.095 | V18: 0.25 | W18: 1 | X18: 3.975 | Y18: 6.9 | Z18: 0.4 | AA18: 7.3 | AB18: 5 | AC18: 145.0875 | AD18: 0.25 | AE18: 1 | AF18: 3.975 | AG18: 6 | AH18: 0.4 | AI18: 6.4 | AJ18: 5 | AK18: 127.2 | AL18: 0.25 | AM18: 1 | AN18: 3.975 | AO18: 5.5 | AP18: 0.4 | AQ18: =AP18+AO18 -> 5.9 | AR18: =ROUND(IF(OR(AL18=0.35,AL18=0.15),1/AL18,1/AL18+1),0) -> 5 | AS18: =AN18*AR18*AQ18 -> 117.2625 | AT18: 0.25 | AU18: 6.9 | AV18: 0.2 | AW18: =AU18+AV18 -> 7.1 | AX18: 5 | AY18: 35.287 | AZ18: 0.25 | BA18: 52 | BB18: 51.688 | BC18: 0.25 | BD18: 46 | BE18: 45.724 | BF18: 2 | BG18: 1.988 | BH18: 0.2 | BI18: 5/8 | BJ18: 1.56 | BK18: 2.3 | BL18: 6 | BM18: 21.528 | BN18: =SUM(BE18,BB18,AY18,AC18,M18,U18,AS18,AK18,BM18,BG18) -> 911.36 | BO18: 780 | BP18: 131.36

Sheet APU BÁSICO
D3: REPÚBLICA DE COLOMBIA
D4: =+DPTO -> DEPARTAMENTO DEL CAUCA
D5: =+Nom_Mpio1 -> MUNICIPIO LA ESTRELLA FLUVIAL
D6: =Dependencia -> SECRETARÍA DE OBRAS PÚBLICAS
D7: =+Nom_proy1 -> MEJORAMIENTO DEL TRAMO VIAL LA PAZ - EL PROGRESO ENTRE EL K5+000 Y EL K6+000 DEL MUNICIPIO LA ESTRELLA FLUVIAL
D9: Fecha: | G9: =+Fecha_Pres -> 2019-10-11
B11: ANÁLISIS DE PRECIOS UNITARIOS BÁSICOS
A13: APU27 | B13: =IFERROR(VLOOKUP($A13,LISTA_APU,2,FALSE),"") -> CONCRETO BÁSICO 21 Mpa | I13: Unidad: | J13: =IFERROR(VLOOKUP($A13,LISTA_APU,3,FALSE),"") -> m³ | K13: =K43 -> 345238
B14: I. EQUIPO
B15: DESCRIPCIÓN | F15: TIPO | H15: TARIFA/HORA | I15: RENDIMIENTO | K15: Vr. UNITARIO
A16: e32 | B16: =+IFERROR(VLOOKUP($A16,INSUMOS_BD2,3,FALSE),"") -> Mezcladora de concreto (1 bulto) | H16: =+IFERROR(ROUND(IF($B16="Herramienta Menor HM (% mano de obra)",HM,IF($B16="Herramienta Menor HM2 (% mano de obra)",HM_2,VLOOKUP($A16,INSUMOS_BD2,5,FALSE))),2),"") -> 15000 | I16: 1 | K16: =+IFERROR(ROUND(IF($B16="Herramienta Menor HM (% mano de obra)",$K$41*H16,IF($B16="Herramienta Menor HM2 (% mano de obra)",$K$41*H16,H16/I16)),0),"") -> 15000
A17: e31 | B17: =+IFERROR(VLOOKUP($A17,INSUMOS_BD2,3,FALSE),"") -> Herramienta Menor HM (% mano de obra) | H17: =+IFERROR(ROUND(IF($B17="Herramienta Menor HM (% mano de obra)",HM,IF($B17="Herramienta Menor HM2 (% mano de obra)",HM_2,VLOOKUP($A17,INSUMOS_BD2,5,FALSE))),2),"") -> 0.1 | K17: =+IFERROR(ROUND(IF($B17="Herramienta Menor HM (% mano de obra)",$K$41*H17,IF($B17="Herramienta Menor HM2 (% mano de obra)",$K$41*H17,H17/I17)),0),"") -> 2676
B18: =+IFERROR(VLOOKUP($A18,INSUMOS_BD2,3,FALSE),"") ->  | H18: =+IFERROR(ROUND(IF($B18="Herramienta Menor HM (% mano de obra)",HM,IF($B18="Herramienta Menor HM2 (% mano de obra)",HM_2,VLOOKUP($A18,INSUMOS_BD2,5,FALSE))),2),"") ->  | K18: =+IFERROR(ROUND(IF($B18="Herramienta Menor HM (% mano de obra)",$K$41*H18,IF($B18="Herramienta Menor HM2 (% mano de obra)",$K$41*H18,H18/I18)),0),"") -> 
B19: SUB-TOTAL | K19: =SUM(K16:K18) -> 17676
B21: II. MATERIALES
B22: DESCRIPCIÓN | G22: UNIDAD | H22: CANTIDAD | I22: PRECIO UNIT. | K22: Vr. UNITARIO
A23: m5 | B23: =+IFERROR(VLOOKUP($A23,INSUMOS_BD2,3,FALSE),"") -> CEMENTO GRIS | G23: =+IFERROR(VLOOKUP($A23,INSUMOS_BD2,4,FALSE),"") -> kg | H23: 350 | I23: =+IFERROR(VLOOKUP($A23,INSUMOS_BD2,5,FALSE),"") -> 580 | K23: =IFERROR(ROUND(H23*I23,0),"") -> 203000
A24: m4 | B24: =+IFERROR(VLOOKUP($A24,INSUMOS_BD2,3,FALSE),"") -> ARENA | G24: =+IFERROR(VLOOKUP($A24,INSUMOS_BD2,4,FALSE),"") -> m³ | H24: 0.56 | I24: =+IFERROR(VLOOKUP($A24,INSUMOS_BD2,5,FALSE),"") -> 60000 | K24: =IFERROR(ROUND(H24*I24,0),"") -> 33600
A25: m2 | B25: =+IFERROR(VLOOKUP($A25,INSUMOS_BD2,3,FALSE),"") -> AGREGADO PARA CONCRETO HIDRAULICO MAX 1" | G25: =+IFERROR(VLOOKUP($A25,INSUMOS_BD2,4,FALSE),"") -> m³ | H25: 0.84 | I25: =+IFERROR(VLOOKUP($A25,INSUMOS_BD2,5,FALSE),"") -> 70000 | K25: =IFERROR(ROUND(H25*I25,0),"") -> 58800
A26: m24 | B26: =+IFERROR(VLOOKUP($A26,INSUMOS_BD2,3,FALSE),"") -> AGUA | G26: =+IFERROR(VLOOKUP($A26,INSUMOS_BD2,4,FALSE),"") -> l | H26: 180 | I26: =+IFERROR(VLOOKUP($A26,INSUMOS_BD2,5,FALSE),"") -> 30 | K26: =IFERROR(ROUND(H26*I26,0),"") -> 5400
B27: SUB-TOTAL | K27: =SUM(K23:K26) -> 300800
B29: III. TRANSPORTES
B30: MATERIAL | F30: FACT. EXPAN o COMPACT | G30: DISTANCIA | H30: VOL. o PESO | I30: TARIFA (m3 o ton/km) | K30: Vr. UNITARIO
B31: =+IFERROR(VLOOKUP($A31,INSUMOS_BD2,3,FALSE),"") ->  | H31: =+IFERROR(VLOOKUP($A31,INSUMOS_BD2,3,FALSE),"") ->  | I31: =+IFERROR(VLOOKUP($A31,INSUMOS_BD2,5,FALSE),"") ->  | K31: =IFERROR(ROUND(G31*H31*I31,0),"") -> 
B32: =+IFERROR(VLOOKUP($A32,INSUMOS_BD2,3,FALSE),"") ->  | H32: =+IFERROR(VLOOKUP($A32,INSUMOS_BD2,3,FALSE),"") ->  | I32: =+IFERROR(VLOOKUP($A32,INSUMOS_BD2,5,FALSE),"") -> 
B33: =+IFERROR(VLOOKUP($A33,INSUMOS_BD2,3,FALSE),"") ->  | H33: =+IFERROR(VLOOKUP($A33,INSUMOS_BD2,3,FALSE),"") ->  | I33: =+IFERROR(VLOOKUP($A33,INSUMOS_BD2,5,FALSE),"") -> 
B34: SUB-TOTAL | K34: =SUM(K31:K33) -> 0
B36: IV. MANO DE OBRA
B37: TRABAJADOR | F37: JORNAL | G37: PRESTACIÓN | H37: JORNAL TOTAL | I37: RENDIMIENTO | K37: Vr. UNITARIO
A38: MO18 | B38: =+IFERROR(VLOOKUP($A38,INSUMOS_BD2,3,FALSE),"") -> OFICIAL (1) | F38: =+IFERROR(VLOOKUP($A38,INSUMOS_BD2,5,FALSE),"") -> 46000 | G38: =+F_PREST -> 0.6836354832 | H38: =IFERROR(F38*(1+G38),"") -> 77447.23223 | I38: 16 | K38: =IFERROR(ROUND(H38/I38,0),"") -> 4840
A39: MO7 | B39: =+IFERROR(VLOOKUP($A39,INSUMOS_BD2,3,FALSE),"") -> OBREROS (8) | F39: =+IFERROR(VLOOKUP($A39,INSUMOS_BD2,5,FALSE),"") -> 208328 | G39: =+F_PREST -> 0.6836354832 | H39: =IFERROR(F39*(1+G39),"") -> 350748.4129 | I39: 16 | K39: =IFERROR(ROUND(H39/I39,0),"") -> 21922
B40: =+IFERROR(VLOOKUP($A40,INSUMOS_BD2,3,FALSE),"") ->  | F40: =+IFERROR(VLOOKUP($A40,INSUMOS_BD2,5,FALSE),"") ->  | H40: =IFERROR(F40*(1+G40),"") ->  | K40: =IFERROR(ROUND(H40/I40,0),"") -> 
B41: SUB-TOTAL | K41: =SUM(K38:K40) -> 26762
B43: TOTAL COSTO DIRECTO | K43: =ROUND((+K41+K34+K27+K19),0) -> 345238
B48: =+Responsable -> JULIANA MARÍA VELEZ
B49: =+Cargo -> SECRETARIA DE OBRAS PÚBLICAS
B50: =+MT_Responsable -> M.P. N°. 191919199 CAU
A52: APU28 | B52: =IFERROR(VLOOKUP($A52,LISTA_APU,2,FALSE),"") -> CONCRETO BÁSICO 14 Mpa | I52: Unidad: | J52: =IFERROR(VLOOKUP($A52,LISTA_APU,3,FALSE),"") -> m³ | K52: =K82 -> 280338
B53: I. EQUIPO
B54: DESCRIPCIÓN | F54: TIPO | H54: TARIFA/HORA | I54: RENDIMIENTO | K54: Vr. UNITARIO
A55: e32 | B55: =+IFERROR(VLOOKUP($A55,INSUMOS_BD2,3,FALSE),"") -> Mezcladora de concreto (1 bulto) | H55: =+IFERROR(ROUND(IF($B55="Herramienta Menor HM (% mano de obra)",HM,IF($B55="Herramienta Menor HM2 (% mano de obra)",HM_2,VLOOKUP($A55,INSUMOS_BD2,5,FALSE))),2),"") -> 15000 | I55: 1 | K55: =+IFERROR(ROUND(IF($B55="Herramienta Menor HM (% mano de obra)",$K$80*H55,IF($B55="Herramienta Menor HM2 (% mano de obra)",$K$80*H55,H55/I55)),0),"") -> 15000
A56: e31 | B56: =+IFERROR(VLOOKUP($A56,INSUMOS_BD2,3,FALSE),"") -> Herramienta Menor HM (% mano de obra) | H56: =+IFERROR(ROUND(IF($B56="Herramienta Menor HM (% mano de obra)",HM,IF($B56="Herramienta Menor HM2 (% mano de obra)",HM_2,VLOOKUP($A56,INSUMOS_BD2,5,FALSE))),2),"") -> 0.1 | K56: =+IFERROR(ROUND(IF($B56="Herramienta Menor HM (% mano de obra)",$K$80*H56,IF($B56="Herramienta Menor HM2 (% mano de obra)",$K$80*H56,H56/I56)),0),"") -> 2676
B57: =+IFERROR(VLOOKUP($A57,INSUMOS_BD2,3,FALSE),"") ->  | H57: =+IFERROR(ROUND(IF($B57="Herramienta Menor HM (% mano de obra)",HM,IF($B57="Herramienta Menor HM2 (% mano de obra)",HM_2,VLOOKUP($A57,INSUMOS_BD2,5,FALSE))),2),"") -> 
B58: SUB-TOTAL | K58: =SUM(K55:K57) -> 17676
B60: II. MATERIALES
B61: DESCRIPCIÓN | G61: UNIDAD | H61: CANTIDAD | I61: PRECIO UNIT. | K61: Vr. UNITARIO
A62: m5 | B62: =+IFERROR(VLOOKUP($A62,INSUMOS_BD2,3,FALSE),"") -> CEMENTO GRIS | G62: =+IFERROR(VLOOKUP($A62,INSUMOS_BD2,4,FALSE),"") -> kg | H62: 230 | I62: =+IFERROR(VLOOKUP($A62,INSUMOS_BD2,5,FALSE),"") -> 580 | K62: =IFERROR(ROUND(H62*I62,0),"") -> 133400
A63: m4 | B63: =+IFERROR(VLOOKUP($A63,INSUMOS_BD2,3,FALSE),"") -> ARENA | G63: =+IFERROR(VLOOKUP($A63,INSUMOS_BD2,4,FALSE),"") -> m³ | H63: 0.55 | I63: =+IFERROR(VLOOKUP($A63,INSUMOS_BD2,5,FALSE),"") -> 60000 | K63: =IFERROR(ROUND(H63*I63,0),"") -> 33000
A64: m2 | B64: =+IFERROR(VLOOKUP($A64,INSUMOS_BD2,3,FALSE),"") -> AGREGADO PARA CONCRETO HIDRAULICO MAX 1" | G64: =+IFERROR(VLOOKUP($A64,INSUMOS_BD2,4,FALSE),"") -> m³ | H64: 0.92 | I64: =+IFERROR(VLOOKUP($A64,INSUMOS_BD2,5,FALSE),"") -> 70000 | K64: =IFERROR(ROUND(H64*I64,0),"") -> 64400
A65: m24 | B65: =+IFERROR(VLOOKUP($A65,INSUMOS_BD2,3,FALSE),"") -> AGUA | G65: =+IFERROR(VLOOKUP($A65,INSUMOS_BD2,4,FALSE),"") -> l | H65: 170 | I65: =+IFERROR(VLOOKUP($A65,INSUMOS_BD2,5,FALSE),"") -> 30 | K65: =IFERROR(ROUND(H65*I65,0),"") -> 5100
B66: SUB-TOTAL | K66: =SUM(K62:K65) -> 235900
B68: III. TRANSPORTES
B69: MATERIAL | F69: FACT. EXPAN o COMPACT | G69: DISTANCIA | H69: VOL. o PESO | I69: TARIFA (m3 o ton/km) | K69: Vr. UNITARIO
B70: =+IFERROR(VLOOKUP($A70,INSUMOS_BD2,3,FALSE),"") ->  | H70: =+IFERROR(VLOOKUP($A70,INSUMOS_BD2,3,FALSE),"") ->  | I70: =+IFERROR(VLOOKUP($A70,INSUMOS_BD2,5,FALSE),"") ->  | K70: =IFERROR(ROUND(G70*H70*I70,0),"") -> 
B71: =+IFERROR(VLOOKUP($A71,INSUMOS_BD2,3,FALSE),"") ->  | H71: =+IFERROR(VLOOKUP($A71,INSUMOS_BD2,3,FALSE),"") ->  | I71: =+IFERROR(VLOOKUP($A71,INSUMOS_BD2,5,FALSE),"") ->  | K71: =IFERROR(ROUND(G71*H71*I71,0),"") -> 
B72: =+IFERROR(VLOOKUP($A72,INSUMOS_BD2,3,FALSE),"") ->  | H72: =+IFERROR(VLOOKUP($A72,INSUMOS_BD2,3,FALSE),"") ->  | I72: =+IFERROR(VLOOKUP($A72,INSUMOS_BD2,5,FALSE),"") -> 
B73: SUB-TOTAL | K73: =SUM(K70:K72) -> 0
B75: IV. MANO DE OBRA
B76: TRABAJADOR | F76: JORNAL | G76: PRESTACIÓN | H76: JORNAL TOTAL | I76: RENDIMIENTO | K76: Vr. UNITARIO
A77: MO18 | B77: =+IFERROR(VLOOKUP($A77,INSUMOS_BD2,3,FALSE),"") -> OFICIAL (1) | F77: =+IFERROR(VLOOKUP($A77,INSUMOS_BD2,5,FALSE),"") -> 46000 | G77: =+F_PREST -> 0.6836354832 | H77: =IFERROR(F77*(1+G77),"") -> 77447.23223 | I77: 16 | K77: =IFERROR(ROUND(H77/I77,0),"") -> 4840
A78: MO7 | B78: =+IFERROR(VLOOKUP($A78,INSUMOS_BD2,3,FALSE),"") -> OBREROS (8) | F78: =+IFERROR(VLOOKUP($A78,INSUMOS_BD2,5,FALSE),"") -> 208328 | G78: =+F_PREST -> 0.6836354832 | H78: =IFERROR(F78*(1+G78),"") -> 350748.4129 | I78: 16 | K78: =IFERROR(ROUND(H78/I78,0),"") -> 21922
B79: =+IFERROR(VLOOKUP($A79,INSUMOS_BD2,3,FALSE),"") ->  | F79: =+IFERROR(VLOOKUP($A79,INSUMOS_BD2,5,FALSE),"") ->  | H79: =IFERROR(F79*(1+G79),"") ->  | K79: =IFERROR(ROUND(H79/I79,0),"") -> 
B80: SUB-TOTAL | K80: =SUM(K77:K79) -> 26762
B82: TOTAL COSTO DIRECTO $ | K82: =ROUND((+K80+K73+K66+K58),0) -> 280338
B87: =+Responsable -> JULIANA MARÍA VELEZ
B88: =+Cargo -> SECRETARIA DE OBRAS PÚBLICAS
B89: =+MT_Responsable -> M.P. N°. 191919199 CAU
A91: APU15 | B91: =IFERROR(VLOOKUP($A91,LISTA_APU,2,FALSE),"") -> MORTERO 1:3 | I91: Unidad: | J91: =IFERROR(VLOOKUP($A91,LISTA_APU,3,FALSE),"") -> m³ | K91: =K121 -> 404847
B92: I. EQUIPO
B93: DESCRIPCIÓN | E93: MARCA | F93: TIPO | H93: TARIFA/HORA | I93: RENDIMIENTO | K93: Vr. UNITARIO
A94: e31 | B94: =+IFERROR(VLOOKUP($A94,INSUMOS_BD2,3,FALSE),"") -> Herramienta Menor HM (% mano de obra) | H94: =+IFERROR(ROUND(IF($B94="Herramienta Menor HM (% mano de obra)",HM,IF($B94="Herramienta Menor HM2 (% mano de obra)",HM_2,VLOOKUP($A94,INSUMOS_BD2,5,FALSE))),2),"") -> 0.1 | K94: =+IFERROR(ROUND(IF($B94="Herramienta Menor HM (% mano de obra)",$K$119*H94,IF($B94="Herramienta Menor HM2 (% mano de obra)",$K$119*H94,H94/I94)),0),"") -> 6321
B95: =+IFERROR(VLOOKUP($A95,INSUMOS_BD2,3,FALSE),"") ->  | H95: =+IFERROR(ROUND(IF($B95="Herramienta Menor HM (% mano de obra)",HM,IF($B95="Herramienta Menor HM2 (% mano de obra)",HM_2,VLOOKUP($A95,INSUMOS_BD2,5,FALSE))),2),"") ->  | K95: =+IFERROR(ROUND(IF($B95="Herramienta Menor HM (% mano de obra)",$K$119*H95,IF($B95="Herramienta Menor HM2 (% mano de obra)",$K$119*H95,H95/I95)),0),"") -> 
B96: =+IFERROR(VLOOKUP($A96,INSUMOS_BD2,3,FALSE),"") ->  | H96: =+IFERROR(ROUND(IF($B96="Herramienta Menor HM (% mano de obra)",HM,IF($B96="Herramienta Menor HM2 (% mano de obra)",HM_2,VLOOKUP($A96,INSUMOS_BD2,5,FALSE))),2),"") -> 
B97: SUB-TOTAL | K97: =SUM(K94:K96) -> 6321
B99: II. MATERIALES
B100: DESCRIPCIÓN | G100: UNIDAD | H100: CANTIDAD | I100: PRECIO UNIT. | K100: Vr. UNITARIO
A101: m5 | B101: =+IFERROR(VLOOKUP($A101,INSUMOS_BD2,3,FALSE),"") -> CEMENTO GRIS | G101: =+IFERROR(VLOOKUP($A101,INSUMOS_BD2,4,FALSE),"") -> kg | H101: 454 | I101: =+IFERROR(VLOOKUP($A101,INSUMOS_BD2,5,FALSE),"") -> 580 | K101: =IFERROR(ROUND(H101*I101,0),"") -> 263320
A102: m4 | B102: =+IFERROR(VLOOKUP($A102,INSUMOS_BD2,3,FALSE),"") -> ARENA | G102: =+IFERROR(VLOOKUP($A102,INSUMOS_BD2,4,FALSE),"") -> m³ | H102: 1.09 | I102: =+IFERROR(VLOOKUP($A102,INSUMOS_BD2,5,FALSE),"") -> 60000 | K102: =IFERROR(ROUND(H102*I102,0),"") -> 65400
A103: m24 | B103: =+IFERROR(VLOOKUP($A103,INSUMOS_BD2,3,FALSE),"") -> AGUA | G103: =+IFERROR(VLOOKUP($A103,INSUMOS_BD2,4,FALSE),"") -> l | H103: 220 | I103: =+IFERROR(VLOOKUP($A103,INSUMOS_BD2,5,FALSE),"") -> 30 | K103: =IFERROR(ROUND(H103*I103,0),"") -> 6600
B104: =+IFERROR(VLOOKUP($A104,INSUMOS_BD2,3,FALSE),"") ->  | G104: =+IFERROR(VLOOKUP($A104,INSUMOS_BD2,4,FALSE),"") ->  | I104: =+IFERROR(VLOOKUP($A104,INSUMOS_BD2,5,FALSE),"") ->  | K104: =IFERROR(ROUND(H104*I104,0),"") -> 
B105: SUB-TOTAL | K105: =SUM(K101:K104) -> 335320
B107: III. TRANSPORTES
B108: MATERIAL | F108: FACT. EXPAN o COMPACT | G108: DISTANCIA | H108: VOL. o PESO | I108: TARIFA (m3 o ton/km) | K108: Vr. UNITARIO
B109: =+IFERROR(VLOOKUP($A109,INSUMOS_BD2,3,FALSE),"") ->  | H109: =+IFERROR(VLOOKUP($A109,INSUMOS_BD2,3,FALSE),"") ->  | I109: =+IFERROR(VLOOKUP($A109,INSUMOS_BD2,5,FALSE),"") ->  | K109: =IFERROR(ROUND(F109*G109*I109,0),"") -> 
B110: =+IFERROR(VLOOKUP($A110,INSUMOS_BD2,3,FALSE),"") ->  | H110: =+IFERROR(VLOOKUP($A110,INSUMOS_BD2,3,FALSE),"") ->  | I110: =+IFERROR(VLOOKUP($A110,INSUMOS_BD2,5,FALSE),"") ->  | K110: =IFERROR(ROUND(F110*G110*I110,0),"") -> 
B111: =+IFERROR(VLOOKUP($A111,INSUMOS_BD2,3,FALSE),"") ->  | H111: =+IFERROR(VLOOKUP($A111,INSUMOS_BD2,3,FALSE),"") ->  | I111: =+IFERROR(VLOOKUP($A111,INSUMOS_BD2,5,FALSE),"") ->  | K111: =IFERROR(ROUND(F111*G111*I111,0),"") -> 
B112: SUB-TOTAL | K112: =SUM(K109:K111) -> 0
B114: IV. MANO DE OBRA
B115: TRABAJADOR | F115: JORNAL | G115: PRESTACIÓN | H115: JORNAL TOTAL | I115: RENDIMIENTO | K115: Vr. UNITARIO
A116: MO18 | B116: =+IFERROR(VLOOKUP($A116,INSUMOS_BD2,3,FALSE),"") -> OFICIAL (1) | F116: =+IFERROR(VLOOKUP($A116,INSUMOS_BD2,5,FALSE),"") -> 46000 | G116: =+F_PREST -> 0.6836354832 | H116: =IFERROR(F116*(1+G116),"") -> 77447.23223 | I116: 4 | K116: =IFERROR(ROUND(H116/I116,0),"") -> 19362
A117: MO16 | B117: =+IFERROR(VLOOKUP($A117,INSUMOS_BD2,3,FALSE),"") -> OBREROS (4) | F117: =+IFERROR(VLOOKUP($A117,INSUMOS_BD2,5,FALSE),"") -> 104164 | G117: =+F_PREST -> 0.6836354832 | H117: =IFERROR(F117*(1+G117),"") -> 175374.2065 | I117: 4 | K117: =IFERROR(ROUND(H117/I117,0),"") -> 43844
B118: =+IFERROR(VLOOKUP($A118,INSUMOS_BD2,3,FALSE),"") ->  | F118: =+IFERROR(VLOOKUP($A118,INSUMOS_BD2,5,FALSE),"") ->  | H118: =IFERROR(F118*(1+G118),"") ->  | K118: =IFERROR(ROUND(H118/I118,0),"") -> 
B119: SUB-TOTAL | K119: =SUM(K116:K118) -> 63206
B121: TOTAL COSTO DIRECTO $ | K121: =ROUND((+K119+K112+K105+K97),0) -> 404847
B126: =+Responsable -> JULIANA MARÍA VELEZ
B127: =+Cargo -> SECRETARIA DE OBRAS PÚBLICAS
B128: =+MT_Responsable -> M.P. N°. 191919199 CAU

Sheet SMLMV
C3: HISTÓRICO SALARIO MÍNIMO MENSUAL LEGAL VIGENTE | F3: AUXILIO DE TRANSPORTE
C4: AÑO | D4: Monto Diario | E4: Monto Mensual | F4: Monto Diario2 | G4: Monto Mensual3
C5: 2004 | D5: =SMLM[[#This Row],[Monto Mensual]]/30 -> 11933.33333 | E5: 358000 | F5: =G5/30 -> 0
C6: 2005 | D6: =SMLM[[#This Row],[Monto Mensual]]/30 -> 12716.66667 | E6: 381500 | F6: 0
C7: 2006 | D7: =SMLM[[#This Row],[Monto Mensual]]/30 -> 13600 | E7: 408000 | F7: 0
C8: 2007 | D8: =SMLM[[#This Row],[Monto Mensual]]/30 -> 14456.66667 | E8: 433700 | F8: 0
C9: 2008 | D9: =SMLM[[#This Row],[Monto Mensual]]/30 -> 15383.33333 | E9: 461500 | F9: 0
C10: 2009 | D10: =SMLM[[#This Row],[Monto Mensual]]/30 -> 16563.33333 | E10: 496900 | F10: 0
C11: 2010 | D11: =SMLM[[#This Row],[Monto Mensual]]/30 -> 17166.66667 | E11: 515000 | F11: =G11/30 -> 0
C12: 2011 | D12: =SMLM[[#This Row],[Monto Mensual]]/30 -> 17853.33333 | E12: 535600 | F12: 0
C13: 2012 | D13: =SMLM[[#This Row],[Monto Mensual]]/30 -> 18890 | E13: 566700 | F13: 0
C14: 2013 | D14: =SMLM[[#This Row],[Monto Mensual]]/30 -> 19650 | E14: 589500 | F14: 0
C15: 2014 | D15: =SMLM[[#This Row],[Monto Mensual]]/30 -> 20533.33333 | E15: 616000 | F15: 0
C16: 2015 | D16: =SMLM[[#This Row],[Monto Mensual]]/30 -> 21478.33333 | E16: 644350 | F16: 0
C17: 2016 | D17: =SMLM[[#This Row],[Monto Mensual]]/30 -> 22981.83333 | E17: 689455 | F17: 0
C18: 2017 | D18: =SMLM[[#This Row],[Monto Mensual]]/30 -> 24590.56667 | E18: 737717 | F18: =G18/30 -> 2771.333333 | G18: 83140
C19: 2018 | D19: =SMLM[[#This Row],[Monto Mensual]]/30 -> 26041 | E19: 781230 | F19: 0
C20: 2019 | D20: =SMLM[[#This Row],[Monto Mensual]]/30 -> 27603.86667 | E20: 828116 | F20: 3234.4 | G20: 97032
C21: 2020 | D21: =SMLM[[#This Row],[Monto Mensual]]/30 -> 0 | F21: 0
C22: 2021 | D22: =SMLM[[#This Row],[Monto Mensual]]/30 -> 0 | F22: 0
C23: 2022 | D23: =SMLM[[#This Row],[Monto Mensual]]/30 -> 0 | F23: 0
C24: 2023 | D24: =SMLM[[#This Row],[Monto Mensual]]/30 -> 0 | F24: 0
C25: 2023 | D25: =SMLM[[#This Row],[Monto Mensual]]/30 -> 0 | F25: 0
C26: 2023 | D26: =SMLM[[#This Row],[Monto Mensual]]/30 -> 0 | F26: 0
C27: 2023 | D27: =SMLM[[#This Row],[Monto Mensual]]/30 -> 0 | F27: 0

Sheet BD_INSUMOS (2)
D4: NOMBRE DEL PROYECTO:
D5: =+Nom_proy1 -> MEJORAMIENTO DEL TRAMO VIAL LA PAZ - EL PROGRESO ENTRE EL K5+000 Y EL K6+000 DEL MUNICIPIO LA ESTRELLA FLUVIAL
D6: LISTADO DE INSUMOS CON PRECIOS
F7: FECHA: | G7: =+Fecha_Pres -> 2019-10-11
B8: Consecutivo | C8: FECHA | D8: No. Cod. | E8: Tipo de Insumo | F8: DESCRIPCIÓN | G8: UNIDAD | H8: PRECIO UNIT. | I8: % DEDICACIÓN | J8: ESTATUS
B9: 1 | C9: 2019-07-18 | D9: M1 | E9: Materiales | F9: Acero de 4200 kg/cm² | G9: kg | H9: 2400 | I9: 0 | J9: Activo
B10: 112 | C10: 2019-07-18 | D10: MO1 | E10: Mano de Obra | F10: INGENIERO ELECTRICISTA (1) | G10: Jornal | H10: 83333 | J10: Activo
B11: 75 | C11: 2019-07-18 | D11: E3 | E11: Maquinaria y equipo | F11: CORTADORA DE CONCRETO | G11: $/hora | H11: 40000 | J11: Activo
B12: 113 | C12: 2019-07-18 | D12: MO2 | E12: Mano de Obra | F12: LINIERO (1) | G12: Jornal | H12: 26041 | J12: Activo
B13: 145 | C13: 2019-07-18 | D13: T1 | E13: Transporte | F13: TRANSPORTE DE MATERIAL DE AFIRMADO | G13: m³/km | H13: 1250 | J13: Activo
B14: 2 | C14: 2019-07-18 | D14: M2 | E14: Materiales | F14: AGREGADO PARA CONCRETO HIDRAULICO MAX 1" | G14: m³ | H14: 70000 | I14: 0 | J14: Activo
B15: 3 | C15: 2019-07-18 | D15: M3 | E15: Materiales | F15: ALAMBRE NEGRO PARA AMARRE | G15: Kg | H15: 3800 | J15: Activo
B16: 4 | C16: 2019-07-18 | D16: M4 | E16: Materiales | F16: ARENA | G16: m³ | H16: 60000 | J16: Activo
B17: 5 | C17: 2019-07-18 | D17: M5 | E17: Materiales | F17: CEMENTO GRIS | G17: kg | H17: 580 | J17: Activo
B18: 6 | C18: 2019-07-18 | D18: M6 | E18: Materiales | F18: CESPEDONES | G18: m² | H18: 2730 | J18: Activo
B19: 7 | C19: 2019-07-18 | D19: M7 | E19: Materiales | F19: DISOLVENTE PARA PINTURA (ESPECIFICAR EL TIPO DE DISOLVENTE QUE ESTA UTILIZANDO) | G19: gal | H19: 26000 | J19: Activo
B20: 8 | C20: 2019-07-18 | D20: M8 | E20: Materiales | F20: EMULSION ASFALTICA DE ROTURA LENTA CRL-0 | G20: l | H20: 2000 | J20: Activo
B21: 9 | C21: 2019-07-18 | D21: M9 | E21: Materiales | F21: ESFERAS REFLECTIVAS | G21: kg | H21: 4800 | J21: Activo
B22: 10 | C22: 2019-07-18 | D22: M10 | E22: Materiales | F22: MATERIAL DE BASE | G22: m³ | H22: 32000 | J22: Activo
B23: 11 | C23: 2019-07-18 | D23: M11 | E23: Materiales | F23: MATERIAL DE SUB- BASE CBR=40% | G23: m³ | H23: 26861.10183 | J23: Activo
B24: 12 | C24: 2019-07-18 | D24: M12 | E24: Materiales | F24: MATERIAL SELECCIONADO PARA RELLENO | G24: m³ | H24: 18848.26667 | J24: Activo
B25: 13 | C25: 2019-07-18 | D25: M13 | E25: Materiales | F25: MEZCLA DENSA EN CALIENTE MDC-2 | G25: m³ | H25: 300000 | J25: Activo
B26: 14 | C26: 2019-07-18 | D26: M14 | E26: Materiales | F26: PINTURA ACRILICA PURA PARA TRAFICO | G26: gal | H26: 82400 | J26: Activo
B27: 15 | C27: 2019-07-18 | D27: M15 | E27: Materiales | F27: POSTE DE MADERA PARA CERCAS Y PARA UTILIZAR EN LAS ESCAMAS EN CONCRETO | G27: und | H27: 9715 | J27: Activo
B28: 16 | C28: 2019-07-18 | D28: M16 | E28: Materiales | F28: POSTE EN ANGULO DE 2*2*1/4 DE 3,5M PARA SEÑAL | G28: und | H28: 75000 | J28: Activo
B29: 17 | C29: 2019-07-18 | D29: M17 | E29: Materiales | F29: RESINA TERMOPLASTICA | G29: kg | H29: 10000 | J29: Activo
B30: 18 | C30: 2019-07-18 | D30: M18 | E30: Materiales | F30: SELLO DE JUNTAS | G30: kg | H30: 2500 | J30: Activo
B31: 19 | C31: 2019-07-18 | D31: M19 | E31: Materiales | F31: TABLERO EN LAMINA GALVANIZADA DE 75*75 CALIBRE 16 REFLECTIVO TIPO 1 | G31: und | H31: 330000 | J31: Activo
B32: 20 | C32: 2019-07-18 | D32: M20 | E32: Materiales | F32: TACHA REFLECTIVA UNIDIRECCIONAL | G32: und | H32: 5500 | J32: Activo
B33: 21 | C33: 2019-07-18 | D33: M21 | E33: Materiales | F33: TIERRA ABONADA | G33: m³ | H33: 32550 | J33: Activo
B34: 22 | C34: 2019-07-18 | D34: M22 | E34: Materiales | F34: TUBERIA DE CONCRETO REFORZADO 21 MPA DE 900 mm DIAMETRO INTERIOR | G34: m | H34: 480000 | J34: Activo
B35: 23 | C35: 2019-07-18 | D35: M23 | E35: Materiales | F35: ACPM PARA MECHEROS | G35: gl | H35: 8748 | J35: Activo
B36: 24 | C36: 2019-07-18 | D36: M24 | E36: Materiales | F36: AGUA | G36: l | H36: 30 | J36: Activo
B37: 25 | C37: 2019-01-09 | D37: M25 | E37: Materiales | F37: Alambre negro N°. 18 | G37: kg | H37: 2504 | J37: Activo
B38: 26 | C38: 2019-07-18 | D38: M26 | E38: Materiales | F38: ALAMBRE DE PUAS CALIBRE 12 (340 M) | G38: m | H38: 500 | J38: Activo
B39: 27 | C39: 2019-07-18 | D39: M27 | E39: Materiales | F39: ALAMBRE GALVANIZADO No.12 | G39: kg | H39: 5234.666667 | J39: Activo
B40: 28 | C40: 2019-07-18 | D40: M28 | E40: Materiales | F40: BAÑOS PORTATILES | G40: glb | H40: 300000 | J40: Activo
B41: 29 | C41: 2019-07-18 | D41: M29 | E41: Materiales | F41: BARRICADA (2m x 1m) | G41: und | H41: 417600 | J41: Activo
B42: 30 | C42: 2019-07-18 | D42: M30 | E42: Materiales | F42: BENTONITA | G42: kg | H42: 500 | J42: Activo
B43: 31 | C43: 2019-07-18 | D43: M31 | E43: Materiales | F43: CAMPAMENTO | G43: glb | H43: 3200000 | J43: Activo
B44: 32 | C44: 2019-07-18 | D44: M32 | E44: Materiales | F44: CHALECOS (Malla) | G44: und | H44: 20000 | J44: Activo
B45: 33 | C45: 2019-07-18 | D45: M33 | E45: Materiales | F45: CINTA PARA DELINEADOR (300m) | G45: und | H45: 38280 | J45: Activo
B46: 34 | C46: 2019-07-18 | D46: M34 | E46: Materiales | F46: CINTA REFLECTIVA | G46: und | H46: 1550 | J46: Activo
B47: 35 | C47: 2019-07-18 | D47: M35 | E47: Materiales | F47: CINTILLA DE POLIURETANO (SIKAROAD) | G47: m | H47: 1100 | J47: Activo
B48: 36 | C48: 2019-07-18 | D48: M36 | E48: Materiales | F48: COMPENSACION POR INTERVENCION PREDIAL | G48: glb | H48: 29000 | J48: Activo
B49: 37 | C49: 2019-07-18 | D49: M37 | E49: Materiales | F49: CONCRETO CLASE D | G49: m³ | H49: 504598 | J49: Activo
B50: 38 | C50: 2019-07-18 | D50: M38 | E50: Materiales | F50: CONO DE SEGURIDAD ALT 0,45MPLASTICO NARANJA REFLECTIVO | G50: und | H50: 25230 | J50: Activo
B51: 39 | C51: 2019-07-18 | D51: M39 | E51: Materiales | F51: DELINEADOR TUBULAR | G51: und | H51: 39440 | J51: Activo
B52: 40 | C52: 2019-07-18 | D52: M40 | E52: Materiales | F52: ESTACAS,PINTURA,TACHUELAS,HILO | G52: glb | H52: 5000 | J52: Activo
B53: 41 | C53: 2019-07-18 | D53: M41 | E53: Materiales | F53: FORMALETA DE CONCRETO CLASE D, E, Fy G | G53: m² | H53: 12000 | J53: Activo
B54: 42 | C54: 2019-07-18 | D54: M42 | E54: Materiales | F54: Formaleta (gaviones, juntas de bordillos, juntas de cunetas, muros, concretos clase D,E, F y G) | G54: m² | H54: 5678.677697 | J54: Activo
B55: 43 | C55: 2019-07-18 | D55: M43 | E55: Materiales | F55: Geotextil No Tejido Ref 1600 | G55: m² | H55: 4000 | J55: Activo
B56: 44 | C56: 2019-07-18 | D56: M44 | E56: Materiales | F56: Geotextil NT-2500 o Similar No Tejido | G56: m² | H56: 6500 | J56: Activo
B57: 45 | C57: 2019-07-18 | D57: M45 | E57: Materiales | F57: GEOTEXTIL T2400 O SIMILAR | G57: m² | H57: 7000 | J57: Activo
B58: 46 | C58: 2019-07-18 | D58: M46 | E58: Materiales | F58: GRAPAS | G58: kg | H58: 4200 | J58: Activo
B59: 47 | C59: 2019-07-18 | D59: M47 | E59: Materiales | F59: GUADUA TACO X 3M | G59: und | H59: 2500 | J59: Activo
B60: 48 | C60: 2019-07-18 | D60: M48 | E60: Materiales | F60: MALLA PARA GAVIONES ( 2 M3) | G60: und | H60: 86484.3046 | J60: Activo
B61: 49 | C61: 2019-07-18 | D61: M49 | E61: Materiales | F61: MATERIAL FILTRANTE PARA RELLENO | G61: m³ | H61: 65643 | J61: Activo
B62: 50 | C62: 2019-07-18 | D62: M50 | E62: Materiales | F62: MATERIAL GRANULAR FILTRANTE (TAM. MAXIMO 2") | G62: m³ | H62: 87000 | J62: Activo
B63: 51 | C63: 2019-07-18 | D63: M51 | E63: Materiales | F63: MECHERO | G63: und | H63: 10000 | J63: Activo
B64: 52 | C64: 2019-07-18 | D64: M52 | E64: Materiales | F64: PAPELERIA INFORMACION CAPACITACION TALLERES | G64: glb | H64: 25000 | J64: Activo
B65: 53 | C65: 2019-07-18 | D65: M53 | E65: Materiales | F65: PAPELERIA INFORMACION SOCIALIZACION Y FINALIZACION PROYECTO | G65: glb | H65: 250000 | J65: Activo
B66: 54 | C66: 2019-07-18 | D66: M54 | E66: Materiales | F66: Piedra para gavión | G66: m³ | H66: 31900 | J66: Activo
B67: 55 | C67: 2019-01-07 | D67: M55 | E67: Materiales | F67: Puntilla de 1" | G67: lb | H67: 2350 | J67: Activo
B68: 56 | C68: 2019-07-18 | D68: M56 | E68: Materiales | F68: SALIDA EN PVC D=2" | G68: und | H68: 1365 | J68: Activo
B69: 57 | C69: 2019-07-18 | D69: M57 | E69: Materiales | F69: SELLO DE SILICONA O SELLADOR AUTONIVELANTE | G69: m | H69: 5500 | J69: Activo
B70: 58 | C70: 2019-07-18 | D70: M58 | E70: Materiales | F70: SEÑAL VERTICAL 75X75 LAM CAL 18 REF NG 3M | G70: und | H70: 160000 | J70: Activo
B71: 59 | C71: 2019-07-18 | D71: M59 | E71: Materiales | F71: SEÑALIZADOR TUBULAR H=1,27M | G71: und | H71: 23000 | J71: Activo
B72: 60 | C72: 2019-07-18 | D72: M60 | E72: Materiales | F72: SERVICIOS PUBLICOS | G72: glb | H72: 250000 | J72: Activo
B73: 61 | C73: 2019-07-18 | D73: M61 | E73: Materiales | F73: SEÑALIZACION SIO-01 | G73: und | H73: 250800 | J73: Activo
B74: 62 | C74: 2019-07-18 | D74: M62 | E74: Materiales | F74: SEÑALIZACION SIO-02 | G74: und | H74: 150800 | J74: Activo
B75: 63 | C75: 2019-07-18 | D75: M63 | E75: Materiales | F75: SEÑALIZACION SIO-03 | G75: und | H75: 150800 | J75: Activo
B76: 64 | C76: 2019-07-18 | D76: M64 | E76: Materiales | F76: SEÑALIZACION SPO-01 | G76: und | H76: 111360 | J76: Activo
B77: 65 | C77: 2019-07-18 | D77: M65 | E77: Materiales | F77: SEÑALIZACION SRO-01 | G77: und | H77: 111360 | J77: Activo
B78: 66 | C78: 2019-07-18 | D78: M66 | E78: Materiales | F78: SEÑALIZACION SRO-02 | G78: und | H78: 111360 | J78: Activo
B79: 67 | C79: 2019-07-18 | D79: M67 | E79: Materiales | F79: TELA VERDE POLIPROPILENO | G79: rollo | H79: 110000 | J79: Activo
B80: 68 | C80: 2019-07-18 | D80: M68 | E80: Materiales | F80: TUBERIA PERFORADA CORRUGADA PVC 100mm | G80: m | H80: 23000 | J80: Activo
B81: 69 | C81: 2019-07-18 | D81: M69 | E81: Materiales | F81: TUBERÍA PERFORADA CORRUGADA PVC DE 2" | G81: m | H81: 11890 | J81: Activo
B82: 70 | C82: 2019-07-18 | D82: M70 | E82: Materiales | F82: UNIÓN EN PVC D=2" | G82: und | H82: 1680 | J82: Activo
B83: 71 | C83: 2019-07-18 | D83: M71 | E83: Materiales | F83: Derechos de explotación y/o disposición de materiales | G83: m³ | H83: 2988 | J83: Activo
B84: 72 | C84: 2019-07-18 | D84: M72 | E84: Materiales | F84: ANTISOL BLANCO (20kg) | G84: kg | H84: 8000 | J84: Activo
B85: 73 | C85: 2019-07-18 | D85: M73 | E85: Materiales | F85: RECEBO SELECCIONADO | G85: m³ | H85: 20000 | J85: Activo
B86: 74 | C86: 2019-07-18 | D86: M74 | E86: Materiales | F86: MORTERO 1:3 DE RECUBRIMIENTO | G86: m³ | H86: 234367 | J86: Activo
B87: 89 | C87: 2019-07-18 | D87: M113 | E87: Materiales | F87: FORMALETA (GAVIONES, JUNTAS DE BORDILLOS, JUNTAS DE CUNETAS, MUROS) | G87: m² | H87: 8000 | J87: Activo
B88: 163 | C88: 2019-01-07 | D88: M75 | E88: Materiales | F88: Durmiente ordinario 4*4cm | G88: m | H88: 2600 | J88: Activo
B89: 170 | C89: 2019-01-11 | D89: M82 | E89: Materiales | F89: Material de base (gradación 2) | G89: m³ | H89: 53012 | J89: Activo
B90: 176 | C90: 2019-01-11 | D90: M76 | E90: Materiales | F90: MORTERO 1:3 PARA DILATACIONES | G90: m | H90: ='[6]APU BÁSICO DNP'!K44 -> 309140 | J90: Activo
B91: 76 | C91: 2019-07-18 | D91: E4 | E91: Maquinaria y equipo | F91: CARGADOR 920 O EQUIVALENTE | G91: $/hora | H91: 140000 | J91: Activo
B92: 77 | C92: 2019-07-18 | D92: E5 | E92: Maquinaria y equipo | F92: CARGADOR 930 O EQUIVALENTE | G92: $/hora | H92: 190000 | J92: Activo
B93: 78 | C93: 2019-07-18 | D93: E6 | E93: Maquinaria y equipo | F93: CARROTANQUE DE AGUA 1.000 gal | G93: $/hora | H93: 68000 | J93: Activo
B94: 79 | C94: 2019-07-18 | D94: E7 | E94: Maquinaria y equipo | F94: Carrotanque Irrigador de asfalto, 1000 galones de capacidad | G94: hora | H94: 95000 | J94: Activo
B95: 80 | C95: 2019-07-18 | D95: E8 | E95: Maquinaria y equipo | F95: CIZALLA MANUAL DE 9 CMS | G95: $/hora | H95: 800 | J95: Activo
B96: 81 | C96: 2019-07-18 | D96: E9 | E96: Maquinaria y equipo | F96: COMPACTADOR MANUAL (RANA) | G96: $/hora | H96: 10000 | J96: Activo
B97: 82 | C97: 2019-07-18 | D97: E10 | E97: Maquinaria y equipo | F97: COMPACTADOR MANUAL (SALTARÍN) PESO 52 KG | G97: $/hora | H97: 15000 | J97: Activo
B98: 83 | C98: 2019-07-18 | D98: E11 | E98: Maquinaria y equipo | F98: COMPRESOR (BARRIDO Y SOPLADO) | G98: hora | H98: 65000 | J98: Activo
B99: 84 | C99: 2019-07-18 | D99: E12 | E99: Maquinaria y equipo | F99: COMPRESOR 125 PIES 3 CON MARTILLO | G99: $/hora | H99: 90000 | J99: Activo
B100: 85 | C100: 2019-07-18 | D100: E13 | E100: Maquinaria y equipo | F100: EQUIPO DE PINTURA PRESION MAZ 3300 PSI | G100: $/hora | H100: 16000 | J100: Activo
B101: 86 | C101: 2019-07-18 | D101: E14 | E101: Maquinaria y equipo | F101: EQUIPO DE OXICORTE | G101: $/hora | H101: 31500 | J101: Activo
B102: 87 | C102: 2019-07-18 | D102: E15 | E102: Maquinaria y equipo | F102: EQUIPO DE PERFORACIÓN (TRACKDRILL) | G102: $/hora | H102: 115.5 | J102: Activo
B103: 88 | C103: 2019-07-18 | D103: E16 | E103: Maquinaria y equipo | F103: EQUIPO DE TOPOGRAFÍA | G103: $/hora | H103: 15750 | J103: Activo
B104: 90 | C104: 2019-07-18 | D104: E18 | E104: Maquinaria y equipo | F104: MAQUINA TERMICA PEGATACHAS | G104: $/hora | H104: 15000 | J104: Activo
B105: 177 | C105: 2019-01-11 | D105: M79 | E105: Materiales | F105: Rajón de piedra del municipio | G105: m³ | H105: 129000 | J105: Activo
B106: 91 | C106: 2019-07-18 | D106: E19 | E106: Maquinaria y equipo | F106: MOTONIVELADORA POTENCIA 215 HP, ANCHO DE CUCHILLA 4,27M, PESO 18 TN | G106: hora | H106: 164000 | J106: Activo
B107: 92 | C107: 2019-07-18 | D107: E20 | E107: Maquinaria y equipo | F107: RETROEXCAVADORA CAP. 1.5 YD3 SOBRE ORUGA | G107: $/hora | H107: 130000 | J107: Activo
B108: 93 | C108: 2019-07-18 | D108: E21 | E108: Maquinaria y equipo | F108: TERMINADORA DE ASFALTO (FINISHER) | G108: $/hora | H108: 120000 | J108: Activo
B109: 94 | C109: 2019-07-18 | D109: E22 | E109: Maquinaria y equipo | F109: VEHICULO DELINEADOR | G109: $/hora | H109: 93700 | J109: Activo
B110: 95 | C110: 2019-07-18 | D110: E23 | E110: Maquinaria y equipo | F110: VIBROCOMPACTADOR POTENCIA 153HP PESO 10 TON | G110: hora | H110: 142000 | J110: Activo
B111: 96 | C111: 2019-07-18 | D111: E24 | E111: Maquinaria y equipo | F111: VOLQUETA 6 M3 | G111: $/hora | H111: 77350 | J111: Activo
B112: 97 | C112: 2019-07-18 | D112: E25 | E112: Maquinaria y equipo | F112: ALQUILER SILLAS Y MOBILIARIO (EN SITIO) | G112: und | H112: 100000 | J112: Activo
B113: 98 | C113: 2019-07-18 | D113: E26 | E113: Maquinaria y equipo | F113: CAMIONETA DOBLE CABINA | G113: $/hora | H113: 38400 | J113: Activo
B114: 99 | C114: 2019-07-18 | D114: E27 | E114: Maquinaria y equipo | F114: COMPACTADOR NEUMATICO | G114: $/hora | H114: 75000 | J114: Activo
B115: 100 | C115: 2019-07-18 | D115: E28 | E115: Maquinaria y equipo | F115: COMPUTADOR | G115: und | H115: 50000 | J115: Activo
B116: 101 | C116: 2019-07-18 | D116: E29 | E116: Maquinaria y equipo | F116: ESTACION TOPOGRAFIA | G116: $/hora | H116: 15750 | J116: Activo
B117: 102 | C117: 2019-07-18 | D117: E30 | E117: Maquinaria y equipo | F117: GRUA HIDRAULICA | G117: $/hora | H117: 100000 | J117: Activo
B118: 103 | C118: 2019-07-18 | D118: E31 | E118: Maquinaria y equipo | F118: Herramienta Menor HM (% mano de obra) | G118: glb | H118: 0 | I118: 0 | J118: Activo
B119: 104 | C119: 2019-07-18 | D119: E32 | E119: Maquinaria y equipo | F119: Mezcladora de concreto (1 bulto) | G119: hora | H119: 15000 | J119: Activo
B120: 105 | C120: 2019-07-18 | D120: E33 | E120: Maquinaria y equipo | F120: PLANTA ELECTRICA | G120: $/hora | H120: 20000 | J120: Activo
B121: 106 | C121: 2019-07-18 | D121: E34 | E121: Maquinaria y equipo | F121: RETROCARGADOR DOBLE TRANSMISION | G121: $/hora | H121: 120000 | J121: Activo
B122: 107 | C122: 2019-07-18 | D122: E35 | E122: Maquinaria y equipo | F122: VIBRADOR DE CONCRETO | G122: $/hora | H122: 7000 | J122: Activo
B123: 108 | C123: 2019-07-18 | D123: E36 | E123: Maquinaria y equipo | F123: VIDEO BEAM | G123: und | H123: 50000 | J123: Activo
B124: 109 | C124: 2019-07-18 | D124: E37 | E124: Maquinaria y equipo | F124: BARRENO | G124: $/hora | H124: 2000 | J124: Activo
B125: 110 | C125: 2019-07-18 | D125: E38 | E125: Maquinaria y equipo | F125: MOTOBOMBA 3" | G125: $/hora | H125: 8200 | J125: Activo
B126: 111 | C126: 2019-07-18 | D126: E39 | E126: Maquinaria y equipo | F126: RETROEXCAVADORA CARGADORA | G126: $/hora | H126: 130000 | J126: Activo
B127: 160 | C127: 2019-07-18 | D127: E40 | E127: Maquinaria y equipo | F127: Buldo | G127: und | H127: 45000 | J127: Activo
B128: 114 | C128: 2019-07-18 | D128: MO3 | E128: Mano de Obra | F128: OBREROS (1) | G128: Jornal | H128: 26041 | J128: Activo
B129: 115 | C129: 2019-07-18 | D129: MO4 | E129: Mano de Obra | F129: OBREROS (2) | G129: Jornal | H129: 52082 | J129: Activo
B130: 116 | C130: 2019-07-18 | D130: MO5 | E130: Mano de Obra | F130: OBREROS (7) | G130: Jornal | H130: =26041*7 -> 182287 | J130: Activo
B131: 117 | C131: 2019-07-18 | D131: MO6 | E131: Mano de Obra | F131: OBREROS (5) | G131: Jornal | H131: 130205 | J131: Activo
B132: 118 | C132: 2019-07-18 | D132: MO7 | E132: Mano de Obra | F132: OBREROS (8) | G132: Jornal | H132: 208328 | J132: Activo
B133: 119 | C133: 2019-07-18 | D133: MO8 | E133: Mano de Obra | F133: ESTAQUERO (1) | G133: Jornal | H133: 26041 | J133: Activo
B134: 120 | C134: 2019-07-18 | D134: MO9 | E134: Mano de Obra | F134: ESTAQUERO (2) | G134: Jornal | H134: 52082 | J134: Activo
B135: 121 | C135: 2019-07-18 | D135: M010 | E135: Mano de Obra | F135: PALETEROS (2) | G135: Jornal | H135: 52082 | J135: Activo
B136: 122 | C136: 2019-07-18 | D136: MO11 | E136: Mano de Obra | F136: COORDINADOR DE PROYECTO | G136: Jornal | H136: 128870 | J136: Activo
B137: 123 | C137: 2019-07-18 | D137: MO12 | E137: Mano de Obra | F137: Especialista Ambiental | G137: Sueldo | H137: 4500000 | J137: Activo
B138: 124 | C138: 2019-07-18 | D138: MO13 | E138: Mano de Obra | F138: ESPECIALISTA SOCIAL | G138: Jornal | H138: 128870 | J138: Activo
B139: 125 | C139: 2019-07-18 | D139: MO14 | E139: Mano de Obra | F139: GRUPO DE ORDEN Y ASEO | G139: Jornal | H139: 128870 | J139: Activo
B140: 126 | C140: 2019-07-18 | D140: MO15 | E140: Mano de Obra | F140: OBREROS (3) | G140: Jornal | H140: 78123 | J140: Activo
B141: 127 | C141: 2019-07-18 | D141: MO16 | E141: Mano de Obra | F141: OBREROS (4) | G141: Jornal | H141: 104164 | J141: Activo
B142: 128 | C142: 2019-07-18 | D142: MO17 | E142: Mano de Obra | F142: OBREROS (6) | G142: Jornal | H142: 156246 | J142: Activo
B143: 129 | C143: 2019-07-18 | D143: MO18 | E143: Mano de Obra | F143: OFICIAL (1) | G143: Jornal | H143: 46000 | J143: Activo
B144: 130 | C144: 2019-07-18 | D144: MO19 | E144: Mano de Obra | F144: RASTRILLEROS (1) | G144: Jornal | H144: 39061.5 | J144: Activo
B145: 131 | C145: 2019-07-18 | D145: MO20 | E145: Mano de Obra | F145: REGULADOR DE ORDEN | G145: Jornal | H145: 128870 | J145: Activo
B146: 132 | C146: 2019-07-18 | D146: MO21 | E146: Mano de Obra | F146: RESIDENTE AMBIENTAL | G146: Jornal | H146: 128870 | J146: Activo
B147: 133 | C147: 2019-07-18 | D147: MO22 | E147: Mano de Obra | F147: CADENERO 1 | G147: Jornal | H147: 50000 | J147: Activo
B148: 134 | C148: 2019-07-18 | D148: MO23 | E148: Mano de Obra | F148: CADENERO 2 | G148: Jornal | H148: 40000 | J148: Activo
B149: 135 | C149: 2019-07-18 | D149: MO24 | E149: Mano de Obra | F149: TOPOGRAFO (1) | G149: Jornal | H149: 80000 | J149: Activo
B150: 136 | C150: 2019-07-18 | D150: MO25 | E150: Mano de Obra | F150: COMISIÓN TOPOGRAFÍA | G150: Jornal | H150: 242082 | J150: Activo
B151: 137 | C151: 2019-07-18 | D151: MO26 | E151: Mano de Obra | F151: OBREROS (9) | G151: Jornal | H151: 234369 | J151: Activo
B152: 138 | C152: 2019-07-18 | D152: MO27 | E152: Mano de Obra | F152: OBREROS (11) | G152: Jornal | H152: 286451 | J152: Activo
B153: 139 | C153: 2019-07-18 | D153: MO28 | E153: Mano de Obra | F153: Director de obra | G153: Sueldo | H153: 6000000 | I153: 0.5 | J153: Activo
B154: 140 | C154: 2019-07-18 | D154: MO29 | E154: Mano de Obra | F154: Residente de Obra | G154: Sueldo | H154: 3500000 | I154: 1 | J154: Activo
B155: 141 | C155: 2019-07-18 | D155: MO30 | E155: Mano de Obra | F155: Ingeniero Auxiliar | G155: Sueldo | H155: 3000000 | I155: 1 | J155: Activo
B156: 142 | C156: 2019-07-18 | D156: MO31 | E156: Mano de Obra | F156: Almacenista | G156: Salario | H156: 1800000 | I156: 1 | J156: Activo
B157: 143 | C157: 2019-07-18 | D157: MO32 | E157: Mano de Obra | F157: Secretaria | G157: Salario | H157: 1500000 | J157: Activo
B158: 144 | C158: 2019-07-18 | D158: MO33 | E158: Mano de Obra | F158: Celador | G158: Salario | H158: 1800000 | I158: 1 | J158: Activo
B159: 221 | C159: 2019-03-13 | D159: MO34 | E159: Mano de Obra | F159: Ingeniero Civil | G159: Jornal | H159: 120000 | J159: Activo
B160: 243 | C160: 2019-03-19 | D160: MO35 | E160: Mano de Obra | F160: Especialista en Estructuras | G160: Sueldo | H160: 4500000 | I160: 0.3 | J160: Activo
B161: 146 | C161: 2019-07-18 | D161: T2 | E161: Transporte | F161: TARIFA DE TRANSPORTE DE TIERRA ABONADA | G161: m³/km | H161: 1200 | J161: Activo
B162: 147 | C162: 2019-07-18 | D162: T3 | E162: Transporte | F162: TRANSPORTE AGREGADO PARA CONCRETO HIDRAULICO | G162: m³/km | H162: 1200 | J162: Activo
B163: 148 | C163: 2019-07-18 | D163: T4 | E163: Transporte | F163: TRANSPORTE DE ARENA | G163: m³/km | H163: 1250 | J163: Activo
B164: 149 | C164: 2019-07-18 | D164: T5 | E164: Transporte | F164: TRANSPORTE MATERIAL DE RELLENO | G164: m³/km | H164: 1200 | J164: Activo
B165: 150 | C165: 2019-07-18 | D165: T6 | E165: Transporte | F165: TRANSPORTE MATERIAL DE BASE/SUB BASE | G165: m³/km | H165: 1250 | J165: Activo
B166: 151 | C166: 2019-07-18 | D166: T7 | E166: Transporte | F166: Transporte de piedra para gaviones | G166: m³/km | H166: 1250 | J166: Activo
B167: 152 | C167: 2019-07-18 | D167: T8 | E167: Transporte | F167: TRANSPORTE TUBO CONCRETO REFORZADO 900 MM | G167: m³/km | H167: 1200 | J167: Activo
B168: 153 | C168: 2019-07-18 | D168: T9 | E168: Transporte | F168: TRACTOMULA PARA TRANSPORTE DE POSTES | G168: t/km | H168: 700000 | J168: Activo
B169: 154 | C169: 2019-07-18 | D169: T10 | E169: Transporte | F169: TRANSPORTE MATERIAL ASFALTICO | G169: m³/km | H169: 1200 | J169: Activo
B170: 155 | C170: 2019-07-18 | D170: T11 | E170: Transporte | F170: TRANSPORTE MATERIAL GRANULAR FILTRANTE | G170: m³/km | H170: 1250 | J170: Activo
B171: 156 | C171: 2019-07-18 | D171: T12 | E171: Transporte | F171: TRANSPORTE MATERIAL COMUN | G171: m³/km | H171: 1200 | J171: Activo
B172: 157 | C172: 2019-07-18 | D172: T13 | E172: Transporte | F172: TRANSPORTE DE CEMENTO | G172: t/km | H172: 800 | J172: Activo
B173: 158 | C173: 2019-07-18 | D173: T14 | E173: Transporte | F173: TRANSPORTE MATERIAL DEMOLICION | G173: m³/km | H173: 1200 | J173: Activo
B174: 159 | C174: 2019-07-18 | D174: T15 | E174: Transporte | F174: Transporte de material seleccionado para relleno | G174: m³/km | H174: 1250 | J174: Activo
B175: 168 | C175: 2019-01-11 | D175: T16 | E175: Transporte | F175: Volqueta 6 m³ (cargue mecánico) botadero | G175: m³ | H175: 1250 | J175: Activo
B176: 161 | C176: 2019-07-18 | D176: E41 | E176: Maquinaria y equipo | F176: Andamio | G176: und | H176: 50000 | J176: Activo
B177: 162 | C177: 2019-01-07 | D177: E42 | E177: Maquinaria y equipo | F177: Retroexcavadora sobre oruga, potencia 138 HP, balde de 1,5 m3. | G177: hora | H177: 207266 | J177: Activo
B178: 164 | C178: 2019-01-07 | D178: E43 | E178: Maquinaria y equipo | F178: Bulldozer, Potencia al volante de 140 HP, motor de 2200 RPM, longitud de hoja 4,80 m. | G178: hora | H178: 140167 | J178: Activo
B179: 178 | C179: 2019-01-11 | D179: M77 | E179: Materiales | F179: CONCRETO DE 210 kg/cm² (3.000 PSI) | G179: m³ | H179: ='[6]APU BÁSICO DNP'!APU20_BASICO -> 269510 | J179: Activo
B180: 165 | C180: 2019-01-08 | D180: E1 | E180: Maquinaria y equipo | F180: BULDOZER D6 | G180: $/hora | H180: 180000 | J180: Activo
B181: 166 | C181: 2019-01-08 | D181: E45 | E181: Maquinaria y equipo | F181: Motoniveladora 120 Hp | G181: hora | H181: 120000 | J181: Activo
B182: 167 | C182: 2019-01-11 | D182: E46 | E182: Maquinaria y equipo | F182: Carrotanque de agua(1000 Galones) | G182: hora | H182: 70000 | J182: Activo
B183: 172 | C183: 2019-01-12 | D183: E2 | E183: Maquinaria y equipo | F183: ASPERSOR MANUAL | G183: $/hora | H183: 1750 | J183: Activo
B184: 169 | C184: 2019-01-11 | D184: T17 | E184: Transporte | F184: Volqueta 6 m³ (cargue mecánico)botadero adicional mayor 20 km | G184: m³ | H184: 1323.25 | J184: Activo
B185: 171 | C185: 2019-01-11 | D185: T18 | E185: Transporte | F185: TRANSPORTE DE MATERIAL DE SUBBASE | G185: m³/km | H185: 1250 | J185: Activo
B186: 179 | C186: 2019-01-11 | D186: M78 | E186: Materiales | F186: Concreto de 140 kg/cm² | G186: m³ | H186: ='[6]APU BÁSICO DNP'!K76 -> 204410 | J186: Activo
B187: 184 | C187: 2019-01-11 | D187: T19 | E187: Transporte | F187: Transporte de material de afirmado | G187: m³/km | H187: 1250 | J187: Activo
B188: 173 | C188: 2019-01-11 | D188: E47 | E188: Maquinaria y equipo | F188: formaleta madera | G188: m² | H188: 2500 | J188: Activo
B189: 174 | C189: 2019-01-08 | D189: E44 | E189: Maquinaria y equipo | F189: Vibro compactador 8 Ton | G189: hora | H189: 116000 | J189: Activo
B190: 175 | C190: 2019-01-11 | D190: E48 | E190: Maquinaria y equipo | F190: Vibrador a gasolina | G190: hora | H190: 3830 | J190: Activo
B191: 183 | C191: 2019-01-12 | D191: E50 | E191: Maquinaria y equipo | F191: Camión de Slurry | G191: hora | H191: 104000 | J191: Activo
B192: 180 | C192: 2019-01-11 | D192: M80 | E192: Materiales | F192: Concreto de 210 kg/cm² | G192: m³ | H192: 410988 | J192: Eliminado
B193: 181 | C193: 2019-01-11 | D193: M81 | E193: Materiales | F193: Material de afirmado | G193: m³ | H193: 16500 | J193: Activo
B194: 182 | C194: 2019-01-12 | D194: M83 | E194: Materiales | F194: Material de base (gradación 1) | G194: m³ | H194: 56840 | J194: Activo
B195: 185 | C195: 2019-01-12 | D195: M85 | E195: Materiales | F195: Agregado tipo LA 5 (lechadas) | G195: m³ | H195: 66000 | J195: Activo
B196: 187 | C196: 2019-01-12 | D196: M84 | E196: Materiales | F196: Material de base (gradación 3) | G196: m³ | H196: 47500 | J196: Activo
B197: 188 | C197: 2019-01-12 | D197: M86 | E197: Materiales | F197: Emulsión CRL-1h | G197: l | H197: 1600 | J197: Activo
B198: 189 | C198: 2019-01-12 | D198: M88 | E198: Materiales | F198: Agregado para tratamiento superficial doble (primer riego) | G198: m³ | H198: 66000 | J198: Activo
B199: 186 | C199: 2019-01-12 | D199: E49 | E199: Maquinaria y equipo | F199: Motoniveladora, potencia 140 HP, ancho de cuchilla 3,66 m, peso 11 ton. | G199: hora | H199: 160000 | J199: Activo
B200: 190 | C200: 2019-01-12 | D200: T20 | E200: Transporte | F200: Transporte de agregado tipo LA-3 | G200: m³/km | H200: 1250 | J200: Activo
B201: 191 | C201: 2019-01-12 | D201: M87 | E201: Materiales | F201: Agregado para tratamiento superficial doble (segundo riego) | G201: m³ | H201: 66000 | J201: Activo
B202: 192 | C202: 2019-01-12 | D202: E52 | E202: Maquinaria y equipo | F202: Esparcidor de gravilla, Ancho de esparcimiento 3100mm, Velocidad de trabajo 10—20km2/h | G202: hora | H202: 76936.2 | J202: Activo
B203: 195 | C203: 2019-01-12 | D203: M90 | E203: Materiales | F203: Arena lavada | G203: m³ | H203: 29000 | J203: Activo
... 85 more rows

Sheet A.U.I
G3: REPÚBLICA DE COLOMBIA
G4: =+DPTO -> DEPARTAMENTO DEL CAUCA
G5: =+Nom_Mpio1 -> MUNICIPIO LA ESTRELLA FLUVIAL
G6: =Dependencia -> SECRETARÍA DE OBRAS PÚBLICAS
G7: =+Nom_proy1 -> MEJORAMIENTO DEL TRAMO VIAL LA PAZ - EL PROGRESO ENTRE EL K5+000 Y EL K6+000 DEL MUNICIPIO LA ESTRELLA FLUVIAL
G9: Fecha: | J9: =+Fecha_Pres -> 2019-10-11
E11: DESGLOCE DEL AIU
E13: 1. AMINISTRACIÓN
E15: I. COSTOS DE PERSONAL
C16: N°. CÓDIGO | E16: ITEM | F16: CARGO | I16: % DEDICACIÓN | J16: CANT | K16: SUELDO/SALARIO | L16: FACTOR PRESTACIONAL | M16: TOTAL COSTO DE PERSONAL
E17: 1 | F17: PERSONAL PROFESIONAL
C18: MO28 | E18: 1.1 | F18: =+IFERROR(VLOOKUP($C18,MATERIALES1[],2,FALSE),"") -> Director de obra | I18: 0.5 | J18: 1 | K18: =+IFERROR(VLOOKUP($C18,INSUMOS!$B$125:$F$157,4,FALSE),"") -> 6000000 | L18: =+F_PREST -> 0.6836354832 | M18: =ROUND(I18*J18*K18*L18,0) -> 2050906
C19: MO29 | E19: =E18+0.1 -> 1.2 | F19: =+IFERROR(VLOOKUP($C19,MATERIALES1[],2,FALSE),"") -> Residente de Obra | I19: 1 | J19: 1 | K19: =+IFERROR(VLOOKUP($C19,INSUMOS!$B$125:$F$157,4,FALSE),"") -> 3500000 | L19: 0.6836354832 | M19: 2392724
C20: MO30 | E20: 1.3 | F20: =+IFERROR(VLOOKUP($C20,MATERIALES1[],2,FALSE),"") -> Ingeniero Auxiliar | I20: 1 | J20: 1 | K20: =+IFERROR(VLOOKUP($C20,INSUMOS!$B$125:$F$157,4,FALSE),"") -> 3000000 | L20: 0.6836354832 | M20: 2050906
C21: MO35 | E21: 1.4 | F21: =+IFERROR(VLOOKUP($C21,MATERIALES1[],2,FALSE),"") -> Especialista en Estructuras | I21: 0.3 | J21: 1 | K21: =+IFERROR(VLOOKUP($C21,MATERIALES1[],4,FALSE),"") -> 4500000 | L21: 0.6836354832 | M21: 922908
C22: MO36 | E22: 1.5 | F22: =+IFERROR(VLOOKUP($C22,MATERIALES1[],2,FALSE),"") -> Especialista en Geotecnia o suelos | I22: 0.3 | J22: 1 | K22: =+IFERROR(VLOOKUP($C22,MATERIALES1[],4,FALSE),"") -> 4500000 | L22: 0.6836354832 | M22: 922908
C23: MO37 | E23: 1.6 | F23: =+IFERROR(VLOOKUP($C23,MATERIALES1[],2,FALSE),"") -> Especialista en Pavimentos | I23: 0.3 | J23: 1 | K23: =+IFERROR(VLOOKUP($C23,MATERIALES1[],4,FALSE),"") -> 4500000 | L23: 0.6836354832 | M23: 922908
C24: MO38 | E24: 1.7 | F24: =+IFERROR(VLOOKUP($C24,MATERIALES1[],2,FALSE),"") -> Especialista en Hidráulica e Hidrología | I24: 0.3 | J24: 1 | K24: =+IFERROR(VLOOKUP($C24,MATERIALES1[],4,FALSE),"") -> 4500000 | L24: 0.6836354832 | M24: 922908
E25: 2 | F25: PERSONAL TÉCNICO
C26: MO39 | E26: =E25+0.1 -> 2.1 | F26: =+IFERROR(VLOOKUP($C26,MATERIALES1[],2,FALSE),"") -> Topógrafo | K26: =+IFERROR(VLOOKUP($C26,MATERIALES1[],4,FALSE),"") -> 2500000 | L26: =+F_PREST -> 0.6836354832 | M26: =ROUND(I26*J26*K26*L26,0) -> 0
C27: MO40 | E27: =E26+0.1 -> 2.2 | F27: =+IFERROR(VLOOKUP($C27,MATERIALES1[],2,FALSE),"") -> Cadenero | K27: =+IFERROR(VLOOKUP($C27,MATERIALES1[],4,FALSE),"") -> 1500000 | L27: =+F_PREST -> 0.6836354832 | M27: =ROUND(I27*J27*K27*L27,0) -> 0
E28: 3 | F28: PERSONAL ADMINISTRATIVO
C29: MO31 | E29: =E28+0.1 -> 3.1 | F29: =+IFERROR(VLOOKUP($C29,MATERIALES1[],2,FALSE),"") -> Almacenista | I29: 1 | J29: 1 | K29: =+IFERROR(VLOOKUP($C29,MATERIALES1[],4,FALSE),"") -> 1800000 | L29: =+F_PREST -> 0.6836354832 | M29: =ROUND(I29*J29*K29*L29,0) -> 1230544
C30: MO41 | E30: =E29+0.1 -> 3.2 | F30: =+IFERROR(VLOOKUP($C30,MATERIALES1[],2,FALSE),"") -> Asistente Administrativa | I30: 1 | J30: 1 | K30: =+IFERROR(VLOOKUP($C30,MATERIALES1[],4,FALSE),"") -> 1500000 | L30: =+F_PREST -> 0.6836354832 | M30: =ROUND(I30*J30*K30*L30,0) -> 1025453
C31: MO33 | E31: =E30+0.1 -> 3.3 | F31: =+IFERROR(VLOOKUP($C31,MATERIALES1[],2,FALSE),"") -> Celador | I31: 1 | J31: 1 | K31: =+IFERROR(VLOOKUP($C31,MATERIALES1[],4,FALSE),"") -> 1800000 | L31: =+F_PREST -> 0.6836354832 | M31: =ROUND(I31*J31*K31*L31,0) -> 1230544
E32: COSTOS DE PERSONAL POR MES | M32: =SUM(M18:M31) -> 13672709
E34: II. COSTOS OPERACIONALES
C35: N°. CÓDIGO | E35: ITEM | F35: DESCRIPCION | K35: CANT | L35: TARIFA MENSUAL | M35: VALOR TOTAL
E36: 1 | F36: COSTOS DIRECTOS DE CAMPO
C37: E61 | E37: =E36+0.1 -> 1.1 | F37: =IFERROR(VLOOKUP($C37,INSUMOS!$B$9:$J$500,2,FALSE),"") -> Alquiler Equipo de Computo | K37: 3 | L37: =IFERROR(VLOOKUP($C37,INSUMOS!$B$9:$J$500,4,FALSE),"") -> 300000 | M37: =ROUND(K37*L37,2) -> 900000
C38: E62 | E38: =E37+0.1 -> 1.2 | F38: =IFERROR(VLOOKUP($C38,INSUMOS!$B$9:$J$500,2,FALSE),"") -> Alquiler de Impresora | K38: 1 | L38: =IFERROR(VLOOKUP($C38,INSUMOS!$B$9:$J$500,4,FALSE),"") -> 150000 | M38: 150000
C39: E63 | E39: 1.3 | F39: =IFERROR(VLOOKUP($C39,INSUMOS!$B$9:$J$500,2,FALSE),"") -> Alquiler Equipo de Comunicación (Celular) | K39: 3 | L39: =IFERROR(VLOOKUP($C39,INSUMOS!$B$9:$J$500,4,FALSE),"") -> 150000 | M39: 450000
C40: E64 | E40: 1.4 | F40: =IFERROR(VLOOKUP($C40,INSUMOS!$B$9:$J$500,2,FALSE),"") -> Alquiler Camioneta 4x4 | K40: 1 | L40: =IFERROR(VLOOKUP($C40,INSUMOS!$B$9:$J$500,4,FALSE),"") -> 3800000 | M40: 3800000
C41: E65 | E41: 1.5 | F41: =IFERROR(VLOOKUP($C41,INSUMOS!$B$9:$J$500,2,FALSE),"") -> Alquiler de Campamento | K41: 1 | L41: =IFERROR(VLOOKUP($C41,INSUMOS!$B$9:$J$500,4,FALSE),"") -> 1000000 | M41: 1000000
C42: E66 | E42: 1.6 | F42: =IFERROR(VLOOKUP($C42,INSUMOS!$B$9:$J$500,2,FALSE),"") -> Alquiler de Bodega | K42: 1 | L42: =IFERROR(VLOOKUP($C42,INSUMOS!$B$9:$J$500,4,FALSE),"") -> 1000000 | M42: 1000000
C43: E67 | E43: 1.7 | F43: =IFERROR(VLOOKUP($C43,INSUMOS!$B$9:$J$500,2,FALSE),"") -> Alquiler Muebles de Oficina | K43: 1 | L43: =IFERROR(VLOOKUP($C43,INSUMOS!$B$9:$J$500,4,FALSE),"") -> 500000 | M43: 500000
C44: M123 | E44: 1.8 | F44: =IFERROR(VLOOKUP($C44,INSUMOS!$B$9:$J$500,2,FALSE),"") -> Papeleria | K44: 1 | L44: =IFERROR(VLOOKUP($C44,INSUMOS!$B$9:$J$500,4,FALSE),"") -> 200000 | M44: 200000
C45: E68 | E45: 1.9 | F45: =IFERROR(VLOOKUP($C45,INSUMOS!$B$9:$J$500,2,FALSE),"") -> Internet Banda Ancha | K45: 1 | L45: =IFERROR(VLOOKUP($C45,INSUMOS!$B$9:$J$500,4,FALSE),"") -> 150000 | M45: 150000
C46: E69 | E46: 1.1 | F46: =IFERROR(VLOOKUP($C46,INSUMOS!$B$9:$J$500,2,FALSE),"") -> Servicios Publicos Agua y Enería | K46: 1 | L46: =IFERROR(VLOOKUP($C46,INSUMOS!$B$9:$J$500,4,FALSE),"") -> 300000 | M46: 300000
C47: E70 | E47: =E46+0.01 -> 1.11 | F47: =IFERROR(VLOOKUP($C47,INSUMOS!$B$9:$J$500,2,FALSE),"") -> Ensayos de Control de Calidad | K47: 1 | L47: =IFERROR(VLOOKUP($C47,INSUMOS!$B$9:$J$500,4,FALSE),"") -> 600000 | M47: 600000
C48: E71 | E48: =E47+0.01 -> 1.12 | F48: =IFERROR(VLOOKUP($C48,INSUMOS!$B$9:$J$500,2,FALSE),"") -> Alquiler Equipo de Topografía | K48: 1 | L48: =IFERROR(VLOOKUP($C48,INSUMOS!$B$9:$J$500,4,FALSE),"") -> 1500000 | M48: 1500000
C49: E72 | E49: =E48+0.01 -> 1.13 | F49: =IFERROR(VLOOKUP($C49,INSUMOS!$B$9:$J$500,2,FALSE),"") -> Valla informativa | K49: 2 | L49: =IFERROR(VLOOKUP($C49,INSUMOS!$B$9:$J$500,4,FALSE),"") -> 70000 | M49: 140000
E50: COSTOS OPERACIONALES POR MES | M50: =SUM(M37:M49) -> 10690000
E52: COSTOS DE PERSONAL Y OPERACIONALES POR MES | M52: =M32+M50 -> 24362709
E54: PLAZO DE EJECUCIÓN DE LA OBRA | M54: =D_OBRA -> 3
E56: COSTOS DE PERSONAL Y OPERACIONALES DURANTE LA EJECUCIÓN DE LA OBRA ( I+II ) | M56: =M52*M54 -> 73088127
E58: III. COSTOS DE LEGALIZACIÓN
E59: ITEM | F59: DESCRIPCION | M59: %
E60: 1 | F60: PÓLIZAS
E61: =E60+0.1 -> 1.1 | F61: Cumplimiento | M61: =+Poliza_cump. -> 0.0015
E62: =E61+0.1 -> 1.2 | F62: Manejo y buena inversión del anticipo | M62: =+Poliza_anticipo -> 0.002
E63: =E62+0.1 -> 1.3 | F63: Estabilidad de la Obra | M63: =+Poliza_Estab. -> 0.0041
E64: =E63+0.1 -> 1.4 | F64: Pago de salarios y prestaciones Sociales | M64: =+Poliza_Salarios -> 0.0008
E65: =E64+0.1 -> 1.5 | F65: Responsabilidad Civil Extracontractual | M65: =+Poliza_RCE -> 0.0014
E66: % PÓLIZAS | M66: =SUM(M61:M65) -> 0.0098
F69: RESUMEN DE COSTOS
F70: TIPO DE COSTOS | L70: VALOR | M70: %
F71: COSTO DIRECTO - VALOR BASICO DE OBRAS | L71: =C_DIRECTO -> 0
F72: COSTOS DE PERSONAL Y OPERACIONALES | L72: =M56 -> 73088127
F73: % COSTOS DE PERSONAL Y OPERACIONALES | M73: =IFERROR(L72/L71,"") -> 
F74: % PÓLIZAS | M74: =M66 -> 0.0098
F75: 1. ADMINISTRACION | M75: =ROUND(SUM(M73:M74),2) -> 0.01
F76: 2. IMPREVISTOS | M76: =IMPREVISTOS -> 0.02
F77: 3. UTILIDAD | M77: =UTILIDAD -> 0.05
F78: AIU | M78: =SUM(M75:M77) -> 0.08
E84: =+Responsable -> JULIANA MARÍA VELEZ
E85: =+Cargo -> SECRETARIA DE OBRAS PÚBLICAS
E86: =+MT_Responsable -> M.P. N°. 191919199 CAU

Sheet FOR_INSUMOS
C1: NOMBRE DEL PROYECTO: | K1: 1
C2: =+Nom_proy1 -> MEJORAMIENTO DEL TRAMO VIAL LA PAZ - EL PROGRESO ENTRE EL K5+000 Y EL K6+000 DEL MUNICIPIO LA ESTRELLA FLUVIAL | J2: Unidades
J3: kg
J4: km
C5: FORMULARIO INSUMOS CON PRECIOS | J5: m²
C6: FECHA: | D6: =+Fecha_Pres -> 2019-10-11 | J6: m³
J7: m
J8: und
J9: hora
B10: NÚMERO CONSECUTIVO GENERAL | J10: día
B11: FECHA | C11: FECHA | J11: Jornal
B12: NÚMERO CONSECUTIVO SEGÚN TIPO DE INSUMO | J12: gal
B13: TIPO DE INSUMO A INCLUIR | J13: l
B14: DESCRIPCIÓN DEL INSUMO A INCLUIR | J14: Sueldo
B15: UNIDAD DE MEDIDA | C15: UNIDAD | J15: Salario
B16: PRECIO UNITARIO DEL INSUMO | J16: mes
B17: PORCENTAJE DE DEDICACIÓN (solo para personal profesional) | J17: m³/km
B18: ESTADO | C18: % DEDICACIÓN

Sheet LISTA ITEMS
A3: CONSECUTIVO | B3: COD. APU | C3: COD. CANT. | D3: DESCRIPCIÓN | E3: UND | F3: DENOMINACIÓN | G3: FECHA | H3: CÒD_APUS
A4: 1 | C4: 1 | D4: PLACA HUELLA TIPO 1 (Bord-Cun-Cto-Pp-Cto-Pp-Cto-Cun-Bord) | E4: m | F4: OBRA
A5: 2 | C5: 1.1 | D5: PRELIMINARES | F5: CAPITULO
A6: 3 | B6: APU1 | C6: 1.1.1 | D6: LOCALIZACIÓN Y REPLANTEO | E6: m | F6: ÍTEM | H6: =+IFERROR(CONS_LISTA_ITEM[[#This Row],[COD. APU]],"") -> APU1 | I6: APU1
A7: 4 | C7: 1.2 | D7: MOVIMIENTOS TIERRA | F7: CAPITULO | H7: =+IFERROR(CONS_LISTA_ITEM[[#This Row],[COD. APU]],"") -> 0
A8: 5 | B8: APU2 | C8: 1.2.1 | D8: EXCAVACION SIN CLASIFICAR DE LA EXPLANACION Y CANALES | E8: m³ | F8: ÍTEM | H8: =+IFERROR(CONS_LISTA_ITEM[[#This Row],[COD. APU]],"") -> APU2 | I8: APU2
A9: 6 | B9: APU3 | C9: 1.2.2 | D9: RELLENO PARA ESTRUCTURAS CON MATERIAL IMPORTADO | E9: m³ | F9: ÍTEM | H9: =+IFERROR(CONS_LISTA_ITEM[[#This Row],[COD. APU]],"") -> APU3 | I9: APU3
A10: 7 | B10: APU4 | C10: 1.2.3 | D10: RETIRO MATERIAL DE EXCAVACIÓN (Incluye transporte) | E10: m³ | F10: ÍTEM | H10: =+IFERROR(CONS_LISTA_ITEM[[#This Row],[COD. APU]],"") -> APU4 | I10: APU4
A11: 8 | B11: APU5 | C11: 1.2.4 | D11: CONFORMACION DE CALZADA EXISTENTE | E11: m² | F11: ÍTEM | H11: =+IFERROR(CONS_LISTA_ITEM[[#This Row],[COD. APU]],"") -> APU5 | I11: APU5
A12: 9 | C12: 1.3 | D12: CAPA GRANULAR | F12: CAPITULO | H12: =+IFERROR(CONS_LISTA_ITEM[[#This Row],[COD. APU]],"") -> 0
A13: 10 | B13: APU6 | C13: 1.3.1 | D13: SUB-BASE GRANULAR (incluye suministro, extendido, nivelación, humedecido y compactación) | E13: m³ | F13: ÍTEM | H13: =+IFERROR(CONS_LISTA_ITEM[[#This Row],[COD. APU]],"") -> APU6 | I13: APU6
A14: 11 | C14: 1.4 | D14: CONCRETO PLACA HUELLA | F14: CAPITULO | H14: =+IFERROR(CONS_LISTA_ITEM[[#This Row],[COD. APU]],"") -> 0
A15: 12 | B15: APU7 | C15: 1.4.1 | D15: CONCRETO 21 MPA (CLASE D) PARA PLACA HUELLA | E15: m³ | F15: ÍTEM | H15: =+IFERROR(CONS_LISTA_ITEM[[#This Row],[COD. APU]],"") -> APU7 | I15: APU7
A16: 13 | B16: APU7 | C16: 1.4.2 | D16: CONCRETO 21 MPA (CLASE D) PARA DENTELLÓN | E16: m³ | F16: ÍTEM | H16: =+IFERROR(CONS_LISTA_ITEM[[#This Row],[COD. APU]],"") -> APU7 | I16: APU7
A17: 14 | B17: APU7 | C17: 1.4.3 | D17: CONCRETO 21 MPA (CLASE D) PARA VIGAS INICIAL Y FINAL | E17: m³ | F17: ÍTEM | H17: =+IFERROR(CONS_LISTA_ITEM[[#This Row],[COD. APU]],"") -> APU7 | I17: APU7
A18: 15 | B18: APU7 | C18: 1.4.4 | D18: CONCRETO 21 MPA (CLASE D) PARA VIGA RIOSTRA | E18: m³ | F18: ÍTEM | H18: =+IFERROR(CONS_LISTA_ITEM[[#This Row],[COD. APU]],"") -> APU7 | I18: APU7
A19: 16 | B19: APU8 | C19: 1.4.5 | D19: PIEDRA PEGADA | E19: m³ | F19: ÍTEM | H19: =+IFERROR(CONS_LISTA_ITEM[[#This Row],[COD. APU]],"") -> APU8 | I19: APU8
A20: 17 | C20: 1.5 | D20: CONCRETO CUNETAS Y BORDILLOS | F20: CAPITULO | H20: =+IFERROR(CONS_LISTA_ITEM[[#This Row],[COD. APU]],"") -> 0
A21: 18 | B21: APU7 | C21: 1.5.1 | D21: CUNETA EN CONCRETO DE 21 MPA | E21: m³ | F21: ÍTEM | H21: =+IFERROR(CONS_LISTA_ITEM[[#This Row],[COD. APU]],"") -> APU7 | I21: APU7
A22: 19 | B22: APU7 | C22: 1.5.2 | D22: BORDILLO EN CONCRETO DE 21 MPA | E22: m³ | F22: ÍTEM | H22: =+IFERROR(CONS_LISTA_ITEM[[#This Row],[COD. APU]],"") -> APU7 | I22: APU7
A23: 20 | C23: 1.6 | D23: ACERO REFUERZO | F23: CAPITULO | H23: =+IFERROR(CONS_LISTA_ITEM[[#This Row],[COD. APU]],"") -> 0
A24: 21 | B24: APU9 | C24: 1.6.1 | D24: ACERO REFUERZO FLEJADO 60000 PSI - 420 Mpa | E24: kg | F24: ÍTEM | H24: =+IFERROR(CONS_LISTA_ITEM[[#This Row],[COD. APU]],"") -> APU9 | I24: APU9
A25: 22 | C25: 1.7 | D25: SEÑALIZACIÓN | F25: CAPITULO | H25: =+IFERROR(CONS_LISTA_ITEM[[#This Row],[COD. APU]],"") -> 0
A26: 23 | B26: APU10 | C26: 1.7.1 | D26: SEÑAL VERTICAL DE TRANSITO TIPO 1 CON LAMINA RETRORREFLECTIVA TIPO III 75X75 cm | E26: Und | F26: ÍTEM | H26: =+IFERROR(CONS_LISTA_ITEM[[#This Row],[COD. APU]],"") -> APU10 | I26: APU10
A27: 24 | C27: 1.8 | D27: TRANSPORTE DE EQUIPO | F27: CAPITULO | H27: =+IFERROR(CONS_LISTA_ITEM[[#This Row],[COD. APU]],"") -> 0
A28: 25 | B28: APU11 | C28: 1.8.1 | D28: TRANSPORTE DE MOTONIVELADORA | E28: km | F28: ÍTEM | H28: =+IFERROR(CONS_LISTA_ITEM[[#This Row],[COD. APU]],"") -> APU11 | I28: APU11
A29: 26 | B29: APU11 | C29: 1.8.2 | D29: TRANSPORTE DE RETROCARGADOR | E29: km | F29: ÍTEM | H29: =+IFERROR(CONS_LISTA_ITEM[[#This Row],[COD. APU]],"") -> APU11 | I29: APU11
A30: 27 | B30: APU11 | C30: 1.8.3 | D30: TRANSPORTE DE VIBROCOMPACTADOR | E30: km | F30: ÍTEM | H30: =+IFERROR(CONS_LISTA_ITEM[[#This Row],[COD. APU]],"") -> APU11 | I30: APU11
A31: 28 | C31: 2 | D31: PLACA HUELLA TIPO 2 CASO 1 ( Bord-Cun-Cto-Pp-Cto-Pp-Cto-Bord ) | E31: m | F31: OBRA | H31: =+IFERROR(CONS_LISTA_ITEM[[#This Row],[COD. APU]],"") -> 0
A32: 29 | C32: 2.1 | D32: PRELIMINARES | F32: CAPITULO | H32: =+IFERROR(CONS_LISTA_ITEM[[#This Row],[COD. APU]],"") -> 0
A33: 30 | B33: APU1 | C33: 2.1.1 | D33: =+Loc_rep -> LOCALIZACIÓN Y REPLANTEO | E33: m | F33: ÍTEM | H33: =+IFERROR(CONS_LISTA_ITEM[[#This Row],[COD. APU]],"") -> APU1 | I33: APU1
A34: 31 | C34: 2.2 | D34: MOVIMIENTOS TIERRA | F34: CAPITULO | H34: =+IFERROR(CONS_LISTA_ITEM[[#This Row],[COD. APU]],"") -> 0
A35: 32 | B35: APU2 | C35: 2.2.1 | D35: EXCAVACION SIN CLASIFICAR DE LA EXPLANACION Y CANALES | E35: m³ | F35: ÍTEM | H35: =+IFERROR(CONS_LISTA_ITEM[[#This Row],[COD. APU]],"") -> APU2 | I35: APU2
A36: 33 | B36: APU3 | C36: 2.2.2 | D36: RELLENO PARA ESTRUCTURAS CON MATERIAL IMPORTADO | E36: m³ | F36: ÍTEM | H36: =+IFERROR(CONS_LISTA_ITEM[[#This Row],[COD. APU]],"") -> APU3 | I36: APU3
A37: 34 | B37: APU4 | C37: 2.2.3 | D37: RETIRO MATERIAL DE EXCAVACIÓN (Incluye transporte) | E37: m³ | F37: ÍTEM | H37: =+IFERROR(CONS_LISTA_ITEM[[#This Row],[COD. APU]],"") -> APU4 | I37: APU4
A38: 35 | B38: APU5 | C38: 2.2.4 | D38: CONFORMACION DE CALZADA EXISTENTE | E38: m² | F38: ÍTEM | H38: =+IFERROR(CONS_LISTA_ITEM[[#This Row],[COD. APU]],"") -> APU5 | I38: APU5
A39: 36 | C39: 2.3 | D39: CAPA GRANULAR | F39: CAPITULO | H39: =+IFERROR(CONS_LISTA_ITEM[[#This Row],[COD. APU]],"") -> 0
A40: 37 | B40: APU6 | C40: 2.3.1 | D40: SUB-BASE GRANULAR (incluye suministro, extendido, nivelación, humedecido y compactación) | E40: m³ | F40: ÍTEM | H40: =+IFERROR(CONS_LISTA_ITEM[[#This Row],[COD. APU]],"") -> APU6 | I40: APU6
A41: 38 | C41: 2.4 | D41: CONCRETO PLACA HUELLA | F41: CAPITULO | H41: =+IFERROR(CONS_LISTA_ITEM[[#This Row],[COD. APU]],"") -> 0
A42: 39 | B42: APU7 | C42: 2.4.1 | D42: CONCRETO 21 MPA (CLASE D) PARA PLACA HUELLA | E42: m³ | F42: ÍTEM | H42: =+IFERROR(CONS_LISTA_ITEM[[#This Row],[COD. APU]],"") -> APU7 | I42: APU7
A43: 40 | B43: APU7 | C43: 2.4.2 | D43: CONCRETO 21 MPA (CLASE D) PARA DENTELLÓN | E43: m³ | F43: ÍTEM | H43: =+IFERROR(CONS_LISTA_ITEM[[#This Row],[COD. APU]],"") -> APU7 | I43: APU7
A44: 41 | B44: APU7 | C44: 2.4.3 | D44: CONCRETO 21 MPA (CLASE D) PARA VIGAS INICIAL Y FINAL | E44: m³ | F44: ÍTEM | H44: =+IFERROR(CONS_LISTA_ITEM[[#This Row],[COD. APU]],"") -> APU7 | I44: APU7
A45: 42 | B45: APU7 | C45: 2.4.4 | D45: CONCRETO 21 MPA (CLASE D) PARA VIGA RIOSTRA | E45: m³ | F45: ÍTEM | H45: =+IFERROR(CONS_LISTA_ITEM[[#This Row],[COD. APU]],"") -> APU7 | I45: APU7
A46: 43 | B46: APU8 | C46: 2.4.5 | D46: PIEDRA PEGADA | E46: m³ | F46: ÍTEM | H46: =+IFERROR(CONS_LISTA_ITEM[[#This Row],[COD. APU]],"") -> APU8 | I46: APU8
A47: 44 | C47: 2.5 | D47: CONCRETO CUNETAS Y BORDILLOS | F47: CAPITULO | H47: =+IFERROR(CONS_LISTA_ITEM[[#This Row],[COD. APU]],"") -> 0
A48: 45 | B48: APU7 | C48: 2.5.1 | D48: CUNETA EN CONCRETO DE 21 MPA | E48: m³ | F48: ÍTEM | H48: =+IFERROR(CONS_LISTA_ITEM[[#This Row],[COD. APU]],"") -> APU7 | I48: APU7
A49: 46 | B49: APU7 | C49: 2.5.2 | D49: BORDILLO EN CONCRETO DE 21 MPA | E49: m³ | F49: ÍTEM | H49: =+IFERROR(CONS_LISTA_ITEM[[#This Row],[COD. APU]],"") -> APU7 | I49: APU7
A50: 47 | B50: APU12 | C50: 2.5.3 | D50: BORDILLO PREFABRICADO A15 (15x35x80cm) | E50: m | F50: ÍTEM | H50: =+IFERROR(CONS_LISTA_ITEM[[#This Row],[COD. APU]],"") -> APU12 | I50: APU12
A51: 48 | C51: 2.6 | D51: ACERO REFUERZO | F51: CAPITULO | H51: =+IFERROR(CONS_LISTA_ITEM[[#This Row],[COD. APU]],"") -> 0
A52: 49 | B52: APU9 | C52: 2.6.1 | D52: ACERO REFUERZO FLEJADO 60000 PSI - 420 Mpa | E52: kg | F52: ÍTEM | H52: =+IFERROR(CONS_LISTA_ITEM[[#This Row],[COD. APU]],"") -> APU9 | I52: APU9
A53: 50 | C53: 2.7 | D53: SEÑALIZACIÓN | F53: CAPITULO | H53: =+IFERROR(CONS_LISTA_ITEM[[#This Row],[COD. APU]],"") -> 0
A54: 51 | B54: APU10 | C54: 2.7.1 | D54: SEÑAL VERTICAL DE TRANSITO TIPO 1 CON LAMINA RETRORREFLECTIVA TIPO III 75X75 cm | E54: und | F54: ÍTEM | H54: =+IFERROR(CONS_LISTA_ITEM[[#This Row],[COD. APU]],"") -> APU10 | I54: APU10
A55: 52 | C55: 2.8 | D55: TRANSPORTE DE EQUIPO | F55: CAPITULO | H55: =+IFERROR(CONS_LISTA_ITEM[[#This Row],[COD. APU]],"") -> 0
A56: 53 | B56: APU11 | C56: 2.8.1 | D56: TRANSPORTE DE MOTONIVELADORA | E56: km | F56: ÍTEM | H56: =+IFERROR(CONS_LISTA_ITEM[[#This Row],[COD. APU]],"") -> APU11 | I56: APU11
A57: 54 | B57: APU11 | C57: 2.8.2 | D57: TRANSPORTE DE RETROCARGADOR | E57: km | F57: ÍTEM | H57: =+IFERROR(CONS_LISTA_ITEM[[#This Row],[COD. APU]],"") -> APU11 | I57: APU11
A58: 55 | B58: APU11 | C58: 2.8.3 | D58: TRANSPORTE DE VIBROCOMPACTADOR | E58: km | F58: ÍTEM | H58: =+IFERROR(CONS_LISTA_ITEM[[#This Row],[COD. APU]],"") -> APU11 | I58: APU11
A59: 56 | C59: 3 | D59: PLACA HUELLA TIPO 2 CASO 2 ( Bord-Cto-Pp-Cto-Pp-Cto-Bord ) | E59: m | F59: OBRA | H59: =+IFERROR(CONS_LISTA_ITEM[[#This Row],[COD. APU]],"") -> 0
A60: 57 | C60: 3.1 | D60: PRELIMINARES | F60: CAPITULO | H60: =+IFERROR(CONS_LISTA_ITEM[[#This Row],[COD. APU]],"") -> 0
A61: 58 | B61: APU1 | C61: 3.1.1 | D61: =+Loc_rep -> LOCALIZACIÓN Y REPLANTEO | E61: m | F61: ÍTEM | H61: =+IFERROR(CONS_LISTA_ITEM[[#This Row],[COD. APU]],"") -> APU1 | I61: APU1
A62: 59 | C62: 3.2 | D62: MOVIMIENTOS TIERRA | F62: CAPITULO | H62: =+IFERROR(CONS_LISTA_ITEM[[#This Row],[COD. APU]],"") -> 0
A63: 60 | B63: APU2 | C63: 3.2.1 | D63: EXCAVACION SIN CLASIFICAR DE LA EXPLANACION Y CANALES | E63: m³ | F63: ÍTEM | H63: =+IFERROR(CONS_LISTA_ITEM[[#This Row],[COD. APU]],"") -> APU2 | I63: APU2
A64: 61 | B64: APU3 | C64: 3.2.2 | D64: RELLENO PARA ESTRUCTURAS CON MATERIAL IMPORTADO | E64: m³ | F64: ÍTEM | H64: =+IFERROR(CONS_LISTA_ITEM[[#This Row],[COD. APU]],"") -> APU3 | I64: APU3
A65: 62 | B65: APU4 | C65: 3.2.3 | D65: RETIRO MATERIAL DE EXCAVACIÓN (Incluye transporte) | E65: m³ | F65: ÍTEM | H65: =+IFERROR(CONS_LISTA_ITEM[[#This Row],[COD. APU]],"") -> APU4 | I65: APU4
A66: 63 | B66: APU5 | C66: 3.2.4 | D66: CONFORMACION DE CALZADA EXISTENTE | E66: m² | F66: ÍTEM | H66: =+IFERROR(CONS_LISTA_ITEM[[#This Row],[COD. APU]],"") -> APU5 | I66: APU5
A67: 64 | C67: 3.3 | D67: CAPA GRANULAR | F67: CAPITULO | H67: =+IFERROR(CONS_LISTA_ITEM[[#This Row],[COD. APU]],"") -> 0
A68: 65 | B68: APU6 | C68: 3.3.1 | D68: SUB-BASE GRANULAR (incluye suministro, extendido, nivelación, humedecido y compactación) | E68: m³ | F68: ÍTEM | H68: =+IFERROR(CONS_LISTA_ITEM[[#This Row],[COD. APU]],"") -> APU6 | I68: APU6
A69: 66 | C69: 3.4 | D69: CONCRETO PLACA HUELLA | F69: CAPITULO | H69: =+IFERROR(CONS_LISTA_ITEM[[#This Row],[COD. APU]],"") -> 0
A70: 67 | B70: APU7 | C70: 3.4.1 | D70: CONCRETO 21 MPA (CLASE D) PARA PLACA HUELLA | E70: m³ | F70: ÍTEM | H70: =+IFERROR(CONS_LISTA_ITEM[[#This Row],[COD. APU]],"") -> APU7 | I70: APU7
A71: 68 | B71: APU7 | C71: 3.4.2 | D71: CONCRETO 21 MPA (CLASE D) PARA DENTELLÓN | E71: m³ | F71: ÍTEM | H71: =+IFERROR(CONS_LISTA_ITEM[[#This Row],[COD. APU]],"") -> APU7 | I71: APU7
A72: 69 | B72: APU7 | C72: 3.4.3 | D72: CONCRETO 21 MPA (CLASE D) PARA VIGAS INICIAL Y FINAL | E72: m³ | F72: ÍTEM | H72: =+IFERROR(CONS_LISTA_ITEM[[#This Row],[COD. APU]],"") -> APU7 | I72: APU7
A73: 70 | B73: APU7 | C73: 3.4.4 | D73: CONCRETO 21 MPA (CLASE D) PARA VIGA RIOSTRA | E73: m³ | F73: ÍTEM | H73: =+IFERROR(CONS_LISTA_ITEM[[#This Row],[COD. APU]],"") -> APU7 | I73: APU7
A74: 71 | B74: APU8 | C74: 3.4.5 | D74: PIEDRA PEGADA | E74: m³ | F74: ÍTEM | H74: =+IFERROR(CONS_LISTA_ITEM[[#This Row],[COD. APU]],"") -> APU8 | I74: APU8
A75: 72 | C75: 3.5 | D75: CONCRETO CUNETAS Y BORDILLOS | F75: CAPITULO | H75: =+IFERROR(CONS_LISTA_ITEM[[#This Row],[COD. APU]],"") -> 0
A76: 73 | B76: APU12 | C76: 3.5.1 | D76: BORDILLO PREFABRICADO A15 (15x35x80cm) | E76: m | F76: ÍTEM | H76: =+IFERROR(CONS_LISTA_ITEM[[#This Row],[COD. APU]],"") -> APU12 | I76: APU12
A77: 74 | C77: 3.6 | D77: ACERO REFUERZO | F77: CAPITULO | H77: =+IFERROR(CONS_LISTA_ITEM[[#This Row],[COD. APU]],"") -> 0
A78: 75 | B78: APU9 | C78: 3.6.1 | D78: ACERO REFUERZO FLEJADO 60000 PSI - 420 Mpa | E78: kg | F78: ÍTEM | H78: =+IFERROR(CONS_LISTA_ITEM[[#This Row],[COD. APU]],"") -> APU9 | I78: APU9
A79: 76 | C79: 3.7 | D79: SEÑALIZACIÓN | F79: CAPITULO | H79: =+IFERROR(CONS_LISTA_ITEM[[#This Row],[COD. APU]],"") -> 0
A80: 77 | B80: APU10 | C80: 3.7.1 | D80: SEÑAL VERTICAL DE TRANSITO TIPO 1 CON LAMINA RETRORREFLECTIVA TIPO III 75X75 cm | E80: und | F80: ÍTEM | H80: =+IFERROR(CONS_LISTA_ITEM[[#This Row],[COD. APU]],"") -> APU10 | I80: APU10
A81: 78 | C81: 3.8 | D81: TRANSPORTE DE EQUIPO | F81: CAPITULO | H81: =+IFERROR(CONS_LISTA_ITEM[[#This Row],[COD. APU]],"") -> 0
A82: 79 | B82: APU11 | C82: 3.8.1 | D82: TRANSPORTE DE MOTONIVELADORA | E82: km | F82: ÍTEM | H82: =+IFERROR(CONS_LISTA_ITEM[[#This Row],[COD. APU]],"") -> APU11 | I82: APU11
A83: 80 | B83: APU11 | C83: 3.8.2 | D83: TRANSPORTE DE RETROCARGADOR | E83: km | F83: ÍTEM | H83: =+IFERROR(CONS_LISTA_ITEM[[#This Row],[COD. APU]],"") -> APU11 | I83: APU11
A84: 81 | B84: APU11 | C84: 3.8.3 | D84: TRANSPORTE DE VIBROCOMPACTADOR | E84: km | F84: ÍTEM | H84: =+IFERROR(CONS_LISTA_ITEM[[#This Row],[COD. APU]],"") -> APU11 | I84: APU11
A85: 82 | C85: 4 | D85: PLACA HUELLA TIPO 3 ( Bord-Cun-Cto-Pp-Cto-Cun-Bord ) | E85: m | F85: OBRA | H85: =+IFERROR(CONS_LISTA_ITEM[[#This Row],[COD. APU]],"") -> 0
A86: 83 | C86: 4.1 | D86: PRELIMINARES | F86: CAPITULO | H86: =+IFERROR(CONS_LISTA_ITEM[[#This Row],[COD. APU]],"") -> 0
A87: 84 | B87: APU1 | C87: 4.1.1 | D87: LOCALIZACIÓN Y REPLANTEO | E87: m | F87: ÍTEM | H87: =+IFERROR(CONS_LISTA_ITEM[[#This Row],[COD. APU]],"") -> APU1 | I87: APU1
A88: 85 | C88: 4.2 | D88: MOVIMIENTOS TIERRA | F88: CAPITULO | H88: =+IFERROR(CONS_LISTA_ITEM[[#This Row],[COD. APU]],"") -> 0
A89: 86 | B89: APU2 | C89: 4.2.1 | D89: EXCAVACION SIN CLASIFICAR DE LA EXPLANACION Y CANALES | E89: m³ | F89: ÍTEM | H89: =+IFERROR(CONS_LISTA_ITEM[[#This Row],[COD. APU]],"") -> APU2 | I89: APU2
A90: 87 | B90: APU3 | C90: 4.2.2 | D90: RELLENO PARA ESTRUCTURAS CON MATERIAL IMPORTADO | E90: m³ | F90: ÍTEM | H90: =+IFERROR(CONS_LISTA_ITEM[[#This Row],[COD. APU]],"") -> APU3 | I90: APU3
A91: 88 | B91: APU4 | C91: 4.2.3 | D91: RETIRO MATERIAL DE EXCAVACIÓN (Incluye transporte) | E91: m³ | F91: ÍTEM | H91: =+IFERROR(CONS_LISTA_ITEM[[#This Row],[COD. APU]],"") -> APU4 | I91: APU4
A92: 89 | B92: APU5 | C92: 4.2.4 | D92: CONFORMACION DE CALZADA EXISTENTE | E92: m² | F92: ÍTEM | H92: =+IFERROR(CONS_LISTA_ITEM[[#This Row],[COD. APU]],"") -> APU5 | I92: APU5
A93: 90 | C93: 4.3 | D93: CAPA GRANULAR | F93: CAPITULO | H93: =+IFERROR(CONS_LISTA_ITEM[[#This Row],[COD. APU]],"") -> 0
A94: 91 | B94: APU6 | C94: 4.3.1 | D94: SUB-BASE GRANULAR (incluye suministro, extendido, nivelación, humedecido y compactación) | E94: m³ | F94: ÍTEM | H94: =+IFERROR(CONS_LISTA_ITEM[[#This Row],[COD. APU]],"") -> APU6 | I94: APU6
A95: 92 | C95: 4.4 | D95: CONCRETO PLACA HUELLA | F95: CAPITULO | H95: =+IFERROR(CONS_LISTA_ITEM[[#This Row],[COD. APU]],"") -> 0
A96: 93 | B96: APU7 | C96: 4.4.1 | D96: CONCRETO 21 MPA (CLASE D) PARA PLACA HUELLA | E96: m³ | F96: ÍTEM | H96: =+IFERROR(CONS_LISTA_ITEM[[#This Row],[COD. APU]],"") -> APU7 | I96: APU7
A97: 94 | B97: APU7 | C97: 4.4.2 | D97: CONCRETO 21 MPA (CLASE D) PARA DENTELLÓN | E97: m³ | F97: ÍTEM | H97: =+IFERROR(CONS_LISTA_ITEM[[#This Row],[COD. APU]],"") -> APU7 | I97: APU7
A98: 95 | B98: APU7 | C98: 4.4.3 | D98: CONCRETO 21 MPA (CLASE D) PARA VIGAS INICIAL Y FINAL | E98: m³ | F98: ÍTEM | H98: =+IFERROR(CONS_LISTA_ITEM[[#This Row],[COD. APU]],"") -> APU7 | I98: APU7
A99: 96 | B99: APU7 | C99: 4.4.4 | D99: CONCRETO 21 MPA (CLASE D) PARA VIGA RIOSTRA | E99: m³ | F99: ÍTEM | H99: =+IFERROR(CONS_LISTA_ITEM[[#This Row],[COD. APU]],"") -> APU7 | I99: APU7
A100: 97 | B100: APU8 | C100: 4.4.5 | D100: PIEDRA PEGADA | E100: m³ | F100: ÍTEM | H100: =+IFERROR(CONS_LISTA_ITEM[[#This Row],[COD. APU]],"") -> APU8 | I100: APU8
A101: 98 | C101: 4.5 | D101: CONCRETO CUNETAS Y BORDILLOS | F101: CAPITULO | H101: =+IFERROR(CONS_LISTA_ITEM[[#This Row],[COD. APU]],"") -> 0
A102: 99 | B102: APU7 | C102: 4.5.1 | D102: CUNETA EN CONCRETO DE 21 MPA | E102: m³ | F102: ÍTEM | H102: =+IFERROR(CONS_LISTA_ITEM[[#This Row],[COD. APU]],"") -> APU7 | I102: APU7
A103: 100 | B103: APU7 | C103: 4.5.2 | D103: BORDILLO EN CONCRETO DE 21 MPA | E103: m³ | F103: ÍTEM | H103: =+IFERROR(CONS_LISTA_ITEM[[#This Row],[COD. APU]],"") -> APU7 | I103: APU7
A104: 101 | C104: 4.6 | D104: ACERO REFUERZO | F104: CAPITULO | H104: =+IFERROR(CONS_LISTA_ITEM[[#This Row],[COD. APU]],"") -> 0
A105: 102 | B105: APU9 | C105: 4.6.1 | D105: ACERO REFUERZO FLEJADO 60000 PSI - 420 Mpa | E105: kg | F105: ÍTEM | H105: =+IFERROR(CONS_LISTA_ITEM[[#This Row],[COD. APU]],"") -> APU9 | I105: APU9
A106: 103 | C106: 4.7 | D106: SEÑALIZACIÓN | F106: CAPITULO | H106: =+IFERROR(CONS_LISTA_ITEM[[#This Row],[COD. APU]],"") -> 0
A107: 104 | B107: APU10 | C107: 4.7.1 | D107: SEÑAL VERTICAL DE TRANSITO TIPO 1 CON LAMINA RETRORREFLECTIVA TIPO III 75X75 cm | E107: und | F107: ÍTEM | H107: =+IFERROR(CONS_LISTA_ITEM[[#This Row],[COD. APU]],"") -> APU10 | I107: APU10
A108: 105 | C108: 4.8 | D108: TRANSPORTE DE EQUIPO | F108: CAPITULO | H108: =+IFERROR(CONS_LISTA_ITEM[[#This Row],[COD. APU]],"") -> 0
A109: 106 | B109: APU11 | C109: 4.8.1 | D109: TRANSPORTE DE MOTONIVELADORA | E109: km | F109: ÍTEM | H109: =+IFERROR(CONS_LISTA_ITEM[[#This Row],[COD. APU]],"") -> APU11 | I109: APU11
A110: 107 | B110: APU11 | C110: 4.8.2 | D110: TRANSPORTE DE RETROCARGADOR | E110: km | F110: ÍTEM | H110: =+IFERROR(CONS_LISTA_ITEM[[#This Row],[COD. APU]],"") -> APU11 | I110: APU11
A111: 108 | B111: APU11 | C111: 4.8.3 | D111: TRANSPORTE DE VIBROCOMPACTADOR | E111: km | F111: ÍTEM | H111: =+IFERROR(CONS_LISTA_ITEM[[#This Row],[COD. APU]],"") -> APU11 | I111: APU11
A112: 109 | C112: 5 | D112: PLACA HUELLA TIPO DEL MINTRANSPORTE (Resolución 04401 de 2017) - (Bord-Cun-Pp-Cto-Pp-Cto-Pp-Cun-Bord) | E112: m | F112: OBRA | H112: =+IFERROR(CONS_LISTA_ITEM[[#This Row],[COD. APU]],"") -> 0
A113: 110 | C113: 5.1 | D113: PRELIMINARES | F113: CAPITULO | H113: =+IFERROR(CONS_LISTA_ITEM[[#This Row],[COD. APU]],"") -> 0
A114: 111 | B114: APU1 | C114: 5.1.1 | D114: LOCALIZACIÓN Y REPLANTEO | E114: m | F114: ÍTEM | H114: =+IFERROR(CONS_LISTA_ITEM[[#This Row],[COD. APU]],"") -> APU1 | I114: APU1
A115: 112 | C115: 5.2 | D115: MOVIMIENTOS TIERRA | F115: CAPITULO | H115: =+IFERROR(CONS_LISTA_ITEM[[#This Row],[COD. APU]],"") -> 0
A116: 113 | B116: APU2 | C116: 5.2.1 | D116: EXCAVACION SIN CLASIFICAR DE LA EXPLANACION Y CANALES | E116: m³ | F116: ÍTEM | H116: =+IFERROR(CONS_LISTA_ITEM[[#This Row],[COD. APU]],"") -> APU2 | I116: APU2
A117: 114 | B117: APU3 | C117: 5.2.2 | D117: RELLENO PARA ESTRUCTURAS CON MATERIAL IMPORTADO | E117: m³ | F117: ÍTEM | H117: =+IFERROR(CONS_LISTA_ITEM[[#This Row],[COD. APU]],"") -> APU3 | I117: APU3
A118: 115 | B118: APU4 | C118: 5.2.3 | D118: RETIRO MATERIAL DE EXCAVACIÓN (Incluye transporte) | E118: m³ | F118: ÍTEM | H118: =+IFERROR(CONS_LISTA_ITEM[[#This Row],[COD. APU]],"") -> APU4 | I118: APU4
A119: 116 | B119: APU5 | C119: 5.2.4 | D119: CONFORMACION DE CALZADA EXISTENTE | E119: m² | F119: ÍTEM | H119: =+IFERROR(CONS_LISTA_ITEM[[#This Row],[COD. APU]],"") -> APU5 | I119: APU5
A120: 117 | C120: 5.3 | D120: CAPA GRANULAR | F120: CAPITULO | H120: =+IFERROR(CONS_LISTA_ITEM[[#This Row],[COD. APU]],"") -> 0
A121: 118 | B121: APU6 | C121: 5.3.1 | D121: SUB-BASE GRANULAR (incluye suministro, extendido, nivelación, humedecido y compactación) | E121: m³ | F121: ÍTEM | H121: =+IFERROR(CONS_LISTA_ITEM[[#This Row],[COD. APU]],"") -> APU6 | I121: APU6
A122: 119 | C122: 5.4 | D122: CONCRETO PLACA HUELLA | F122: CAPITULO | H122: =+IFERROR(CONS_LISTA_ITEM[[#This Row],[COD. APU]],"") -> 0
A123: 120 | B123: APU7 | C123: 5.4.1 | D123: CONCRETO 21 MPA (CLASE D) PARA PLACA HUELLA | E123: m³ | F123: ÍTEM | H123: =+IFERROR(CONS_LISTA_ITEM[[#This Row],[COD. APU]],"") -> APU7 | I123: APU7
A124: 121 | B124: APU7 | C124: 5.4.2 | D124: CONCRETO 21 MPA (CLASE D) PARA VIGA RIOSTRA | E124: m³ | F124: ÍTEM | H124: =+IFERROR(CONS_LISTA_ITEM[[#This Row],[COD. APU]],"") -> APU7 | I124: APU7
A125: 122 | B125: APU8 | C125: 5.4.3 | D125: PIEDRA PEGADA | E125: m³ | F125: ÍTEM | H125: =+IFERROR(CONS_LISTA_ITEM[[#This Row],[COD. APU]],"") -> APU8 | I125: APU8
A126: 123 | C126: 5.5 | D126: CONCRETO CUNETAS Y BORDILLOS | F126: CAPITULO | H126: =+IFERROR(CONS_LISTA_ITEM[[#This Row],[COD. APU]],"") -> 0
A127: 124 | B127: APU7 | C127: 5.5.1 | D127: CUNETA EN CONCRETO DE 21 MPA | E127: m³ | F127: ÍTEM | H127: =+IFERROR(CONS_LISTA_ITEM[[#This Row],[COD. APU]],"") -> APU7 | I127: APU7
A128: 125 | B128: APU7 | C128: 5.5.2 | D128: BORDILLO EN CONCRETO DE 21 MPA | E128: m³ | F128: ÍTEM | H128: =+IFERROR(CONS_LISTA_ITEM[[#This Row],[COD. APU]],"") -> APU7 | I128: APU7
A129: 126 | C129: 5.6 | D129: ACERO REFUERZO | F129: CAPITULO | H129: =+IFERROR(CONS_LISTA_ITEM[[#This Row],[COD. APU]],"") -> 0
A130: 127 | B130: APU9 | C130: 5.6.1 | D130: ACERO REFUERZO FLEJADO 60000 PSI - 420 Mpa | E130: kg | F130: ÍTEM | H130: =+IFERROR(CONS_LISTA_ITEM[[#This Row],[COD. APU]],"") -> APU9 | I130: APU9
A131: 128 | C131: 5.7 | D131: SEÑALIZACIÓN | F131: CAPITULO | H131: =+IFERROR(CONS_LISTA_ITEM[[#This Row],[COD. APU]],"") -> 0
A132: 129 | B132: APU10 | C132: 5.7.1 | D132: SEÑAL VERTICAL DE TRANSITO TIPO 1 CON LAMINA RETRORREFLECTIVA TIPO III 75X75 cm | E132: und | F132: ÍTEM | H132: =+IFERROR(CONS_LISTA_ITEM[[#This Row],[COD. APU]],"") -> APU10 | I132: APU10
A133: 130 | C133: 5.8 | D133: TRANSPORTE DE EQUIPO | F133: CAPITULO | H133: =+IFERROR(CONS_LISTA_ITEM[[#This Row],[COD. APU]],"") -> 0
A134: 131 | B134: APU11 | C134: 5.8.1 | D134: TRANSPORTE DE MOTONIVELADORA | E134: km | F134: ÍTEM | H134: =+IFERROR(CONS_LISTA_ITEM[[#This Row],[COD. APU]],"") -> APU11 | I134: APU11
A135: 132 | B135: APU11 | C135: 5.8.2 | D135: TRANSPORTE DE RETROCARGADOR | E135: km | F135: ÍTEM | H135: =+IFERROR(CONS_LISTA_ITEM[[#This Row],[COD. APU]],"") -> APU11 | I135: APU11
A136: 133 | B136: APU11 | C136: 5.8.3 | D136: TRANSPORTE DE VIBROCOMPACTADOR | E136: km | F136: ÍTEM | H136: =+IFERROR(CONS_LISTA_ITEM[[#This Row],[COD. APU]],"") -> APU11 | I136: APU11
A137: 134 | D137: MUROS EN GAVIÓN CON SOBRECARGA | F137: ÍTEM | H137: =+IFERROR(CONS_LISTA_ITEM[[#This Row],[COD. APU]],"") -> 0
A138: 135 | C138: 6 | D138: MUROS EN GAVIÓN CON SOBRECARGA - H=3,0M - B=4,0M | E138: m | F138: OBRA | H138: =+IFERROR(CONS_LISTA_ITEM[[#This Row],[COD. APU]],"") -> 0
A139: 136 | C139: 6.1 | D139: PRELIMINARES | F139: CAPITULO | H139: =+IFERROR(CONS_LISTA_ITEM[[#This Row],[COD. APU]],"") -> 0
A140: 137 | B140: APU13 | C140: 6.1.1 | D140: LOCALIZACIÓN Y REPLANTEO | E140: m² | F140: ÍTEM | H140: =+IFERROR(CONS_LISTA_ITEM[[#This Row],[COD. APU]],"") -> APU13 | I140: APU13
A141: 138 | B141: 0 | C141: 6.2 | D141: MOVIMIENTOS TIERRA | F141: CAPITULO | H141: =+IFERROR(CONS_LISTA_ITEM[[#This Row],[COD. APU]],"") -> 0 | I141: 0
A142: 139 | B142: APU14 | C142: 6.2.1 | D142: EXCAVACIONES VARIAS EN MATERIAL COMUN EN SECO (Incluye retiro) | E142: m³ | F142: ÍTEM | H142: =+IFERROR(CONS_LISTA_ITEM[[#This Row],[COD. APU]],"") -> APU14 | I142: APU14
A143: 140 | B143: APU3 | C143: 6.2.2 | D143: RELLENO PARA ESTRUCTURAS CON MATERIAL IMPORTADO | E143: m³ | F143: ÍTEM | H143: =+IFERROR(CONS_LISTA_ITEM[[#This Row],[COD. APU]],"") -> APU3 | I143: APU3
A144: 141 | B144: 0 | C144: 6.3 | D144: OBRAS GAVIÓN | F144: CAPITULO | H144: =+IFERROR(CONS_LISTA_ITEM[[#This Row],[COD. APU]],"") -> 0 | I144: 0
A145: 142 | B145: APU19 | C145: 6.3.1 | D145: GAVIÓNES MALLA ALAMBRE DE ACERO ENTRELAZADO CLASE 1; RECUBRIMIENTO ZINC (GALV) | E145: m³ | F145: ÍTEM | H145: =+IFERROR(CONS_LISTA_ITEM[[#This Row],[COD. APU]],"") -> APU19 | I145: APU19
A146: 143 | B146: APU20 | C146: 6.3.2 | D146: GEOTEXTIL TIPO NT-2500 O SIMILAR NO TEJIDO | E146: m² | F146: ÍTEM | H146: =+IFERROR(CONS_LISTA_ITEM[[#This Row],[COD. APU]],"") -> APU20 | I146: APU20
A147: 144 | B147: 0 | C147: 7 | D147: MUROS EN GAVIÓN CON SOBRECARGA - H=4,0M - B=5,0M | E147: m | F147: OBRA | H147: =+IFERROR(CONS_LISTA_ITEM[[#This Row],[COD. APU]],"") -> 0 | I147: 0
A148: 145 | B148: 0 | C148: 7.1 | D148: PRELIMINARES | F148: CAPITULO | H148: =+IFERROR(CONS_LISTA_ITEM[[#This Row],[COD. APU]],"") -> 0 | I148: 0
A149: 146 | B149: APU13 | C149: 7.1.1 | D149: LOCALIZACIÓN Y REPLANTEO | E149: m² | F149: ÍTEM | H149: =+IFERROR(CONS_LISTA_ITEM[[#This Row],[COD. APU]],"") -> APU13 | I149: APU13
A150: 147 | B150: 0 | C150: 7.2 | D150: MOVIMIENTOS TIERRA | F150: CAPITULO | H150: =+IFERROR(CONS_LISTA_ITEM[[#This Row],[COD. APU]],"") -> 0 | I150: 0
A151: 148 | B151: APU14 | C151: 7.2.1 | D151: EXCAVACIONES VARIAS EN MATERIAL COMUN EN SECO (Incluye retiro) | E151: m³ | F151: ÍTEM | H151: =+IFERROR(CONS_LISTA_ITEM[[#This Row],[COD. APU]],"") -> APU14 | I151: APU14
A152: 149 | B152: APU3 | C152: 7.2.2 | D152: RELLENO PARA ESTRUCTURAS CON MATERIAL IMPORTADO | E152: m³ | F152: ÍTEM | H152: =+IFERROR(CONS_LISTA_ITEM[[#This Row],[COD. APU]],"") -> APU3 | I152: APU3
A153: 150 | B153: 0 | C153: 7.3 | D153: OBRAS GAVIÓN | F153: CAPITULO | H153: =+IFERROR(CONS_LISTA_ITEM[[#This Row],[COD. APU]],"") -> 0 | I153: 0
A154: 151 | B154: APU19 | C154: 7.3.1 | D154: GAVIÓNES MALLA ALAMBRE DE ACERO ENTRELAZADO CLASE 1; RECUBRIMIENTO ZINC (GALV) | E154: m³ | F154: ÍTEM | H154: =+IFERROR(CONS_LISTA_ITEM[[#This Row],[COD. APU]],"") -> APU19 | I154: APU19
A155: 152 | B155: APU20 | C155: 7.3.2 | D155: GEOTEXTIL TIPO NT-2500 O SIMILAR NO TEJIDO | E155: m² | F155: ÍTEM | H155: =+IFERROR(CONS_LISTA_ITEM[[#This Row],[COD. APU]],"") -> APU20 | I155: APU20
A156: 153 | B156: 0 | D156: MUROS EN GAVIÓN SIN SOBRECARGA | F156: 0 | H156: =+IFERROR(CONS_LISTA_ITEM[[#This Row],[COD. APU]],"") -> 0 | I156: 0
A157: 154 | B157: 0 | C157: 8 | D157: MUROS EN GAVIÓN SIN SOBRECARGA - H=3,0M - B=3,0M | E157: m | F157: OBRA | H157: =+IFERROR(CONS_LISTA_ITEM[[#This Row],[COD. APU]],"") -> 0 | I157: 0
A158: 155 | B158: 0 | C158: 8.1 | D158: PRELIMINARES | F158: CAPITULO | H158: =+IFERROR(CONS_LISTA_ITEM[[#This Row],[COD. APU]],"") -> 0 | I158: 0
A159: 156 | B159: APU13 | C159: 8.1.1 | D159: LOCALIZACIÓN Y REPLANTEO | E159: m² | F159: ÍTEM | H159: =+IFERROR(CONS_LISTA_ITEM[[#This Row],[COD. APU]],"") -> APU13 | I159: APU13
A160: 157 | B160: 0 | C160: 8.2 | D160: MOVIMIENTOS TIERRA | F160: CAPITULO | H160: =+IFERROR(CONS_LISTA_ITEM[[#This Row],[COD. APU]],"") -> 0 | I160: 0
A161: 158 | B161: APU14 | C161: 8.2.1 | D161: EXCAVACIONES VARIAS EN MATERIAL COMUN EN SECO (Incluye retiro) | E161: m³ | F161: ÍTEM | H161: =+IFERROR(CONS_LISTA_ITEM[[#This Row],[COD. APU]],"") -> APU14 | I161: APU14
A162: 159 | B162: APU3 | C162: 8.2.2 | D162: RELLENO PARA ESTRUCTURAS CON MATERIAL IMPORTADO | E162: m³ | F162: ÍTEM | H162: =+IFERROR(CONS_LISTA_ITEM[[#This Row],[COD. APU]],"") -> APU3 | I162: APU3
A163: 160 | B163: 0 | C163: 8.3 | D163: OBRAS GAVIÓN | F163: CAPITULO | H163: =+IFERROR(CONS_LISTA_ITEM[[#This Row],[COD. APU]],"") -> 0 | I163: 0
A164: 161 | B164: APU19 | C164: 8.3.1 | D164: GAVIÓNES MALLA ALAMBRE DE ACERO ENTRELAZADO CLASE 1; RECUBRIMIENTO ZINC (GALV) | E164: m³ | F164: ÍTEM | H164: =+IFERROR(CONS_LISTA_ITEM[[#This Row],[COD. APU]],"") -> APU19 | I164: APU19
A165: 162 | B165: APU20 | C165: 8.3.2 | D165: GEOTEXTIL TIPO NT-2500 O SIMILAR NO TEJIDO | E165: m² | F165: ÍTEM | H165: =+IFERROR(CONS_LISTA_ITEM[[#This Row],[COD. APU]],"") -> APU20 | I165: APU20
A166: 163 | B166: 0 | C166: 9 | D166: MUROS EN GAVIÓN SIN SOBRECARGA - H=4,0M - B=4,0M | E166: m | F166: OBRA | H166: =+IFERROR(CONS_LISTA_ITEM[[#This Row],[COD. APU]],"") -> 0 | I166: 0
A167: 164 | B167: 0 | C167: 9.1 | D167: PRELIMINARES | F167: CAPITULO | H167: =+IFERROR(CONS_LISTA_ITEM[[#This Row],[COD. APU]],"") -> 0 | I167: 0
A168: 165 | B168: APU13 | C168: 9.1.1 | D168: LOCALIZACIÓN Y REPLANTEO | E168: m² | F168: ÍTEM | H168: =+IFERROR(CONS_LISTA_ITEM[[#This Row],[COD. APU]],"") -> APU13 | I168: APU13
A169: 166 | B169: 0 | C169: 9.2 | D169: MOVIMIENTOS TIERRA | F169: CAPITULO | H169: =+IFERROR(CONS_LISTA_ITEM[[#This Row],[COD. APU]],"") -> 0 | I169: 0
A170: 167 | B170: APU14 | C170: 9.2.1 | D170: EXCAVACIONES VARIAS EN MATERIAL COMUN EN SECO (Incluye retiro) | E170: m³ | F170: ÍTEM | H170: =+IFERROR(CONS_LISTA_ITEM[[#This Row],[COD. APU]],"") -> APU14 | I170: APU14
A171: 168 | B171: APU3 | C171: 9.2.2 | D171: RELLENO PARA ESTRUCTURAS CON MATERIAL IMPORTADO | E171: m³ | F171: ÍTEM | H171: =+IFERROR(CONS_LISTA_ITEM[[#This Row],[COD. APU]],"") -> APU3 | I171: APU3
A172: 169 | B172: 0 | C172: 9.3 | D172: OBRAS GAVIÓN | F172: CAPITULO | H172: =+IFERROR(CONS_LISTA_ITEM[[#This Row],[COD. APU]],"") -> 0 | I172: 0
A173: 170 | B173: APU19 | C173: 9.3.1 | D173: GAVIÓNES MALLA ALAMBRE DE ACERO ENTRELAZADO CLASE 1; RECUBRIMIENTO ZINC (GALV) | E173: m³ | F173: ÍTEM | H173: =+IFERROR(CONS_LISTA_ITEM[[#This Row],[COD. APU]],"") -> APU19 | I173: APU19
A174: 171 | B174: APU20 | C174: 9.3.2 | D174: GEOTEXTIL TIPO NT-2500 O SIMILAR NO TEJIDO | E174: m² | F174: ÍTEM | H174: =+IFERROR(CONS_LISTA_ITEM[[#This Row],[COD. APU]],"") -> APU20 | I174: APU20
A175: 172 | B175: 0 | D175: MUROS DE CONTENCIÓN EN CONCRETO | H175: =+IFERROR(CONS_LISTA_ITEM[[#This Row],[COD. APU]],"") -> 0 | I175: 0
A176: 173 | B176: 0 | D176: MUROS DE CONTENCIÓN DE CORONA (RELLENO HORIZONTAL Y SOBRECARGA VIVA) | H176: =+IFERROR(CONS_LISTA_ITEM[[#This Row],[COD. APU]],"") -> 0 | I176: 0
A177: 174 | B177: 0 | C177: 10 | D177: MURO DE CONTENCIÓN DE CORONA (RELLENO HORIZONTAL Y SOBRECARGA VIVA) - H=3,0M | E177: m | F177: OBRA | H177: =+IFERROR(CONS_LISTA_ITEM[[#This Row],[COD. APU]],"") -> 0 | I177: 0
A178: 175 | B178: 0 | C178: 10.1 | D178: PRELIMINARES | F178: CAPITULO | H178: =+IFERROR(CONS_LISTA_ITEM[[#This Row],[COD. APU]],"") -> 0 | I178: 0
A179: 176 | B179: APU13 | C179: 10.1.1 | D179: LOCALIZACIÓN Y REPLANTEO | E179: m² | F179: ÍTEM | H179: =+IFERROR(CONS_LISTA_ITEM[[#This Row],[COD. APU]],"") -> APU13 | I179: APU13
A180: 177 | B180: 0 | C180: 10.2 | D180: MOVIMIENTOS TIERRA | F180: CAPITULO | H180: =+IFERROR(CONS_LISTA_ITEM[[#This Row],[COD. APU]],"") -> 0 | I180: 0
A181: 178 | B181: APU14 | C181: 10.2.1 | D181: EXCAVACIONES VARIAS EN MATERIAL COMUN EN SECO (Incluye retiro) | E181: m³ | F181: ÍTEM | H181: =+IFERROR(CONS_LISTA_ITEM[[#This Row],[COD. APU]],"") -> APU14 | I181: APU14
A182: 179 | B182: APU3 | C182: 10.2.2 | D182: RELLENO PARA ESTRUCTURAS CON MATERIAL IMPORTADO | E182: m³ | F182: ÍTEM | H182: =+IFERROR(CONS_LISTA_ITEM[[#This Row],[COD. APU]],"") -> APU3 | I182: APU3
A183: 180 | B183: 0 | C183: 10.3 | D183: ESTRUCTURAS EN CONCRETO | F183: CAPITULO | H183: =+IFERROR(CONS_LISTA_ITEM[[#This Row],[COD. APU]],"") -> 0 | I183: 0
A184: 181 | B184: APU7 | C184: 10.3.1 | D184: CONCRETO 21 MPA (CLASE D) PARA MURO Y ZAPATA | E184: m³ | F184: ÍTEM | H184: =+IFERROR(CONS_LISTA_ITEM[[#This Row],[COD. APU]],"") -> APU7 | I184: APU7
A185: 182 | B185: APU24 | C185: 10.3.2 | D185: CONCRETO 14 MPA (CLASE F) PARA SOLADO | E185: m³ | F185: ÍTEM | H185: =+IFERROR(CONS_LISTA_ITEM[[#This Row],[COD. APU]],"") -> APU24 | I185: APU24
A186: 183 | B186: 0 | C186: 10.4 | D186: ACERO REFUERZO | F186: CAPITULO | H186: =+IFERROR(CONS_LISTA_ITEM[[#This Row],[COD. APU]],"") -> 0 | I186: 0
A187: 184 | B187: APU9 | C187: 10.4.1 | D187: ACERO REFUERZO FLEJADO 60000 PSI - 420 Mpa | E187: kg | F187: ÍTEM | H187: =+IFERROR(CONS_LISTA_ITEM[[#This Row],[COD. APU]],"") -> APU9 | I187: APU9
A188: 185 | B188: 0 | C188: 10.5 | D188: DRENAJES | F188: CAPITULO | H188: =+IFERROR(CONS_LISTA_ITEM[[#This Row],[COD. APU]],"") -> 0 | I188: 0
A189: 186 | B189: APU21 | C189: 10.5.1 | D189: GEOTEXTIL NO TEJIDO 1600 | E189: m² | F189: ÍTEM | H189: =+IFERROR(CONS_LISTA_ITEM[[#This Row],[COD. APU]],"") -> APU21 | I189: APU21
A190: 187 | B190: APU22 | C190: 10.5.2 | D190: FILTRO EN GRAVA FINA | E190: m³ | F190: ÍTEM | H190: =+IFERROR(CONS_LISTA_ITEM[[#This Row],[COD. APU]],"") -> APU22 | I190: APU22
A191: 188 | B191: APU23 | C191: 10.5.3 | D191: TUBERÍA DE DRENAJE DE Ø = 4" | E191: m | F191: ÍTEM | H191: =+IFERROR(CONS_LISTA_ITEM[[#This Row],[COD. APU]],"") -> APU23 | I191: APU23
A192: 189 | B192: 0 | C192: 11 | D192: MURO DE CONTENCIÓN DE CORONA (RELLENO HORIZONTAL Y SOBRECARGA VIVA) - H=4,0M | E192: m | F192: OBRA | H192: =+IFERROR(CONS_LISTA_ITEM[[#This Row],[COD. APU]],"") -> 0 | I192: 0
A193: 190 | B193: 0 | C193: 11.1 | D193: PRELIMINARES | F193: CAPITULO | H193: =+IFERROR(CONS_LISTA_ITEM[[#This Row],[COD. APU]],"") -> 0 | I193: 0
A194: 191 | B194: APU13 | C194: 11.1.1 | D194: LOCALIZACIÓN Y REPLANTEO | E194: m² | F194: ÍTEM | H194: =+IFERROR(CONS_LISTA_ITEM[[#This Row],[COD. APU]],"") -> APU13 | I194: APU13
A195: 192 | B195: 0 | C195: 11.2 | D195: MOVIMIENTOS TIERRA | F195: CAPITULO | H195: =+IFERROR(CONS_LISTA_ITEM[[#This Row],[COD. APU]],"") -> 0 | I195: 0
A196: 193 | B196: APU14 | C196: 11.2.1 | D196: EXCAVACIONES VARIAS EN MATERIAL COMUN EN SECO (Incluye retiro) | E196: m³ | F196: ÍTEM | H196: =+IFERROR(CONS_LISTA_ITEM[[#This Row],[COD. APU]],"") -> APU14 | I196: APU14
A197: 194 | B197: APU3 | C197: 11.2.2 | D197: RELLENO PARA ESTRUCTURAS CON MATERIAL IMPORTADO | E197: m³ | F197: ÍTEM | H197: =+IFERROR(CONS_LISTA_ITEM[[#This Row],[COD. APU]],"") -> APU3 | I197: APU3
A198: 195 | B198: 0 | C198: 11.3 | D198: ESTRUCTURAS EN CONCRETO | F198: CAPITULO | H198: =+IFERROR(CONS_LISTA_ITEM[[#This Row],[COD. APU]],"") -> 0 | I198: 0
A199: 196 | B199: APU7 | C199: 11.3.1 | D199: CONCRETO 21 MPA (CLASE D) PARA MURO Y ZAPATA | E199: m³ | F199: ÍTEM | H199: =+IFERROR(CONS_LISTA_ITEM[[#This Row],[COD. APU]],"") -> APU7 | I199: APU7
A200: 197 | B200: APU24 | C200: 11.3.2 | D200: CONCRETO 14 MPA (CLASE F) PARA SOLADO | E200: m³ | F200: ÍTEM | H200: =+IFERROR(CONS_LISTA_ITEM[[#This Row],[COD. APU]],"") -> APU24 | I200: APU24
A201: 198 | B201: 0 | C201: 11.4 | D201: ACERO REFUERZO | F201: CAPITULO | H201: =+IFERROR(CONS_LISTA_ITEM[[#This Row],[COD. APU]],"") -> 0 | I201: 0
A202: 199 | B202: APU9 | C202: 11.4.1 | D202: ACERO REFUERZO FLEJADO 60000 PSI - 420 Mpa | E202: kg | F202: ÍTEM | H202: =+IFERROR(CONS_LISTA_ITEM[[#This Row],[COD. APU]],"") -> APU9 | I202: APU9
... 989 more rows

Sheet APUs
A3: 1 | B3: 2 | C3: 3 | D3: 4 | E3: 5 | F3: 6 | G3: 7 | H3: 8 | I3: 9 | J3: 10 | K3: 11
D4: REPÚBLICA DE COLOMBIA
D5: =+DPTO -> DEPARTAMENTO DEL CAUCA
D6: =+Nom_Mpio1 -> MUNICIPIO LA ESTRELLA FLUVIAL
D7: =Dependencia -> SECRETARÍA DE OBRAS PÚBLICAS
D8: =+Nom_proy1 -> MEJORAMIENTO DEL TRAMO VIAL LA PAZ - EL PROGRESO ENTRE EL K5+000 Y EL K6+000 DEL MUNICIPIO LA ESTRELLA FLUVIAL
D10: Fecha: | G10: =+Fecha_Pres -> 2019-10-11
B12: ANÁLISIS DE PRECIOS UNITARIOS
A14: APU3 | B14: =IFERROR(VLOOKUP($A14,LISTA_APU,2,FALSE),"") -> RELLENO PARA ESTRUCTURAS CON MATERIAL IMPORTADO | I14: Unidad: | J14: =IFERROR(VLOOKUP($A14,LISTA_APU,3,FALSE),"") -> m³ | K14: =K43 -> 2420
B15: I. EQUIPO
B16: DESCRIPCIÓN | F16: TIPO | H16: TARIFA/HORA | I16: RENDIMIENTO | K16: Vr. UNITARIO
A17: e16 | B17: =+IFERROR(VLOOKUP($A17,INSUMOS_BD2,3,FALSE),"") -> EQUIPO DE TOPOGRAFÍA | H17: =+IFERROR(ROUND(IF($B17="Herramienta Menor HM (% mano de obra)",HM,IF($B17="Herramienta Menor HM2 (% mano de obra)",HM_2,VLOOKUP($A17,INSUMOS_BD2,5,FALSE))),2),"") -> 15750 | I17: 200 | K17: =+IFERROR(ROUND(IF($B17="Herramienta Menor HM (% mano de obra)",$K$41*H17,IF($B17="Herramienta Menor HM2 (% mano de obra)",$K$41*H17,H17/I17)),0),"") -> 79
A18: e31 | B18: =+IFERROR(VLOOKUP($A18,INSUMOS_BD2,3,FALSE),"") -> Herramienta Menor HM (% mano de obra) | H18: =+IFERROR(ROUND(IF($B18="Herramienta Menor HM (% mano de obra)",HM,IF($B18="Herramienta Menor HM2 (% mano de obra)",HM_2,VLOOKUP($A18,INSUMOS_BD2,5,FALSE))),2),"") -> 0.1 | K18: =+IFERROR(ROUND(IF($B18="Herramienta Menor HM (% mano de obra)",$K$41*H18,IF($B18="Herramienta Menor HM2 (% mano de obra)",$K$41*H18,H18/I18)),0),"") -> 204
B19: =+IFERROR(VLOOKUP($A19,INSUMOS_BD2,3,FALSE),"") ->  | H19: =+IFERROR(ROUND(IF($B19="Herramienta Menor HM (% mano de obra)",HM,IF($B19="Herramienta Menor HM2 (% mano de obra)",HM_2,VLOOKUP($A19,INSUMOS_BD2,5,FALSE))),2),"") ->  | K19: =+IFERROR(ROUND(IF($B19="Herramienta Menor HM (% mano de obra)",$K$41*H19,IF($B19="Herramienta Menor HM2 (% mano de obra)",$K$41*H19,H19/I19)),0),"") -> 
B20: SUB-TOTAL | K20: =SUM(K17:K19) -> 283
B22: II. MATERIALES
B23: DESCRIPCIÓN | G23: UNIDAD | H23: CANTIDAD | I23: PRECIO UNIT. | K23: Vr. UNITARIO
A24: m104 | B24: =+IFERROR(VLOOKUP($A24,INSUMOS_BD2,3,FALSE),"") -> Estaca | G24: =+IFERROR(VLOOKUP($A24,INSUMOS_BD2,4,FALSE),"") -> und | H24: 0.2 | I24: =+IFERROR(VLOOKUP($A24,INSUMOS_BD2,5,FALSE),"") -> 250 | K24: =IFERROR(ROUND(H24*I24,0),"") -> 50
A25: m105 | B25: =+IFERROR(VLOOKUP($A25,INSUMOS_BD2,3,FALSE),"") -> Esmalte Doméstico | G25: =+IFERROR(VLOOKUP($A25,INSUMOS_BD2,4,FALSE),"") -> gal | H25: 0.0005 | I25: =+IFERROR(VLOOKUP($A25,INSUMOS_BD2,5,FALSE),"") -> 50000 | K25: =IFERROR(ROUND(H25*I25,0),"") -> 25
A26: m55 | B26: =+IFERROR(VLOOKUP($A26,INSUMOS_BD2,3,FALSE),"") -> Puntilla de 1" | G26: =+IFERROR(VLOOKUP($A26,INSUMOS_BD2,4,FALSE),"") -> lb | H26: 0.01 | I26: =+IFERROR(VLOOKUP($A26,INSUMOS_BD2,5,FALSE),"") -> 2350 | K26: =IFERROR(ROUND(H26*I26,0),"") -> 24
B27: SUB-TOTAL | K27: =SUM(K24:K26) -> 99
B29: III. TRANSPORTES
B30: MATERIAL | F30: FACT. EXPAN o COMPACT | G30: DISTANCIA | H30: VOL. o PESO | I30: TARIFA (m3 o ton/km) | K30: Vr. UNITARIO
B31: =+IFERROR(VLOOKUP($A31,INSUMOS_BD2,3,FALSE),"") ->  | H31: =+IFERROR(VLOOKUP($A31,INSUMOS_BD2,3,FALSE),"") ->  | I31: =+IFERROR(VLOOKUP($A31,INSUMOS_BD2,5,FALSE),"") ->  | K31: =IFERROR(ROUND(F31*G31*I31,0),"") -> 
B32: =+IFERROR(VLOOKUP($A32,INSUMOS_BD2,3,FALSE),"") ->  | H32: =+IFERROR(VLOOKUP($A32,INSUMOS_BD2,3,FALSE),"") ->  | I32: =+IFERROR(VLOOKUP($A32,INSUMOS_BD2,5,FALSE),"") ->  | K32: =IFERROR(ROUND(F32*G32*I32,0),"") -> 
B33: =+IFERROR(VLOOKUP($A33,INSUMOS_BD2,3,FALSE),"") ->  | H33: =+IFERROR(VLOOKUP($A33,INSUMOS_BD2,3,FALSE),"") ->  | I33: =+IFERROR(VLOOKUP($A33,INSUMOS_BD2,5,FALSE),"") ->  | K33: =IFERROR(ROUND(F33*G33*I33,0),"") -> 
B34: SUB-TOTAL | K34: =SUM(K31:K33) -> 0
B36: IV. MANO DE OBRA
B37: TRABAJADOR | F37: JORNAL | G37: PRESTACIÓN | H37: JORNAL TOTAL | I37: RENDIMIENTO | K37: Vr. UNITARIO
A38: MO25 | B38: =+IFERROR(VLOOKUP($A38,INSUMOS_BD2,3,FALSE),"") -> COMISIÓN TOPOGRAFÍA | F38: =+IFERROR(VLOOKUP($A38,INSUMOS_BD2,5,FALSE),"") -> 242082 | G38: =+F_PREST -> 0.6836354832 | H38: =IFERROR(F38*(1+G38),"") -> 407577.845 | I38: 200 | K38: =IFERROR(ROUND(H38/I38,0),"") -> 2038
B39: =+IFERROR(VLOOKUP($A39,INSUMOS_BD2,3,FALSE),"") ->  | F39: =+IFERROR(VLOOKUP($A39,INSUMOS_BD2,4,FALSE),"") ->  | H39: =IFERROR(F39*(1+G39),"") ->  | K39: =IFERROR(ROUND(H39/I39,0),"") -> 
B40: =+IFERROR(VLOOKUP($A40,INSUMOS_BD2,3,FALSE),"") ->  | H40: =IFERROR(F40*(1+G40),"") ->  | K40: =IFERROR(ROUND(H40/I40,0),"") -> 
B41: SUB-TOTAL | K41: =SUM(K38:K40) -> 2038
B43: TOTAL COSTO DIRECTO | K43: =ROUND((+K41+K34+K27+K20),0) -> 2420
B45: V. COSTOS INDIRECTOS
B46: DESCRIPCIÓN | H46: PORCENTAJE | I46: V/TOTAL
B47: ADMINISTRACION | H47: =+ADMON -> 0.01 | I47: =ROUND(K43*H47,0) -> 24
B48: IMPREVISTOS | H48: =+IMPREVISTOS -> 0.02 | I48: =ROUND(K43*H48,0) -> 48
B49: UTILIDAD | H49: =+UTILIDAD -> 0.05 | I49: =ROUND(K43*H49,0) -> 121
B50: TOTAL COSTOS INDIRECTOS | K50: =SUM(I47:J49) -> 193
B52: VALOR UNITARIO | K52: =+ROUND(K50+K43,0) -> 2613
B57: =+Responsable -> JULIANA MARÍA VELEZ
B58: =+Cargo -> SECRETARIA DE OBRAS PÚBLICAS
B59: =+MT_Responsable -> M.P. N°. 191919199 CAU
A61: APU13 | B61: =IFERROR(VLOOKUP($A61,LISTA_APU,2,FALSE),"") -> LOCALIZACIÓN Y REPLANTEO | I61: Unidad: | J61: =IFERROR(VLOOKUP($A61,LISTA_APU,3,FALSE),"") -> m² | K61: =K90 -> 3222
B62: I. EQUIPO
B63: DESCRIPCIÓN | F63: TIPO | H63: TARIFA/HORA | I63: RENDIMIENTO | K63: Vr. UNITARIO
A64: E16 | B64: =+IFERROR(VLOOKUP($A64,INSUMOS_BD2,3,FALSE),"") -> EQUIPO DE TOPOGRAFÍA | H64: =+IFERROR(ROUND(IF($B64="Herramienta Menor HM (% mano de obra)",HM,IF($B64="Herramienta Menor HM2 (% mano de obra)",HM_2,VLOOKUP($A64,INSUMOS_BD2,5,FALSE))),2),"") -> 15750 | I64: 180 | K64: =+IFERROR(ROUND(IF($B64="Herramienta Menor HM (% mano de obra)",$K$88*H64,IF($B64="Herramienta Menor HM2 (% mano de obra)",$K$88*H64,H64/I64)),0),"") -> 88
A65: e31 | B65: =+IFERROR(VLOOKUP($A65,INSUMOS_BD2,3,FALSE),"") -> Herramienta Menor HM (% mano de obra) | H65: =+IFERROR(ROUND(IF($B65="Herramienta Menor HM (% mano de obra)",HM,IF($B65="Herramienta Menor HM2 (% mano de obra)",HM_2,VLOOKUP($A65,INSUMOS_BD2,5,FALSE))),2),"") -> 0.1 | K65: =+IFERROR(ROUND(IF($B65="Herramienta Menor HM (% mano de obra)",$K$88*H65,IF($B65="Herramienta Menor HM2 (% mano de obra)",$K$88*H65,H65/I65)),0),"") -> 226
B66: =+IFERROR(VLOOKUP($A66,INSUMOS_BD2,3,FALSE),"") ->  | H66: =+IFERROR(ROUND(IF($B66="Herramienta Menor HM (% mano de obra)",HM,IF($B66="Herramienta Menor HM2 (% mano de obra)",HM_2,VLOOKUP($A66,INSUMOS_BD2,5,FALSE))),2),"") ->  | K66: =+IFERROR(ROUND(IF($B66="Herramienta Menor HM (% mano de obra)",$K$88*H66,IF($B66="Herramienta Menor HM2 (% mano de obra)",$K$88*H66,H66/I66)),0),"") -> 
B67: SUB-TOTAL | K67: =SUM(K64:K66) -> 314
B69: II. MATERIALES
B70: DESCRIPCIÓN | G70: UNIDAD | H70: CANTIDAD | I70: PRECIO UNIT. | K70: Vr. UNITARIO
A71: m104 | B71: =+IFERROR(VLOOKUP($A71,INSUMOS_BD2,3,FALSE),"") -> Estaca | G71: =+IFERROR(VLOOKUP($A71,INSUMOS_BD2,4,FALSE),"") -> und | H71: 2 | I71: =+IFERROR(VLOOKUP($A71,INSUMOS_BD2,5,FALSE),"") -> 250 | K71: =IFERROR(ROUND(H71*I71,0),"") -> 500
A72: m105 | B72: =+IFERROR(VLOOKUP($A72,INSUMOS_BD2,3,FALSE),"") -> Esmalte Doméstico | G72: =+IFERROR(VLOOKUP($A72,INSUMOS_BD2,4,FALSE),"") -> gal | H72: 0.001 | I72: =+IFERROR(VLOOKUP($A72,INSUMOS_BD2,5,FALSE),"") -> 50000 | K72: =IFERROR(ROUND(H72*I72,0),"") -> 50
A73: m55 | B73: =+IFERROR(VLOOKUP($A73,INSUMOS_BD2,3,FALSE),"") -> Puntilla de 1" | G73: =+IFERROR(VLOOKUP($A73,INSUMOS_BD2,4,FALSE),"") -> lb | H73: 0.04 | I73: =+IFERROR(VLOOKUP($A73,INSUMOS_BD2,5,FALSE),"") -> 2350 | K73: =IFERROR(ROUND(H73*I73,0),"") -> 94
B74: SUB-TOTAL | K74: =SUM(K71:K73) -> 644
B76: III. TRANSPORTES
B77: MATERIAL | F77: FACT. EXPAN o COMPACT | G77: DISTANCIA | H77: VOL. o PESO | I77: TARIFA (m3 o ton/km) | K77: Vr. UNITARIO
B78: =+IFERROR(VLOOKUP($A78,INSUMOS_BD2,3,FALSE),"") ->  | H78: =+IFERROR(VLOOKUP($A78,INSUMOS_BD2,3,FALSE),"") ->  | I78: =+IFERROR(VLOOKUP($A78,INSUMOS_BD2,5,FALSE),"") ->  | K78: =IFERROR(ROUND(F78*G78*I78,0),"") -> 
B79: =+IFERROR(VLOOKUP($A79,INSUMOS_BD2,3,FALSE),"") ->  | H79: =+IFERROR(VLOOKUP($A79,INSUMOS_BD2,3,FALSE),"") ->  | I79: =+IFERROR(VLOOKUP($A79,INSUMOS_BD2,5,FALSE),"") ->  | K79: =IFERROR(ROUND(F79*G79*I79,0),"") -> 
B80: =+IFERROR(VLOOKUP($A80,INSUMOS_BD2,3,FALSE),"") ->  | H80: =+IFERROR(VLOOKUP($A80,INSUMOS_BD2,3,FALSE),"") ->  | I80: =+IFERROR(VLOOKUP($A80,INSUMOS_BD2,5,FALSE),"") ->  | K80: =IFERROR(ROUND(F80*G80*I80,0),"") -> 
B81: SUB-TOTAL | K81: =SUM(K78:K80) -> 0
B83: IV. MANO DE OBRA
B84: TRABAJADOR | F84: JORNAL | G84: PRESTACIÓN | H84: JORNAL TOTAL | I84: RENDIMIENTO | K84: Vr. UNITARIO
A85: MO25 | B85: =+IFERROR(VLOOKUP($A85,INSUMOS_BD2,3,FALSE),"") -> COMISIÓN TOPOGRAFÍA | F85: =+IFERROR(VLOOKUP($A85,INSUMOS_BD2,5,FALSE),"") -> 242082 | G85: =+F_PREST -> 0.6836354832 | H85: =IFERROR(F85*(1+G85),"") -> 407577.845 | I85: 180 | K85: =IFERROR(ROUND(H85/I85,0),"") -> 2264
B86: =+IFERROR(VLOOKUP($A86,INSUMOS_BD2,3,FALSE),"") ->  | F86: =+IFERROR(VLOOKUP($A86,INSUMOS_BD2,4,FALSE),"") ->  | H86: =IFERROR(F86*(1+G86),"") ->  | K86: =IFERROR(ROUND(H86/I86,0),"") -> 
B87: =+IFERROR(VLOOKUP($A87,INSUMOS_BD2,3,FALSE),"") ->  | H87: =IFERROR(F87*(1+G87),"") ->  | K87: =IFERROR(ROUND(H87/I87,0),"") -> 
B88: SUB-TOTAL | K88: =SUM(K85:K87) -> 2264
B90: TOTAL COSTO DIRECTO | K90: =ROUND((+K88+K81+K74+K67),0) -> 3222
B92: V. COSTOS INDIRECTOS
B93: DESCRIPCIÓN | H93: PORCENTAJE | I93: V/TOTAL
B94: ADMINISTRACION | H94: =+ADMON -> 0.01 | I94: =ROUND(K90*H94,0) -> 32
B95: IMPREVISTOS | H95: =+IMPREVISTOS -> 0.02 | I95: =ROUND(K90*H95,0) -> 64
B96: UTILIDAD | H96: =+UTILIDAD -> 0.05 | I96: =ROUND(K90*H96,0) -> 161
B97: TOTAL COSTOS INDIRECTOS | K97: =SUM(I94:J96) -> 257
B99: VALOR UNITARIO | K99: =+ROUND(K97+K90,0) -> 3479
B104: =+Responsable -> JULIANA MARÍA VELEZ
B105: =+Cargo -> SECRETARIA DE OBRAS PÚBLICAS
B106: =+MT_Responsable -> M.P. N°. 191919199 CAU
A108: APU16 | B108: =IFERROR(VLOOKUP($A108,LISTA_APU,2,FALSE),"") -> LOCALIZACIÓN Y REPLANTEO | I108: Unidad: | J108: =IFERROR(VLOOKUP($A108,LISTA_APU,3,FALSE),"") -> und | K108: =K137 -> 213819
B109: I. EQUIPO
B110: DESCRIPCIÓN | F110: TIPO | H110: TARIFA/HORA | I110: RENDIMIENTO | K110: Vr. UNITARIO
A111: e16 | B111: =+IFERROR(VLOOKUP($A111,INSUMOS_BD2,3,FALSE),"") -> EQUIPO DE TOPOGRAFÍA | H111: =+IFERROR(ROUND(IF($B111="Herramienta Menor HM (% mano de obra)",HM,IF($B111="Herramienta Menor HM2 (% mano de obra)",HM_2,VLOOKUP($A111,INSUMOS_BD2,5,FALSE))),2),"") -> 15750 | I111: 0.5 | K111: =+IFERROR(ROUND(IF($B111="Herramienta Menor HM (% mano de obra)",$K$135*H111,IF($B111="Herramienta Menor HM2 (% mano de obra)",$K$135*H111,H111/I111)),0),"") -> 31500
A112: e31 | B112: =+IFERROR(VLOOKUP($A112,INSUMOS_BD2,3,FALSE),"") -> Herramienta Menor HM (% mano de obra) | H112: =+IFERROR(ROUND(IF($B112="Herramienta Menor HM (% mano de obra)",HM,IF($B112="Herramienta Menor HM2 (% mano de obra)",HM_2,VLOOKUP($A112,INSUMOS_BD2,5,FALSE))),2),"") -> 0.1 | K112: =+IFERROR(ROUND(IF($B112="Herramienta Menor HM (% mano de obra)",$K$135*H112,IF($B112="Herramienta Menor HM2 (% mano de obra)",$K$135*H112,H112/I112)),0),"") -> 16303
B113: =+IFERROR(VLOOKUP($A113,INSUMOS_BD2,3,FALSE),"") ->  | H113: =+IFERROR(ROUND(IF($B113="Herramienta Menor HM (% mano de obra)",HM,IF($B113="Herramienta Menor HM2 (% mano de obra)",HM_2,VLOOKUP($A113,INSUMOS_BD2,5,FALSE))),2),"") ->  | K113: =+IFERROR(ROUND(IF($B113="Herramienta Menor HM (% mano de obra)",$K$135*H113,IF($B113="Herramienta Menor HM2 (% mano de obra)",$K$135*H113,H113/I113)),0),"") -> 
B114: SUB-TOTAL | K114: =SUM(K111:K113) -> 47803
B116: II. MATERIALES
B117: DESCRIPCIÓN | G117: UNIDAD | H117: CANTIDAD | I117: PRECIO UNIT. | K117: Vr. UNITARIO
A118: m104 | B118: =+IFERROR(VLOOKUP($A118,INSUMOS_BD2,3,FALSE),"") -> Estaca | G118: =+IFERROR(VLOOKUP($A118,INSUMOS_BD2,4,FALSE),"") -> und | H118: 10 | I118: =+IFERROR(VLOOKUP($A118,INSUMOS_BD2,5,FALSE),"") -> 250 | K118: =IFERROR(ROUND(H118*I118,0),"") -> 2500
A119: m105 | B119: =+IFERROR(VLOOKUP($A119,INSUMOS_BD2,3,FALSE),"") -> Esmalte Doméstico | G119: =+IFERROR(VLOOKUP($A119,INSUMOS_BD2,4,FALSE),"") -> gal | H119: 0.005 | I119: =+IFERROR(VLOOKUP($A119,INSUMOS_BD2,5,FALSE),"") -> 50000 | K119: =IFERROR(ROUND(H119*I119,0),"") -> 250
A120: m55 | B120: =+IFERROR(VLOOKUP($A120,INSUMOS_BD2,3,FALSE),"") -> Puntilla de 1" | G120: =+IFERROR(VLOOKUP($A120,INSUMOS_BD2,4,FALSE),"") -> lb | H120: 0.1 | I120: =+IFERROR(VLOOKUP($A120,INSUMOS_BD2,5,FALSE),"") -> 2350 | K120: =IFERROR(ROUND(H120*I120,0),"") -> 235
B121: SUB-TOTAL | K121: =SUM(K118:K120) -> 2985
B123: III. TRANSPORTES
B124: MATERIAL | F124: FACT. EXPAN o COMPACT | G124: DISTANCIA | H124: VOL. o PESO | I124: TARIFA (m3 o ton/km) | K124: Vr. UNITARIO
B125: =+IFERROR(VLOOKUP($A125,INSUMOS_BD2,3,FALSE),"") ->  | H125: =+IFERROR(VLOOKUP($A125,INSUMOS_BD2,3,FALSE),"") ->  | I125: =+IFERROR(VLOOKUP($A125,INSUMOS_BD2,5,FALSE),"") ->  | K125: =IFERROR(ROUND(F125*G125*I125,0),"") -> 
B126: =+IFERROR(VLOOKUP($A126,INSUMOS_BD2,3,FALSE),"") ->  | H126: =+IFERROR(VLOOKUP($A126,INSUMOS_BD2,3,FALSE),"") ->  | I126: =+IFERROR(VLOOKUP($A126,INSUMOS_BD2,5,FALSE),"") ->  | K126: =IFERROR(ROUND(F126*G126*I126,0),"") -> 
B127: =+IFERROR(VLOOKUP($A127,INSUMOS_BD2,3,FALSE),"") ->  | H127: =+IFERROR(VLOOKUP($A127,INSUMOS_BD2,3,FALSE),"") ->  | I127: =+IFERROR(VLOOKUP($A127,INSUMOS_BD2,5,FALSE),"") ->  | K127: =IFERROR(ROUND(F127*G127*I127,0),"") -> 
B128: SUB-TOTAL | K128: =SUM(K125:K127) -> 0
B130: IV. MANO DE OBRA
B131: TRABAJADOR | F131: JORNAL | G131: PRESTACIÓN | H131: JORNAL TOTAL | I131: RENDIMIENTO | K131: Vr. UNITARIO
A132: MO25 | B132: =+IFERROR(VLOOKUP($A132,INSUMOS_BD2,3,FALSE),"") -> COMISIÓN TOPOGRAFÍA | F132: =+IFERROR(VLOOKUP($A132,INSUMOS_BD2,5,FALSE),"") -> 242082 | G132: =+F_PREST -> 0.6836354832 | H132: =IFERROR(F132*(1+G132),"") -> 407577.845 | I132: 2.5 | K132: =IFERROR(ROUND(H132/I132,0),"") -> 163031
B133: =+IFERROR(VLOOKUP($A133,INSUMOS_BD2,3,FALSE),"") ->  | F133: =+IFERROR(VLOOKUP($A133,INSUMOS_BD2,4,FALSE),"") ->  | H133: =IFERROR(F133*(1+G133),"") ->  | K133: =IFERROR(ROUND(H133/I133,0),"") -> 
B134: =+IFERROR(VLOOKUP($A134,INSUMOS_BD2,3,FALSE),"") ->  | F134: =+IFERROR(VLOOKUP($A134,INSUMOS_BD2,4,FALSE),"") ->  | H134: =IFERROR(F134*(1+G134),"") ->  | K134: =IFERROR(ROUND(H134/I134,0),"") -> 
B135: SUB-TOTAL | K135: =SUM(K132:K134) -> 163031
B137: TOTAL COSTO DIRECTO | K137: =ROUND((+K135+K128+K121+K114),0) -> 213819
B139: V. COSTOS INDIRECTOS
B140: DESCRIPCIÓN | H140: PORCENTAJE | I140: V/TOTAL
B141: ADMINISTRACION | H141: =+ADMON -> 0.01 | I141: =ROUND(K137*H141,0) -> 2138
B142: IMPREVISTOS | H142: =+IMPREVISTOS -> 0.02 | I142: =ROUND(K137*H142,0) -> 4276
B143: UTILIDAD | H143: =+UTILIDAD -> 0.05 | I143: =ROUND(K137*H143,0) -> 10691
B144: TOTAL COSTOS INDIRECTOS | K144: =SUM(I141:J143) -> 17105
B146: VALOR UNITARIO | K146: =+ROUND(K144+K137,0) -> 230924
B151: =+Responsable -> JULIANA MARÍA VELEZ
B152: =+Cargo -> SECRETARIA DE OBRAS PÚBLICAS
B153: =+MT_Responsable -> M.P. N°. 191919199 CAU
A155: APU17 | B155: =IFERROR(VLOOKUP($A155,LISTA_APU,2,FALSE),"") -> DEMOLICION DE ESTRUCTURAS | I155: Unidad: | J155: =IFERROR(VLOOKUP($A155,LISTA_APU,3,FALSE),"") -> m³ | K155: =K184 -> 106842
B156: I. EQUIPO
B157: DESCRIPCIÓN | F157: TIPO | H157: TARIFA/HORA | I157: RENDIMIENTO | K157: Vr. UNITARIO
A158: e20 | B158: =+IFERROR(VLOOKUP($A158,INSUMOS_BD2,3,FALSE),"") -> RETROEXCAVADORA CAP. 1.5 YD3 SOBRE ORUGA | H158: =+IFERROR(ROUND(IF($B158="Herramienta Menor HM (% mano de obra)",HM,IF($B158="Herramienta Menor HM2 (% mano de obra)",HM_2,VLOOKUP($A158,INSUMOS_BD2,5,FALSE))),2),"") -> 130000 | I158: 3 | K158: =+IFERROR(ROUND(IF($B158="Herramienta Menor HM (% mano de obra)",$K$182*H158,IF($B158="Herramienta Menor HM2 (% mano de obra)",$K$182*H158,H158/I158)),0),"") -> 43333
A159: E12 | B159: =+IFERROR(VLOOKUP($A159,INSUMOS_BD2,3,FALSE),"") -> COMPRESOR 125 PIES 3 CON MARTILLO | H159: =+IFERROR(ROUND(IF($B159="Herramienta Menor HM (% mano de obra)",HM,IF($B159="Herramienta Menor HM2 (% mano de obra)",HM_2,VLOOKUP($A159,INSUMOS_BD2,5,FALSE))),2),"") -> 90000 | I159: 3 | K159: =+IFERROR(ROUND(IF($B159="Herramienta Menor HM (% mano de obra)",$K$182*H159,IF($B159="Herramienta Menor HM2 (% mano de obra)",$K$182*H159,H159/I159)),0),"") -> 30000
A160: e14 | B160: =+IFERROR(VLOOKUP($A160,INSUMOS_BD2,3,FALSE),"") -> EQUIPO DE OXICORTE | H160: =+IFERROR(ROUND(IF($B160="Herramienta Menor HM (% mano de obra)",HM,IF($B160="Herramienta Menor HM2 (% mano de obra)",HM_2,VLOOKUP($A160,INSUMOS_BD2,5,FALSE))),2),"") -> 31500 | I160: 3 | K160: =+IFERROR(ROUND(IF($B160="Herramienta Menor HM (% mano de obra)",$K$182*H160,IF($B160="Herramienta Menor HM2 (% mano de obra)",$K$182*H160,H160/I160)),0),"") -> 10500
B161: SUB-TOTAL | K161: =SUM(K158:K160) -> 83833
B163: II. MATERIALES
B164: DESCRIPCIÓN | G164: UNIDAD | H164: CANTIDAD | I164: PRECIO UNIT. | K164: Vr. UNITARIO
B165: =+IFERROR(VLOOKUP($A165,INSUMOS_BD2,3,FALSE),"") ->  | G165: =+IFERROR(VLOOKUP($A165,INSUMOS_BD2,4,FALSE),"") ->  | I165: =+IFERROR(VLOOKUP($A165,INSUMOS_BD2,5,FALSE),"") ->  | K165: =IFERROR(ROUND(H165*I165,0),"") -> 
B166: =+IFERROR(VLOOKUP($A166,INSUMOS_BD2,3,FALSE),"") ->  | G166: =+IFERROR(VLOOKUP($A166,INSUMOS_BD2,4,FALSE),"") ->  | I166: =+IFERROR(VLOOKUP($A166,INSUMOS_BD2,5,FALSE),"") ->  | K166: =IFERROR(ROUND(H166*I166,0),"") -> 
B167: =+IFERROR(VLOOKUP($A167,INSUMOS_BD2,3,FALSE),"") ->  | G167: =+IFERROR(VLOOKUP($A167,INSUMOS_BD2,4,FALSE),"") ->  | I167: =+IFERROR(VLOOKUP($A167,INSUMOS_BD2,5,FALSE),"") ->  | K167: =IFERROR(ROUND(H167*I167,0),"") -> 
B168: SUB-TOTAL | K168: =SUM(K165:K167) -> 0
B170: III. TRANSPORTES
B171: MATERIAL | F171: FACT. EXPAN o COMPACT | G171: DISTANCIA | H171: VOL. o PESO | I171: TARIFA (m3 o ton/km) | K171: Vr. UNITARIO
A172: t14 | B172: =+IFERROR(VLOOKUP($A172,INSUMOS_BD2,3,FALSE),"") -> TRANSPORTE MATERIAL DEMOLICION | F172: =+F_Expan -> 1.25 | G172: =+D_Bote -> 8 | H172: 1 | I172: =+IFERROR(VLOOKUP($A172,INSUMOS_BD2,5,FALSE),"") -> 1200 | K172: =IFERROR(ROUND(F172*G172*H172*I172,0),"") -> 12000
